Workbook

Sheet 颌面
A1: 附件1
A2: 颌面外科类医疗服务价格项目立项指南 （试行）
A3: 使用说明： 1.本指南以颌面外科为重点，按照颌面外科相关医疗服务产出设立价格项目。 2.根据《深化医疗服务价格改革试点方案》（医保发〔2021〕41号）关于“厘清价格项目与临床诊疗技术规范、医疗机构成本要素、不同应用场景和收费标准等的政策边界。分类整合现行价格项目，实现价格项目与操作步骤、诊疗部位等技术细节脱钩，增强现行价格项目对医疗技术和医疗活动改良创新的兼容性”的要求，服务产出相同的一类项目在操作层面存在差异，但在价格项目和定价水平层面具备合并同类项的条件，立项指南对此进行合并。地方医疗保障部门制定颌面外科类医疗服务项目价格时，要体现技术劳务价值，使收费水平覆盖绝大部分的差异化操作；各地医疗保障部门所定价格属于政府指导价为最高限价，下浮不限。同时，医疗机构申报的技术改良进步项目，可采取“现有项目兼容”方式简化处理，无需申报新增医疗服务价格项目，经向本地区医疗保障部门备案后可按照对应的项目执行。 3.本指南所称“价格构成”，指项目价格应涵盖的各类资源消耗，用于确定计价单元的边界，是省市级医保部门制定调整项目价格的测算因子，不应作为临床技术标准理解，不是实际操作方式、路径、步骤、程序的强制性要求，价格构成中包含但临床实践中非必要、未发生的，无需强制要求公立医疗机构减计费用。所列“设备投入”包括但不限于操作设备、器具及固定资产投入。 4.本指南所称“加收项”，指同一项目以不同方式提供或在不同场景应用时，确有必要制定差异化收费标准而细分的一类子项，包括在原项目价格基础上增加或减少收费的情况，具体的加/减收标准（加/减收率或加/减收金额）由省市级医疗保障部门依权限制定；实际应用中，同时涉及多个加收项的，以项目单价为基础计算相应的加/减收水平后，据实收费。 5.本指南所称“扩展项”，指同一项目下以不同方式提供或在不同场景应用时，只扩展价格项目适用范围、不额外加价的一类子项，子项的价格按主项目执行。 6.本指南所称"基本物质资源消耗"，指原则上限于不应或不必要与医疗服务项目分割的易耗品，属于医疗服务价格项目应当使用的、市场价格和使用数量相对稳定的医用耗材，包括但不限于各类消杀灭菌用品、储存用品、清洁用品、个人防护用品、垃圾处理用品、冲洗液、润滑剂、灌洗液、棉球（卷）、棉签、纱布（垫）、绷带、护垫、衬垫、手术巾（单）、治疗巾（单）、治疗护理盘(包）、注射器、压舌板、防渗漏垫、标签、可复用的操作器具、冲洗工具、备皮工具、口腔盒、印模材、咬合纸、引流条、一次性口杯、一次性吸唾管、报告打印耗材、软件（版权、开发、购买）成本等。基本物质资源消耗成本计入项目价格，不另行收费。除基本物质资源消耗以外的其他耗材，按照实际采购价格零差率销售。 7.本指南中涉及“包括……”“…… 等”的，属于开放型表述，所指对象不仅局限于表述中列明的事项，也包括未列明的同类事项。 8.涉及“复杂”等内涵未尽的表述，除立项指南中已明确的情形外，医院实践中按照“复杂”情形计费的，应以卫生行政主管部门最新版卫生技术规范、临床指南或专家共识中的明确定性为前提。满足复杂情况中的任意一种即算复杂，不同复杂情况不累计叠加收费。 9.本指南中手术类项目服务对象为儿童时，统一落实儿童加收政策（以下简称“儿童加收”），加收比例或金额由各地医疗保障部门根据实际情况确定。手术类项目的具体范围以《全国医疗服务项目技术规范》的分类为准，对于立项指南同时映射技术规范中的手术类项目和治疗类项目的主项目，按手术类落实儿童加收政策；其他非手术类项目实行儿童加收范围，以立项指南加收项为准。本指南所称“儿童”，指6周岁及以下，周岁的计算方法以法律的相关规定为准。 10.本指南中涉及皮瓣相关手术，按体被系统相关项目收费。 11.本指南中涉及外部切口缝合的操作均为精细缝合，不再重复收取减张美容缝合费和切口美容改型费。 12.可单独收费的一次性医用耗材：合导板、内固定材料、特殊缝线、压膜、导板、止血材料、扩弓器、牵张器、功能丝、充填材料、人工骨、屏障膜、功能丝、人工皮、补片、气管切开套管、衬垫材料、人工关节、唇弓、腭护板、修补材料、矫治器。
A4: 序号 | B4: 项目编码 | C4: 项目名称 | D4: 服务产出 | E4: 价格构成 | F4: 加收项 | G4: 扩展项 | H4: 计价单位 | I4: 计价说明 | J4: 初审备注 | K4: 终审备注 | L4: 指导价格 | O4: 医保支付类别 | P4: 映射项目名称
L5: 三级 | M5: 二级 | N5: 一级
A6: 1 | C6: 上颌截骨内固定费（常规） | D6: 通过手术对上颌骨进行截骨、重新定位并固定。 | E6: 所定价格涵盖手术计划、消毒、切开、截骨、移位、固定、缝合、处理用物等步骤所需的人力资源和基本物质资源消耗。 | H6: 单侧 | J6: 2200 1200(设计费)+1000（手术费） 国准设计费2医6小时；手术费（特I型）3医2护2小时 | K6: 价格同初审一致 拟定甲类 | L6: 2200 | M6: 1870 | N6: 1589 | O6: 甲类 | P6: 正颌外科手术设计 颌骨缺损咬合导板制作 正颌外科手术数字化设计与预测 模型外科设计 钛重建板弯制复制口内咬合关系 颌面缺损重建手术设计 颌面头骨模型制作 牙槽突模型测绘 上颌前牙骨段截骨后退术 上颌雷弗特Ⅰ型截骨术 上颌后部牙骨段截骨术 上颌骨骨皮质截骨扩弓术 上颌雷弗特Ⅰ型截骨术 上颌前部根尖下截骨前移术 上颌雷弗特Ⅰ型加分块截骨术 上颌后部牙骨段截骨术 上颌梨状孔周围截骨术
A7: 2 | C7: 上颌截骨内固定费（复杂） | D7: 通过手术对复杂情况的上颌骨进行截骨、重新定位并固定。 | E7: 所定价格涵盖手术计划、消毒、切开、截骨、移位、固定、缝合、处理用物等步骤所需的人力资源和基本物质资源消耗。 | H7: 单侧 | I7: 本项目中的“复杂”指：指LefortII型截骨、LefortIII型截骨、分块截骨、陈旧性骨折、唇腭裂。 | J7: 3000 1200(设计费)+1800（手术费） 国准设计费2医6小时；手术费（特III型）4医2护3小时 | K7: 价格与初审一致 拟定甲类 | L7: 3000 | M7: 2550 | N7: 2167 | O7: 甲类 | P7: 正颌外科手术设计 正颌外科手术数字化设计与预测 模型外科设计 钛重建板弯制复制口内咬合关系 颌面缺损重建手术设计 颌面头骨模型制作 牙槽突模型测绘 口内外联合入路额眶上颌雷弗特Ⅱ型截骨术 口内外联合入路额眶颧上颌雷弗特Ⅲ型截骨术 上颌前牙骨段截骨后退术 上颌雷弗特Ⅰ型截骨术 上颌后部牙骨段截骨术 联合入路额眶颧上颌截骨矫正术 上颌骨骨皮质截骨扩弓术 上颌雷弗特Ⅰ型截骨术 上颌雷弗特Ⅰ型加分块截骨术 上颌后部牙骨段截骨术 上颌梨状孔周围截骨术
A8: 3 | C8: 下颌截骨内固定费（常规） | D8: 通过手术对下颌骨进行截骨、重新定位并固定。 | E8: 所定价格涵盖手术计划、消毒、切开、截骨、移位、固定、缝合、处理用物等步骤所需的人力资源和基本物质资源消耗。 | H8: 单侧 | J8: 1400 200(设计费)+1200（高频手术费） | K8: 价格与初审一致 拟定甲类 | L8: 1400 | M8: 1190 | N8: 1011 | O8: 甲类 | P8: 下颌升支异型截骨术 下颌骨体部阶梯状截骨术 下颌骨体后部截骨术 下颌骨外板劈开植骨增宽术 下颌体部截骨术 下颌后部根尖下截骨术 下颌前部根尖下截骨术 正颌外科手术设计 正颌外科手术数字化设计与预测 模型外科设计 钛重建板弯制复制口内咬合关系 颌面缺损重建手术设计 颌面头骨模型制作 牙槽突模型测绘
A9: 4 | C9: 下颌截骨内固定费（复杂） | D9: 通过手术对复杂情况的下颌骨进行截骨、重新定位并固定。 | E9: 所定价格涵盖手术计划、消毒、切开、截骨、移位、固定、缝合、处理用物等步骤所需的人力资源和基本物质资源消耗。 | H9: 单侧 | I9: 本项目中的“复杂”指：下颌骨分块截骨、陈旧性骨折。 | J9: 1770 200(设计费)+1570（平移“下颌骨陈旧性骨折截骨植骨整复术”价格 | K9: 价格与初审一致 拟定甲类 | L9: 1770 | M9: 1504 | N9: 1278 | O9: 甲类 | P9: 下颌升支异型截骨术 下颌全牙列根尖下截骨术 下颌骨体前部垂直截骨颌骨畸形矫正术 下颌骨陈旧性骨折截骨植骨整复术 下颌体部截骨术 下颌后部根尖下截骨术 下颌前部根尖下截骨术 口内入路下颌升支矢状劈开颌骨畸形矫正术 口内入路下颌升支垂直截骨术 口内入路下颌升支矢状劈开颌骨畸形矫正术 口外入路下颌升支垂直截骨术 正颌外科手术设计 正颌外科手术数字化设计与预测 模型外科设计 钛重建板弯制复制口内咬合关系 颌面缺损重建手术设计 颌面头骨模型制作 牙槽突模型测绘 下颌升支矢状劈开截骨术 下颌升支异型截骨术
A10: 5 | C10: 颏部截骨固定费 | D10: 通过手术对颏部进行截骨、重新定位并固定。 | E10: 所定价格涵盖手术计划、消毒、切开、分离、固定、缝合、处理用物等步骤所需的人力资源和基本物质资源消耗。 | H10: 次 | J10: 1000 参考外省价格 | K10: 价格与初审一致 拟定丙类 | L10: 1000 | M10: 850 | N10: 722 | O10: 丙类 | P10: 颏部截骨前徙舌骨悬吊术 阶梯式颏成形术 颏部截骨前徙舌骨下肌群切断术 颏水平截骨植骨成形术 水平截骨自体(人工)骨移植颏成形术
A11: 6 | C11: 颧骨颧弓截骨固定费 | D11: 通过手术对颧骨颧弓进行截骨、重新定位并固定。 | E11: 所定价格涵盖手术计划、消毒、切开、分离、骨骼磨削或截除、缝合、处理用物等步骤所需的人力资源和基本物质资源消耗。 | H11: 单侧 | J11: 1800 高频高价平移 | K11: 1200 价格平移 拟定丙类 | L11: 1200 | M11: 1020 | N11: 867 | O11: 丙类 | P11: 颧骨颧弓截骨坚固内固定术
A12: 7 | C12: 颌面部植骨费（颗粒骨） | D12: 通过手术对口腔颌面部的骨缺损使用颗粒骨进行植骨。 | E12: 所定价格涵盖手术计划、消毒、切开、植骨、固定、缝合、处理用物等步骤所需的人力资源和基本物质资源消耗。 | H12: 部位 | I12: 本项目中的“部位”指：左上颌、右上颌、左下颌、右下颌、左颧骨颧弓、右颧骨颧弓、左眼眶、右眼眶、颏部。 | J12: 2000 高价平移 | K12: 价格与初审一致 拟定甲类 | L12: 2000 | M12: 1700 | N12: 1445 | O12: 甲类 | P12: 上颌骨缺损网托加松质骨移植术 颌骨增高术 下颌骨缺损网托加松质骨移植术
A13: 8 | C13: 颌面部植骨费（块状骨） | D13: 通过手术对口腔颌面部的骨缺损使用块状骨进行植骨。 | E13: 所定价格涵盖手术计划、消毒、切开、植骨、固定、缝合、处理用物等步骤所需的人力资源和基本物质资源消耗。 | H13: 部位 | I13: 本项目中的“部位”指：左上颌、右上颌、左下颌、右下颌、左颧骨颧弓、右颧骨颧弓、左眼眶、右眼眶、颏部。 | J13: 1700 高价平移 | K13: 价格与初审一致 拟定甲类 | L13: 1700 | M13: 1445 | N13: 1228 | O13: 甲类 | P13: 颏部及下颌外斜嵴取骨术 下颌骨缺损游离植骨修复术 髁突骨球截除血管化骨移植重建术 下颌骨外板切取术 缺牙区游离骨移植术
A14: 9 | C14: 颌骨畸形矫正费 | D14: 通过手术矫正颌骨畸形。 | E14: 所定价格涵盖手术计划、消毒、切开、磨削或截除、缝合、处理用物等步骤所需的人力资源和基本物质资源消耗。 | H14: 部位 | I14: 本项目中的“部位”指：左上颌、右上颌、左下颌、右下颌。 | J14: 1000 高频平移 | K14: 价格与初审一致 暂定丙类 | L14: 1000 | M14: 850 | N14: 722 | O14: 丙类 | P14: 颌面骨骨纤维异常增殖症病变铲除术 下颌骨骨质打磨术 口内入路下颌骨不对称畸形材料衬垫矫正术 颏部衬垫术 颧骨过低衬垫成形术 上颌结节成形术 下颌下缘去骨成形术 下颌下缘去骨成形术 颌骨骨纤维异常增殖症切除成形术
A15: 10 | C15: 颌骨骨折固定费（常规） | D15: 通过手术对颌骨骨折进行复位并固定。 | E15: 所定价格涵盖手术计划、消毒、切开、骨折复位、固定、缝合、处理用物等步骤所需的人力资源和基本物质资源消耗。 | H15: 部位 | I15: 本项目中的“部位”指：左上颌、右上颌、左下颌、右下颌。 | J15: 1400 加权平均 | K15: 1200 加权平均(1400)并参考河北 拟定甲类 | L15: 1200 | M15: 1020 | N15: 867 | O15: 甲类 | P15: 口内入路下颌骨骨折切开复位内固定术 颌骨骨折外固定术 口外入路下颌骨骨折内固定术 上颌骨雷弗特Ⅰ型骨折切开复位内固定术 颧骨上颌骨骨折切开复位内固定术 口内入路下颌骨骨折切开复位内固定术
A16: 11 | C16: 颌骨骨折固定费（复杂） | D16: 通过手术对复杂情况的颌骨骨折进行复位并固定。 | E16: 所定价格涵盖手术计划、消毒、切开、骨折复位、固定、缝合、处理用物等步骤所需的人力资源和基本物质资源消耗。 | H16: 部位 | I16: 1.本项目中的“复杂”指：陈旧性骨折、粉碎性骨折、多发性骨折、伴骨缺损骨折、骨不连骨折。 2.本项目中的“部位”指：左上颌、右上颌、左下颌、右下颌。 | J16: 1900 按照比价关系，以“上颌骨陈旧性骨折截骨整复术”为基础 | K16: 价格与初审一致 拟定甲类 | L16: 1900 | M16: 1615 | N16: 1372 | O16: 甲类 | P16: 上颌骨陈旧性骨折截骨整复术 下颌骨陈旧性骨折截骨再复位固定术 上颌骨骨折截骨复位内固定术 上颌骨雷弗特Ⅱ型/Ⅲ型骨折切开复位内固定术 全面部骨折手术复位内固定术 全面部陈旧性复杂骨折畸形整复术 上颌雷弗特Ⅰ型截骨术 上颌雷弗特Ⅰ型加分块截骨术
A17: 12 | C17: 髁突骨折固定费（常规） | D17: 通过手术对髁突骨折进行复位并固定。 | E17: 所定价格涵盖手术计划、消毒、切开、面神经解剖、骨折复位、固定、缝合、处理用物等步骤所需的人力资源和基本物质资源消耗。 | F17: 01口腔内镜操作200(三级调平) | H17: 部位 | I17: 本项目中的“部位”指：左髁突、右髁突。 | J17: 1500 国准3医2 护3小时 | K17: 价格与初审一致 拟定甲类 | L17: 1500 | M17: 1275 | N17: 1083 | O17: 甲类 | P17: 髁突骨折切开复位内固定术
C18: 髁突骨折固定费（常规）-口腔内镜操作（加收） | H18: 部位 | L18: 200 | M18: 200 | N18: 200 | O18: 甲类
A19: 13 | C19: 髁突骨折固定费（复杂） | D19: 通过手术对复杂情况的髁突骨折进行复位并固定。 | E19: 所定价格涵盖手术计划、消毒、切开、面神经解剖、骨折复位、固定、缝合、处理用物等步骤所需的人力资源和基本物质资源消耗。 | F19: 01口腔内镜操作200(三级调平) | H19: 部位 | I19: 1.本项目中的“复杂”指：陈旧性骨折、粉碎性骨折。 2.本项目中的“部位”指：左髁突、右髁突。 | J19: 1850 参照原项目比价关系 | K19: 价格与初审一致 拟定甲类 | L19: 1850 | M19: 1572 | N19: 1336 | O19: 甲类 | P19: 髁突陈旧性骨折复位内固定术 髁突陈旧性骨折髁状突摘除术 髁突粉碎性骨折骨折片摘除术
C20: 髁突骨折固定费（复杂）-口腔内镜操作（加收） | H20: 部位 | L20: 200 | M20: 200 | N20: 200 | O20: 甲类
A21: 14 | C21: 颧骨颧弓骨折固定费（常规） | D21: 通过手术对颧骨颧弓骨折进行复位并固定。 | E21: 所定价格涵盖手术计划、消毒、切开、骨折复位、固定、缝合、处理用物等步骤所需的人力资源和基本物质资源消耗。 | F21: 01口腔内镜操作200(三级调平) | H21: 单侧 | I21: 颧弓骨折复位按照50%收费 | J21: 1400 加权平均 | K21: 价格与初审一致 拟定甲类 | L21: 1400 | M21: 1190 | N21: 1011 | O21: 甲类 | P21: 颞部入路颧弓骨折复位术 颞部入路颧弓骨折复位内固定术 口内入路颧弓骨折复位术 齿钩牵拉颧弓骨折复位术-口外法 颧骨上颌骨骨折切开复位内固定术 颧骨颧弓骨折复位内固定术 颧骨颧弓截骨坚固内固定术 口内入路人工材料植入颧骨充填术 颧骨骨折复位内固定术 颧骨过低衬垫成形术 颧骨颧弓骨折复位内固定术 颧骨截骨自体骨移植增宽术 颧骨上颌骨骨折切开复位内固定术 颧骨凿低术 下睑入路人工材料植入颧骨充填术
C22: 颧骨颧弓骨折固定费（常规）-口腔内镜操作（加收） | H22: 单侧 | L22: 200 | M22: 200 | N22: 200 | O22: 甲类
A23: 15 | C23: 颧骨颧弓骨折固定费（复杂） | D23: 通过手术对复杂情况的颧骨颧弓骨折进行复位并固定。 | E23: 所定价格涵盖手术计划、消毒、切开、骨折复位、固定、缝合、处理用物等步骤所需的人力资源和基本物质资源消耗。 | F23: 01口腔内镜操作200(三级调平) | H23: 单侧 | I23: 本项目中的“复杂”指：陈旧性骨折、粉碎性骨折、多发性骨折、伴骨缺损骨折、骨不连。 | J23: 1500 加权平均（1457） | K23: 价格与初审一致 拟定甲类 | L23: 1500 | M23: 1275 | N23: 1083 | O23: 甲类 | P23: 颧骨上颌骨骨折切开复位内固定术 颧骨陈旧性骨折截骨复位固定术 颧骨颧弓骨折复位内固定术 颧骨颧弓截骨坚固内固定术 口内入路人工材料植入颧骨充填术 颧骨陈旧性骨折截骨复位固定术 颧骨陈旧性骨折植骨矫治术 颧骨骨折复位内固定术 颧骨过低衬垫成形术 颧骨截骨自体骨移植增宽术 颧骨磨削术 颧骨上颌骨骨折切开复位内固定术 颧骨凿低术 下睑入路人工材料植入颧骨充填术
C24: 颧骨颧弓骨折固定费（复杂）-口腔内镜操作（加收） | H24: 单侧 | L24: 200 | M24: 200 | N24: 200 | O24: 甲类
A25: 16 | C25: 鼻眶筛区骨折固定费（常规） | D25: 通过手术对鼻眶筛区骨折进行复位并固定。 | E25: 所定价格涵盖手术计划、消毒、切开、骨折复位、固定、缝合、处理用物等步骤所需的人力资源和基本物质资源消耗。 | H25: 单侧 | J25: 1500 价格平移参考外省价格 | K25: 价格与初审一致 拟定甲类 | L25: 1500 | M25: 1275 | N25: 1083 | O25: 甲类 | P25: MarkowitzⅠ类鼻眶筛骨折复位内固定术
A26: 17 | C26: 鼻眶筛区骨折固定费（复杂） | D26: 通过手术对复杂情况的鼻眶筛区骨折进行复位并固定。 | E26: 所定价格涵盖手术计划、消毒、切开、骨折复位、固定、缝合、处理用物等步骤所需的人力资源和基本物质资源消耗。 | H26: 单侧 | I26: 本项目中的“复杂”指：陈旧性骨折、粉碎性骨折、多发性骨折、伴骨缺损骨折、骨不连。 | J26: 1800 价格平移 | K26: 价格与初审一致 拟定甲类 | L26: 1800 | M26: 1530 | N26: 1300 | O26: 甲类 | P26: MarkowitzⅡ类鼻眶筛骨折复位内固定术 MarkowitzⅢ类鼻眶筛骨折复位内固定术
A27: 18 | C27: 颌面部软组织清创缝合费 | D27: 通过手术对颌面部软组织伤口进行清创、精细化缝合。 | E27: 所定价格涵盖手术计划、消毒、清创、止血、精细化缝合、处理用物等步骤所需要的人力资源和基本物质资源消耗。 | H27: 次 | I27: 本项目中的“次”指：3厘米及以下长度，3厘米以上每增加1厘米按20%收费。 | J27: 500 中清创（95）+头皮外伤清创缝合中（400） | K27: 价格与初审一致 拟定甲类 | L27: 500 | M27: 425 | N27: 361 | O27: 甲类 | P27: 口腔颌面软组织浅表创伤清创术 颌面部软组织挫裂伤清创缝合术 颌面部严重软组织挫裂伤清创缝合术 颌面创伤性软组织缺损局部组织瓣修复术 口腔颌面部软组织缺损带蒂皮瓣修复术 颊部洞穿性损伤修复术 口腔颌面部软组织缺损游离皮瓣移植修复术
A28: 19 | C28: 口腔颌面部软组织病变切除费（常规） | D28: 通过手术切除口腔颌面部的良性病变。 | E28: 所定价格涵盖手术计划、消毒、切开、分离、切除、冲洗、缝合、处理用物等步骤所需的人力资源和基本物质资源消耗。 | H28: 部位 | I28: 本项目中的“部位”指：颏、唇、颊、舌、腭、额、牙龈、口底、口咽。 | J28: 520元 量价加权平均512元，定价 | K28: 价格与初审一致 拟定甲类 | L28: 520 | M28: 442 | N28: 375 | O28: 甲类 | P28: 颌面小肿物切除整形术 唇部肿物局部切除术 口外入路颊部肿物切除术 舌肿物切除术 腭部良性肿物切除术 口底粘液囊肿摘除术 口内入路口底皮样囊肿摘除术 口外入路口底皮样囊肿摘除术
A29: 20 | C29: 口腔颌面部软组织病变切除费（复杂） | D29: 通过手术切除复杂情况的口腔颌面部病变。 | E29: 所定价格涵盖手术计划、消毒、切开、分离、切除、冲洗、缝合、处理用物等步骤所需的人力资源和基本物质资源消耗。 | H29: 部位 | I29: 1.本项目中的“复杂”指：恶性肿瘤、良性肿物最大径大于等于3厘米、放化疗后、复发。 2.本项目中的“部位”指：颏、唇、颊、舌、腭、额、牙龈、口底、口咽。 | J29: 1600元 平移口底恶性肿瘤扩大切除术 | K29: 价格与初审一致 拟定甲类 | L29: 1600 | M29: 1360 | N29: 1156 | O29: 甲类 | P29: 颞部肿物切除术 腭部良性肿物切除术 口咽部肿物局部切除术 口内外联合入路口底皮样囊肿摘除术 口内外联合入路口咽部肿瘤扩大切除术 正中进路舌根肿瘤切除术 舌骨上进路舌根部肿瘤切除术 颌面部软组织缺损远位肌皮瓣修复术 唇部恶性肿物切除术 唇部恶性肿物扩大切除术 口内入路颊部恶性肿物扩大切除术 口腔颌面部巨大静脉畸形切除术 口腔颌面部巨大动静脉畸形切除术 口底恶性肿瘤扩大切除术 半舌切除术 全舌切除术 舌恶性肿物扩大切除术 带蒂复合组织瓣舌再造术 血管化组织瓣舌再造术 腭部恶性肿瘤扩大切除术 面部软组织不对称畸形局部组织瓣矫正术 面部软组织不对称畸形游离组织矫正术
A30: 21 | C30: 颈部软组织病变切除费（常规） | D30: 通过手术切除颈部的良性病变。 | E30: 所定价格涵盖手术计划、消毒、切开、分离、切除、冲洗、缝合、处理用物等步骤所需的人力资源和基本物质资源消耗。 | F30: 01口腔内镜操作200(三级调平) | H30: 单侧 | J30: 1100 加权平均（1027） | K30: 价格与初审一致 拟定甲类 | L30: 1100 | M30: 935 | N30: 794 | O30: 甲类 | P30: 鳃裂瘘管切除术 鳃裂囊肿瘘切除术 颈部囊状水瘤切除术 第一鳃裂囊肿摘除术 第二鳃裂囊肿摘除术 鳃裂囊肿切除术
C31: 颈部软组织病变切除费（常规）-口腔内镜操作（加收） | H31: 单侧 | L31: 200 | M31: 200 | N31: 200 | O31: 甲类
A32: 22 | C32: 颈部软组织病变切除费（复杂） | D32: 通过手术切除复杂情况的颈部病变。 | E32: 所定价格涵盖手术计划、消毒、切开、分离、切除、冲洗、缝合、处理用物等步骤所需的人力资源和基本物质资源消耗。 | F32: 01口腔内镜操作200(三级调平) | H32: 单侧 | I32: 本项目中的“复杂”指：恶性肿瘤、良性肿物最大径大于等于3厘米、放化疗后、复发。 | J32: 1400 按照比价关系（"颈部软组织病变切除费（常规）"+300） | K32: 价格与初审一致 拟定甲类 | L32: 1400 | M32: 1190 | N32: 1011 | O32: 甲类 | P32: 第三､四鳃裂囊肿摘除术 复发性鳃裂瘘管切除术
C33: 颈部软组织病变切除费（复杂）-口腔内镜操作（加收） | H33: 单侧 | L33: 200 | M33: 200 | N33: 200 | O33: 甲类
A34: 23 | C34: 腮腺病变切除费（常规） | D34: 通过手术切除腮腺的良性病变或部分腮腺。 | E34: 所定价格涵盖手术计划、消毒、切开、分离、切除、冲洗、缝合、处理用物等步骤所需的人力资源和基本物质资源消耗。 | F34: 01口腔内镜操作200(三级调平) | G34: 01颌下腺病变切除 11舌下腺病变切除 | H34: 单侧 | J34: 1200 加权平均（1197） | K34: 价格与初审一致 拟定甲类 | L34: 1200 | M34: 1020 | N34: 867 | O34: 甲类 | P34: 腮腺浅叶肿物切除术 腮腺部分切除术 颌下腺摘除术 舌下腺摘除术 腮腺咬肌区静脉畸形切除术 舌下腺囊肿袋形术
C35: 腮腺病变切除费（常规）-口腔内镜操作（加收） | H35: 单侧 | L35: 200 | M35: 200 | N35: 200 | O35: 甲类
C36: 腮腺病变切除费（常规）-颌下腺病变切除（扩展） | H36: 单侧 | L36: 1200 | M36: 1020 | N36: 867 | O36: 甲类
C37: 腮腺病变切除费（常规）-舌下腺病变切除（扩展） | H37: 单侧 | L37: 1200 | M37: 1020 | N37: 867 | O37: 甲类
A38: 24 | C38: 腮腺病变切除费（复杂） | D38: 通过手术切除复杂情况的腮腺病变。 | E38: 所定价格涵盖手术计划、消毒、切开、分离、切除、冲洗、缝合、处理用物等步骤所需的人力资源和基本物质资源消耗。 | F38: 01口腔内镜操作200(三级调平) | G38: 01颌下腺病变切除 11舌下腺病变切除 | H38: 单侧 | I38: 本项目中的“复杂”指：恶性肿瘤、良性肿物最大径大于等于3厘米、放化疗后、复发、累及面神经。 | J38: 1800 按照比价关系 | K38: 价格与初审一致 拟定甲类 | L38: 1800 | M38: 1530 | N38: 1300 | O38: 甲类 | P38: 腮腺浅叶肿物切除术 腮腺恶性肿瘤扩大切除术 颌下腺摘除术 舌下腺摘除术 腮腺全切除术 腮腺咬肌区静脉畸形切除术 舌下腺囊肿袋形术
C39: 腮腺病变切除费（复杂）-口腔内镜操作（加收） | H39: 单侧 | L39: 200 | M39: 200 | N39: 200 | O39: 甲类
C40: 腮腺病变切除费（复杂）-颌下腺病变切除（扩展） | H40: 单侧 | L40: 1800 | M40: 1530 | N40: 1300 | O40: 甲类
C41: 腮腺病变切除费（复杂）-舌下腺病变切除（扩展） | H41: 单侧 | L41: 1800 | M41: 1530 | N41: 1300 | O41: 甲类
A42: 25 | C42: 颞下颌关节病变切除费（常规） | D42: 通过手术切除颞下颌关节病变。 | E42: 所定价格涵盖手术计划、消毒、切开、切除、清理、缝合、处理用物等步骤所需的人力资源和基本物质资源消耗。 | F42: 01口腔内镜操作200(三级调平) | H42: 单侧 | J42: 1500 高价平移 | K42: 价格与初审一致 拟定甲类 | L42: 1500 | M42: 1275 | N42: 1083 | O42: 甲类 | P42: 髁状突良性肿物切除术 髁状突高位切除术 颞下颌关节盘摘除术 髁状突高位切除术
C43: 颞下颌关节病变切除费（常规）-口腔内镜操作（加收） | H43: 单侧 | L43: 200 | M43: 200 | N43: 200 | O43: 甲类
A44: 26 | C44: 颞下颌关节病变切除费（复杂） | D44: 通过手术切除复杂情况的颞下颌关节病变。 | E44: 所定价格涵盖手术计划、消毒、切开、切除、清理、缝合、处理用物等步骤所需的人力资源和基本物质资源消耗。 | F44: 01口腔内镜操作200(三级调平) | H44: 单侧 | I44: 本项目中的“复杂”指：肿物侵犯关节外及周围软组织和骨组织。 | J44: 1800 按照比价关系 | K44: 价格与初审一致 拟定甲类 | L44: 1800 | M44: 1530 | N44: 1300 | O44: 甲类 | P44: 髁状突恶性肿物扩大切除术
C45: 颞下颌关节病变切除费（复杂）-口腔内镜操作（加收） | H45: 单侧 | L45: 200 | M45: 200 | N45: 200 | O45: 甲类
A46: 27 | C46: 颅底/颞下窝病变切除费（非开颅） | D46: 通过手术切除颅底/颞下窝的病变。 | E46: 所定价格涵盖手术计划、消毒、切开、分离、切除、冲洗、缝合、处理用物等步骤所需的人力资源和基本物质资源消耗。 | F46: 01恶性肿瘤切除30% 11口腔内镜操作200(三级调平) | H46: 次 | I46: 涉及开颅的颅底/颞下窝肿物切除按神经系统项目”颅底病变切除费”收取。 | J46: 4000 参考外省价格与本省“颅底病变切除费”价格 | K46: 价格与初审一致 拟定甲类 | L46: 4000 | M46: 3400 | N46: 2890 | O46: 甲类
C47: 颅底/颞下窝病变切除费（非开颅）-恶性肿瘤切除 | H47: 次 | L47: =L46*0.3 -> 1200 | M47: 1020 | N47: 867 | O47: 甲类
C48: 颅底/颞下窝病变切除费（非开颅） | H48: 次 | L48: 200 | M48: 200 | N48: 200 | O48: 甲类
A49: 28 | C49: 上颌骨部分切除费 | D49: 通过手术切除低位上颌骨。含牙槽突以内上颌骨切除。 | E49: 所定价格涵盖手术计划、消毒、切开、分离、切除、缝合、处理用物等步骤所需的人力资源和基本物质资源消耗。 | F49: 01恶性肿瘤切除30% | H49: 单侧 | J49: 1100 高频平移 | K49: 价格与初审一致 拟定甲类 | L49: 1100 | M49: 935 | N49: 794 | O49: 甲类 | P49: 上颌骨部分切除术 上颌骨缺损网托加松质骨移植术 颌骨中心性血管畸形切除术 颌骨骨纤维异常增殖症切除成形术 上颌骨囊肿摘除术 上颌骨次全切除术
C50: 上颌骨部分切除费-恶性肿瘤切除（加收） | H50: 单侧 | L50: =L49*0.3 -> 330 | M50: 280.5 | N50: 238.2 | O50: 甲类
A51: 29 | C51: 上颌骨切除费 | D51: 通过手术切除部分、全部上颌骨或上颌骨及其周围骨组织。 | E51: 所定价格涵盖手术计划、消毒、切开、分离、切除、缝合、处理用物等步骤所需的人力资源和基本物质资源消耗。 | H51: 单侧 | J51: 2000 国准3医2护4小时 | K51: 价格与初审一致 拟定甲类 | L51: 2000 | M51: 1700 | N51: 1445 | O51: 甲类 | P51: 上颌骨全切术 上颌骨扩大切除术 口腔颌面部复合组织缺损游离骨肌皮瓣移植修复术 上颌骨缺损带蒂骨移植术 上颌骨缺损吻合血管骨移植修复术 上颌骨缺损吻合血管复合瓣移植修复术
A52: 30 | C52: 下颌骨部分切除费 | D52: 通过手术切除部分下颌骨，仍保持下颌骨连续性。 | E52: 所定价格涵盖手术计划、消毒、切开、分离、切除、缝合、处理用物等步骤所需的人力资源和基本物质资源消耗。 | F52: 01恶性肿瘤切除30% | H52: 单侧 | J52: 1100 平移价格 | K52: 价格与初审一致 拟定甲类 | L52: 1100 | M52: 935 | N52: 794 | O52: 甲类 | P52: 口内入路下颌骨部分切除术 口外入路下颌骨部分切除术 下颌骨骨质打磨术 下颌骨去皮质术解剖下牙槽神经血管束 颌骨骨纤维异常增殖症切除成形术 下颌下缘去骨成形术
C53: 下颌骨部分切除费-恶性肿瘤切除（加收） | H53: 单侧 | L53: =L52*0.3 -> 330 | M53: 280.5 | N53: 238.2 | O53: 甲类
A54: 31 | C54: 下颌骨切除费 | D54: 通过手术切除下颌骨，使下颌骨连续性中断。 | E54: 所定价格涵盖手术计划、消毒、切开、分离、切除、缝合、处理用物等步骤所需的人力资源和基本物质资源消耗。 | H54: 单侧 | J54: 1400 平均价 | K54: 价格与初审一致 拟定甲类 | L54: 1400 | M54: 1190 | N54: 1011 | O54: 甲类 | P54: 半侧下颌骨切除术 下颌骨大部切除术 全下颌骨切除术 下颌骨缺损带蒂骨移植术 下颌骨缺损带血管蒂游离骨瓣移植术 下颌骨缺损游离植骨修复术 口腔颌面部复合组织缺损游离骨肌皮瓣移植修复术
A55: 32 | C55: 颧骨切除费 | D55: 通过手术切除部分或全部颧骨。 | E55: 所定价格涵盖手术计划、消毒、切开、分离、切除、缝合、处理用物等步骤所需的人力资源和基本物质资源消耗。 | F55: 01恶性肿瘤切除30% | H55: 单侧 | J55: 1500 国准3医2护4小时（2000），参考外省价格 | K55: 价格与初审一致 拟定甲类 | L55: 1500 | M55: 1275 | N55: 1083 | O55: 甲类 | P55: 颧骨磨削术
C56: 颧骨切除费-恶性肿瘤切除（加收） | H56: 单侧 | L56: =L55*0.3 -> 450 | M56: =M55*0.3 -> 382.5 | N56: =N55*0.3 -> 324.9 | O56: 甲类
A57: 33 | C57: 面瘘切除费 | D57: 通过手术切除面瘘。 | E57: 所定价格涵盖手术计划、消毒、切开、分离、切除、缝合、处理用物等步骤所需的人力资源和基本物质资源消耗。 | H57: 瘘道 | J57: 500 参照“口腔颌面部软组织病变切除费（常规）” | K57: 200 参照“浅表肿物切除”拟定甲类 | L57: 200 | M57: 170 | N57: 144 | O57: 甲类 | P57: 颌面皮肤瘘管病灶切除术
A58: 34 | C58: 颌下腺移植费 | D58: 通过手术将自体颌下腺移植于颞部，导管引入同侧眼内。 | E58: 所定价格涵盖手术计划、消毒、切开、分离、制备、改道、吻合、缝合、处理用物等步骤所需的人力资源和基本物质资源消耗。 | G58: 01小唾液腺移植 | H58: 单侧 | J58: 1800 价格平移 | K58: 价格与初审一致 拟定丙类 | L58: 1800 | M58: 1530 | N58: 1300 | O58: 丙类 | P58: 颌下腺移植术
C59: 颌下腺移植费-小唾液腺移植（扩展） | H59: 单侧 | L59: 1800 | M59: 1530 | N59: 1300 | O59: 丙类
A60: 35 | C60: 颞下颌关节切开复位费 | D60: 通过手术将脱位、移位的颞下颌关节复位。 | E60: 所定价格涵盖手术计划、消毒、切开、复位、缝合、处理用物等步骤所需的人力资源和基本物质资源消耗。 | F60: 01口腔内镜操作200(三级调平) | H60: 单侧 | J60: 1700 参考河北考虑价区后定价 | K60: 价格与初审一致 拟定甲类 | L60: 1700 | M60: 1445 | N60: 1228 | O60: 甲类
C61: 颞下颌关节切开复位费-口腔内镜操作（加收） | H61: 单侧 | L61: 200 | M61: 200 | N61: 200 | O61: 甲类
A62: 36 | C62: 颞下颌关节闭合复位费 | D62: 通过手法或牵引将脱位的颞下颌关节复位。 | E62: 所定价格涵盖手术计划、闭合、复位、处理用物等步骤所需的人力资源和基本物质资源消耗。 | F62: 01陈旧性脱位10% 11口腔内镜操作200(三级调平) | H62: 单侧 | J62: 200 参照中医骨伤“手法整复术（关节脱位）”200元定价 | K62: 价格与初审一致 拟定乙类 | L62: 200 | M62: 170 | N62: 144 | O62: 乙类 | P62: 颞下颌脱位关节复位术
C63: 颞下颌关节闭合复位费-陈旧性脱位（加收） | H63: 单侧 | L63: =L62*0.1 -> 20 | M63: 17 | N63: 14.4 | O63: 乙类
C64: 颞下颌关节闭合复位费-口腔内镜操作（加收） | H64: 单侧 | L64: 200 | M64: 200 | N64: 200 | O64: 乙类
A65: 37 | C65: 颞下颌关节盘复位固定费 | D65: 通过手术将移位的颞下颌关节盘复位。 | E65: 所定价格涵盖手术计划、消毒、切开、松解、黏连清除、复位、缝合、处理用物等步骤所需的人力资源和基本物质资源消耗。 | F65: 01口腔内镜操作200(三级调平) | H65: 单侧 | J65: 1900 国准4医2护4小时考虑与“颞下颌关节切开复位费”比价关系 | K65: 价格与初审一致 拟定甲类 | L65: 1900 | M65: 1615 | N65: 1372 | O65: 甲类 | P65: 颞下颌关节盘复位固定术
C66: 颞下颌关节盘复位固定费-口腔内镜操作（加收） | H66: 单侧 | L66: 200 | M66: 200 | N66: 200 | O66: 甲类
A67: 38 | C67: 颞下颌关节成形费 | D67: 通过手术将颞下颌修整成形。 | E67: 所定价格涵盖手术计划、消毒、切开、成形、缝合等步骤所需的人力资源和基本物质资源消耗。 | F67: 01粘连或病变累及关节外30% | H67: 单侧 | J67: 1900 国准4医2护4小时 | K67: 价格与初审一致 拟定甲类 | L67: 1900 | M67: 1615 | N67: 1372 | O67: 甲类 | P67: 颞下颌关节成形术
C68: 颞下颌关节成形费-粘连或病变累及关节外（加收） | H68: 单侧 | L68: =L67*0.3 -> 570 | M68: =M67*0.3 -> 484.5 | N68: =N67*0.3 -> 411.6 | O68: 甲类
A69: 39 | C69: 颞下颌关节部分切除费（常规） | D69: 通过手术切除部分髁突或颞下颌关节区其他病变。 | E69: 所定价格涵盖手术计划、消毒、切开、切除、清理、缝合、处理用物等步骤所需的人力资源和基本物质资源消耗。 | F69: 01口腔内镜操作200(三级调平) | H69: 单侧 | J69: 1400 价格平移“髁状突良性肿物切除术” | K69: 价格与初审一致 拟定甲类 | L69: 1400 | M69: 1190 | N69: 1011 | O69: 甲类 | P69: 髁状突良性肿物切除术 颞下颌关节成形术
C70: 颞下颌关节部分切除费（常规）-口腔内镜操作（加收） | H70: 单侧 | L70: 200 | M70: 200 | N70: 200 | O70: 甲类
A71: 40 | C71: 颞下颌关节部分切除费（复杂） | D71: 通过手术切除复杂情况的部分髁突或颞下颌关节区其他病变。 | E71: 所定价格涵盖手术计划、消毒、切开、切除、清理、缝合、处理用物等步骤所需的人力资源和基本物质资源消耗。 | F71: 01口腔内镜操作200(三级调平) | H71: 单侧 | I71: 本项目中的“复杂”指：病变累及周围软组织和骨组织。 | J71: 1800 国准3医2护3小时参考外省价格，考虑技术难度。 | K71: 价格与初审一致 拟定甲类 | L71: 1800 | M71: 1530 | N71: 1300 | O71: 甲类 | P71: 髁状突高位切除术 颞下颌关节盘摘除术
C72: 颞下颌关节部分切除费（复杂）-口腔内镜操作（加收） | H72: 单侧 | L72: 200 | M72: 200 | N72: 200 | O72: 甲类
A73: 41 | C73: 颞下颌关节盘修复费（常规） | D73: 通过手术对缺损的关节盘进行修复。 | E73: 所定价格涵盖手术计划、消毒、切开、修复、缝合、处理用物等步骤所需的人力资源和基本物质资源消耗。 | F73: 01口腔内镜操作200(三级调平) | H73: 单侧 | J73: 1600 高价平移 | K73: 价格与初审一致 拟定甲类 | L73: 1600 | M73: 1360 | N73: 1156 | O73: 甲类 | P73: 关节镜下颞下颌关节盘复位固定术 颞下颌关节盘复位固定术 颞下颌关节镜手术治疗
C74: 颞下颌关节盘修复费（常规）-口腔内镜操作（加收） | H74: 单侧 | L74: 200 | M74: 200 | N74: 200 | O74: 甲类
A75: 42 | C75: 颞下颌关节盘修复费（复杂） | D75: 通过手术对复杂情况的颞下颌关节盘进行修复。 | E75: 所定价格涵盖手术计划、消毒、切开、修复、缝合、处理用物等步骤所需的人力资源和基本物质资源消耗。 | F75: 01口腔内镜操作200(三级调平) | H75: 单侧 | I75: 本项目中的“复杂”指：使用自体游离组织、带蒂组织瓣或人工材料进行修复。不包含制备皮瓣的费用。 | J75: 2000 按照比价关系 | K75: 价格与初审一致 拟定甲类 | L75: 2000 | M75: 1700 | N75: 1445 | O75: 甲类
C76: 颞下颌关节盘修复费（复杂）-口腔内镜操作（加收） | H76: 单侧 | L76: 200 | M76: 200 | N76: 200 | O76: 甲类
A77: 43 | C77: 颞下颌关节重建费（常规） | D77: 通过手术对缺损的颞下颌关节进行重建。 | E77: 所定价格涵盖手术计划、消毒、切开、重建、缝合、处理用物等步骤所需的人力资源和基本物质资源消耗。 | F77: 01口腔内镜操作200(三级调平) | H77: 单侧 | J77: 1700 价格平移 | K77: 价格与初审一致 拟定甲类 | L77: 1700 | M77: 1445 | N77: 1228 | O77: 甲类 | P77: 颞下颌关节成形加游离植骨重建术 颞下颌关节成形术
C78: 颞下颌关节重建费（常规）-口腔内镜操作（加收） | H78: 单侧 | L78: 200 | M78: 200 | N78: 200 | O78: 甲类
A79: 44 | C79: 颞下颌关节重建费（复杂） | D79: 通过手术对复杂情况的缺损颞下颌关节进行重建。 | E79: 所定价格涵盖手术计划、消毒、切开、重建、缝合、处理用物等步骤所需的人力资源和基本物质资源消耗。 | F79: 01口腔内镜操作200(三级调平) | H79: 单侧 | I79: 本项目中的“复杂”指：下颌升支截骨、髁突/全关节置换。 | J79: 2100 按照比价关系（价差400） | K79: 价格与初审一致 拟定甲类 | L79: 2100 | M79: 1785 | N79: 1517 | O79: 甲类 | P79: 颞下颌关节置换术 髁突陈旧骨折错位升支截骨矫正术 髁突骨球截除血管化骨移植重建术
C80: 颞下颌关节重建费（复杂）-口腔内镜操作（加收） | H80: 单侧 | L80: 200 | M80: 200 | N80: 200 | O80: 甲类
A81: 45 | C81: 颞下颌关节紊乱病矫治费 | D81: 通过矫治器安装调整来治疗颞下颌关节紊乱病。 | E81: 所定价格涵盖方案设计、矫治器安装、评估、调整、处理用物等步骤所需的人力资源和基本物质资源消耗。 | H81: 疗程 | I81: 1.不包含颌垫设计及制备的费用。 2.本项目中的“疗程”指：治疗从开始到结束的整个过程。 | J81: 1200 参考河北价格 | K81: 价格与初审一致 拟定丙类 | L81: 1200 | M81: 1020 | N81: 867 | O81: 丙类
A82: 46 | C82: 下颌骨喙突切除费 | D82: 通过手术切除部分或全部下颌骨喙突。 | E82: 所定价格涵盖手术计划、消毒、切开、分离、切除、缝合、处理用物等步骤所需的人力资源和基本物质资源消耗。 | F82: 01恶性肿瘤切除30% | H82: 单侧 | J82: 1800 参考外省价格 加入映射（喙突成形） | K82: 价格与初审一致 拟定甲类 | L82: 1800 | M82: 1530 | N82: 1300 | O82: 甲类
C83: 下颌骨喙突切除费-恶性肿瘤切除（加收） | H83: 单侧 | L83: =L82*0.3 -> 540 | M83: =M82*0.3 -> 459 | N83: =N82*0.3 -> 390 | O83: 甲类
A84: 47 | C84: 唇裂修复费 | D84: 通过手术修复唇部裂隙，重建唇部外形。 | E84: 所定价格涵盖手术计划、消毒、切开、分离、调整、缝合、处理用物等步骤所需的人力资源和基本物质资源消耗。 | F84: 01鼻底封闭成型30% | H84: 单侧 | I84: 唇裂修复不涉及鼻畸形修复，正中裂修复按单侧收费。 | J84: 1000 价格平移“单侧Ⅱ度唇裂修复术” | K84: 价格与初审一致 拟定乙类 | L84: 1000 | M84: 850 | N84: 722 | O84: 乙类 | P84: 部分唇缺损局部组织瓣修复术 单侧Ⅰ度唇裂修复术 单侧Ⅱ度唇裂修复+鼻畸形修复术 单侧Ⅱ度唇裂修复术 单侧Ⅲ度唇裂修复+鼻畸形修复术 双侧Ⅰ度唇裂修复术 双侧Ⅱ度唇裂修复+鼻畸形修复术 双侧Ⅲ度唇裂修复+鼻畸形修复术 梨状孔周围植骨术 单侧唇皮下裂修复术 唇瘘切除术 唇正中裂修复术
C85: 唇裂修复费-鼻底封闭成型（加收） | H85: 单侧 | L85: =L84*0.3 -> 300 | M85: =M84*0.3 -> 255 | N85: =N84*0.3 -> 216.6 | O85: 乙类
A86: 48 | C86: 面裂修复费 | D86: 通过手术修复面部裂隙，重建面部外形。 | E86: 所定价格涵盖手术计划、消毒、切开、分离、调整、缝合、处理用物等步骤所需的人力资源和基本物质资源消耗。 | H86: 单侧 | I86: 不与“唇裂修复费”同时收取。 | J86: 1370 价格平移“面横裂修复术” | K86: 价格与初审一致 拟定乙类 | L86: 1370 | M86: 1164 | N86: 989 | O86: 乙类 | P86: 面斜裂修复术 面横裂修复术 大口畸形矫正术 复杂面裂修复术
A87: 49 | C87: 唇缺损修复费 | D87: 通过手术修复唇部缺损，重建唇部外形。 | E87: 所定价格涵盖手术计划、消毒、切开、分离、调整、缝合、处理用物等步骤所需的人力资源和基本物质资源消耗。 | H87: 次 | J87: 1200 平均价 | K87: 价格与初审一致 拟定乙类 | L87: 1200 | M87: 1020 | N87: 867 | O87: 乙类 | P87: 上唇缺损鼻唇沟瓣修复术 唇缺损皮管修复术 交叉唇瓣(Abbes′瓣)断蒂术 唇缺损交叉唇瓣修复术 全唇缺损局部组织瓣修复术
A88: 50 | C88: 唇裂术后继发唇畸形整复费 | D88: 通过手术修复唇部功能障碍，重建唇部外形。 | E88: 所定价格涵盖手术计划、消毒、切开、分离、修复、缝合、处理用物等步骤所需的人力资源和基本物质资源消耗。 | H88: 单侧 | J88: 1300 2医2护2-4小时 按照比价关系（唇缺损修复费） | K88: 价格与初审一致 拟定乙类 | L88: 1300 | M88: 1105 | N88: 939 | O88: 乙类 | P88: 唇粘连术 人中沟成形术 单侧唇裂术后继发唇畸形矫正术
A89: 51 | C89: 腭裂修复费 | D89: 通过手术修复腭部裂隙，重建腭部外形。 | E89: 所定价格涵盖手术计划、消毒、切开、调整、成形、缝合、处理用物等步骤所需的人力资源和基本物质资源消耗。 | F89: 01Ⅲ度腭裂30% | H89: 单侧 | J89: 1300 加权平均（1254） | K89: 价格与初审一致 拟定乙类 | L89: 1300 | M89: 1105 | N89: 939 | O89: 乙类 | P89: Ⅰ度腭裂修复术 Ⅱ度腭裂修复术 犁骨瓣修复术 单瓣后退腭裂修复术 颊肌黏膜瓣转移腭裂修复术 萨氏微创腭裂修复术 腭咽环扎腭裂修复术 腭帆缩短术 腭弓成形术 Ⅲ度腭裂修复术
C90: 腭裂修复费-Ⅲ度腭裂（加收） | H90: 单侧 | L90: =L89*0.3 -> 390 | M90: =M89*0.3 -> 331.5 | N90: =N89*0.3 -> 281.7 | O90: 乙类
A91: 52 | C91: 腭咽闭合不全修复费 | D91: 通过手术恢复腭部完整性。 | E91: 所定价格涵盖手术计划、消毒、切开、调整、成形、缝合、处理用物等步骤所需的人力资源和基本物质资源消耗。 | F91: 01腭裂术后复裂30% | H91: 次 | J91: 1500 按比价关系，操作难度高于上一项 | K91: 价格与初审一致 拟定乙类 | L91: 1500 | M91: 1275 | N91: 1083 | O91: 乙类 | P91: 反向双"Z"腭裂修复术 咽后壁瓣腭咽成形术
C92: 腭咽闭合不全修复费-腭裂术后复裂（加收） | H92: 次 | L92: =L91*0.3 -> 450 | M92: =M91*0.3 -> 382.5 | N92: =N91*0.3 -> 324.9 | O92: 乙类
A93: 53 | C93: 腭瘘修复费 | D93: 通过手术修补腭瘘，封闭口鼻腔。 | E93: 所定价格涵盖手术计划、消毒、切开、分离、调整、缝合、处理用物等步骤所需的人力资源和基本物质资源消耗。 | H93: 次 | J93: 1100 高频平移 | K93: 价格与初审一致 拟定乙类 | L93: 1100 | M93: 935 | N93: 794 | O93: 乙类 | P93: 腭瘘修复术 口鼻腔前庭瘘修补术 颊肌黏膜瓣转移腭瘘修复术
A94: 54 | C94: 牙槽突裂修复费 | D94: 通过手术修复缺损的牙槽突裂隙，恢复患者牙槽外形。 | E94: 所定价格涵盖手术计划、消毒、切开、调整、缝合、处理用物等步骤所需的人力资源和基本物质资源消耗。 | H94: 单侧 | I94: 不包括植骨费。 | J94: 1000 平移价格“单侧齿槽嵴裂修复术” | K94: 价格与初审一致 拟定乙类 | L94: 1000 | M94: 850 | N94: 722 | O94: 乙类 | P94: 牙槽突裂植骨成形术 带血管游离骨复合组织瓣移植下颌骨缺损修复术 单侧齿槽嵴裂修复术 牙槽嵴植骨增高术 颌骨缺损修复术 面颌骨缺损移植术 上颌骨缺损带蒂骨移植术 上颌骨缺损吻合血管复合瓣移植修复术 上颌骨缺损吻合血管骨移植修复术 上颌骨缺损游离植骨修复术 上颌骨缺损阻塞器修复 下颌骨缺损带蒂骨移植术 下颌骨缺损带血管蒂游离骨瓣移植术 下颌骨缺损牵张成骨修复术 下颌骨缺损钛板重建术 下颌骨缺损修复体植入修复术
A95: 55 | C95: 唇裂鼻畸形修复费 | D95: 通过手术修复唇裂鼻部畸形，重建鼻部外形。 | E95: 所定价格涵盖手术计划、消毒、切开、调整、缝合、处理用物等步骤所需的人力资源和基本物质资源消耗。 | H95: 单侧 | I95: 正中裂修复按单侧收费。 | J95: 1400 参考外省价格 | K95: 价格与初审一致 拟定乙类 | L95: 1400 | M95: 1190 | N95: 1011 | O95: 乙类
A96: 56 | C96: 舌畸形修复费 | D96: 通过手术修复舌部形态异常，改善功能和外观。 | E96: 所定价格涵盖手术计划、消毒、切开、分离、切除、缝合、处理用物等步骤所需的人力资源和基本物质资源消耗。 | H96: 次 | J96: 1270 高价平移 | K96: 价格与初审一致 拟定乙类 | L96: 1270 | M96: 1079 | N96: 917 | O96: 乙类 | P96: 局部皮瓣舌整形术 巨舌畸形矫正术
A97: 57 | C97: 唇鼻系统重建费 | D97: 通过手术系统调整唇鼻部解剖结构和相关肌肉生物力学结构，重建唇鼻部功能和外形。 | E97: 所定价格涵盖手术计划、消毒、切开、分离、切除、调整肌肉力学结构、重建或修复外形、缝合、处理用物等步骤所需的人力资源和基本物质资源消耗。 | H97: 单侧 | I97: 不与“唇裂修复费” “唇裂术后继发唇畸形整复费”“唇裂鼻畸形修复费”同时收取。 | J97: 2400 1400唇裂鼻畸形修复费+1300唇裂术后继发唇畸形整复费*0.8=2440 | K97: 价格与初审一致 拟定乙类 | L97: 2400 | M97: 2040 | N97: 1734 | O97: 乙类 | P97: 部分唇缺损局部组织瓣修复术 唇正中裂修复术 唇粘连术
A98: 58 | C98: 腭咽系统重建费 | D98: 通过手术系统调整腭咽部解剖结构和相关肌肉生物力学结构，重建腭咽部功能和外形。 | E98: 所定价格涵盖手术计划、消毒、切开、分离、切除、调整肌肉力学结构、重建或修复外形、缝合、处理用物等步骤所需的人力资源和基本物质资源消耗。 | H98: 单侧 | I98: 不与“腭裂修复费”同时收取。 | J98: 参考外省2900 | K98: 价格与初审一致 拟定乙类 | L98: 2900 | M98: 2465 | N98: 2095 | O98: 乙类 | P98: Ⅰ度腭裂修复术 Ⅱ度腭裂修复术 腭咽环扎腭裂修复术 咽后壁瓣腭咽成形术 悬雍垂缩短术 咽腭弓成形术 软腭前移术 T形瓣上提腭咽成形术 腭咽成形术 腭咽过度闭合矫正术 腭咽肌瓣成形术 颊肌黏膜瓣转移+腭咽成形术 伸母短肌游离腭咽环扎成形术 悬雍垂腭咽成形术 腭帆缩短术 腭弓成形术 Ⅲ度腭裂修复术
A99: 59 | C99: 口咽颌面部手术探查费 | D99: 通过手术探查口咽颌面部情况。 | E99: 所定价格涵盖手术计划、消毒、切开、探查、缝合、处理用物等步骤所需的人力资源和基本物质资源消耗。 | H99: 次 | I99: 1.不与同台同部位其他手术同时收费。 2.术后口咽颌面部出血、脓/血肿行手术探查及处理适用本项目收费。 | J99: 740参考外省 | K99: 价格与初审一致 拟定甲类 | L99: 740 | M99: 629 | N99: 534 | O99: 甲类
A100: 60 | C100: 颈部手术探查费 | D100: 通过手术探查颈部情况。 | E100: 所定价格涵盖手术计划、消毒、切开、探查、缝合、处理用物等步骤所需的人力资源和基本物质资源消耗。 | H100: 次 | I100: 不与同台同部位其他手术同时收费。 | J100: 参考腹腔探查1000 | K100: 价格与初审一致 拟定甲类 | L100: 1000 | M100: 850 | N100: 722 | O100: 甲类
A101: 61 | C101: 唾液腺导管改道费 | D101: 通过手术为腮腺或者颌下腺导管重新建立出口。 | E101: 所定价格涵盖手术计划、消毒、切开、分离唾液腺导管、建立导管新出口、缝合、处理用物等步骤所需的人力资源和基本物质资源消耗。 | H101: 腺体•单侧 | J101: 参考外省900 | K101: 价格与初审一致 拟定甲类 | L101: 900 | M101: 765 | N101: 650 | O101: 甲类
A102: 62 | C102: 唾液腺导管吻合费 | D102: 通过手术吻合断裂的腮腺或颌下腺导管。 | E102: 所定价格涵盖手术计划、消毒、切开、分离唾液腺导管、吻合、处理用物等步骤所需的人力资源和基本物质资源消耗。 | H102: 腺体•单侧 | J102: 1100 平移价格 | K102: 价格与初审一致 拟定甲类 | L102: 1100 | M102: 935 | N102: 794 | O102: 甲类 | P102: 涎腺瘘切除导管重建术
A103: 63 | C103: 颌面部间隙感染切开引流费（常规） | D103: 通过手术对颌面部间隙感染切开引流。 | E103: 所定价格涵盖手术计划、消毒、切开、引流、冲洗、放置引流装置等步骤所需的人力资源和基本物质资源消耗。 | H103: 次 | I103: 本项目中的“次”指：2个及以下间隙感染，3个及以上每增加1个间隙按15%收费。 | J103: 480 加权平均（240）*2部位 | K103: 价格与初审一致 拟定甲类 | L103: 480 | M103: 408 | N103: 346 | O103: 甲类 | P103: 颌面部多间隙脓肿切开引流术 口底颌下脓肿切开引流术
A104: 64 | C104: 颌面部间隙感染切开引流费（复杂） | D104: 通过手术对复杂情况的颌面部间隙感染切开引流。 | E104: 所定价格涵盖手术计划、消毒、切开、引流、冲洗、放置引流装置等步骤所需的人力资源和基本物质资源消耗。 | H104: 次 | I104: 本项目中的“复杂”指：累及咽后、颌下、椎前或颈根临近纵膈。 | J104: 760 与上项目保持比价关系 | K104: 价格与初审一致 拟定甲类 | L104: 760 | M104: 646 | N104: 549 | O104: 甲类 | P104: 颌面部多间隙脓肿切开引流术 口底颌下脓肿切开引流术
A105: 65 | C105: 颌面颈部深部异物取出费 | D105: 通过手术取出颌面颈部异物或移位牙齿、牙体组织、骨片等。 | E105: 所定价格涵盖手术计划、消毒、切开翻瓣、异物取出、缝合、处理用物等步骤所需的人力资源和基本物质资源消耗。 | H105: 部位 | I105: 1.本项目中的“深部”指：异物穿过颌面部2个及以上解剖部位，距离面部体表3cm以上。 2.颌面颈部浅表异物取出按照体被系统的“浅表异物取出费”收取。 | J105: 1000 价格平移“面颈深部异物探查取出术” | K105: 500 平移价格（计价单位由“次”变为“部位”） 拟定甲类 | L105: 500 | M105: 425 | N105: 361 | O105: 甲类 | P105: 面颈深部异物探查取出术 颌下腺导管探查取石术 上颌窦开窗异物取出术
A106: 66 | C106: 颌间挛缩松解费 | D106: 通过手术切除或松解颌部的挛缩组织、纤维化的肌组织，恢复颌间的正常功能和活动度。 | E106: 所定价格涵盖手术计划、消毒、切开/切除、松解、缝合、处理用物等步骤所需的人力资源和基本物质资源消耗。 | H106: 单侧 | J106: 1500 价格平移 | K106: 价格与初审一致 拟定甲类 | L106: 1500 | M106: 1275 | N106: 1083 | O106: 甲类 | P106: 口内入路颌间挛缩瘢痕切除松解术 口内外联合入路颌间挛缩松解术
A107: 67 | C107: 颌面部牵引器植入费 | D107: 通过手术植入牵引器，逐渐扩张骨骼。 | E107: 所定价格涵盖手术计划、消毒、切开、牵引器植入、固定、缝合、处理用物等步骤所需的人力资源和基本物质资源消耗。 | H107: 部位 | I107: 本项目中的“部位”指：左上颌、右上颌、左下颌、右下颌、颏部、左颧骨颧弓、右颧骨颧弓。 | J107: 1700 价格平移 | K107: 1200 参考河北价格 拟定丙类 | L107: 1200 | M107: 1020 | N107: 867 | O107: 丙类 | P107: 上颌骨截骨外置式牵张器置入牵张成骨术 牙槽嵴低平牵张成骨增高术 牙槽嵴低平种植型牵张器增高术 上颌骨内置式牵引器置入牵张成骨术 下颌骨畸形截骨外牵张器牵张成骨术
A108: 68 | C108: 颌面部植入物取出费 | D108: 通过手术取出颌面部植入物。 | E108: 所定价格涵盖手术计划、消毒、切开、植入物取出、缝合、处理用物等步骤所需的人力资源和基本物质资源消耗。 | H108: 部位 | I108: 本项目中的“部位”指：左上颌、右上颌、左下颌、右下颌、左颧骨颧弓、右颧骨颧弓、左眼眶、右眼眶、颏部。 | J108: 1200 参考骨科固定物取出 | K108: 300 参考河北价格 拟定乙类 | L108: 300 | M108: 255 | N108: 216 | O108: 乙类 | P108: 外置式牵张器支架拆除术 内置式骨牵张器拆除术
A109: 69 | C109: 咀嚼肌部分切除费 | D109: 通过手术切除部分咀嚼肌。 | E109: 所定价格涵盖手术计划、消毒、切开、分离、切除、缝合、处理用物等步骤所需的人力资源和基本物质资源消耗。 | H109: 单侧 | J109: 1300 价格平移 | K109: 价格与初审一致 拟定丙类 | L109: 1300 | M109: 1105 | N109: 939 | O109: 丙类 | P109: 嚼肌部分切除术
A110: 70 | C110: 神经吻合面瘫畸形整复费 | D110: 通过手术将神经或移植神经进行吻合，矫正面瘫畸形。 | E110: 所定价格涵盖手术计划、消毒、切开、分离、吻合、缝合、处理用物等步骤所需的人力资源和基本物质资源消耗。 | H110: 每根神经 | J110: 3000 过会价格+参考外省价格 | K110: 1600 参考“周围神经修复吻合费”（800）增加服务产出并参考外省价格 拟定丙类 | L110: 1600 | M110: 1360 | N110: 1156 | O110: 丙类 | P110: 面神经吻合面瘫畸形整复术 跨面神经移植面瘫畸形整复术 神经移植面瘫矫正术 吻合血管神经肌瓣移植面瘫矫正术
A111: 71 | C111: 悬吊面瘫畸形矫正费 | D111: 通过应用自体阔筋膜或人工合成材料等，对移位的面部组织进行悬吊，矫正面瘫畸形。 | E111: 所定价格涵盖手术计划、消毒、切开、剥离、悬吊、缝合、处理用物等步骤所需的人力资源和基本物质资源消耗。 | H111: 单侧 | J111: 1250 价格平移“静态悬吊面瘫畸形矫正术” | K111: 价格与初审一致 拟定丙类 | L111: 1250 | M111: 1062 | N111: 902 | O111: 丙类 | P111: 陈旧性面瘫血管化游离肌瓣矫正术 带蒂肌筋膜瓣游离阔筋膜移植悬吊面瘫畸形矫正术 去神经肌肉游离移植悬吊面瘫畸形矫治术 应用去神经的肌肉游离移植面瘫畸形矫正术 静态悬吊面瘫畸形矫正术

Sheet 消化
A2: 消化系统医疗服务价格项目立项指南
A3: 使用说明： 1.本指南以消化系统为重点，按照消化系统相关医疗服务产出设立价格项目。 2.根据《深化医疗服务价格改革试点方案》（医保发〔2021〕41号）关于“厘清价格项目与临床诊疗技术规范、医疗机构成本要素、不同应用场景和收费标准等的政策边界。分类整合现行价格项目，实现价格项目与操作步骤、诊疗部位等技术细节脱钩，增强现行价格项目对医疗技术和医疗活动改良创新的兼容性”的要求，服务产出相同的一类项目在操作层面存在差异，但在价格项目和定价水平层面具备合并同类项的条件，立项指南对此进行合并。地方医疗保障部门制定消化系统医疗服务项目价格时，要体现技术劳务价值，使收费水平覆盖绝大部分的差异化操作；各地医疗保障部门所定价格属于政府指导价为最高限价，下浮不限。同时，医疗机构申报的技术改良进步项目，可采取“现有项目兼容”方式简化处理，无需申报新增医疗服务价格项目，经向本地区医疗保障部门备案后可按照对应的项目执行。 3.本指南所称“价格构成”，指项目价格应涵盖的各类资源消耗，用于确定计价单元的边界，是省市级医保部门制定调整项目价格的测算因子，不应作为临床技术标准理解，不是实际操作方式、路径、步骤、程序的强制性要求，价格构成中包含但临床实践中非必要、未发生的，无需强制要求公立医疗机构减计费用。所列“设备投入”包括但不限于操作设备、器具及固定资产投入。 4.本指南所称“加收项”，指同一项目以不同方式提供或在不同场景应用时，确有必要制定差异化收费标准而细分的一类子项，包括在原项目价格基础上增加或减少收费的情况，具体的加/减收标准（加/减收率或加/减收金额）由省市级医疗保障部门依权限制定；实际应用中，同时涉及多个加收项的，以项目单价为基础计算相应的加/减收水平后，据实收费。 5.本指南所称“扩展项”，指同一项目下以不同方式提供或在不同场景应用时，只扩展价格项目适用范围、不额外加价的一类子项，子项的价格按主项目执行。 6.本指南所称“基本物质资源物耗”，指原则上限于不应或不必要与医疗服务项目分割的易耗品，包括但不限于各类消杀灭菌用品、储存用品、清洁用品、个人防护用品、垃圾处理用品、滑石粉、标签、防渗漏垫、中单、护（尿）垫、棉球、棉签、纱布（垫）、治疗护理盘（包）、治疗巾（单）、手术巾（单）、手术包、普通注射器、可复用的操作器具、非药品类对比剂、影像存储介质、铅制防护用品、标本采集存放用品、咬口器或牙垫、口/吹嘴、气体收集袋、肠道菌液制备用物或菌液制成品、染色剂、辅助试剂、肛门扩张器具、肛诊指套、圈套皮筋、挂线材料、报告打印耗材、软件（版权、开发、购买）成本等。基本物质资源消耗成本计入项目价格，不另行收费。除基本物质资源消耗以外的其他耗材，按照实际采购价格零差率销售。 7.本指南中的“无创”为无需切开皮肤，经过自然腔道入路，利用无创入路方式进行的操作，包括但不限于食管镜、胃镜、十二指肠镜、结肠镜、小肠镜、直肠镜、胆管镜、胰管镜、超声内镜、共聚焦激光显微内镜等各类内镜。不包含因其他操作需求而涉及皮肤切开、组织切除等有创性操作内容。 8.本指南中的“部位”为食管、胃、小肠、阑尾、盲肠、结肠、直肠、胆囊、胆管、胰腺、胰管等。 9.本指南中消化内科内镜治疗或手术类项目，如需使用相关内镜可按内镜检查费用收取，如行消化内镜息肉去除时使用“内镜”，可收取“无创消化道息肉去除费+上消化道内镜检查费（常规）”。 10.本指南中普通外科的各类手术项目的价格构成，已包含手术涉及的各类内镜使用成本，地方定价时应结合内镜使用成本综合确定价格水平。医疗机构在开展相关操作时，开放手术与经内镜手术执行相同的价格标准，内镜辅助操作不再另行收费。 11.本指南价格构成中所称的“穿刺”为主项操作涉及的必要穿刺技术，价格构成中的穿刺操作不可收取相关费用；独立穿刺项目可按相应治疗价格项目收取。 12.本指南中价格构成中所称的“止血”为压迫、填塞、包扎等常规止血方法，其他止血方式可收取相应费用。 13.本指南中所称的“恶性肿瘤扩大根治性切除”，可参照各地省及省以上卫生健康部门技术规范中扩大根治性切除进行加收。 14.本指南中涉及“包括……”“……等”的，属于开放型表述，所指对象不仅局限于表述中列明的事项，也包括未列明的同类事项。 15.本指南中未尽事项，如等离子、激光、射频、微波等手术辅助操作、活检取材等，将在辅助操作类、检验病理类、一般治疗类等其他立项指南中单独列示，各地医保部门可暂按现行价格政策执行。 16.本指南中其他学科开展相应项目时，可据实收费。 17.本指南中手术项目若需病理取样，地方定价时应考虑在原项目的价格构成中包含标本的留取和送检的人力资源和基本物质资源消耗。 18.本指南中价格项目可应用人工智能辅助进行的，可直接按主项目收费，不同时收费。 19.公立医疗机构开展相关放射检查须提供符合要求的“数字影像处理和上传存储服务”并执行现行放射检查项目价格，对于不能提供符合要求的“数字影像处理和上传存储服务”的，执行的相关放射检查项目价格减收5元。 20.允许公立医疗机构在患者自愿选择基础上，若提供“数字胶片云储存服务”，可不再提供实体胶片。将减少实体胶片打印节约的成本，用于补偿数字胶片服务成本。医疗机构在常规提供影像资料后，如需额外提供影像资料，可收取相应费用。 21.本指南中手术类项目服务对象为儿童时，统一落实儿童加收政策（以下简称“儿童加收”），加收比例或金额由各地医疗保障部门根据实际情况确定。手术类项目的具体范围以《全国医疗服务项目技术规范》的分类为准，对于立项指南同时映射技术规范中的手术类项目和治疗类项目的主项目，按手术类落实儿童加收政策；其他非手术类项目实行儿童加收范围，以立项指南加收项为准。本指南所称“儿童”，指6周岁及以下，周岁的计算方法以法律的相关规定为准。 22.可收费耗材：17.造影导管、导丝、血管夹、透析器、一次性体外循环配套血管路、吻合器、特殊缝线、止血材料、胶囊、润滑剂、括约肌切开刀、活检钳、水囊、导管、扩张管、胆管引流管、血管鞘组、球囊扩张导管、支架、栓塞材料、胰管引流管、腔镜材料、硬化剂、粘合剂、内镜用注射针、套扎器、息肉勒除器、圈套器、一次性黏膜切开刀、取石网篮、扩张材料、扩张器、输尿管支架管、球囊、肠道支架、食管支架、胆道支架、取石球囊、取石球囊导管、专用引流管、扩张球囊、碎石器、鼻肠喂养管、内固定材料、气管切开套管、闭合器、防粘连材料、补片、止血材、料特殊缝线、切口保护器、打孔器、双极电凝镊、射频刀头、射频针、射频毁损电极、射频探头、射频脉冲、射频纤维、射频消融导管、激光刀头,特殊激光刀头,激光探头,激光光纤,激光脉冲、活检针 （增-介入材料）：内窥镜超声活检穿刺针、液电电极、
A4: 序号 | B4: 项目编码 | C4: 项目名称 | D4: 服务产出 | E4: 价格构成 | F4: 加收项 | G4: 扩展项 | H4: 计价单位 | I4: 计价说明 | M4: 指导价格 | P4: 医保支付类别 | Q4: 映射项目名称
M5: 三级 | N5: 二级 | O5: 一级
A6: 1 | C6: 消化道pH值监测费 | D6: 通过各种方式监测消化道ph值。 | E6: 所定价格涵盖设备准备、插管、测定、撤除、数据提取分析、出具报告、处理用物等步骤所需的人力资源和基本物质资源消耗。（不含内镜操作） | F6: 01阻抗测定10% | H6: 次 | K6: 400（广东400、河北250、江西300） 该项目监测时间为24小时，高频平移 | L6: 400 乙类 | M6: 400 | N6: 340 | O6: 289 | P6: 乙类 | Q6: 24小时胃食管pH值监测 小儿24小时食管pH及运动连续监测
C7: 消化道pH值监测费-阻抗测定（加收） | H7: 次 | M7: =M6*0.1 -> 40 | N7: =N6*0.1 -> 34 | O7: =O6*0.1 -> 28.9 | P7: 乙类
A8: 2 | C8: 消化道压力测定费 | D8: 通过各种方式测定消化道压力。 | E8: 所定价格涵盖设备准备、插管、测定、撤除、数据提取分析、出具报告、处理用物等步骤所需的人力资源和基本物质资源消耗。（不含内镜操作） | H8: 项 | I8: 本指南中的“消化道压力测定”指：食管测压、高分辨率食管测压、24小时食管动态测压、胃肠测压、24小时胃肠测压、胃幽门十二指肠测压、奥迪氏括约肌测压、结肠测压、肛门直肠测压、胆道测压等，以上不同测压按本项目收费，同一入路同一操作时间仅可计费1 次。 | K8: 430 加权平均 | L8: 430 乙类 | M8: 430 | N8: 365 | O8: 310 | P8: 乙类 | Q8: 肛门直肠测压 食管测压 胃-幽门-十二指肠压力测定 24小时食管胃肠压力测定 经电子内镜奥迪括约肌压力测定
A9: 3 | C9: 胃肠电图检查费 | D9: 通过传导生物电，记录胃肠生物电活动并绘图，检查胃肠的蠕动情况及动力的强弱。 | E9: 所定价格涵盖设备准备、电极安放、记录、分析、出具报告、处理用物等步骤所需的人力资源和基本物质资源消耗。 | H9: 次 | I9: 仅做胃/肠电图按50%收费 | K9: 160（80+80） 价格平移，仅做胃/肠电图按50%收费 | L9: 160 乙类 | M9: 160 | N9: 136 | O9: 115 | P9: 乙类 | Q9: 胃电图检查(EGG)
A10: 4 | C10: 呼气试验费（炎症检测） | D10: 测定呼出气体中特定气体的含量，判断气道炎症或全身炎症反应。 | E10: 所定价格涵盖设备准备、指导呼气、测定、分析、出具报告、处理用物等步骤所需的人力资源和基本物质资源消耗。 | H10: 次 | I10: 本项目中的“特定气体”指：一氧化氮。 | K10: 200 价格平移 | L10: 200 乙类 | M10: 200 | N10: 170 | O10: 144 | P10: 乙类 | Q10: 呼出气一氧化氮测定
A11: 5 | C11: 呼气试验费（红细胞寿命检测） | D11: 测定呼出气体中特定气体的含量，判断红细胞寿命。 | E11: 所定价格涵盖设备准备、指导呼气、测定、分析、出具报告、处理用物等步骤所需的人力资源和基本物质资源消耗。 | H11: 次 | I11: 本项目中的“特定气体”指：一氧化碳。 | K11: 参考外省价格 广州250河北390江西358 | L11: 280 乙类 价格平移 | M11: 280 | N11: 238 | O11: 202 | P11: 乙类 | Q11: 红细胞生存时间测定
A12: 6 | C12: 呼气试验费（幽门螺旋杆菌检测） | D12: 通过测定呼出气体中标记同位素的含量，判断是否存在幽门螺杆菌感染。 | E12: 所定价格涵盖设备准备、指导呼气、采集气体、底物及服用、再次采集气体、测定、分析、出具报告、处理用物等步骤所需的人力资源和基本物质资源消耗。 | H12: 次 | I12: 碳13、碳14检测所用药物及试剂均不得单独收费 | K12: 55 (碳14吹卡一套38元+15设备人工) 三级调平 | L12: 75(三级调平) 乙类 （河北130、广东120、江西100）加权平均 | M12: 75 | N12: 75 | O12: 75 | P12: 乙类 | Q12: 碳13尿素呼气试验 碳[14C]呼气试验 碳14尿素呼气试验
A13: 7 | C13: 呼气试验费（胃肠功能检测） | D13: 通过测定呼出气体中特定气体的含量，评估胃肠功能、小肠细菌过度生长。 | E13: 所定价格涵盖设备准备、底物及服用、指导呼气、多次采集气体、测定、分析、出具报告、处理用物等步骤所需的人力资源和基本物质资源消耗。 | H13: 项 | I13: 本项目中的“特定气体”指：氢气、甲烷、二氧化碳；其中氢气和甲烷的测定各计为1项，二氧化碳的测定不额外计费。 | K13: 130 平移价格 | L13: 130 乙类 | M13: 130 | N13: 110 | O13: 93 | P13: 乙类 | Q13: 甲烷-氢呼气诊断
A14: 8 | C14: 胃肠传输时间检查费 | D14: 根据标记物在消化道不同时间的分布情况，判断胃肠道动力。 | E14: 所定价格涵盖标记物准备、指导服用、拍片、数据处理、出具报告、处理用物等步骤所需的人力资源和基本物质资源消耗。 | H14: 次 | I14: 拍片可单独收费 | K14: 285参考外省价格 广东350江西285河北250 | L14: 285 丙类 | M14: 285 | N14: 242 | O14: 205 | P14: 丙类
A15: 9 | C15: 肝功能储备检查费 | D15: 通过监测特定状态下，肝脏对相关物质的滞留、排泄清除率，判断肝储备功能。 | E15: 所定价格涵盖准备、静脉注射、定时取血或探头监测含量、记录、计算、出具报告、处理用物等步骤所需的人力资源和基本物质资源消耗。 | H15: 次 | I15: 肝功能排泄试验按此收费。 | K15: 165 价格平移 | L15: 165 乙类 | M15: 165 | N15: 140 | O15: 119 | P15: 乙类 | Q15: 肝脏储备功能测定
A16: 10 | C16: 肠道菌群移植费 | D16: 收集并检测供者肠道样本制备菌液或菌制成品，通过消化道植入患者肠道。 | E16: 所定价格涵盖准备、供体筛查、采集、采集物检测、分离、制备、保存、植入、处理用物等步骤所需的人力资源和基本物质资源消耗。 | H16: 次 | I16: 需胃肠道内镜或置管辅助完成移植的，可收取“内镜检查”及“胃肠道置管”费用。 | K16: 1800 支持新技术发展 参考22个中心价格，最低价甘肃、河北、新疆1450元 | L16: 1800 丙类 | M16: 1800 | N16: 1530 | O16: 1300 | P16: 丙类
A17: 11 | C17: 腹水回输治疗费 | D17: 收集腹水，处理后回输患者进行治疗。 | E17: 所定价格涵盖准备、穿刺、置管、引流采集、过滤、回输、处理用物等步骤所需的人力资源和基本物质资源消耗。 | G17: 01胸水回输治疗 | H17: 次 | K17: 500 高频平移 | L17: 500 乙类 | M17: 500 | N17: 425 | O17: 361 | P17: 乙类 | Q17: 腹水直接回输治疗 腹水超滤间接回输治疗
C18: 腹水回输治疗费-胸水回输治疗（扩展） | H18: 次 | M18: 500 | N18: 425 | O18: 361 | P18: 乙类
A19: 12 | C19: 肠异位灌注整复费 | D19: 通过灌注复位肠套叠、肠扭转等各类异位情况。 | E19: 所定价格涵盖设备准备、灌注、观察、复位、处理用物等步骤所需的人力资源和基本物质资源消耗。（不含内镜操作） | G19: 01胃异位整复 | H19: 次 | I19: 手法复位按此收费 | K19: 160 价格平移 | L19: 160 乙类 | M19: 160 | N19: 136 | O19: 115 | P19: 乙类 | Q19: 肠套叠充气造影及整复 肠套叠手法复位 嵌顿疝手法复位
C20: 肠异位灌注整复费-胃异位整复（扩展） | H20: 次 | M20: 160 | N20: 136 | O20: 115 | P20: 乙类
A21: 13 | C21: 胶囊内镜检查费（非操控） | D21: 各类胶囊内镜借助消化道自身蠕动，无需外界干预，自然通过消化道完成检查。 | E21: 所定价格涵盖准备、指导吞服胶囊内镜、收集影像信息、出具报告、处理用物等步骤所需的人力资源和基本物质资源消耗。 | H21: 次 | K21: 市场调节价 | L21: 市场调节价 丙类 | M21: 市场调节价 | N21: 市场调节价 | O21: 市场调节价 | P21: 丙类 | Q21: 胶囊内镜检查
A22: 14 | C22: 胶囊内镜检查费（受操控） | D22: 医务人员以磁控等方式操作胶囊内镜，使其在受操控下通过消化道，实现定向定位检查。 | E22: 所定价格涵盖准备、指导吞服胶囊内镜、操控、收集影像信息、出具报告、处理用物等步骤所需的人力资源和基本物质资源消耗。 | H22: 次 | K22: 市场调节价 | L22: 市场调节价 丙类 | M22: 市场调节价 | N22: 市场调节价 | O22: 市场调节价 | P22: 丙类 | Q22: 胶囊内镜检查
A23: 15 | C23: 上消化道内镜检查费（常规） | D23: 通过消化道内镜观察和诊断上消化道的疾病。 | E23: 所定价格涵盖设备准备、体位摆放、入镜、观察、图像采集、撤镜、出具报告、处理用物等步骤所需的人力资源和基本物质资源消耗。 | F23: 01单气囊小肠镜按1120元加收（参考广东价格并支持本省技术） 02双气囊小肠镜按2300元加收（参考广东价格并支持本省技术） 03胆/胰管内镜检查150%（胆/胰合并后参考外省价格） 04胆/胰管内镜子镜检查800%(超高难度操作参考外省价格) 11放大/染色检查150%（平移） | H23: 次 | I23: 1.单次入路检查经过多个部位的，以最终到达的部位计费1次。 2.同时行放大、染色检查仅计费1次 3.“经皮经肝胆道镜检查”按“胆/胰管内镜检查”收费。 | K23: 240 高频平移 加收项参考外省价格 | L23: 240 乙类 | M23: 240 | N23: 204 | O23: 173 | P23: 乙类 | Q23: 硬式食管镜检查 硬质食管镜食管探查术 纤维食管镜检查 电子食管镜检查 纤维胃镜检查 电子胃镜检查 经鼻电子胃镜检查 经内镜胃黏膜血流量测定 开腹胆道镜检查 经口电子胆管镜检查 经口电子胰管镜检查 经皮经肝胆道镜检查 内镜色素检查
C24: 上消化道内镜检查费（常规）-单气囊小肠镜（加收） | H24: 次 | M24: 1120 | N24: =M24*0.85 -> 952 | O24: 809 | P24: 乙类
C25: 上消化道内镜检查费（常规）-双气囊小肠镜（加收） | H25: 次 | M25: 2300 | N25: =M25*0.85 -> 1955 | O25: 1661 | P25: 乙类
C26: 上消化道内镜检查费（常规）-胆/胰管内镜检查（加收） | H26: 次 | M26: 360 | N26: 306 | O26: 259.5 | P26: 乙类
C27: 上消化道内镜检查费（常规）-胆/胰管内镜子镜检查（加收） | H27: 次 | M27: 1920 | N27: 1632 | O27: =O23*8 -> 1384 | P27: 乙类
C28: 上消化道内镜检查费（常规）-放大/染色检查（加收） | H28: 次 | M28: 360 | N28: 306 | O28: 259.5 | P28: 乙类
A29: 16 | C29: 下消化道内镜检查费（常规） | D29: 通过消化道内镜观察和诊断下消化道的疾病。 | E29: 所定价格涵盖设备准备、体位摆放、入镜、观察、图像采集、撤镜、出具报告、处理用物等步骤所需的人力资源和基本物质资源消耗。 | F29: 01单气囊小肠镜按1120元加收（参考广东价格并支持本省技术） 02双气囊小肠镜按2300元加收（参考广东价格并支持本省技术） 11放大/染色检查150% | H29: 次 | I29: 1.单次入路检查经过多个部位的，以最终到达的部位计费1次。 2.同时行放大、染色检查仅计费1次。 | K29: 350 高频平移 | L29: 350 乙类 | M29: 350 | N29: 297 | O29: 252 | P29: 乙类 | Q29: 直肠镜检查 电子结肠镜检查 纤维结肠镜检查 纤维小肠镜检查 纤维乙状结肠镜检查 经手术切口纤维内镜检查 电子乙状结肠镜检查 内镜色素检查 经瘘管胆道镜检查 经瘘口电子内镜检查 经手术切口电子内镜检查 经瘘口纤维内镜检查 推进式小肠镜检查 双气囊小肠镜检查
C30: 下消化道内镜检查费（常规）-单气囊小肠镜（加收） | H30: 次 | M30: 1120 | N30: 952 | O30: 809 | P30: 乙类
C31: 下消化道内镜检查费（常规）-双气囊小肠镜（加收） | H31: 次 | M31: 2300 | N31: 1955 | O31: 1661 | P31: 乙类
C32: 下消化道内镜检查费（常规）-放大/染色检查（加收） | H32: 次 | M32: 525 | N32: 445.5 | O32: 378 | P32: 乙类
A33: 17 | C33: 上消化道内镜检查费（超声内镜） | D33: 通过微探头、环扫 、线阵式等不同消化道超声内镜观察和诊断疾病。 | E33: 所定价格涵盖设备准备、体位摆放、入镜、观察、图像采集、撤镜、出具报告、处理用物等步骤所需的人力资源和基本物质资源消耗。 | F33: 01胆/胰超声内镜检查80%(价格平移) | H33: 次 | I33: 单次入路检查经过多个部位的，以最终到达的部位计费1次。 | K33: 610 高频平移 | L33: 610 乙类 | M33: 610 | N33: 518 | O33: 440 | P33: 乙类 | Q33: 经内镜胰管腔内超声检查 经内镜胆管腔内超声检查 超声胃镜检查
C34: 上消化道内镜检查费（超声内镜）-胆/胰超声内镜检查（加收） | H34: 次 | M34: 488 | N34: 414.4 | O34: 352 | P34: 乙类
A35: 18 | C35: 下消化道内镜检查费（超声内镜） | D35: 通过微探头、环扫 、线阵式等不同消化道超声内镜观察和诊断疾病。 | E35: 所定价格涵盖设备准备、体位摆放、入镜、观察、图像采集、撤镜、出具报告、处理用物等步骤所需的人力资源和基本物质资源消耗。 | H35: 次 | I35: 单次入路检查经过多个部位的，以最终到达的部位计费1次。 | K35: 650 高频平移 | L35: 650 乙类 | M35: 650 | N35: 552 | O35: 469 | P35: 乙类 | Q35: 超声结肠镜检查 经电子胃镜超声微探头检查
A36: 19 | C36: 上消化道内镜检查费（共聚焦激光显微内镜） | D36: 通过共聚焦激光显微内镜观察和诊断上消化道的疾病。 | E36: 所定价格涵盖设备准备、体位摆放、应用对比剂（静脉或喷涂）、入镜、观察、图像采集、撤镜、处理用物等步骤所需的人力资源和基本物质资源消耗。 | H36: 次 | I36: 1.单次入路检查经过多个部位的，以最终到达的部位计费1次。 2.超声内镜引导针基共聚焦激光显微内镜行胆/胰检查时，可收取“上消化道内镜检查费（超声内镜）-胆/胰超声内镜检查（加收）”及“上消化道内镜检查费（共聚焦激光显微内镜）”。 | K36: 1600 参考广东、江西价格 | L36: 1600 丙类 | M36: 1600 | N36: 1360 | O36: 1156 | P36: 丙类
A37: 20 | C37: 下消化道内镜检查费（共聚焦激光显微内镜） | D37: 通过共聚焦激光显微内镜观察和诊断下消化道的疾病。 | E37: 所定价格涵盖设备准备、体位摆放、应用对比剂（静脉或喷涂）、入镜、观察、图像采集、撤镜、处理用物等步骤所需的人力资源和基本物质资源消耗。 | H37: 次 | I37: 单次入路检查经过多个部位的，以最终到达的部位计费1次。 | K37: 2000 参考广东、江西价格 | L37: 2000 丙类 | M37: 2000 | N37: 1700 | O37: 1445 | P37: 丙类
A38: 21 | C38: 无创逆行胰胆管造影费 | D38: 通过无创操作，将导管插入胆管和（或）胰管内进行造影。 | E38: 所定价格涵盖准备、置管、注入对比剂、摄取成像、撤除、出具报告、数字影像处理与上传存储（含数字方式）、处理用物等步骤所需的人力资源、设备运转成本和基本物质资源消耗。（不含内镜检查） | H38: 次 | K38: 450 高频平移 | L38: 450 乙类 | M38: 450 | N38: 382 | O38: 325 | P38: 乙类 | Q38: 经纤维内镜逆行胰胆管造影术(ERCP) 经电子内镜逆行胰胆管造影术(ERCP)
A39: 22 | C39: 经皮经肝胆管造影费 | D39: 通过经皮经肝穿刺胆管造影。 | E39: 所定价格涵盖准备、穿刺、置管、注入对比剂、摄取成像、撤除、出具报告、数字影像处理与上传存储（含数字方式）、处理用物等步骤所需的人力资源、设备运转成本和基本物质资源消耗。 | H39: 次 | K39: 120（参考T管造影价格） | L39: 120 乙类 | M39: 120 | N39: 102 | O39: 86 | P39: 乙类
A40: 23 | C40: 经皮经肝穿刺胆管外引流费 | D40: 经皮经肝穿刺胆管并置入引流管，实现外引流。 | E40: 所定价格涵盖设备准备、体位摆放、穿刺、观察、必要时扩张、置管、引流、处理用物等步骤所需的人力资源、设备运转成本和基本物质资源消耗。 （不含内镜检查和经皮经肝胆管造影） | G40: 01经皮经肝穿刺胆囊外引流费 | H40: 次 | K40: 500 | L40: 500 乙类 | M40: 500 | N40: 425 | O40: 361 | P40: 乙类 | Q40: 经皮经肝胆道引流管调管术 经皮肝穿胆道引流术(PTCD) 经皮胆囊穿刺造瘘术 经皮经肝肝门部肿物支架管外引流术
C41: 经皮经肝穿刺胆管外引流费-经皮经肝穿刺胆囊外引流费（扩展） | H41: 次 | M41: 500 | N41: 425 | O41: 361 | P41: 乙类
A42: 24 | C42: 经皮经肝穿刺胆管内引流费 | D42: 通过经皮经肝穿刺进入胆管通路，实现内引流。 | E42: 所定价格涵盖设备准备、体位摆放、穿刺、观察、必要时扩张、置管、引流、处理用物等步骤所需的人力资源、设备运转成本和基本物质资源消耗。 （不含内镜检查和经皮经肝胆管造影） | G42: 01经皮经肝穿刺胆囊内引流费 | H42: 次 | K42: 1000（平移有频次项目） | L42: 1000 乙类 | M42: 1000 | N42: 850 | O42: 722 | P42: 乙类 | Q42: 经皮经肝胆道狭窄球囊扩张术 经皮经肝肝门部肿物支架置入内引流术
C43: 经皮经肝穿刺胆管内引流费-经皮经肝穿刺胆囊内引流费（扩展） | H43: 次 | M43: 1000 | N43: 850 | O43: 722 | P43: 乙类
A44: 25 | C44: 无创胆管外引流费 | D44: 通过无创方式在胆管内放置引流管使胆汁引流至体外。 | E44: 所定价格涵盖设备准备、体位摆放、观察、置管、引流、处理用物等步骤所需的人力资源、设备运转成本和基本物质资源消耗。（不含内镜检查及无创逆行胰胆管造影） | F44: 01内穿刺引流加收100% | G44: 01无创胰管外引流 | H44: 次 | K44: 1000（平移高频项目） | L44: 1000 乙类 | M44: 1000 | N44: 850 | O44: 722 | P44: 乙类 | Q44: 经电子内镜鼻-胆管引流术(ENBD) 经电子内镜鼻-胰管引流术
C45: 无创胆管外引流费-内穿刺引流（加收） | H45: 次 | M45: 1000 | N45: 850 | O45: 722 | P45: 乙类
C46: 无创胆管外引流费-无创胰管外引流（扩展） | H46: 次 | M46: 1000 | N46: 850 | O46: 722 | P46: 乙类
A47: 26 | C47: 无创胆管内引流费 | D47: 通过无创方式在胆管内放置引流管使胆汁引流至体内。 | E47: 所定价格涵盖设备准备、体位摆放、观察、置管、引流、处理用物等步骤所需的人力资源、设备运转成本和基本物质资源消耗。（不含内镜检查及无创逆行胰胆管造影） | F47: 01内穿刺引流加收100% | G47: 01无创胰管内引流 | H47: 次 | K47: 1200（加权平均） | L47: 1200 乙类 | M47: 1200 | N47: 1020 | O47: 867 | P47: 乙类 | Q47: 经内镜胆管内引流术 胰腺假性囊肿内引流术 经超声内镜引导下胰腺囊肿内引流术 经超声内镜引导下胰腺囊肿内引流术 经电子内镜胰管内引流术
C48: 无创胆管内引流费-内穿刺引流（加收） | H48: 次 | M48: 1200 | N48: 1020 | O48: 867 | P48: 乙类
C49: 无创胆管内引流费-无创胰管内引流（扩展） | H49: 次 | M49: 1200 | N49: 1020 | O49: 867 | P49: 乙类
A50: 27 | C50: 腹腔脏器穿刺治疗费（常规） | D50: 行腹腔脏器穿刺，对病灶组织进行注射、冲洗、引流等常规治疗。 | E50: 所定价格涵盖定位、消毒、穿刺、注射、冲洗、引流、记录、处理用物等所需的人力资源和基本物质资源消耗。 | H50: 次 | I50: 1.同一治疗位置行多种治疗方式只可收取一次。 2.胆管、胰管引流按相关项目收费。 | K50: 650(加权平均) | L50: 650 乙类 | M50: 650 | N50: 552 | O50: 469 | P50: 乙类 | Q50: 经皮肝囊肿穿刺药物注射治疗 经皮腹腔脓肿穿刺引流术 经皮脾囊肿穿刺引流术 经皮脾脓肿穿刺引流术 经皮肝囊肿穿刺引流术 经皮肝脓肿穿刺引流术 经皮肝血管瘤硬化剂注射栓塞术 肝血管瘤硬化剂注射栓塞术 经皮胰腺穿刺引流术 经皮胰腺囊肿穿刺引流术 经皮胰腺脓肿穿刺引流术 超声造影引导经皮脾脏创伤出血栓塞术 经阴道盆腔脓肿穿刺引流术 经阴道盆腔液性包块穿刺引流术 经皮盆腔脓肿穿刺引流术 经皮肝管栓塞术 经直肠阑尾脓肿穿刺引流术
A51: 28 | C51: 腹腔脏器穿刺治疗费（特殊） | D51: 行腹腔脏器穿刺，对病灶组织进行射频、微波、激光、冷冻、电凝、脉冲等各种特殊治疗。 | E51: 所定价格涵盖定位、消毒、穿刺、治疗、处理用物等步骤所需的人力资源、设备运转成本和基本物质资源消耗。 | H51: 次 | I51: 1.同一治疗位置使用多种能量源只可收取一次。 2.针对同一目的，常规治疗转特殊治疗，按照“腹腔脏器穿刺治疗费（特殊）”收费。 | K51: 1400（参考物理治疗消融2000，减上/下消化道超声内镜检查费平均值600） | L51: 1400 乙类 | M51: 1400 | N51: 1190 | O51: 1011 | P51: 乙类 | Q51: 经皮肿物放化疗粒子置入术 肝脏肿物放化疗粒子置入术 经腹腔镜肝脏肿物放疗化疗粒子置入术 胰腺肿瘤放化疗粒子置入术
A52: 29 | C52: 消化内镜治疗费（常规） | D52: 通过消化内镜对消化系统病灶行注射、引流、止血、冲洗等常规治疗。 | E52: 所定价格涵盖准备、镜下治疗、处理用物等步骤所需的人力资源和基本物质资源消耗。（不含内镜检查） | H52: 次 | I52: 1.同一治疗位置行多种治疗方式只可收取一次。 2.涉及消化道静脉曲张治疗按照“消化道静脉曲张治疗费”收取。 3.胆管、胰管引流按相关项目收费。 4.不同入路治疗可分别收费。 | K52: 240 | L52: 240 乙类 | M52: 240 | N52: 204 | O52: 173 | P52: 乙类 | Q52: 经纤维内镜结肠黏膜出血治疗 经电子内镜结肠黏膜出血治疗 经纤维内镜上消化道出血治疗 经电子内镜上消化道出血治疗 超声胃镜引导下穿刺引流术 经直肠镜直肠出血缝扎术
A53: 30 | C53: 消化内镜治疗费（特殊） | D53: 通过消化内镜对消化系统病灶行射频、微波、激光、圈套、套扎、冷冻、电凝、脉冲等各种特殊治疗。 | E53: 所定价格涵盖设备准备、体位摆放、镜下治疗、处理用物等步骤所需的人力资源、设备运转成本和基本物质资源消耗。（不含内镜检查） | H53: 次 | I53: 1.同一治疗位置使用多种能量源只可收取一次。 2.针对同一目的，常规治疗转特殊治疗，按照“消化内镜治疗费（特殊）”收费。 3.涉及息肉治疗按照“无创消化道息肉去除费”或“无创消化道病变切除费”收取。 4.涉及消化道静脉曲张治疗按照“消化道静脉曲张治疗费”收取。 5.不同入路治疗可分别收费。 | K53: 450（肠道操作更为复杂，以下消化道价为准，再减去肠镜检查费） | L53: 450 乙类 | M53: 450 | N53: 382 | O53: 325 | P53: 乙类 | Q53: 经肛门镜直肠肛门冷冻治疗 经直肠镜直肠出血电凝术 经纤维内镜结肠黏膜出血治疗 经电子内镜结肠黏膜出血治疗 经纤维内镜上消化道出血治疗 经肛门镜直肠肛门微波治疗 经肛门镜直肠肛门激光治疗 经电子内镜上消化道出血治疗
A54: 31 | C54: 无创消化道静脉曲张治疗费 | D54: 通过无创方式，利用硬化、组织粘合、套扎等手段治疗消化道静脉曲张。 | E54: 所定价格涵盖准备、治疗、处理用物等步骤所需的人力资源和基本物质资源消耗。（不含内镜检查） | H54: 次 | I54: 治疗消化道静脉曲张使用多种治疗方式只可收取1次。 | K54: 1300 参考广东2400，江西2000，采用两种以上方式的历史价格1600元，再减去内镜检查费240，1360 | L54: 1300 乙类 | M54: 1300 | N54: 1105 | O54: 939 | P54: 乙类 | Q54: 经纤维内镜食管静脉曲张注射治疗 经电子内镜食管静脉曲张注射治疗 经纤维内镜食管静脉曲张套扎治疗 经电子内镜内痔硬化+套扎治疗术 经电子内镜食管静脉曲张套扎治疗
A55: 32 | C55: 无创消化道息肉去除费 | D55: 通过无创方式，运用切除、钳除、圈套、激光、微波、电凝、冷冻、电切等各种手段去除消化道粘膜表面息肉。 | E55: 所定价格涵盖设备准备、体位摆放、镜下祛除、创面处理、处理用物等步骤所需的人力资源、设备运转成本和基本物质资源消耗。（不含内镜检查） | H55: 部位/次 | I55: “次”指息肉数小于等于3个，每增加1个按30%收费，息肉大于10个按10个收费 | K55: 550 广东614，江西480，参考外省定价 | L55: 550 乙类 | M55: 550 | N55: 467 | O55: 397 | P55: 乙类 | Q55: 经纤维内镜食管胃十二指肠息肉氩离子凝固术 经电子内镜食管胃十二指肠息肉氩离子凝固术 经纤维内镜食管胃十二指肠息肉高频电凝切除术 经电子内镜食管胃十二指肠息肉高频电凝切除术 经纤维内镜食管胃十二指肠息肉微波切除术 经电子内镜食管胃十二指肠息肉微波切除术 经纤维内镜食管胃十二指肠息肉激光切除术 经电子内镜食管胃十二指肠息肉激光切除术 经纤维内镜结肠息肉微波切除术 经电子内镜结肠息肉微波切除术 经纤维内镜结肠息肉激光切除术 经电子内镜结肠息肉激光切除术 经纤维内镜结肠息肉氩离子凝固术 经电子内镜结肠息肉氩离子凝固术 经纤维内镜结肠息肉高频电凝切除术 经电子内镜结肠息肉高频电凝切除术 经电子内镜结肠息肉吸引圈套切除术
A56: 33 | C56: 无创消化道病变切除费 | D56: 通过无创方式切除消化道黏膜层、黏膜下层或更深层的病变。 | E56: 所定价格涵盖准备、观察、黏膜剥离、切除、创面处理、处理用物等步骤所需的人力资源和基本物质资源消耗。（不含内镜检查） | F56: 01黏膜下隧道病变切除加收50% | H56: 部位/次 | I56: 同一部位的多发病灶，每增加一个病灶按照50%收费 | K56: 2200（加权平均），ESD为四级手术，推广四级手术 江西1900，广东1899 | L56: 2200 乙类 | M56: 2200 | N56: 1870 | O56: 1589 | P56: 乙类 | Q56: 经内镜直肠良性肿物切除术 经电子内镜食管胃十二指肠黏膜剥离术(ESD) 经电子内镜结肠黏膜剥离术(结肠ESD) 经电子内镜食管胃十二指肠黏膜切除术(EMR) 经胸腔镜食管良性肿物切除术 经内镜直肠肿物切除术
C57: 无创消化道病变切除费-黏膜下隧道病变切除（加收） | H57: 部位/次 | M57: 1100 | N57: 935 | O57: 794.5 | P57: 乙类
A58: 34 | C58: 无创消化道缺损闭合费 | D58: 通过无创方式修补闭合消化道缺损。 | E58: 所定价格涵盖准备、观察、修补闭合、创面处理、处理用物等步骤所需的人力资源和基本物质资源消耗。（不含内镜检查） | H58: 次 | K58: 1300 参考江西、广东 | L58: 1300 乙类 | M58: 1300 | N58: 1105 | O58: 939 | P58: 乙类 | Q58: 经电子内镜胃肠道病变尼龙绳结扎术
A59: 35 | C59: 无创消化道异物取出费 | D59: 通过无创方式取出消化道异物。 | E59: 所定价格涵盖准备、观察、异物取出、处理用物，必要时切开等步骤所需的人力资源和基本物质资源消耗。（不含内镜检查） | F59: 01异物直径大于5cm20%（广东50%河北50%江西100%） | H59: 部位 | I59: 同一治疗部位只能收取1次费用。 内镜下逆行阑尾炎治疗（ERAT）按此收费 | K59: 750 加权平均（内涵异物钳）广东：496、江西：370、河北：250 | L59: 750 乙类 | M59: 750 | N59: 637 | O59: 541 | P59: 乙类 | Q59: 经纤维内镜胃石碎石取石术 经电子内镜胃石碎石取石术 经纤维内镜胃石激光碎石取石术 经电子内镜胃石激光碎石取石术 经电子内镜胃石爆破碎石取石术 硬质食管镜下异物取出术 经纤维食管镜食管异物取出术 经电子内镜食管异物取出术 经纤维内镜胃内异物取出术 经电子内镜胃内异物取出术 经瘘管胆道镜异物取出术 经肛门直肠内异物取出术 经电子内镜肠内异物取出术
C60: 无创消化道异物取出费-异物直径大于5cm（加收） | H60: 部位 | M60: 150 | N60: 127.4 | O60: 108.2 | P60: 乙类
A61: 36 | C61: 无创消化道扩张费 | D61: 通过无创方式利用球囊等对消化道狭窄进行扩张。 | E61: 所定价格涵盖准备、观察、狭部扩张、处理用物等步骤所需的人力资源和基本物质资源消耗。（不含内镜检查） | F61: 01胆管扩张30% 11胰管扩张30% 21胆囊扩张20% | H61: 部位 | I61: 同一治疗部位只能收取1次费用。 | K61: 800 广东760，江西700，1066（加权平均），减去内镜检查240 | L61: 800 乙类 | M61: 800 | N61: 680 | O61: 578 | P61: 乙类 | Q61: 经十二指肠镜乳头狭窄扩张术 经电子内镜食管狭窄扩张术 经电子内镜肠道狭窄扩张术 经电子内镜十二指肠狭窄扩张术 直肠狭窄扩张术 经皮经肝胆道狭窄球囊扩张术 经电子内镜胰胆管狭窄扩张术 经尿道输尿管镜输尿管扩张术 经尿道纤维输尿管镜输尿管扩张术 经口食管狭窄球囊扩张术 经电子内镜胰胆管狭窄扩张术 消化道狭窄球囊扩张术+支架置入术
C62: 无创消化道扩张费-胆管扩张（加收） | H62: 部位 | M62: 240 | N62: 204 | O62: =O61*0.3 -> 173.4 | P62: 乙类
C63: 无创消化道扩张费-胰管扩张（加收） | H63: 部位 | M63: 240 | N63: 204 | O63: 173.4 | P63: 乙类
C64: 无创消化道扩张费-胆囊扩张（加收） | H64: 部位 | M64: 160 | N64: 136 | O64: 115.6 | P64: 乙类
A65: 37 | C65: 无创消化道支架置入费 | D65: 通过无创方式在消化道置入支架。 | E65: 所定价格涵盖准备、观察、必要时狭部扩张、支架置入、处理用物等步骤所需的人力资源和基本物质资源消耗。（不含内镜检查） | F65: 01胆管支架置入30% 11胰管支架置入30% 21胆囊支架置入20% | H65: 部位 | I65: 1.同一治疗部位只能收取1次费用。 2.含无创消化道扩张费。 | K65: 1000（参考外省价格） 1017（加权平均），再减去240，广东1014，江西760.河北750 | L65: 1000 乙类 | M65: 1000 | N65: 850 | O65: 722 | P65: 乙类 | Q65: 经电子内镜胃内支架置换术 经电子内镜结肠支架置换术 经电子内镜食管支架置入术 经电子内镜食管支架置换术 经电子内镜胃内支架置入术 经电子内镜结肠支架置入术 经皮经肝肝门部肿物支架置入内引流术 经皮经肝胆道支架置入术 经内镜胆管内支架置入术 经电子内镜胰管内支架置入术 消化道狭窄球囊扩张术+支架置入术 经电子内镜胰管支架置换术
C66: 无创消化道支架置入费-胆管支架置入（加收） | H66: 部位 | M66: 300 | N66: 255 | O66: 216.6 | P66: 乙类
C67: 无创消化道支架置入费-胰管支架置入（加收） | H67: 部位 | M67: 300 | N67: 255 | O67: 216.6 | P67: 乙类
C68: 无创消化道支架置入费-胆囊支架置入（加收） | H68: 部位 | M68: 200 | N68: 170 | O68: 144.4 | P68: 乙类
A69: 38 | C69: 无创消化道支架取出费 | D69: 通过无创方式自消化道取出支架。 | E69: 所定价格涵盖准备、观察、支架取出、处理用物等步骤所需的人力资源和基本物质资源消耗。（不含内镜检查） | G69: 01经皮穿刺支架取出 | H69: 部位 | I69: 同一治疗部位只能收取1次费用。 | K69: 540（加权平均） 广东724，江西600，河北406 | L69: 540 乙类 | M69: 540 | N69: 459 | O69: 390 | P69: 乙类 | Q69: 经内镜胆管内支架取出术 经电子内镜食管支架取出术 经电子内镜胃内支架取出术 经电子内镜结肠支架取出术 经电子内镜胰管支架取出术
C70: 无创消化道支架取出费-经皮穿刺支架取出（扩展） | H70: 部位 | M70: 540 | N70: 459 | O70: 390 | P70: 乙类
A71: 39 | C71: 无创消化道狭窄切开费 | D71: 通过无创方式进入消化道切开狭窄部位。 | E71: 所定价格涵盖准备、观察、切开、处理用物等步骤所需的人力资源和基本物质资源消耗。（不含内镜检查） | H71: 部位 | I71: 同一治疗部位只能收取1次费用。 | K71: 1700（参考外省） 广东1760，江西1760 | L71: 1700 乙类 | M71: 1700 | N71: 1445 | O71: 1228 | P71: 乙类
A72: 40 | C72: 无创胆管结石取出费 | D72: 通过无创方式将胆管内结石取出。 | E72: 所定价格涵盖设备准备、体位摆放、观察、体内碎石、取石、处理用物等步骤所需的人力资源、设备运转成本与基本物质资源消耗。（不含内镜检查、无创逆行胰胆管造影450、无创消化道肌切开2400） | G72: 01无创胰管取石 | H72: 次 | K72: 1000(1792-240-450=1102) 1792（加权平均） 广东1102，江西1000.河北788 | L72: 1100 乙类 | M72: 1100 | N72: 935 | O72: 794 | P72: 乙类 | Q72: 经皮经肝胆道镜取石术 经电子内镜胰胆管结石取石术 经电子内镜胆管结石激光碎石取石术 经电子内镜胆管机械碎石取石术 经电子十二指肠镜奥狄氏括约肌切开胰管取石术
C73: 无创胆管结石取出费-无创胰管取石（扩展） | H73: 次 | M73: 1100 | N73: 935 | O73: 794 | P73: 乙类
A74: 41 | C74: 无创保胆取石费 | D74: 通过无创方式将胆囊内结石取出。 | E74: 所定价格涵盖设备准备、体位摆放、观察、体内碎石、取石、处理用物等步骤所需的人力资源、设备运转成本与基本物质资源消耗。（不含内镜检查与无创逆行胰胆管造影） | H74: 次 | K74: 1600（参考河北） 广东1102，江西2700，河北1600 | L74: 1000 乙类 参考“无创胆管结石取出费” | M74: 1000 | N74: 850 | O74: 722 | P74: 乙类
A75: 42 | C75: 经皮穿刺胆囊碎石取石费 | D75: 通过经皮穿刺进入胆囊碎石后并取出。 | E75: 所定价格涵盖设备准备、体位摆放、穿刺、观察、体内碎石、取石、置管引流、处理用物等步骤所需的人力资源、设备运转成本与基本物质资源消耗。 （不含内镜检查） | G75: 01经皮穿刺胆管碎石取石费 | H75: 次 | K75: 700（参考外省） 广东786，江西720，河北720 | L75: 700 乙类 | M75: 700 | N75: 595 | O75: 505 | P75: 乙类 | Q75: 经皮经肝胆囊穿刺超声碎石取石术 经皮经肝胆囊穿刺激光碎石取石术 经皮经肝胆囊穿刺胆道镜胆囊结石取出术
C76: 经皮穿刺胆囊碎石取石费-经皮穿刺胆管碎石取石费（扩展） | H76: 次 | M76: 700 | N76: 595 | O76: 505 | P76: 乙类
A77: 43 | C77: 无创消化道肌切开费 | D77: 通过无创方式进入消化道切开括约肌等肌肉。 | E77: 所定价格涵盖准备、观察、切开、处理用物等步骤所需的人力资源和基本物质资源消耗。（不含内镜检查） | H77: 次 | K77: 2400（按照国准4医2护4个小时人工耗时+参考外省） 广东2759，江西2400，河北2200 | L77: 2400 乙类 | M77: 2400 | N77: 2040 | O77: 1734 | P77: 乙类 | Q77: 经电子内镜十二指肠乳头括约肌切开术(EST) 经内镜奥狄氏括约肌切开取石术(ECT) 经纤维内镜十二指肠乳头括约肌切开术(EST) 经十二指肠奥狄氏括约肌切开成形术 经电子十二指肠镜奥狄氏括约肌狭窄切开成形术 经电子内镜贲门环状肌切开术（POEM） 经电子内镜胰管括约肌切开术
A78: 44 | C78: 无创消化道造瘘/口置管费 | D78: 通过无创方式进入消化道，在消化道造口并置入营养管。 | E78: 所定价格涵盖准备、观察、穿刺、置管、固定、处理用物等步骤所需的人力资源和基本物质资源消耗。（不含内镜检查） | H78: 次 | I78: 空肠置管按此收费 | K78: 360（加权平均） 广东740，江西1200 | L78: 360 乙类 | M78: 360 | N78: 306 | O78: 260 | P78: 乙类 | Q78: 经内镜空肠造瘘术 经鼻空肠营养管置管术 经纤维内镜空肠置管术 经鼻空肠营养管调管术 经鼻肠梗阻导管置入术 经电子内镜空肠置管术 经腹腔镜胆囊造瘘术
A79: 45 | C79: 无创消化道造瘘/口管取出费 | D79: 通过无创方式进入消化道，取出置入的营养管。 | E79: 所定价格涵盖准备、观察、取出、处理用物等步骤所需的人力资源和基本物质资源消耗。（不含内镜检查） | G79: 01无创消化道造瘘/口管调整 | H79: 次 | I79: 单纯拔管按照10%收费 | K79: 500（参考外省） 广东496，江西1200，河北600 | L79: 500 乙类 | M79: 500 | N79: 425 | O79: 361 | P79: 乙类 | Q79: 经内镜胆管内支架取出术
C80: 无创消化道造瘘/口管取出费-无创消化道造瘘/口管调整（扩展） | H80: 次 | M80: 500 | N80: 425 | O80: 361 | P80: 乙类
A81: 46 | C81: 无创消化道置管更换费 | D81: 通过无创方式进入消化道，置换消化道造瘘/口管。 | E81: 所定价格涵盖准备、观察、拔管、置新管、固定、处理用物等步骤所需的人力资源和基本物质资源消耗。（不含内镜检查） | H81: 次 | K81: 360（参考置管费） 广东179，江西1200，河北125 | L81: 360 乙类 | M81: 360 | N81: 306 | O81: 260 | P81: 乙类 | Q81: 消化道造瘘管置换术 经鼻空肠营养管置换术
A82: 47 | C82: 无创胃空肠吻合费 | D82: 通过无创方式进入消化道，建立胃与空肠之间的通路。 | E82: 所定价格涵盖准备、观察、穿刺、吻合 、固定、处理用物等步骤所需的人力资源和基本物质资源消耗。（不含内镜检查） | H82: 次 | K82: 2700（参考外省+支持新技术） 广东2785，江西2600，河北2400 | L82: 2700 乙类 | M82: 2700 | N82: 2295 | O82: 1950 | P82: 乙类
A83: 48 | C83: 食管病变切除费 | D83: 通过手术切除食管病变。 | E83: 所定价格涵盖手术计划、术区准备、消毒、切开、探查、切除、缝合、处理用物等步骤所需的人力资源和基本物质资源消耗。 | F83: 01多病变切除50% | H83: 次 | K83: 2400（4医2护4小时） 广东3774，江西3000，河北3040 | L83: 2400 甲类 | M83: 2400 | N83: 2040 | O83: 1734 | P83: 甲类 | Q83: 食管良性肿物切除术 食管憩室切除术
C84: 食管病变切除费-多病变切除（加收） | H84: 次 | M84: 1200 | N84: 1020 | O84: 867 | P84: 甲类
A85: 49 | C85: 食管部分切除费 | D85: 通过手术切除部分食管组织（含部分胃组织）。 | E85: 所定价格涵盖手术计划、术区准备、消毒、切开、探查、切除、吻合、缝合、处理用物等步骤所需的人力资源和基本物质资源消耗。 | F85: 01恶性肿瘤切除30% 11胃/肠代食管吻合30% | H85: 次 | K85: 6000（过会价格加权平均） 广东6362，江西3500，河北3644 | L85: 6000 甲类 （过会价格加权平均） | M85: 6000 | N85: 5100 | O85: 4335 | P85: 甲类 | Q85: 肠代食管术 食管癌切除结肠代食管胸内吻合术 食管癌切除胃代食管胸内吻合术 食管癌两切口切除胃代食管胸内吻合术 食管癌两切口切除胃代食管颈部吻合术 食管癌三切口切除胃代食管颈部吻合术 经胸腔镜食管癌切除术 颈段食管癌切除颈部皮瓣食管重建术 食管癌切除结肠代食管颈部吻合术 经胸贲门癌切除术 胸腹联合切口贲门癌切除术 经腹食管下端横断术 经胸食管下端横断术 食管内翻拔脱切除胃代食管颈部吻合术 小儿胃代食管术 先天性食管闭锁经右胸端端吻合术 经胸腔镜先天性食管闭锁经右胸端端吻合术 下咽颈段食管狭窄切除食管重建术 食管狭窄切除吻合术 经颈部先天性食管闭锁修补术 先天性食管闭锁分期手术(I期) 先天性食管闭锁胃管替代吻合术 食管癌切除空肠代食管吻合术
C86: 食管部分切除费-恶性肿瘤切除（加收） | H86: 次 | M86: 1800 | N86: 1530 | O86: 1300.5 | P86: 甲类
C87: 食管部分切除费-胃/肠代食管吻合（加收） | H87: 次 | M87: 1800 | N87: 1530 | O87: 1300.5 | P87: 甲类
A88: 50 | C88: 食管全切除费 | D88: 通过手术切除全部食管组织（含部分胃组织）。 | E88: 所定价格涵盖手术计划、术区准备、消毒、切开、探查、切除、吻合、缝合、处理用物等步骤所需的人力资源和基本物质资源消耗。 | F88: 01恶性肿瘤扩大根治性切除30% 11胃/肠代食管吻合30% | H88: 次 | I88: 本项目中的“恶性肿瘤扩大根治性切除”指联合多脏器切除，且不含淋巴结清扫。 | K88: 8000（和部分切除形成比价关系+参考广东价格） 广东8271，江西3800，河北4200 | L88: 7000 甲类 （和部分切除形成比价关系+参考广东价格） | M88: 7000 | N88: 5950 | O88: 5057 | P88: 甲类 | Q88: 全喉全下咽全食管切除+全胃上提修复术
C89: 食管全切除费-恶性肿瘤扩大根治性切除（加收） | H89: 次 | M89: 2100 | N89: 1785 | O89: 1517.1 | P89: 甲类
C90: 食管全切除费-胃/肠代食管吻合（加收） | H90: 次 | M90: 2100 | N90: 1785 | O90: 1517.1 | P90: 甲类
A91: 51 | C91: 食管切开异物取出费 | D91: 通过手术取出食管异物。 | E91: 所定价格涵盖手术计划、术区准备、消毒、切开、探查、异物取出、缝合、处理用物等步骤所需的人力资源和基本物质资源消耗。 | H91: 次 | K91: 1380（价格平移） 广东3476，江西1800，河北2132 | L91: 1380 甲类 | M91: 1380 | N91: 1173 | O91: 997 | P91: 甲类 | Q91: 颈侧入路切开食管异物取出术
A92: 52 | C92: 食管狭窄成形费 | D92: 通过手术修复狭窄/闭锁食管。 | E92: 所定价格涵盖手术计划、术区准备、消毒、切开、探查、成形、缝合、处理用物等步骤所需的人力资源和基本物质资源消耗。 | H92: 次 | K92: 2300（价格平移） 广东3508，江西2500 | L92: 2300 甲类 | M92: 2300 | N92: 1955 | O92: 1661 | P92: 甲类 | Q92: 食管胃吻合口狭窄切开成形术 经胸食管下段贲门肌层切开术 经腹食管下段贲门肌层切开术 食管胃吻合口狭窄切开成形术 经胸腔镜食管下段贲门肌层切开术
A93: 53 | C93: 食管造瘘/口费 | D93: 通过手术对食管造瘘/口。 | E93: 所定价格涵盖手术计划、术区准备、消毒、切开、探查、造口、缝合、处理用物等步骤所需的人力资源和基本物质资源消耗。 | H93: 次 | K93: 2100（平移价格） 广东2032，江西1200，河北1473 | L93: 2100 甲类 | M93: 2100 | N93: 1785 | O93: 1517 | P93: 甲类 | Q93: 食管闭锁胃造瘘术
A94: 54 | C94: 食管修补费 | D94: 通过手术修补破裂的食管。 | E94: 所定价格涵盖手术计划、术区准备、消毒、切开、探查、修补、缝合、处理用物等步骤所需的人力资源和基本物质资源消耗。 | F94: 01多部位修补50% | H94: 次 | I94: 本项目中的“次”指：2处以下部位修补，3处及3处以上修补按“多部位修补”加收 | K94: 2400（参考食管病变切除） 广东3380江西1700河北2604 | L94: 2400 甲类 | M94: 2400 | N94: 2040 | O94: 1734 | P94: 甲类 | Q94: 经电子内镜食管瘘填堵术 食管破裂修补术
C95: 食管修补费-多部位修补（加收） | H95: 次 | M95: 1200 | N95: 1020 | O95: 867 | P95: 甲类
A96: 55 | C96: 胃部分切除费 | D96: 通过手术切除部分胃组织。 | E96: 所定价格涵盖手术计划、术区准备、消毒、切开、探查、分离、切除、吻合、冲洗、止血、引流、缝合、处理用物等步骤所需的人力资源和基本物质资源消耗。 | F96: 01多病变切除40% 11病变累及贲门50% | H96: 次 | I96: 上消化道血管断流按此收费 | K96: 2100 （加权平均） 广东3709江西2100河北1894 | L96: 2100 甲类 | M96: 2100 | N96: 1785 | O96: 1517 | P96: 甲类 | Q96: 食管下端胃底切除术 经腹腔镜食管下端胃底切除术 胃部分切除术 胃底横断术(Tanner手术) 胸腹联合断流术(Sugiura手术) 门体静脉断流术 贲门周围血管离断术 经胸腔镜贲门周围血管离断术 经腹腔镜胃底横断术
C97: 胃部分切除费-多病变切除（加收） | H97: 次 | M97: 840 | N97: 714 | O97: 606.8 | P97: 甲类
C98: 胃部分切除费-病变累及贲门（加收） | H98: 次 | M98: 1050 | N98: 892.5 | O98: 758.5 | P98: 甲类
A99: 56 | C99: 胃大部切除费 | D99: 通过手术切除大部分胃组织。 | E99: 所定价格涵盖手术计划、术区准备、消毒、切开、探查、分离、切除、吻合、冲洗、止血、引流、缝合、处理用物等步骤所需的人力资源和基本物质资源消耗。 | F99: 01恶性肿瘤扩大根治性切除50% 11近端胃大部切除15% | H99: 次 | I99: 本项目中的“恶性肿瘤扩大根治性切除”指联合多脏器切除，且不含淋巴结清扫。 | K99: 3600（按照过会最低价格） 广东5336江西2900河北3200 | L99: 3600 甲类 | M99: 3600 | N99: 3060 | O99: 2601 | P99: 甲类 | Q99: 近端胃大部切除术 姑息性近端胃大部切除术 姑息性远端胃大部切除术 根治性近端胃大部切除术 根治性远端胃大部切除术 扩大根治性近端胃大部切除术 扩大根治性远端胃大部切除术 远端胃大部切除术 经腹腔镜根治性近端胃大部切除术 经腹腔镜根治性远端胃大部切除术 经腹腔镜近端胃大部切除术 经腹腔镜远端胃大部切除术
C100: 胃大部切除费-恶性肿瘤扩大根治性切除（加收） | H100: 次 | M100: 1800 | N100: 1530 | O100: 1300.5 | P100: 甲类
C101: 胃大部切除费-近端胃大部切除（加收） | H101: 次 | M101: 540 | N101: 459 | O101: 390 | P101: 甲类
A102: 57 | C102: 胃全切除费 | D102: 通过手术切除全胃。 | E102: 所定价格涵盖手术计划、术区准备、消毒、切开、探查、分离、切除、吻合、冲洗、止血、引流、缝合、处理用物等步骤所需的人力资源和基本物质资源消耗。 | F102: 01恶性肿瘤扩大根治性切除40% | H102: 次 | I102: 本项目中的“恶性肿瘤扩大根治性切除”指联合多脏器切除，且不含淋巴结清扫。 | K102: 4000 过会价格3800+200（腔镜辅助操作） 广东6565江西3900河北3743 | L102: 4000 甲类 | M102: 4000 | N102: 3400 | O102: 2890 | P102: 甲类 | Q102: 全胃切除术 姑息性全胃切除术 根治性全胃切除术 扩大根治性全胃切除术 根治性残胃癌切除术 姑息性残胃癌切除术 扩大根治性残胃癌切除术 经腹腔镜根治性全胃切除术 经腹腔镜全胃切除术
C103: 胃全切除费-恶性肿瘤扩大根治性切除（加收） | H103: 次 | M103: 1600 | N103: 1360 | O103: 1156 | P103: 甲类
A104: 58 | C104: 胃减容费 | D104: 通过手术缩小胃容量。 | E104: 所定价格涵盖手术计划、术区准备、消毒、切开、探查、分离、切除、折叠、成形、冲洗、止血、引流、缝合、处理用物，必要时行抗返流操作等步骤所需的人力资源和基本物质资源消耗。 | H104: 次 | I104: 不可与“胃部分切除费、胃大部切除费”同时收取。 | K104: 3000（参考胃大部分切除术+参考外省价格）广东3916江西3000河北2913 | L104: 3000 丙类 | M104: 3000 | N104: 2550 | O104: 2167 | P104: 丙类 | Q104: 可调节胃束带置入术 经腹腔镜可调节胃束带置入术 经腹腔镜胃袖状切除术 胃袖状切除术 经腹腔镜胃束带去除术 胃束带去除术 垂直捆绑胃成形术 胃底折叠术 经腹腔镜胃底折叠术 经腹腔镜垂直捆绑胃成形术
A105: 59 | C105: 胃肠括约肌成形费 | D105: 通过手术修复胃肠道括约肌。 | E105: 所定价格涵盖手术计划、术区准备、消毒、切开、探查、分离、切除、成形、冲洗、止血、引流、缝合、处理用物，必要时行抗返流操作等步骤所需的人力资源和基本物质资源消耗。 | H105: 次 | K105: 1700（平移价格） 河北2013江西2150广东3059 | L105: 1700 甲类 | M105: 1700 | N105: 1445 | O105: 1228 | P105: 甲类 | Q105: 幽门成形术 幽门环肌切开术 经腹腔镜幽门环肌切开术 经腹腔镜幽门成形术 十二指肠成形术
A106: 60 | C106: 胃切开异物取出费 | D106: 通过手术切开胃取出异物。 | E106: 所定价格涵盖手术计划、术区准备、消毒、切开、探查、异物取出、冲洗、止血、引流、缝合、处理用物等步骤所需的人力资源和基本物质资源消耗。 | H106: 次 | K106: 1700（难度同上项） 广东3059江西2000河北1894 | L106: 1700 甲类 | M106: 1700 | N106: 1445 | O106: 1228 | P106: 甲类 | Q106: 胃切开异物取出术 经腹腔镜胃切开异物取出术 经腹腔镜胃切开异物取出术
A107: 61 | C107: 胃修补费 | D107: 通过手术修补胃穿孔等损伤。 | E107: 所定价格涵盖手术计划、术区准备、消毒、切开、探查、分离、修复、冲洗、止血、引流、缝合、处理用物等步骤所需的人力资源和基本物质资源消耗。 | F107: 01多部位修补50% | H107: 次 | I107: 本项目中的“次”指：2处以下部位修补，3处及3处以上修补按“多部位修补”加收。 | K107: 2500（1700+1350肠粘连*0.6 （难度高于上项）广东3375江西1900河北1894 | L107: 2500 甲类 | M107: 2500 | N107: 2125 | O107: 1806 | P107: 甲类 | Q107: 胃穿孔修补术 先天性胃壁肌层缺损胃穿孔修补术 经腹腔镜胃穿孔修补术 胃出血切开缝扎止血术 经腹腔镜胃出血切开缝扎止血术 腹腔镜胃旁路手术 胃瘘闭合术
C108: 胃修补费-多部位修补（加收） | H108: 次 | M108: 1250 | N108: 1062.5 | O108: 903 | P108: 甲类
A109: 62 | C109: 胃肠灌注造瘘/口费 | D109: 通过手术在胃肠部造瘘/口，用于后续胃肠灌注。 | E109: 所定价格涵盖手术计划、术区准备、消毒、切开、探查、分离、置管、固定、冲洗、止血、引流、缝合、处理用物等步骤所需的人力资源和基本物质资源消耗。 | H109: 次 | K109: 1400（平移腔镜项目价格） 广东3138江西2000河北1413 | L109: 1400 甲类 | M109: 1400 | N109: 1190 | O109: 1011 | P109: 甲类 | Q109: 胃造瘘术 经腹腔镜胃造瘘术 肠造瘘术 经腹腔镜肠造瘘术 先天性肠腔闭锁端侧吻合造瘘术 经胃造瘘口空肠营养管置入术 经电子内镜胃造瘘术(PEG) 经胃造瘘口空肠营养管置入术
A110: 63 | C110: 消化道转流费（常规） | D110: 通过手术重新连接吻合消化道，实现消化道重建。 | E110: 所定价格涵盖手术计划、术区准备、消毒、切开、探查、分离、缝合重建、冲洗、止血、引流、缝合、处理用物，必要时造瘘等步骤所需的人力资源和基本物质资源消耗。 | H110: 次 | I110: 不与其他含吻合步骤手术同时收取。 | K110: 1600（平移腔镜项目价格） 广东3358江西2000河北1845 | L110: 1600 甲类 | M110: 1600 | N110: 1360 | O110: 1156 | P110: 甲类 | Q110: 食管胃短路手术 胃肠短路术 经腹腔镜胃肠短路术
A111: 64 | C111: 消化道转流费（复杂） | D111: 通过手术重新连接吻合消化道，实现复杂情况消化道重建。 | E111: 所定价格涵盖手术计划、术区准备、消毒、切开、探查、分离、缝合重建、冲洗、止血、引流、缝合、处理用物，必要时造瘘等步骤所需的人力资源和基本物质资源消耗。 | H111: 次 | I111: 1.本项目中“复杂”指：胆肠吻合、胆胰转流、胰肠吻合、多吻合口的情况。 2.不与其他含吻合步骤手术同时收取。 | K111: 3000（参考国准4医2护6小时+外省价格）广东4365江西3000河北3019 | L111: 3000 甲类 | M111: 3000 | N111: 2550 | O111: 2167 | P111: 甲类 | Q111: 胆囊肠吻合术 环状胰腺十二指肠侧侧吻合术 肠重复畸形切除吻合术 经腹腔镜肠切除肠吻合术 先天性小肠闭锁成形术 先天胆道闭锁肝门空肠Roux-y成形术 经腹腔镜胆囊肠吻合术 胰腺囊肿空肠吻合术 胰管空肠侧侧吻合术 胰管空肠吻合术 胆总管切开取石+空肠Roux-y吻合术 胆囊空肠Roux-y吻合术 经腹腔镜胆囊空肠Roux-y吻合术 胆胰转流手术(BPD) 人工乳头防返流术 矩形黏膜瓣防返流术 空肠间置代胆道防返流术
A112: 65 | C112: 小肠部分切除费 | D112: 通过手术切除部分小肠组织。 | E112: 所定价格涵盖手术计划、术区准备、消毒、切开、探查、分离、切除、吻合、冲洗、止血、引流、缝合、处理用物等步骤所需的人力资源和基本物质资源消耗。 | F112: 01恶性肿瘤切除20% 11两个及以上肠段切除50% | H112: 次 | K112: 2200（参考4医2护4小时+江西价格） 广东2982江西2200河北2203 | L112: 2200 甲类 | M112: 2200 | N112: 1870 | O112: 1589 | P112: 甲类 | Q112: 十二指肠憩室切除术 肠切除肠吻合术 肠瘘切除肠吻合术 肠吻合术 胃胰腺囊肿吻合术 十二指肠成形术 美克尔憩室切除术 腹腔镜美克尔憩室切除术 肠倒置术
C113: 小肠部分切除费-恶性肿瘤切除（加收） | H113: 次 | M113: 440 | N113: 374 | O113: 317.8 | P113: 甲类
C114: 小肠部分切除费-两个及以上肠段切除（加收） | H114: 次 | M114: 1100 | N114: 935 | O114: 794.5 | P114: 甲类
A115: 66 | C115: 肠修补费 | D115: 通过手术修补肠穿孔等损伤。 | E115: 所定价格涵盖手术计划、术区准备、消毒、切开、探查、分离、修复、冲洗、止血、引流、缝合、处理用物等步骤所需的人力资源和基本物质资源消耗。 | F115: 01多部位修补50% | H115: 次 | I115: 本项目中的“次”指：2处以下部位修补，3处及3处以上修补按“多部位修补”加收。 | K115: 2400（1600+1350*0.6） 广东3084江西1900河北1799 | L115: 2400 甲类 | M115: 2400 | N115: 2040 | O115: 1734 | P115: 甲类 | Q115: 感染性直肠前庭瘘修补术 肠穿孔修补 髂动脉消化道瘘修复术 十二指肠憩室内翻术
C116: 肠修补费-多部位修补（加收） | H116: 次 | M116: 1200 | N116: 1020 | O116: 867 | P116: 甲类
A117: 67 | C117: 肠道狭窄成形费 | D117: 通过手术修复狭窄肠道。 | E117: 所定价格涵盖手术计划、术区准备、消毒、切开、探查、分离、切除、修复、成形、吻合、冲洗、止血、引流、缝合、处理用物等步骤所需的人力资源和基本物质资源消耗。 | F117: 01肠道闭锁成形50% 11两处及以上肠道狭窄成形50% | H117: 次 | K117: 1600（平移价格）广东2324江西1500河北1900 | L117: 1600 甲类 | M117: 1600 | N117: 1360 | O117: 1156 | P117: 甲类 | Q117: 先天性小肠狭窄不全梗阻修复术
C118: 肠道狭窄成形费-肠道闭锁成形（加收） | H118: 次 | M118: 800 | N118: 680 | O118: 578 | P118: 甲类
C119: 肠道狭窄成形费-两处及以上肠道狭窄成形（加收） | H119: 次 | M119: 800 | N119: 680 | O119: 578 | P119: 甲类
A120: 68 | C120: 肠管延长费 | D120: 通过手术增加肠管的有效长度。 | E120: 所定价格涵盖手术计划、术区准备、消毒、切开、探查、分离、切除、吻合、冲洗、止血、引流、缝合、处理用物等步骤所需的人力资源和基本物质资源消耗。 | H120: 次 | K120: 1680（参考价） 广东2982江西1680河北1680 | L120: 1680 丙类 | M120: 1680 | N120: 1428 | O120: 1213 | P120: 丙类
A121: 69 | C121: 肠粘连松解费（常规） | D121: 通过手术对肠道粘连进行松解。 | E121: 所定价格涵盖手术计划、术区准备、消毒、切开、探查、分离、肠道粘连松解、排列、冲洗、止血、引流、缝合、处理用物等步骤所需的人力资源和基本物质资源消耗。 | H121: 次 | I121: 仅限单纯肠粘连松解收取，不与其他腹部手术同时收取。 | K121: 1350（加权平均） 广东2340江西1900河北1897 | L121: 1350 甲类 | M121: 1350 | N121: 1147 | O121: 975 | P121: 甲类 | Q121: 肠粘连松解术 经腹腔镜肠粘连松解术 耻骨直肠肌松解术
A122: 70 | C122: 肠粘连松解费（复杂） | D122: 通过手术对复杂情况下的肠道粘连进行松解。 | E122: 所定价格涵盖手术计划、术区准备、消毒、切开、探查、分离、肠道粘连松解、排列、冲洗、止血、引流、缝合、处理用物等步骤所需的人力资源和基本物质资源消耗。 | H122: 次 | I122: 本项目中的“复杂”指：既往接受腹部手术情况。 | K122: 2200（参考外省低价）广东2704江西2500河北2280 | L122: 2200 甲类 | M122: 2200 | N122: 1870 | O122: 1589 | P122: 甲类
A123: 71 | C123: 肠复位费 | D123: 通过手术对肠进行复位。 | E123: 所定价格涵盖手术计划、术区准备、消毒、切开、探查、分离、复位、固定、冲洗、止血、引流、缝合、处理用物等步骤所需的人力资源和基本物质资源消耗。 | F123: 01肠旋转不良矫治30% | G123: 01胃复位 | H123: 次 | I123: 1.不含肠切除。 2.仅限胃/肠扭转、肠套叠等情况手术复位使用。 | K123: 1500（平移腔镜项目价格） 广东3104江西2000河北1618 | L123: 1500 甲类 | M123: 1500 | N123: 1275 | O123: 1083 | P123: 甲类 | Q123: 肠排列固定术 经腹腔镜肠排列固定术 肠回转不良矫治术(Lodd.s'术) 胃扭转复位术 经腹腔镜胃扭转复位术 经胃镜胃扭转复位术 肠扭转肠套叠复位术 经腹腔镜肠扭转肠套叠复位术
C124: 肠复位费-肠旋转不良矫治（加收） | H124: 次 | M124: 450 | N124: 382.5 | O124: 324.9 | P124: 甲类
C125: 肠复位费-胃复位（扩展） | H125: 次 | M125: 1500 | N125: 1275 | O125: 1083 | P125: 甲类
A126: 72 | C126: 腹腔探查费 | D126: 通过手术探查腹腔。 | E126: 所定价格涵盖手术计划、术区准备、消毒、切开、探查、缝合、处理用物等步骤所需的人力资源和基本物质资源消耗。 | H126: 次 | I126: 1.不与相关腹腔手术同时收费。 2.术后腹腔内出血、脓/血肿行手术探查及处理适用本项目收费。 | K126: 1000（平移价格） 广东1957江西1300河北936 | L126: 1000 甲类 | M126: 1000 | N126: 850 | O126: 722 | P126: 甲类 | Q126: 开腹探查术 腹腔镜探查术 开腹肝囊肿药物注射治疗 经腹腔镜肝囊肿药物注射治疗 肝脓肿切开引流术 经皮肝脓肿引流管调管术 肝外伤后血肿清创引流术 开腹肝脓肿置管引流术 经腹腔镜肝外伤后血肿清创引流术 经腹腔镜肝脓肿置管引流术 经腹腔镜肝脓肿切开引流术 经腹腔镜肝囊肿开窗术 开腹胆道镜检查 经腹腔镜腹腔脓肿置管引流
A127: 73 | C127: 阑尾切除费 | D127: 通过手术切除阑尾。 | E127: 所定价格涵盖手术计划、术区准备、消毒、切开、探查、分离、切除、冲洗、止血、引流、缝合、处理用物等步骤所需的人力资源和基本物质资源消耗。 | F127: 01穿孔/坏疽阑尾50% | H127: 次 | K127: 1000 价格平移 考虑技术难度（平移腔镜项目）广东1984江西1400河北1114 | L127: 1000 甲类 | M127: 1000 | N127: 850 | O127: 722 | P127: 甲类 | Q127: 阑尾炎性包块切除术 阑尾切除术 经腹腔镜阑尾切除术 经腹腔镜阑尾炎性包块切除术 坏疽性阑尾切除术 经腹腔镜坏疽性阑尾切除术
C128: 阑尾切除费-穿孔/坏疽阑尾（加收） | H128: 次 | M128: 500 | N128: 425 | O128: 361 | P128: 甲类
A129: 74 | C129: 结肠部分切除费 | D129: 通过手术切除部分结肠。 | E129: 所定价格涵盖手术计划、术区准备、消毒、切开、探查、分离、切除、必要时吻合、止血、缝合、处理用物等步骤所需的人力资源和基本物质资源消耗。 | F129: 01恶性肿瘤切除30% 02恶性肿瘤扩大根治性切除40% 11两个及以上肠段切除50% | H129: 次 | I129: 本项目中的“恶性肿瘤扩大根治性切除”指联合多脏器切除，且不含淋巴结清扫。 | K129: 3000 加权平均（根治性结肠癌切除术、扩大根治性结肠癌切除术、经腹腔镜结肠癌根治术）-淋巴结清扫费用*0.6 广东4783、河北2212、江西2400 | L129: 3000 甲类 | M129: 3000 | N129: 2550 | O129: 2167 | P129: 甲类 | Q129: 经腹先天性巨结肠根治术 经肛门先天性巨结肠改良根治术 经腹经肛门先天性巨结肠改良根治术 经腹腔镜经肛门先天性巨结肠改良根治术 根治性结肠癌切除术 扩大根治性结肠癌切除术 经腹腔镜结肠癌根治术 结肠癌姑息切除术+短路 先天性巨结肠切除吻合术 先天性巨结肠切除+回肠袋形成形吻合术 经腹腔镜先天性巨结肠切除术 结肠曲段切除术 先天性巨结肠术后夹膈术 经腹结肠息肉切除术 回盲部切除术 经腹腔镜回盲部切除术 肠倒置术 结肠癌局部切除术
C130: 结肠部分切除费-恶性肿瘤切除（加收） | H130: 次 | M130: 900 | N130: 765 | O130: 650.1 | P130: 甲类
C131: 结肠部分切除费-恶性肿瘤扩大根治性切除（加收） | H131: 次 | M131: 1200 | N131: 1020 | O131: 866.8 | P131: 甲类
C132: 结肠部分切除费-两个及以上肠段切除（加收） | H132: 次 | M132: 1500 | N132: 1275 | O132: 1083.5 | P132: 甲类
A133: 75 | C133: 结肠全切除费 | D133: 通过手术切除全部结肠和部分直肠。 | E133: 所定价格涵盖手术计划、术区准备、消毒、切开、探查、分离、切除、必要时吻合、止血、缝合、处理用物等步骤所需的人力资源和基本物质资源消耗。 | F133: 01恶性肿瘤扩大根治性切除40% | H133: 次 | I133: 本项目中的“恶性肿瘤扩大根治性切除”指联合多脏器切除，且不含淋巴结清扫。 | K133: 4080 （过会价格-淋巴结清扫*0.6） 广东5944、江西3600、河北3644 | L133: 4080 甲类 | M133: 4080 | N133: 3468 | O133: 2947 | P133: 甲类 | Q133: 全结肠切除吻合术
C134: 结肠全切除费-恶性肿瘤扩大根治性切除（加收） | H134: 次 | M134: 1632 | N134: 1387.2 | O134: 1178.8 | P134: 甲类
A135: 76 | C135: 肠储存袋成形费 | D135: 通过手术制作储袋替代肠道功能。 | E135: 所定价格涵盖手术计划、术区准备、消毒、切开、探查、分离、制作储袋、冲洗、止血、引流、缝合、处理用物等步骤所需的人力资源和基本物质资源消耗。 | H135: 次 | K135: 1500 价格平移 广东1487江西1900、河北2222 | L135: 1500 甲类 | M135: 1500 | N135: 1275 | O135: 1083 | P135: 甲类 | Q135: 肠储存袋成形术
A136: 77 | C136: 结肠造瘘/口费 | D136: 通过手术将结肠提至体外，使肠道内容物排出。 | E136: 所定价格涵盖手术计划、术区准备、消毒、切开、探查、分离、切段、造口、固定、止血、缝合、处理用物等步骤所需的人力资源和基本物质资源消耗。 | G136: 01回肠造瘘/口 | H136: 次 | K136: 1400（参考胃肠灌注造瘘）广东2384江西2100河北1894 | L136: 1400 甲类 | M136: 1400 | N136: 1190 | O136: 1011 | P136: 甲类 | Q136: 肠造瘘术
C137: 结肠造瘘/口费-回肠造瘘/口（扩展） | H137: 次 | M137: 1400 | N137: 1190 | O137: 1011 | P137: 甲类
A138: 78 | C138: 结肠悬吊费 | D138: 通过手术恢复脱垂结肠的生理结构。 | E138: 所定价格涵盖手术计划、术区准备、消毒、切开、探查、分离、悬吊、固定、止血、缝合、处理用物等步骤所需的人力资源和基本物质资源消耗。 | H138: 次 | K138: 1600（平移价格）广东2095河北1400江西1894 | L138: 1600 甲类 | M138: 1600 | N138: 1360 | O138: 1156 | P138: 甲类 | Q138: 乙状结肠悬吊术 经腹腔镜乙状结肠悬吊术
A139: 79 | C139: 肠造瘘/口还纳费 | D139: 通过手术将肠造瘘/口部位的肠管重新纳入腹腔。 | E139: 所定价格涵盖手术计划、术区准备、消毒、切开、探查、松解、分离、切除、吻合、冲洗、止血、引流、缝合、处理用物等步骤所需的人力资源和基本物质资源消耗。 | H139: 次 | K139: 2200（参考外地）广东3084江西2200河北2197 | L139: 2200 甲类 | M139: 2200 | N139: 1870 | O139: 1589 | P139: 甲类 | Q139: 肠造瘘还纳术
A140: 80 | C140: 直肠病变切除费 | D140: 通过手术切除直肠病变（未侵犯直肠肌层）。 | E140: 所定价格涵盖手术计划、术区准备、消毒、切开、探查、分离、切除、止血、缝合、处理用物等步骤所需的人力资源和基本物质资源消耗。 | H140: 次 | K140: 1100（价格平移）广东2342江西950河北952 | L140: 1100 甲类 | M140: 1100 | N140: 935 | O140: 794 | P140: 甲类 | Q140: 经内镜直肠良性肿物切除术 经内镜直肠肿物切除术 经内镜直肠良性肿物激光切除术 经内镜直肠良性肿物套扎切除术 经内镜直肠良性肿物电凝切除术
A141: 81 | C141: 直肠部分切除费 | D141: 通过手术切除部分直肠。 | E141: 所定价格涵盖手术计划、术区准备、消毒、切开、探查、分离、切除、止血、缝合、处理用物等步骤所需的人力资源和基本物质资源消耗。 | F141: 01恶性肿瘤切除30% 11恶性肿瘤扩大根治性切除40% | H141: 次 | I141: 本项目中的“恶性肿瘤扩大根治性切除”指联合多脏器切除，且不含淋巴结清扫。 | K141: 3200（4200-1700淋巴节清扫*0.6）广东3763河北1347江西1900 | L141: 3200 甲类 | M141: 3200 | N141: 2720 | O141: 2312 | P141: 甲类 | Q141: 直肠癌根治术(Dixon手术) 经骶尾部直肠癌根治术 拖出式直肠癌根治术 扩大根治性直肠癌切除术 经腹腔镜直肠癌根治术(Dixon手术) 经腹腔镜超低位直肠癌根治术 经腹会阴直肠癌根治术(Miles手术) 经腹腔镜会阴直肠癌根治术(Miles手术) 直肠癌术后复发盆腔脏器切除术 经腹腔镜直肠癌术后复发盆腔脏器切除术
C142: 直肠部分切除费-恶性肿瘤切除（加收） | H142: 次 | M142: 960 | N142: 816 | O142: 693.6 | P142: 甲类
C143: 直肠部分切除费-恶性肿瘤扩大根治性切除（加收） | H143: 次 | M143: 1280 | N143: 1088 | O143: 924.8 | P143: 甲类
A144: 82 | C144: 直肠全切除费 | D144: 通过手术切除全部直肠。 | E144: 所定价格涵盖手术计划、术区准备、消毒、切开、探查、分离、切除、造口、止血、缝合、处理用物等步骤所需的人力资源和基本物质资源消耗。 | F144: 01恶性肿瘤扩大根治性切除40% | H144: 次 | I144: 本项目中的“恶性肿瘤扩大根治性切除”不含淋巴结清扫。 本项目中的“恶性肿瘤扩大根治性切除”不含淋巴结清扫。 | K144: 4200（5200-1700*0.6）广东7669江西河北2850 | L144: 4200 甲类 | M144: 4200 | N144: 3570 | O144: 3034 | P144: 甲类 | Q144: 直肠癌术后复发盆腔脏器切除术 经腹腔镜直肠癌术后复发盆腔脏器切除术 扩大根治性直肠癌切除术
C145: 直肠全切除费-恶性肿瘤扩大根治性切除（加收） | H145: 次 | M145: 1680 | N145: 1428 | O145: 1213.6 | P145: 甲类
A146: 83 | C146: 超低位直肠癌根治费（保肛） | D146: 通过手术根治距离肛门5cm以内的直肠癌。 | E146: 所定价格涵盖手术计划、术区准备、消毒、切开、探查、分离、切除、造口、重建、冲洗、止血、引流、缝合、处理用物等步骤所需的人力资源和基本物质资源消耗。 | F146: 01经括约肌间切除20% 02直肠经腹肛管拉出切除20% 03经肛全直肠系膜切除30% | H146: 次 | K146: 3200（参考直肠部分切除）广东7669河北3200江西3200 | L146: 3200 甲类 | M146: 3200 | N146: 2720 | O146: 2312 | P146: 甲类 | Q146: 超低位直肠癌根治术 经腹腔镜超低位直肠癌根治术
C147: 超低位直肠癌根治费（保肛）-经括约肌间切除（加收） | H147: 次 | M147: 640 | N147: 544 | O147: 462.4 | P147: 甲类
C148: 超低位直肠癌根治费（保肛）-直肠经腹肛管拉出切除（加收） | H148: 次 | M148: 640 | N148: 544 | O148: 462.4 | P148: 甲类
C149: 超低位直肠癌根治费（保肛）-经肛全直肠系膜切除（加收） | H149: 次 | M149: 960 | N149: 816 | O149: 693.6 | P149: 甲类
A150: 84 | C150: 肠道切开异物取出费 | D150: 通过手术切开肠道取出异物。 | E150: 所定价格涵盖手术计划、术区准备、消毒、切开、探查、分离、异物取出、止血、缝合、处理用物等步骤所需的人力资源和基本物质资源消耗。 | H150: 次 | K150: 1300（平移价格）广东4000河北1500江西1500 | L150: 1300 甲类 | M150: 1300 | N150: 1105 | O150: 939 | P150: 甲类 | Q150: 经腹会阴联合直肠内异物取出术 开腹排粪石术 肠道切开异物取出术
A151: 85 | C151: 直肠脱垂修复费 | D151: 通过手术恢复脱垂直肠的生理结构。 | E151: 所定价格涵盖手术计划、术区准备、消毒、切开、探查、分离、切除、修复、固定、冲洗、止血、引流、缝合、处理用物等步骤所需的人力资源和基本物质资源消耗。 | H151: 次 | K151: 1500（高价平移）广东3577江西1900河北1918 | L151: 1500 甲类 | M151: 1500 | N151: 1275 | O151: 1083 | P151: 甲类 | Q151: 经肛门直肠脱垂手术(delorem手术) 直肠脱垂复位治疗 Ⅲ度直肠脱垂复位治疗 直肠脱垂悬吊术 经肛门直肠黏膜环切钉合术(PPH)
A152: 86 | C152: 直肠前突修补费 | D152: 通过手术修复突出囊袋，修补缺损，重建直肠壁（阴道壁）。 | E152: 所定价格涵盖手术计划、术区准备、消毒、切开、探查、修补、冲洗、止血、引流、缝合、处理用物等步骤所需的人力资源和基本物质资源消耗。 | H152: 次 | K152: 1260（平移价格） 广东2535江西1170河北1494 | L152: 1260 甲类 | M152: 1260 | N152: 1071 | O152: 910 | P152: 甲类 | Q152: 经阴道直肠前突修补术 经肛门直肠前突修补术
A153: 87 | C153: 肛门会阴成形费 | D153: 通过手术修复肛门会阴解剖结构。 | E153: 所定价格涵盖手术计划、术区准备、消毒、切开、探查、分离、肛门/会阴重建、冲洗、止血、引流、缝合、处理用物等步骤所需的人力资源和基本物质资源消耗。 | G153: 01先天性肛门闭锁成形费 | H153: 次 | K153: 1500（3医2护3小时） 广东2778江西1300河北1560 | L153: 1500 甲类 | M153: 1500 | N153: 1275 | O153: 1083 | P153: 甲类 | Q153: 肛门成形术 尾路肛门成形术 肛门环行缩窄术 先天性肛门闭锁女性会阴肛门成形术 先天性肛门闭锁男性会阴肛门成形术 先天性肛门闭锁尾路肛门成形术(pena手术) 先天性肛门闭锁肛门后切成形术
C154: 肛门会阴成形费-先天性肛门闭锁成形费（扩展） | H154: 次 | M154: 1500 | N154: 1275 | O154: 1083 | P154: 甲类
A155: 88 | C155: 人工肛门括约肌植入费 | D155: 通过手术植入人工肛门括约肌。 | E155: 所定价格涵盖手术计划、术区准备、消毒、切开、探查、分离、植入、冲洗、止血、引流、缝合、处理用物等步骤所需的人力资源和基本物质资源消耗。 | H155: 次 | K155: 3000（参考外省）广东4394江西/河北3000 | L155: 3000 丙类 | M155: 3000 | N155: 2550 | O155: 2167 | P155: 丙类
A156: 89 | C156: 人工肛门括约肌取出费 | D156: 通过手术取出人工肛门括约肌。 | E156: 所定价格涵盖手术计划、术区准备、消毒、切开、探查、分离、取出、止血、缝合、处理用物等步骤所需的人力资源和基本物质资源消耗。 | H156: 次 | K156: 2000（参考外省）广东2197江西2100河北1800 | L156: 2000 丙类 | M156: 2000 | N156: 1700 | O156: 1445 | P156: 丙类
A157: 90 | C157: 先天性一穴肛矫治费 | D157: 通过手术矫治先天性一穴肛。 | E157: 所定价格涵盖手术计划、术区准备、消毒、切开、探查、分离、切除、重建、吻合、止血、缝合、处理用物等步骤所需的人力资源和基本物质资源消耗。 | H157: 次 | K157: 1900（平移） | L157: 1900 甲类 | M157: 1900 | N157: 1615 | O157: 1372 | P157: 甲类 | Q157: 先天性一穴肛矫治术
A158: 91 | C158: 盆腔脓肿切开引流费 | D158: 通过手术切开引流盆腔脓肿。 | E158: 所定价格涵盖手术计划、术区准备、消毒、切开、探查、冲洗、止血、引流、包扎固定、处理用物等步骤所需的人力资源和基本物质资源消耗。 | H158: 次 | K158: 1000（高价项目）广东2484江西1100河北876 | L158: 1000 甲类 | M158: 1000 | N158: 850 | O158: 722 | P158: 甲类 | Q158: 阑尾周围脓肿引流术 经腹腔镜阑尾周围脓肿引流术 开腹盆腔脓肿置管引流术 经腹腔镜盆腔脓肿置管引流术 经直肠盆腔脓肿切开引流术
A159: 92 | C159: 腹盆腔异物取出费 | D159: 通过手术取出腹盆腔异物。 | E159: 所定价格涵盖手术计划、术区准备、消毒、切开、探查、分离、异物取出、止血、缝合、处理用物等步骤所需的人力资源和基本物质资源消耗。 | H159: 次 | K159: 2000（参考外省）广东2896江西2000河北1100 | L159: 1000 甲类 参考“腹腔探查费” | M159: 1000 | N159: 850 | O159: 722 | P159: 甲类
A160: 93 | C160: 肛门镜检查费 | D160: 通过肛门镜观察肛管、直肠内有无病变及异常。 | E160: 所定价格涵盖准备、消毒、置镜、观察、记录、撤镜、处理用物等步骤所需的人力资源和基本物质资源消耗。 | H160: 次 | K160: 15（平移） | L160: 15 乙类 | M160: 15 | N160: 12 | O160: 10 | P160: 乙类 | Q160: 肛门镜检查
A161: 94 | C161: 肛门指检费 | D161: 通过指诊对肛门、肛管、直肠下段进行检查。 | E161: 所定价格涵盖准备、指检、观察、记录、处理用物等步骤所需的人力资源和基本物质资源消耗。 | H161: 次 | K161: 10（平移） | L161: 10 乙类 | M161: 10 | N161: 8 | O161: 7 | P161: 乙类 | Q161: 肛门指诊
A162: 95 | C162: 扩肛治疗费 | D162: 通过人工或器械手段扩肛。 | E162: 所定价格涵盖准备、按摩、反复扩张、处理用物等步骤所需的人力资源和基本物质资源消耗。 | H162: 次 | K162: 90（高频平移）广东80江西38河北31 | L162: 90 乙类 | M162: 90 | N162: 76 | O162: 65 | P162: 乙类 | Q162: 人工扩肛治疗 器械扩肛治疗 手术扩肛治疗 肛门狭窄挂线术 扩肛术 直肠狭窄挂线术 直肠狭窄扩张术
A163: 96 | C163: 直肠内异物取出费 | D163: 通过手法或器械取出直肠内异物。 | E163: 所定价格涵盖准备、消毒、扩张、异物取出、冲洗、处理用物等步骤所需的人力资源和基本物质资源消耗。 | H163: 次 | K163: 300（2医1护1小时）广东957江西470河北280 | L163: 300 乙类 | M163: 300 | N163: 255 | O163: 216 | P163: 乙类 | Q163: 经肛门直肠内异物取出术
A164: 97 | C164: 外痔切除费 | D164: 通过手术剥离切除外痔。 | E164: 所定价格涵盖手术计划、术区准备、消毒、探查、分离、切除、冲洗、止血、引流、包扎固定、处理用物等步骤所需的人力资源和基本物质资源消耗。 | F164: 01嵌顿血栓性外痔30% | H164: 次 | I164: 1.本项目中的“次”指：3个及以下外痔，超过3个外痔，每增加1个外痔按一定比例进行加收30%(河北江西)。以8个费用设置封顶线。 2.混合痔治疗可按照内痔、外痔治疗分别收费。 | K164: 650（加权平均） 广东1236江西700河北803 | L164: 650 甲类 | M164: 650 | N164: 552 | O164: 469 | P164: 甲类 | Q164: 血栓性外痔切开取栓术 外痔切除术 血栓性外痔切除术 混合痔外剥内扎术 复杂性血栓性外痔切除术 痔嵌顿切开还纳术 混合痔嵌顿手法还纳术 嵌顿型环状混合痔脱出切除术
C165: 外痔切除费-嵌顿血栓性外痔（加收） | H165: 次 | M165: 195 | N165: 165.6 | O165: 140.7 | P165: 甲类
A166: 98 | C166: 内痔切除费 | D166: 通过手术切除内痔。 | E166: 所定价格涵盖手术计划、术区准备、消毒、探查、扩肛、切除、冲洗、止血、引流、包扎固定、处理用物等步骤所需的人力资源和基本物质资源消耗。 | H166: 次 | I166: 1.本项目中的“次”指：3个及以下内痔，超过3个内痔，每增加1个内痔按一定比例进行加收30%。以8个费用设置封顶线。 2.混合痔治疗可按照内痔、外痔治疗分别收费。 | K166: 700（价格平移） 广东1758江西840河北822 | L166: 700 甲类 | M166: 700 | N166: 595 | O166: 505 | P166: 甲类 | Q166: 内痔环切术 环状混合痔切除术
A167: 99 | C167: 注射费（痔疮硬化） | D167: 通过注射治疗痔疮。 | E167: 所定价格涵盖制定计划、消毒、准备、注射、包扎固定、处理用物等步骤所需的人力资源和基本物质资源消耗。 | H167: 痔核 | K167: 100（平移价格） 广东100江西236河北233 | L167: 100 乙类 | M167: 100 | N167: 85 | O167: 72 | P167: 乙类 | Q167: 内痔硬化剂注射治疗 经电子内镜内痔硬化+套扎治疗术 环状混合痔硬化剂注射治疗
A168: 100 | C168: 注射费（直肠脱垂） | D168: 通过注射治疗直肠脱垂。 | E168: 所定价格涵盖制定计划、消毒、准备、注射、包扎固定、处理用物等步骤所需的人力资源和基本物质资源消耗。 | G168: 01注射费（直肠前突） | H168: 次 | K168: 211（加权平均） 广东396江西330河北455 | L168: 210 乙类 | M168: 210 | N168: 178 | O168: 151 | P168: 乙类 | Q168: 直肠脱垂黏膜下注射治疗 完全性直肠脱垂双层硬化剂注射治疗 直肠前突出注射治疗
C169: 注射费（直肠脱垂）-注射费（直肠前突）（扩展） | H169: 次 | M169: 210 | N169: 178 | O169: 151 | P169: 乙类
A170: 101 | C170: 注射费（肛周封闭） | D170: 通过局部多点注射进行肛周封闭。 | E170: 所定价格涵盖制定计划、消毒、准备、多点注射、包扎固定、处理用物等步骤所需的人力资源和基本物质资源消耗。 | H170: 次 | K170: 60 广东88江西65河北78 | L170: 60 乙类 | M170: 60 | N170: 51 | O170: 43 | P170: 乙类 | Q170: 肛周药物注射封闭术
A171: 102 | C171: 内痔套扎费 | D171: 通过套扎使内痔萎缩脱落。 | E171: 所定价格涵盖制定计划、消毒、扩张、探查、剥离、套扎、包扎固定、处理用物等步骤所需的人力资源和基本物质资源消耗。 | H171: 痔核 | K171: 200 （平移低价） 广东260江西700河北268 | L171: 200 乙类 | M171: 200 | N171: 170 | O171: 144 | P171: 乙类 | Q171: 内痔套扎术 经电子内镜内痔硬化+套扎治疗术 经肛门镜内痔套扎术 经直肠多普勒痔动脉结扎术
A172: 103 | C172: 低位肛瘘修复费 | D172: 通过手术修复低位肛瘘。 | E172: 所定价格涵盖手术计划、术区准备、消毒、探查、清创、挂线或填充、必要时切除坏死组织、冲洗、止血、引流、包扎固定、处理用物等步骤所需的人力资源和基本物质资源消耗。 | F172: 01多瘘管30% 02弯曲瘘管加收30% | H172: 次 | I172: 本项目中的“多瘘管”指：大于等于2个瘘口或瘘管的情况。 | K172: 750 广东1352江西730河北458 02弯曲瘘管加收30% | L172: 750 甲类 | M172: 750 | N172: 637 | O172: 541 | P172: 甲类 | Q172: 低位肛瘘切开术 低位肛瘘切除术 肛瘘封堵术 低位肛周窦道切除术 骶尾部瘘道切除术 复杂肛瘘切除术
C173: 低位肛瘘修复费-多瘘管（加收） | H173: 次 | M173: 225 | N173: 191.1 | O173: 162.3 | P173: 甲类
C174: 低位肛瘘修复费-弯曲瘘管加收（加收） | H174: 次 | M174: 225 | N174: 191.1 | O174: 162.3 | P174: 甲类
A175: 104 | C175: 高位肛瘘修复费 | D175: 通过手术修复高位肛瘘。 | E175: 所定价格涵盖手术计划、术区准备、消毒、探查、清创、挂线、必要时切除坏死组织、冲洗、止血、引流、包扎固定、处理用物等步骤所需的人力资源和基本物质资源消耗。 | H175: 次 | K175: 1100（加权平均） 广东2555江西1100河北822 | L175: 1100 甲类 | M175: 1100 | N175: 935 | O175: 794 | P175: 甲类 | Q175: 高位肛瘘切除术 高位复杂肛瘘挂线治疗
A176: 105 | C176: 肛裂修复费（常规） | D176: 通过手术修复肛裂。 | E176: 所定价格涵盖手术计划、术区准备、消毒、扩张、切开、探查、切除、修复、包扎固定、处理用物等步骤所需的人力资源和基本物质资源消耗。 | H176: 次 | K176: 700（平移价格） 广东889江西700河北536 | L176: 700 甲类 | M176: 700 | N176: 595 | O176: 505 | P176: 甲类 | Q176: 肛裂切除术 肛裂纵切横缝术
A177: 106 | C177: 肛裂修复费（复杂） | D177: 通过手术修复复杂肛裂。 | E177: 所定价格涵盖手术计划、术区准备、消毒、扩张、切开、探查、切除、修复、包扎固定、处理用物等步骤所需的人力资源和基本物质资源消耗。 | H177: 次 | I177: 本项目中的“复杂”指：陈旧性肛裂伴皮下瘘、伴肛乳头瘤、伴哨兵的肛裂。 | K177: 1100（参考广东） 广东1158江西910河北804 | L177: 1100 甲类 | M177: 1100 | N177: 935 | O177: 794 | P177: 甲类
A178: 107 | C178: 肛周脓肿切开引流费 | D178: 通过手术切开引流肛周脓肿。 | E178: 所定价格涵盖手术计划、术区准备、消毒、切开、探查、冲洗、止血、引流、包扎固定、处理用物等步骤所需的人力资源和基本物质资源消耗。 | H178: 次 | K178: 470（参考江西） 广东362江西470河北573 | L178: 470 甲类 | M178: 470 | N178: 399 | O178: 339 | P178: 甲类 | Q178: 直肠肛门周围脓肿切开引流术 高位肛周脓肿切开引流原发病灶清除挂线术
A179: 108 | C179: 肛周脓肿治疗费（常规） | D179: 通过手术修复肛周脓肿。 | E179: 所定价格涵盖手术计划、术区准备、消毒、切开、探查、清除坏死组织、冲洗、止血、引流、包扎固定、处理用物等步骤所需的人力资源和基本物质资源消耗。 | H179: 次 | K179: 600（平移价格） 广东1342江西1000河北515 | L179: 600 甲类 | M179: 600 | N179: 510 | O179: 433 | P179: 甲类 | Q179: 肛门直肠周围脓腔搔刮术
A180: 109 | C180: 肛周脓肿治疗费（复杂） | D180: 通过手术修复复杂肛周脓肿。 | E180: 所定价格涵盖手术计划、术区准备、消毒、切开、探查、清除坏死组织、冲洗、止血、引流、包扎固定、处理用物等步骤所需的人力资源和基本物质资源消耗。 | H180: 次 | I180: 本项目中的“复杂”指：肛周大汗腺炎、高位肛周脓肿、脓肿半径大于6cm、感染脓腔在外括约肌深层以上。 | K180: 1200（2医1护4小时）广东1790江西1500河北876 | L180: 1200 甲类 | M180: 1200 | N180: 1020 | O180: 867 | P180: 甲类 | Q180: 肛周脓肿切开引流原发病灶清除术 化脓性肛周大汗腺炎切开清创引流术 复杂性化脓性肛周大汗腺炎切开清创引流术
A181: 110 | C181: 肛周坏死性筋膜炎清创费 | D181: 通过手术切除肛周坏死组织，减轻感染扩散风险、促进伤口愈合。 | E181: 所定价格涵盖手术计划、术区准备、消毒、切开、探查、清除坏死组织、冲洗、止血、引流、包扎固定、处理用物等步骤所需的人力资源和基本物质资源消耗。 | F181: 01病变范围累及阴囊30% | H181: 次 | K181: 2600“1200（3医1护3小时）+考虑技术难度97参考广东” 广东2810江西800河北670 | L181: 1100（3医1护3小时） 甲类 | M181: 1100 | N181: 935 | O181: 794 | P181: 甲类 | Q181: 肛周坏死性筋膜炎清创术 复杂性肛周坏死性筋膜炎清创术
C182: 肛周坏死性筋膜炎清创费-病变范围累及阴囊（加收） | H182: 次 | M182: 330 | N182: 280.5 | O182: 238.2 | P182: 甲类
A183: 111 | C183: 肛门括约肌修复费 | D183: 通过手术修复功能异常的肛门括约肌。 | E183: 所定价格涵盖手术计划、术区准备、消毒、切开、探查、修复、冲洗、止血、引流、缝合、包扎固定、处理用物等步骤所需的人力资源和基本物质资源消耗。 | H183: 次 | K183: 1000（加权平均888+参考外省价格）广东2379江西1300河北1191 | L183: 1000 甲类 | M183: 100 | N183: 85 | O183: 72 | P183: 甲类 | Q183: 肛门内括约肌侧切术 肛门狭窄矫治术 肛门括约肌修复术 肛门后正中括约肌切断术 股薄肌肌瓣转移肛门括约肌成形术 局部皮瓣肛门再造术 经腹腔镜先天性肛门闭锁尾路肛门成形术(pena手术) 盆底痉挛部肌肉神经切除术 肛门外括约肌折叠术
A184: 112 | C184: 肛门直肠狭窄修复费 | D184: 通过各种方法改善肛门狭窄或痉挛。 | E184: 所定价格涵盖手术计划、术区准备、消毒、探查、扩张、挂线或切开、冲洗、止血、引流、缝合、包扎固定、处理用物等步骤所需的人力资源和基本物质资源消耗。 | H184: 次 | K184: 800（价格平移）广东1018江西700河北803 | L184: 800 甲类 | M184: 800 | N184: 680 | O184: 578 | P184: 甲类 | Q184: 肛管成形术
A185: 113 | C185: 藏毛窦囊肿切除费 | D185: 通过手术切除藏毛窦。 | E185: 所定价格涵盖手术计划、术区准备、消毒、切开、探查、分离、切除、冲洗、止血、引流、包扎固定、处理用物等步骤所需的人力资源和基本物质资源消耗。 | H185: 次 | I185: 除藏毛窦囊肿外，涉及肛旁浅表肿物切除按体被系统项目“浅表肿物去除费”收取。 | K185: 800（平移价格）广东2535江西/河北1000 | L185: 800 甲类 | M185: 800 | N185: 680 | O185: 578 | P185: 甲类 | Q185: 藏毛窦囊肿切除术
A186: 114 | C186: 骶前囊肿切除费 | D186: 通过手术切除骶前囊肿。 | E186: 所定价格涵盖手术计划、术区准备、消毒、切开、探查、分离、切除、冲洗、止血、引流、包扎固定、处理用物等步骤所需的人力资源和基本物质资源消耗。 | H186: 次 | K186: 2200（4医2护4小时） 广东4064江西/河北2200 | L186: 2200 甲类 | M186: 2200 | N186: 1870 | O186: 1589 | P186: 甲类 | Q186: 经骶尾部骶前囊肿切除术
A187: 115 | C187: 肛肠术后挂线调整费 | D187: 调整、拆除挂线。 | E187: 所定价格涵盖准备、消毒、探查、挂线调整、包扎固定、拆线、处理用物等步骤所需的人力资源和基本物质资源消耗。 | H187: 次 | K187: 85（参考江西）广东132江西85河北72 | L187: 85乙类 | M187: 85 | N187: 72 | O187: 61 | P187: 乙类 | Q187: 肛肠术后紧线术
A188: 116 | C188: 肝脏病变非解剖性切除费 | D188: 通过手术将肝部病变行非解剖性切除。 | E188: 所定价格涵盖手术计划、术区准备、消毒、切开、探查、分离、切除、冲洗、止血、引流、缝合、处理用物等步骤所需的人力资源和基本物质资源消耗。 | H188: 次 | I188: 本项目中的“次”指：切除2个及2个以内病变，超过2个病变每多切除1个病变按一定比例加收20%。以6个病变切除费用设置封顶线。 | K188: 3000（加权平均）广东4312江西2500河北2673 | L188: 3000 甲类 | M188: 3000 | N188: 2550 | O188: 2167 | P188: 甲类 | Q188: 肝包虫内囊摘除术 腹腔包虫摘除术 肝部分切除术 肝癌肝部分切除术 经腹腔镜肝部分切除术 经腹腔镜肝囊肿切除术 肝囊肿开窗术 经腹腔镜肝段切除术 经腹腔镜肝囊肿开窗术 肝血管瘤包膜外剥除术
A189: 117 | C189: 半肝切除费 | D189: 通过手术切除半侧肝组织。 | E189: 所定价格涵盖手术计划、术区准备、消毒、切开、探查、分离、切除、冲洗、止血、引流、缝合、处理用物等步骤所需的人力资源和基本物质资源消耗。 | F189: 01肝三叶切除10% 11临近动/静脉系统修补或重建20% | H189: 次 | I189: 不与“肝段解剖性切除费”同时收取。 | K189: 5600（平移过会价格）广东6015江西4500河北4143 | L189: 5600 甲类 | M189: 5600 | N189: 4760 | O189: 4046 | P189: 甲类 | Q189: 右半肝切除术 左半肝切除术 经腹腔镜右半肝切除术 经腹腔镜左半肝切除术 肝右三叶切除术 门静脉/肝静脉重建术 肝左三叶切除术
C190: 半肝切除费-肝三叶切除（加收） | H190: 次 | M190: 560 | N190: 476 | O190: 404.6 | P190: 甲类
C191: 半肝切除费-临近动/静脉系统修补或重建（加收） | H191: 次 | M191: 1120 | N191: 952 | O191: 809.2 | P191: 甲类
A192: 118 | C192: 肝段解剖性切除费 | D192: 通过手术将部分肝段组织行解剖性切除。 | E192: 所定价格涵盖手术计划、术区准备、消毒、切开、探查、分离、切除、冲洗、止血、引流、缝合、处理用物等步骤所需的人力资源和基本物质资源消耗。 | F192: 01多肝段切除30% 11临近动/静脉系统修补或重建20% | H192: 次 | I192: 1.本项目中的“肝段解剖性切除”指：根据临床解剖Couinaud分段，完整切除肝段。 2.不与半肝切除费同时收取。 多肝段切除（加收）同一台手术最多收费一次 | K192: 4000（加权平均3700+与上项比价关系300）广东5390江西4300河北3644 多肝段切除（加收）同一台手术最多收费一次 | L192: 4000 甲类 | M192: 4000 | N192: 3400 | O192: 2890 | P192: 甲类 | Q192: 肝段切除术 经腹腔镜肝段切除术 肝癌肝部分切除术 根治性肝癌肝叶切除术 肝左外叶切除术 肝方叶切除术 肝尾状叶切除术 中肝叶切除术 经腹腔镜肝方叶切除术 经腹腔镜肝尾状叶切除术 经腹腔镜中肝叶切除术 经腹腔镜肝左外叶切除术 联合肝段切除术 经腹腔镜联合肝段切除术
C193: 肝段解剖性切除费-多肝段切除（加收） | H193: 次 | M193: 1200 | N193: 1020 | O193: 867 | P193: 甲类
C194: 肝段解剖性切除费-临近动/静脉系统修补或重建（加收） | H194: 次 | M194: 800 | N194: 680 | O194: 578 | P194: 甲类
A195: 119 | C195: 肝脏病损预切除费（一期） | D195: 通过手术实现肝动脉的病变侧肝实质离断及门脉分支结扎或离断。 | E195: 所定价格涵盖手术计划、术区准备、消毒、切开、探查、分离、结扎或离断、切除、修补、冲洗、止血、引流、缝合、处理用物等步骤所需的人力资源和基本物质资源消耗。 | H195: 次 | I195: 本项目中的“一期”指：联合肝脏离断和门静脉结扎的一期手术。 | K195: 4200（技术难度和操作流程等同于肝段解剖性切除费+参考外省）广东5390江西4500河北4200 | L195: 4200 甲类 | M195: 4200 | N195: 3570 | O195: 3034 | P195: 甲类
A196: 120 | C196: 肝脏修补费 | D196: 通过手术修补损伤的肝脏。 | E196: 所定价格涵盖手术计划、术区准备、消毒、切开、探查、分离、修补、止血、缝合、处理用物等步骤所需的人力资源和基本物质资源消耗。 | F196: 01多部位修补40% | H196: 次 | I196: 本项目中的“次”指：2处以下部位修补，3处及3处以上修补按“多部位修补”加收。 | K196: 1900（平移价格）广东3577江西2500河北2338 | L196: 1900 甲类 | M196: 1900 | N196: 1615 | O196: 1372 | P196: 甲类 | Q196: 肝损伤清创修补术 肝损伤血管修补术 肝管栓塞术 经腹腔镜肝管栓塞术 经腹腔镜肝外伤后血肿清创引流术 肝血管瘤缝扎术 肝损伤填塞止血术
C197: 肝脏修补费-多部位修补（加收） | H197: 次 | M197: 760 | N197: 646 | O197: 548.8 | P197: 甲类
A198: 121 | C198: 肝内异物取出费 | D198: 通过手术取出肝内异物。 | E198: 所定价格涵盖手术计划、术区准备、消毒、切开、探查、分离、异物取出、冲洗、止血、引流、缝合、处理用物等步骤所需的人力资源和基本物质资源消耗。 | H198: 次 | K198: 1800（平移价格）广东3380江西2800河北2821 | L198: 1800 甲类 | M198: 1800 | N198: 1530 | O198: 1300 | P198: 甲类 | Q198: 肝实质切开取石术 肝内异物取出术
A199: 122 | C199: 胆囊切除费 | D199: 通过手术切除胆囊。 | E199: 所定价格涵盖手术计划、术区准备、消毒、切开、探查、分离、切除、冲洗、止血、引流、缝合、处理用物等步骤所需的人力资源和基本物质资源消耗。 | F199: 01穿孔/坏疽胆囊20% 02Mirizzi综合征50% | H199: 次 | K199: 1700（4医2护3小时）广东2584江西2300河北2197 | L199: 1700 甲类 | M199: 1700 | N199: 1445 | O199: 1228 | P199: 甲类 | Q199: 胆囊切除术 经腹腔镜胆囊切除术
C200: 胆囊切除费-穿孔/坏疽胆囊（加收） | H200: 次 | M200: 340 | N200: 289 | O200: 245.6 | P200: 甲类
C201: 胆囊切除费-Mirizzi综合征（加收） | H201: 次 | M201: 850 | N201: 722.5 | O201: 614 | P201: 甲类
... 39 more rows

Sheet 血管
A2: 血管、淋巴系统医疗服务价格项目立项指南（试行）
A3: 使用说明： 1.本指南以血管、淋巴系统为重点，按照血管、淋巴系统相关医疗服务产出设立价格项目。 2.根据《深化医疗服务价格改革试点方案》（医保发〔2021〕41号）关于“厘清价格项目与临床诊疗技术规范、医疗机构成本要素、不同应用场景和收费标准等的政策边界。分类整合现行价格项目，实现价格项目与操作步骤、诊疗部位等技术细节脱钩，增强现行价格项目对医疗技术和医疗活动改良创新的兼容性”的要求，服务产出相同的一类项目在操作层面存在差异，但在价格项目和定价水平层面具备合并同类项的条件，立项指南对此进行合并。地方医疗保障部门制定血管、淋巴系统医疗服务项目价格时，要体现技术劳务价值，使收费水平覆盖绝大部分的差异化操作；各地医疗保障部门所定价格属于政府指导价为最高限价，下浮不限。同时，医疗机构申报的技术改良进步项目，可采取“现有项目兼容”方式简化处理，无需申报新增医疗服务价格项目，经向本地区医疗保障部门备案后可按照对应的项目执行。 3.本指南所称“价格构成”，指项目价格应涵盖的各类资源消耗，用于确定计价单元的边界，是省市级医保部门制定调整项目价格的测算因子，不应作为临床技术标准理解，不是实际操作方式、路径、步骤、程序的强制性要求，价格构成中包含但临床实践中非必要、未发生的，无需强制要求公立医疗机构减计费用。所列“设备投入”包括但不限于操作设备、器具及固定资产投入。 4.本指南所称“加收项”，指同一项目以不同方式提供或在不同场景应用时，确有必要制定差异化收费标准而细分的一类子项，包括在原项目价格基础上增加或减少收费的情况，具体的加/减收标准（加/减收率或加/减收金额）由省市级医疗保障部门依权限制定；实际应用中，同时涉及多个加收项的，以项目单价为基础计算相应的加/减收水平后，据实收费。 5.本指南所称“扩展项”，指同一项目下以不同方式提供或在不同场景应用时，只扩展价格项目适用范围、不额外加价的一类子项，子项的价格按主项目执行。 6. 本指南中所称“基本物质资源消耗”，指原则上限于不应或不必要与医疗服务项目分割的易耗品，包括但不限于各类消杀灭菌用品、储存用品、清洁用品、个人防护用品、垃圾处理用品、滑石粉、标签、中单、护（尿）垫、棉球、棉签、纱布（垫）、治疗护理盘（包）、治疗巾（单）、手术巾（单）、手术包、普通注射器、可复用的操作器具等。基本物质资源消耗成本计入项目价格，不另行收费。除基本物质资源消耗以外的其他耗材，按照实际采购价格零差率销售。 7.本指南中手术项目若需病理取样，地方医疗保障部门定价时应考虑在原项目的价格构成中包含标本的留取和送检。 8.本指南中手术类项目服务对象为儿童时，统一落实儿童加收政策（以下简称“儿童加收”），加收比例或金额由各地医疗保障部门根据实际情况确定。手术类项目的具体范围以《全国医疗服务项目技术规范》的分类为准，对于立项指南同时映射技术规范中的手术类项目和治疗类项目的主项目，按手术类落实儿童加收政策；其他非手术类项目实行儿童加收范围，以立项指南加收项为准。本指南所称“儿童”，指6周岁及以下，周岁的计算方法以法律的相关规定为准。 9.本指南中其他学科开展相应项目时，可据实收费。 10.本指南价格构成中所称的“穿刺”为主项操作涉及的必要穿刺技术，价格构成中的穿刺操作不可收取相关费用；独立穿刺项目可按相应治疗价格项目收取。 11.本指南中涉及“包括……”“…… 等”的，属于开放型表述，所指对象不仅局限于表述中列明的事项，也包括未列明的同类事项。 12.本指南所称的“大动脉”，指升主动脉、主动脉弓、胸主动脉、髂总动脉、腹主动脉；所称的“头臂动脉”，指颈外动脉、颈内动脉、颈总动脉、头臂干、锁骨下动脉；所称的“肢体动脉”，指腋动脉、肱动脉、桡动脉、尺动脉、髂外动脉、股动脉、腘动脉、胫前动脉、胫后动脉、腓动脉、足背动脉；所称的“内脏动脉”，指腹腔干、肾动脉、肠系膜上动脉、肠系膜下动脉、腹主动脉分支、髂内动脉、肺动脉、胃左动脉、肝总动脉、肝固有动脉、胃十二指肠动脉、脾动脉、肾上腺动脉、生殖动脉；所称的“大静脉”，是指上腔静脉、下腔静脉、髂总静脉、奇静脉；所称的“头臂静脉”，是指颈外静脉、颈内静脉、头臂静脉、锁骨下静脉；所称的“肢体静脉”，是指腋静脉、头静脉、贵要静脉、肱静脉、尺静脉、桡静脉、尺骨静脉、髂外静脉、大隐静脉、股深静脉、股浅静脉、腘静脉、小隐静脉、胫前静脉、胫后静脉、腓静脉；所称的“内脏静脉”，是指门静脉、肝静脉、肠系膜上静脉、肠系膜下静脉、脾静脉、肾静脉、髂内静脉、肺静脉、生殖静脉。 13.可收费一次性耗材：造影导管、导丝、血管鞘组、封堵器、导管、导引导管、导引导丝、特殊缝线、球囊扩张导管、支架、止血材料、栓子保护装置、人工血管、血液回收装置、覆膜支架、腔镜材料、颈动脉支架、弹簧圈、栓塞材料、门静脉支架、血管夹、旋切导管、激光导管、取栓导管、补片、溶栓导管、中心静脉导管、扩张器、滤网、血管远端保护装置、转流管、圈套器、消融导管、吻合器、修补材料、钢丝、颈动脉内转流管、灌注导管、内固定材料、成形环、带针胸骨钢丝、破膜导管、硬化剂、粘合剂、内镜用注射针、大血管闭合系统、打孔器。
A4: 序号 | B4: 项目编码 | C4: 项目名称 | D4: 服务产出 | E4: 价格构成 | F4: 加收项 | G4: 扩展项 | H4: 计价单位 | I4: 计价说明 | J4: 初审备注 | K4: 终审备注 | L4: 指导价格 | O4: 医保支付类别 | P4: 映射项目名称
L6: 三级 | M6: 二级 | N6: 一级
A7: 1 | C7: 血管造影检查费 | D7: 通过将造影剂注入目标血管内，观察造影剂在血管内的流动和分布情况。 | E7: 所定价格涵盖手术计划、术区准备、定位、消毒、穿刺、置管、注入造影剂、撤除、加压止血、包扎、处理用物等步骤所需的人力资源和基本物质资源消耗。 | F7: 01大动脉造影20% 11一级分支多根血管造影30% 21二级及以下分支血管造影30% | H7: 次 | I7: 本项目所称的“一级分支多根血管”不含一级血管下属的分支血管。 | J7: 1100 参考静脉价格 | K7: 1100 乙类 | L7: 1100 | M7: =L7*0.85 -> 935 | N7: 794 | O7: 乙类 | P7: 经皮穿刺插管主动脉造影术 经皮选择性主动脉造影 经皮穿刺插管选择性动脉造影术 经皮穿刺插管选择性锁骨下动脉造影 经皮穿刺插管选择性肋间动脉造影 经皮穿刺插管选择性胸廓内动脉造影 经皮穿刺插管选择性支气管动脉造影 经皮穿刺插管选择性腹腔动脉干造影术 经皮穿刺插管选择性胃左动脉造影 经皮穿刺插管超选择性肝动脉造影 经皮穿刺插管选择性肝动脉造影 经皮穿刺插管选择性胃十二指肠动脉造影 经皮穿刺插管选择性脾动脉造影 经皮穿刺插管选择性肠系膜上动脉造影 经皮穿刺插管选择性肠系膜下动脉造影 经皮穿刺插管选择性肾上腺动脉造影 经皮穿刺插管选择性肾动脉造影 经皮穿刺插管选择性子宫动脉造影 经皮选择性腰动脉造影 经皮穿刺插管选择性髂内动脉造影 经皮穿刺插管选择性上肢动脉造影术 经皮穿刺插管选择性下肢动脉造影 经皮穿刺插管上腔静脉造影术 经皮穿刺插管上肢静脉造影术 上肢静脉切开造影术 经皮穿刺下肢静脉造影术 下肢静脉切开造影术 经皮穿刺插管下腔静脉造影术 经皮穿刺插管选择性肝静脉造影术 经皮经肝穿刺门静脉造影 经皮经脾穿刺门静脉造影 经皮穿刺插管选择性肾静脉造影术 经皮穿刺插管性腺静脉造影 经皮穿刺插管选择性静脉造影术
C8: 血管造影检查费-大动脉造影（加收） | H8: 次 | L8: =L7*0.2 -> 220 | M8: =M7*0.2 -> 187 | N8: 158.8 | O8: 乙类
C9: 血管造影检查费-一级分支多根血管造影（加收） | H9: 次 | L9: =L7*0.3 -> 330 | M9: =M7*0.3 -> 280.5 | N9: 238.2 | O9: 乙类
C10: 血管造影检查费-二级及以下分支血管造影（加收） | H10: 次 | L10: 330 | M10: 280.5 | N10: 238.2 | O10: 乙类
A11: 2 | C11: 淋巴造影检查费 | D11: 通过将造影剂注入淋巴管，观察造影剂在淋巴管内的流动和分布情况。 | E11: 所定价格涵盖手术计划、术区准备、定位、消毒、穿刺、置管、注入造影剂、撤除、加压止血、包扎、处理用物等步骤所需的人力资源和基本物质资源消耗。 | H11: 次 | J11: 1500 技术规范：3医1护1技术3小时 | K11: 1500 乙类 | L11: 1500 | M11: 1275 | N11: 1083 | O11: 乙类 | P11: 开腹术中腹膜后淋巴管造影 开腹术中经小肠淋巴管造影 经腹股沟淋巴结穿刺直接淋巴管造影 经上肢淋巴结直接淋巴管造影 经下肢淋巴管淋巴管系造影 经下肢淋巴管直接淋巴管造影术 颈干直接淋巴管造影
A12: 3 | C12: 大动脉球囊扩张费（介入） | D12: 通过介入方式置入球囊扩张大动脉。 | E12: 所定价格涵盖手术计划、术区准备、定位、消毒、穿刺、置管、扩张、成形、撤除、闭合血管通路、加压止血、包扎、处理用物，必要时造影确认治疗效果等步骤所需的人力资源和基本物质资源消耗。不含血管造影检查费用。 | H12: 血管 | I12: 超过2支血管按2支收费 | J12: 2000 高频平移 | K12: 2000 甲类 | L12: 2000 | M12: 1700 | N12: 1445 | O12: 甲类 | P12: 经皮穿刺先天性主动脉缩窄症球囊扩张成形术 经皮穿刺临时性球囊闭塞术 经皮主动脉缩窄症球囊扩张术 经皮穿刺插管静（动）脉球囊扩张术 腹主动脉-髂动脉球囊成形术
A13: 4 | C13: 头臂动脉球囊扩张费（介入） | D13: 通过介入方式置入球囊扩张头臂动脉。 | E13: 所定价格涵盖手术计划、术区准备、定位、消毒、穿刺、置管、扩张、成形、撤除、闭合血管通路、加压止血、包扎、处理用物，必要时造影确认治疗效果等步骤所需的人力资源和基本物质资源消耗。不含血管造影检查费用。 | H13: 血管 | I13: 超过3支血管按3支收费 | J13: 2400 高频平移 | K13: 2400 甲类 | L13: 2400 | M13: 2040 | N13: 1734 | O13: 甲类 | P13: 经皮穿刺无名动脉球囊成形术 经皮穿刺锁骨下动脉球囊成形术
A14: 5 | C14: 肢体动脉球囊扩张费（介入） | D14: 通过介入方式置入球囊扩张肢体动脉。 | E14: 所定价格涵盖手术计划、术区准备、定位、消毒、穿刺、置管、扩张、成形、撤除、闭合血管通路、加压止血、包扎、处理用物，必要时造影确认治疗效果等步骤所需的人力资源和基本物质资源消耗。不含血管造影检查费用。 | F14: 01股浅动脉10% | H14: 血管 | I14: 超过3支血管按3支收费 | J14: 3000 加权平均（3062） | K14: 3000 甲类 | L14: 3000 | M14: 2550 | N14: 2167 | O14: 甲类 | P14: 经皮穿刺顺行同侧小腿动脉内球囊成形术 经皮穿刺顺行单侧股深动脉内球囊成形术 经皮穿刺对侧股深动脉内球囊成形术 经皮穿刺顺行同侧足部动脉球囊成形术 经皮穿刺顺行同侧腘动脉内球囊成形术 经皮穿刺股动脉球囊成形术 经皮穿刺顺行同侧股浅动脉球囊成形术 经皮穿刺对侧股浅动脉球囊成形术 经皮穿刺单侧腘动脉内球囊成形术 经皮穿刺髂动脉球囊成形术
C15: 肢体动脉球囊扩张费-股浅动脉（加收） | H15: 血管 | L15: =L14*0.1 -> 300 | M15: =M14*0.1 -> 255 | N15: 216.7 | O15: 甲类
A16: 6 | C16: 内脏动脉球囊扩张费（介入） | D16: 通过介入方式置入球囊扩张内脏动脉。 | E16: 所定价格涵盖手术计划、术区准备、定位、消毒、穿刺、置管、扩张、成形、撤除、闭合血管通路、加压止血、包扎、处理用物，必要时造影确认治疗效果等步骤所需的人力资源和基本物质资源消耗。不含血管造影检查费用。 | H16: 血管 | I16: 超过3支血管按3支收费 | J16: 2500 加权平均（2436） | K16: 2500 甲类 | L16: 2500 | M16: =L16*0.85 -> 2125 | N16: 1806 | O16: 甲类 | P16: 经皮穿刺肺动脉球囊扩张术 经皮穿刺脾动脉球囊成形术 经皮穿刺髂内动脉球囊成形术 经皮穿刺肝固有动脉球囊成形术 经皮穿刺肠系膜上动脉球囊成形术 经皮穿刺肾动脉球囊成形术 经皮穿刺肝总动脉球囊成形术 经皮穿刺肠系膜下动脉球囊成形术 经皮穿刺腹腔干动脉球囊成形术 经皮穿刺胃左动脉球囊成形术
A17: 7 | C17: 大静脉球囊扩张费（介入） | D17: 通过介入方式置入球囊扩张大静脉。 | E17: 所定价格涵盖手术计划、术区准备、定位、消毒、穿刺、置管、扩张、成形、撤除、闭合血管通路、加压止血、包扎、处理用物，必要时造影确认治疗效果等步骤所需的人力资源和基本物质资源消耗。不含血管造影检查费用。 | H17: 血管 | I17: 超过2支血管按2支收费 | J17: 1800 加权平均（1800）且考虑动脉价格，成比价关系 | K17: 1800 甲类 | L17: 1800 | M17: 1530 | N17: 1300 | O17: 甲类 | P17: 经皮穿刺插管静（动）脉球囊扩张术 经皮穿刺下腔静脉球囊成形术 经皮穿刺上腔静脉球囊成形术 经皮穿刺下腔静脉导管破膜成形术 经皮穿刺颈内静脉肝静脉成形术 经皮穿刺股静脉肝静脉成形术
A18: 8 | C18: 头臂静脉球囊扩张费（介入） | D18: 通过介入方式置入球囊扩张头臂静脉。 | E18: 所定价格涵盖手术计划、术区准备、定位、消毒、穿刺、置管、扩张、成形、撤除、闭合血管通路、加压止血、包扎、处理用物，必要时造影确认治疗效果等步骤所需的人力资源和基本物质资源消耗。不含血管造影检查费用。 | H18: 血管 | I18: 超过2支血管按2支收费 | J18: 2200 参考头臂动脉成比价关系 | K18: 2200 甲类 | L18: 2200 | M18: 1870 | N18: 1589 | O18: 甲类 | P18: 经皮穿刺无名/锁骨下静脉球囊扩张术
A19: 9 | C19: 肢体静脉球囊扩张费（介入） | D19: 通过介入方式置入球囊扩张肢体静脉。 | E19: 所定价格涵盖手术计划、术区准备、定位、消毒、穿刺、置管、扩张、成形、撤除、闭合血管通路、加压止血、包扎、处理用物，必要时造影确认治疗效果等步骤所需的人力资源和基本物质资源消耗。不含血管造影检查费用。 | H19: 血管 | I19: 超过2支血管按2支收费 | J19: 2600 价格平移 | K19: 2600 甲类 | L19: 2600 | M19: 2210 | N19: 1878 | O19: 甲类 | P19: 经皮髂静脉球囊扩张术
A20: 10 | C20: 内脏静脉球囊扩张费（介入） | D20: 通过介入方式置入球囊扩张内脏静脉。 | E20: 所定价格涵盖手术计划、术区准备、定位、消毒、穿刺、置管、扩张、成形、撤除、闭合血管通路、加压止血、包扎、处理用物，必要时造影确认治疗效果等步骤所需的人力资源和基本物质资源消耗。不含血管造影检查费用。 | H20: 血管 | I20: 超过2支血管按2支收费 | J20: 2300 与内脏动脉成比价关系 | K20: 2300 甲类 | L20: 2300 | M20: 1955 | N20: 1661 | O20: 甲类 | P20: 经皮穿刺肝静脉球囊成形术
A21: 11 | C21: 大动脉支架置入费（介入） | D21: 通过介入方式置入支架扩张大动脉。 | E21: 所定价格涵盖手术计划、术区准备、定位、消毒、穿刺、置管、支架置入、扩张、成形、撤除、闭合血管通路、加压止血、包扎、处理用物，必要时行球囊扩张，造影确认治疗效果等步骤所需的人力资源和基本物质资源消耗。不含血管造影检查费用。 | H21: 血管 | I21: 以置入支架为目的，同部位行球囊扩张的不得同时收取“球囊扩张费（介入）”。 超过3支血管按3支收费 | J21: 4000 高频平移 | K21: 4000 高频平移 甲类 | L21: 4000 | M21: 3400 | N21: 2890 | O21: 甲类 | P21: 胸主动脉支架成形术 胸主动脉外伤破裂腔内隔绝术 胸主动脉创伤性动静脉瘘修补术 经皮穿刺插管静（动）脉支架成形术 腹主动脉-髂动脉球囊扩张支架成形术 夹层动脉瘤腔内隔绝术 急性主动脉综合征腔内隔绝术 降主动脉瘤腔内隔绝术 腹主动脉炎性瘤腔内隔绝术 N2区主动脉夹层腔内隔绝术 N3区主动脉夹层腔内隔绝术 N1区主动脉夹层腔内隔绝术 胸腹主动脉瘤腔内隔绝术 肾周腹主动脉瘤腔内隔绝术 腹主动脉下腔静脉瘘腔内隔绝术 腹主动脉瘤腔内隔绝术 腹主动脉外伤破裂腔内隔绝术 假性腹主动脉瘤腔内隔绝术 经颈动脉切开腹主动脉覆膜支架腔内修复术 经皮穿刺髂动脉覆膜支架腔内隔绝术 腹腔镜下瘤颈成形+腹主动脉瘤腔内隔绝术 经腹瘤颈成形+腹主动脉瘤腔内隔绝术 腹主动脉瘤腔内隔绝术+髂内动脉重建 腹主/髂动脉支架成形术
A22: 12 | C22: 头臂动脉支架置入费（介入） | D22: 通过介入方式置入支架扩张头臂动脉。 | E22: 所定价格涵盖手术计划、术区准备、定位、消毒、穿刺、置管、支架置入、扩张、成形、撤除、闭合血管通路、加压止血、包扎、处理用物，必要时行球囊扩张，造影确认治疗效果等步骤所需的人力资源和基本物质资源消耗。不含血管造影检查费用。 | H22: 血管 | I22: 以置入支架为目的，同部位行球囊扩张的不得同时收取“球囊扩张费（介入）”。 超过3支血管按3支收费 | J22: 3000 加权平均(2987) | K22: 3000 甲类 | L22: 3000 | M22: 2550 | N22: 2167 | O22: 甲类 | P22: 经皮穿刺锁骨下动脉支架置入术 经皮穿刺颈外动脉支架置入术 经皮穿刺颈内动脉支架置入术 颈动脉创伤性动静脉瘘腔内隔绝术 经皮穿刺无名动脉支架置入术
A23: 13 | C23: 肢体动脉支架置入费（介入） | D23: 通过介入方式置入支架扩张肢体动脉。 | E23: 所定价格涵盖手术计划、术区准备、定位、消毒、穿刺、置管、支架置入、扩张、成形、撤除、闭合血管通路、加压止血、包扎、处理用物，必要时行球囊扩张，造影确认治疗效果等步骤所需的人力资源和基本物质资源消耗。不含血管造影检查费用。 | H23: 血管 | I23: 以置入支架为目的，同部位行球囊扩张的不得同时收取“球囊扩张费（介入）”。 超过3支血管按3支收费 | J23: 3000 难度低于“头臂动脉支架置入费（介入）”操作时常高于“头臂动脉支架置入费（介入）”，价格与“头臂动脉支架置入费（介入）”一致 | K23: 3000 甲类 | L23: 3000 | M23: 2550 | N23: 2167 | O23: 甲类 | P23: 经皮穿刺髂股动脉支架置入术 经皮穿刺髂动脉球囊扩张+支架置入术 经皮穿刺单侧小腿动脉球囊扩张+支架置入术 经皮穿刺单侧股深动脉球囊扩张+支架置入术 经上肢动脉穿刺单侧股深动脉球囊扩张+支架置入术 经皮穿刺单侧股浅动脉球囊扩张+支架置入术 经皮穿刺单侧腘动脉球囊扩张+支架置入术 股/腘动脉支架成形术 经足背动脉穿刺单侧腘动脉球囊扩张+支架置入术 经足背动脉穿刺单侧胫前动脉球囊扩张+支架置入术 经胫后动脉穿刺单侧腘动脉球囊扩张+支架置入术 经胫后动脉穿刺单侧胫后动脉球囊扩张+支架置入术 前臂动脉支架支架成形术 腋动脉支架成形术 经颈动脉穿刺单侧股浅动脉球囊扩张+支架置入术 经颈动脉穿刺单侧股深动脉球囊扩张+支架置入术 经上肢动脉穿刺单侧股浅动脉球囊扩张+支架置入术 经腘动脉穿刺单侧股浅动脉球囊扩张+支架置入术 腹主动脉单侧髂动脉覆膜支架腔内隔绝术 经皮穿刺血液透析静脉回路支架置入术
A24: 14 | C24: 内脏动脉支架置入费（介入） | D24: 通过介入方式置入支架扩张内脏动脉。 | E24: 所定价格涵盖手术计划、术区准备、定位、消毒、穿刺、置管、支架置入、扩张、成形、撤除、闭合血管通路、加压止血、包扎、处理用物，必要时行球囊扩张，造影确认治疗效果等步骤所需的人力资源和基本物质资源消耗。不含血管造影检查费用。 | H24: 血管 | I24: 以置入支架为目的，同部位行球囊扩张的不得同时收取“球囊扩张费（介入）”。 超过3支血管按3支收费 | J24: 2700 加权平均（2690） | K24: 2700 甲类 | L24: 2700 | M24: 2295 | N24: 1950 | O24: 甲类 | P24: 经皮穿刺脾动脉支架置入术 经皮穿刺肺动脉支架置入术 经皮穿刺肝固有动脉瘤栓塞+支架置入术 经皮穿刺髂内动脉球囊扩张+支架置入术 经皮穿刺肾动脉支架成形术 经皮穿刺腹腔干动脉支架成形术 经皮穿刺肝总动脉支架成形术 经皮穿刺肝固有动脉支架成形术 经皮穿刺肠系膜上动脉支架成形术 经皮穿刺肠系膜下动脉支架成形术 经皮穿刺肝总动脉瘤腔内隔绝术 经皮穿刺肝固有动脉瘤腔内隔绝术 经皮穿刺脾动脉瘤腔内隔绝术 经皮穿刺脾动脉瘤栓塞+支架置入术 经皮穿刺肠系膜上动脉瘤腔内隔绝术 经皮穿刺肠系膜上动脉瘤栓塞+支架置入术 经皮穿刺肠系膜下动脉瘤栓塞+支架置入术 经皮穿刺肠系膜下动脉瘤腔内隔绝术 经皮穿刺肾动脉瘤栓塞+支架置入术 经皮穿刺肾动脉瘤腔内隔绝术 经皮穿刺胃左动脉支架成形术 经皮穿刺胃左动脉瘤腔内隔绝术 经皮穿刺胃左动脉瘤栓塞+支架置入术 经皮穿刺腹腔干动脉瘤栓塞+支架置入术 经皮穿刺腹腔干动脉瘤腔内隔绝术
A25: 15 | C25: 主动脉分支血管支架置入费（介入） | D25: 通过经皮穿刺重建分支血管的血流通路。 | E25: 所定价格涵盖手术计划、术区准备、定位、消毒、穿刺、置管、重建、撤除、闭合血管通路、加压止血、包扎、处理用物，必要时行球囊扩张，造影确认治疗效果等步骤所需的人力资源和基本物质资源消耗。不含血管造影检查费用。 | H25: 次 | I25: 以置入支架为目的，同部位行球囊扩张的不得同时收取“球囊扩张费（介入）”。 | J25: 2600 高频平移 | K25: 2600 甲类 | L25: 2600 | M25: 2210 | N25: 1878 | O25: 甲类 | P25: V2区主动脉夹层腔内隔绝术 V3区主动脉夹层腔内隔绝术 经胸杂交技术V2区主动脉夹层腔内隔绝术 胸外杂交技术V2区主动脉夹层腔内隔绝术 经腹杂交技术V3区主动脉夹层腔内隔绝术 腹主动脉瘤腔内隔绝术+髂内动脉重建 髂动静脉瘘腔内隔绝术 经颈动脉置管髂动脉覆膜支架腔内修复术 烟囱技术V2区主动脉夹层腔内隔绝术
A26: 16 | C26: 大静脉支架置入费（介入） | D26: 通过介入方式置入支架扩张大静脉。 | E26: 所定价格涵盖手术计划、术区准备、定位、消毒、穿刺、置管、支架置入、扩张、成形、撤除、闭合血管通路、加压止血、包扎、处理用物，必要时行球囊扩张，造影确认治疗效果等步骤所需的人力资源和基本物质资源消耗。不含血管造影检查费用。 | H26: 血管 | I26: 以置入支架为目的，同部位行球囊扩张的不得同时收取“球囊扩张费（介入）”。 | J26: 2600 高频平移，通常静脉支架置入，仅做一支血管。 | K26: 2600 甲类 | L26: 2600 | M26: 2210 | N26: 1878 | O26: 甲类 | P26: 经皮穿刺上腔静脉球囊扩张+支架置入术 经皮穿刺上腔静脉内支架置入术 经皮穿刺下腔静脉内支架置入术 经皮穿刺下腔静脉球囊扩张+支架置入术
A27: 17 | C27: 头臂静脉支架置入费（介入） | D27: 通过介入方式置入支架扩张头臂静脉。 | E27: 所定价格涵盖手术计划、术区准备、定位、消毒、穿刺、置管、支架置入、扩张、成形、撤除、闭合血管通路、加压止血、包扎、处理用物，必要时行球囊扩张，造影确认治疗效果等步骤所需的人力资源和基本物质资源消耗。不含血管造影检查费用。 | H27: 血管 | I27: 以置入支架为目的，同部位行球囊扩张的不得同时收取“球囊扩张费（介入）”。 | J27: 2600 参考头臂动脉和大静脉成比价关系 | K27: 2600 甲类 | L27: 2600 | M27: 2210 | N27: 1878 | O27: 甲类 | P27: 经皮穿刺无名/锁骨下静脉支架置入术 经皮无名/锁骨下静脉球囊扩张+支架置入术
A28: 18 | C28: 肢体静脉支架置入费（介入） | D28: 通过介入方式置入支架扩张肢体静脉。 | E28: 所定价格涵盖手术计划、术区准备、定位、消毒、穿刺、置管、支架置入、扩张、成形、撤除、闭合血管通路、加压止血、包扎、处理用物，必要时行球囊扩张，造影确认治疗效果等步骤所需的人力资源和基本物质资源消耗。不含血管造影检查费用。 | H28: 血管 | I28: 以置入支架为目的，同部位行球囊扩张的不得同时收取“球囊扩张费（介入）”。 | J28: 2800 参考动脉支架置入3000 | K28: 2800 甲类 | L28: 2800 | M28: 2380 | N28: 2023 | O28: 甲类 | P28: 经皮穿刺髂静脉支架置入术 经皮穿刺髂静脉内球囊扩张+支架置入术
A29: 19 | C29: 内脏静脉支架置入费（介入） | D29: 通过介入方式置入支架扩张内脏静脉。 | E29: 所定价格涵盖手术计划、术区准备、定位、消毒、穿刺、置管、支架置入、扩张、成形、撤除、闭合血管通路、加压止血、包扎、处理用物，必要时行球囊扩张，造影确认治疗效果等步骤所需的人力资源和基本物质资源消耗。不含血管造影检查费用。 | H29: 血管 | I29: 以置入支架为目的，同部位行球囊扩张的不得同时收取“球囊扩张费（介入）”。 | J29: 2500 加权平均2640 参考动脉支架置入2700 | K29: 2500 甲类 | L29: 2500 | M29: 2125 | N29: 1806 | O29: 甲类 | P29: 经皮穿刺肝静脉支架置入术 经皮肝穿刺门静脉系统支架置入术 门静脉支架置入术 经皮肾静脉球囊扩张+支架置入术 经皮肝穿刺肝静脉球囊扩张+支架置入术
A30: 20 | C30: 大动脉腔内减容费（介入） | D30: 通过激光、旋切、旋磨、振波、血栓抽吸等各种物理或机械方式消除大动脉斑块或血栓。 | E30: 所定价格涵盖手术计划、术区准备、消毒穿刺、置管、消除斑块、撤除、闭合血管通路、加压止血、包扎、处理用物，必要时造影确认治疗效果等步骤所需的人力资源和基本物质资源消耗。不含血管造影检查费用。 | H30: 血管 | I30: 超过1根按1根收费 | J30: 3000 医4-5护2-3，每人耗时3-5小时（激光光纤耗材除外，辅助操作所列耗材） | K30: 3000 甲类 | L30: 3000 | M30: 2550 | N30: 2167 | O30: 甲类 | P30: 腹主动脉-髂动脉置管溶栓复通术 腹主动脉-髂动脉旋磨腔内复通术 经皮穿刺髂动脉射频消融再通术 经皮穿刺髂动脉激光再通术 腹主动脉-髂动脉激光腔内复通术 腹主动脉-髂动脉旋切腔内复通术 腹主动脉-髂动脉射频消融腔内复通术
A31: 21 | C31: 头臂动脉腔内减容费（介入） | D31: 通过激光、旋切、旋磨、振波、血栓抽吸等各种物理或机械方式消除头臂动脉斑块或血栓。 | E31: 所定价格涵盖手术计划、术区准备、消毒穿刺、置管、消除斑块、撤除、闭合血管通路、加压止血、包扎、处理用物，必要时造影确认治疗效果等步骤所需的人力资源和基本物质资源消耗。不含血管造影检查费用。 | H31: 血管 | J31: 3000 参考“大动脉腔内减容费（介入）” | K31: 2800 参考内蒙 甲类 | L31: 2800 | M31: 2380 | N31: 2023 | O31: 甲类
A32: 22 | C32: 肢体动脉腔内减容费（介入） | D32: 通过激光、旋切、旋磨、振波、血栓抽吸等各种物理或机械方式消除肢体动脉斑块或血栓。 | E32: 所定价格涵盖手术计划、术区准备、消毒穿刺、置管、消除斑块、撤除、闭合血管通路、加压止血、包扎、处理用物，必要时造影确认治疗效果等步骤所需的人力资源和基本物质资源消耗。不含血管造影检查费用。 | H32: 血管 | I32: 每增加1支血管加收不超过30%，超过3支血管按3支血管收费 | J32: 2100 高频平移 | K32: 2100 甲类 | L32: 2100 | M32: 1785 | N32: 1517 | O32: 甲类 | P32: 经皮穿刺下肢动脉斑块旋切术 经皮穿刺下肢动脉闭塞激光再通术 经皮穿刺上肢动脉闭塞激光再通术 经皮穿刺顺行小腿动脉旋切＋球囊成形术 经皮穿刺顺行股浅动脉旋切＋球囊成形术 经皮穿刺股浅动脉旋切＋球囊成形术 经皮穿刺顺行股深动脉旋切＋球囊成形术 经皮穿刺单侧腘动脉激光再通+球囊成形术 经皮穿刺顺行腘动脉旋切＋球囊成形术 经皮穿刺逆行腘动脉旋切＋球囊成形术 经皮穿刺单侧足部动脉激光再通+球囊成形术 经皮穿刺顺行足部动脉旋切＋球囊成形术 经皮穿刺单侧小腿动脉激光再通+球囊成形术 经皮穿刺单侧股动脉激光再通+球囊成形术 经皮穿刺选择性下肢动脉置管溶栓术 经皮穿刺髂动脉置管溶栓术 经皮穿刺髂动脉血栓切除术 经皮穿刺髂动脉旋磨再通术 经皮穿刺髂动脉旋切再通术
A33: 23 | C33: 内脏动脉腔内减容费（介入） | D33: 通过激光、旋切、旋磨、振波、血栓抽吸等各种物理或机械方式消除内脏动脉斑块或血栓。 | E33: 所定价格涵盖手术计划、术区准备、消毒穿刺、置管、消除斑块、撤除、闭合血管通路、加压止血、包扎、处理用物，必要时造影确认治疗效果等步骤所需的人力资源和基本物质资源消耗。不含血管造影检查费用。 | H33: 血管 | I33: 每增加1支血管加收不超过30%，超过3支血管按3支血管收费 | J33: 2500 风险程度、操作时间与“头臂动脉腔内减容费”基本一致，参考比价关系 | K33: 2500 甲类 | L33: 2500 | M33: 2125 | N33: 1806 | O33: 甲类 | P33: 经皮肺动脉内血栓抽吸术 经皮肝动脉内血栓抽吸术 经皮穿刺肝动脉内溶栓术 经皮肝动脉内血栓碎栓术 经皮穿刺肠系膜上动脉内血栓抽吸术 经皮肾动脉内血栓抽吸术 经皮肠系膜上动脉内血栓碎栓术 经皮肾动脉内血栓碎栓术 经皮穿刺肠系膜上动脉内溶栓术 经皮穿刺肺动脉内溶栓术 经皮肺动脉内血栓碎栓术 经皮穿刺肾动脉溶栓术
A34: 24 | C34: 大静脉腔内减容费（介入） | D34: 通过激光、旋切、旋磨、振波、血栓抽吸等各种物理或机械方式消除大静脉斑块或血栓。 | E34: 所定价格涵盖手术计划、术区准备、消毒穿刺、置管、消除斑块、撤除、闭合血管通路、加压止血、包扎、处理用物，必要时造影确认治疗效果等步骤所需的人力资源和基本物质资源消耗。不含血管造影检查费用。 | H34: 血管 | I34: 每增加1支血管加收不超过30%，超过3支血管按3支血管收费 | J34: 2000 加权平均（1956） | K34: 2000 甲类 | L34: 2000 | M34: 1700 | N34: 1445 | O34: 甲类 | P34: 经皮穿刺上腔静脉内激光再通成形术 经皮静脉内旋切术 经皮穿刺下腔静脉内激光再通成形术 经皮穿刺上腔静脉内插管溶栓术 经皮穿刺下腔静脉内插管溶栓术 经颈内静脉穿刺肝门静脉溶栓术 经皮穿刺髂静脉内溶栓术 经皮穿刺插管静（动）脉溶栓术 经皮穿刺股总静脉内溶栓术
A35: 25 | C35: 头臂静脉腔内减容费（介入） | D35: 通过激光、旋切、旋磨、振波、血栓抽吸等各种物理或机械方式消除头臂静脉斑块或血栓。 | E35: 所定价格涵盖手术计划、术区准备、消毒穿刺、置管、消除斑块、撤除、闭合血管通路、加压止血、包扎、处理用物，必要时造影确认治疗效果等步骤所需的人力资源和基本物质资源消耗。不含血管造影检查费用。 | H35: 血管 | I35: 每增加1支血管加收不超过30%，超过3支血管按3支血管收费 | J35: 1700 与“大静脉腔内减容费（介入）”成比价关系 | K35: 1700 甲类 | L35: 1700 | M35: 1445 | N35: 1228 | O35: 甲类 | P35: 经皮穿刺无名静脉内溶栓术 经皮穿刺锁骨下静脉内溶栓术 经皮穿刺无名静脉内激光再通成形术 经皮穿刺锁骨下静脉内激光再通成形术
A36: 26 | C36: 肢体静脉腔内减容费（介入） | D36: 通过激光、旋切、旋磨、振波、血栓抽吸等各种物理或机械方式消除肢体静脉斑块或血栓。 | E36: 所定价格涵盖手术计划、术区准备、消毒穿刺、置管、消除斑块、撤除、闭合血管通路、加压止血、包扎、处理用物，必要时造影确认治疗效果等步骤所需的人力资源和基本物质资源消耗。不含血管造影检查费用。 | H36: 血管 | I36: 每增加1支血管加收不超过30%，超过3支血管按3支血管收费 | J36: 1500 与“头臂静脉腔内减容费（介入）”成比价关系 | K36: 1500 甲类 | L36: 1500 | M36: 1275 | N36: 1083 | O36: 甲类 | P36: 经皮穿刺上肢静脉内激光再通成形术 经皮穿刺下肢静脉内激光再通成形术 经皮穿刺股总静脉内激光再通成形术 经皮穿刺腋静脉内溶栓术 经皮穿刺髂静脉内激光再通成形术
A37: 27 | C37: 内脏静脉腔内减容费（介入） | D37: 通过激光、旋切、旋磨、振波、血栓抽吸等各种物理或机械方式消除内脏静脉斑块或血栓。 | E37: 所定价格涵盖手术计划、术区准备、消毒穿刺、置管、消除斑块、撤除、闭合血管通路、加压止血、包扎、处理用物，必要时造影确认治疗效果等步骤所需的人力资源和基本物质资源消耗。不含血管造影检查费用。 | H37: 血管 | I37: 每增加1支血管加收不超过30%，超过3支血管按3支血管收费 | J37: 1600 与“头臂静脉腔内减容费（介入）”成比价关系 | K37: 1600 甲类 | L37: 1600 | M37: 1360 | N37: 1156 | O37: 甲类 | P37: 经皮穿刺肾静脉内激光再通成形术
A38: 28 | C38: 血管置管治疗费（介入） | D38: 通过经皮穿刺置管，对血管进行治疗。 | E38: 所定价格涵盖手术计划、术区准备、定位、消毒、穿刺、置管、撤除、闭合血管通路、加压止血、包扎、处理用物，必要时注药或取血等步骤所需的人力资源和基本物质资源消耗。不含血管造影检查费用。 | H38: 血管 | I38: 仅行血管内高压注射按20%收费 | J38: 2000 高频平移 | K38: 2000 甲类 | L38: 2000 | M38: 1700 | N38: 1445 | O38: 甲类 | P38: 经皮穿刺上肢动脉置管术 经皮穿刺肝动脉置管术 经皮穿刺选择性上下腔静脉取血术 经皮穿刺双肾静脉取血术 经皮穿刺选择性肾静脉取血术 经皮穿刺选择性肾上腺静脉取血术 经皮肝穿刺门静脉化疗术 经皮脾穿刺门静脉化疗术 经皮动脉内灌注化疗术 经皮穿刺选择性奇静脉取血术 经皮穿刺选择性肝静脉取血术 经皮穿刺选择性甲状旁腺静脉取血术 动脉内高压注射 肝动脉化疗泵置入术 经皮穿刺肠系膜上动脉置管术 经皮穿刺肠系膜下动脉置管术 经皮穿刺肾动脉置管术 经皮穿刺子宫动脉置管术 经皮穿刺下肢动脉置管术 经皮穿刺上肢血管瘤腔内药物灌注术 经皮穿刺下肢血管瘤腔内药物灌注术 经皮肝穿刺门静脉导管药盒系统置入术
A39: 29 | C39: 血管栓塞费（介入） | D39: 通过经皮穿刺将栓塞材料送入血管内，栓塞病变。 | E39: 所定价格涵盖手术计划、术区准备、定位、消毒、穿刺、置管、栓塞、撤除、闭合血管通路、加压止血、包扎、处理用物，必要时造影确认治疗效果等步骤所需的人力资源和基本物质资源消耗。不含血管造影检查费用。 | H39: 血管 | I39: 超过3支血管按3支血管收费 | J39: 2100 加权平均(2113) | K39: 2100 甲类 | L39: 2100 | M39: 1785 | N39: 1517 | O39: 甲类 | P39: 经皮穿刺支气管动脉栓塞术 经皮穿刺甲状腺动脉栓塞术 经皮穿刺腹腔干动脉瘤栓塞术 经皮穿刺腹腔干动脉栓塞术 经皮穿刺胃左动脉瘤栓塞术 经皮穿刺胃左动脉栓塞术 经皮穿刺肝总动脉瘤栓塞+支架置入术 经皮穿刺肝固有动脉瘤栓塞术 经皮穿刺肝固有动脉栓塞术 经皮穿刺胃十二指肠动脉栓塞术 经皮穿刺胃网膜动脉栓塞术 经皮穿刺脾动脉栓塞术 经皮穿刺肠系膜上动脉瘤栓塞术 经皮穿刺肠系膜上动脉栓塞术 经皮穿刺胰十二指肠动脉栓塞术 经皮穿刺肠系膜下动脉瘤栓塞术 经皮穿刺肠系膜下动脉栓塞术 经皮穿刺肾上腺动脉瘤栓塞术 经皮穿刺肾上腺动脉栓塞术 经皮穿刺肾动脉瘤栓塞术 经皮穿刺肾动脉栓塞术 经皮穿刺生殖动脉栓塞术 经皮穿刺子宫动脉栓塞术 经皮穿刺膀胱动脉栓塞术 经皮穿刺髂内动脉栓塞术 经皮穿刺上肢动脉瘤栓塞术 经皮穿刺下肢动脉栓塞术 经皮肝穿刺门静脉栓塞术 经皮脾穿刺门静脉栓塞术 经皮肝穿刺胃冠状静脉栓塞术 经腹选择性胃冠状静脉栓塞术 胃冠状静脉栓塞术 经腹腔镜胃冠状静脉栓塞术 经皮选择性性腺静脉栓塞术 经皮选择性髂内静脉栓塞术 锁骨下动脉栓塞术 经皮穿刺肝总动脉栓塞术 经皮肝动脉栓塞术 经皮穿刺生殖动脉瘤栓塞术
A40: 30 | C40: 动静脉畸形/动静脉瘘介入栓塞费（常规） | D40: 通过经皮穿刺（经导管）将栓塞材料或药物送入畸形动静脉/动静脉瘘，栓塞病变。 | E40: 所定价格涵盖手术计划、术区准备、定位、消毒、穿刺、置管、栓塞、撤除、闭合血管通路、加压止血、包扎、处理用物，必要时造影确认治疗效果等步骤所需的人力资源和基本物质资源消耗。不含血管造影检查费用。 | H40: 次 | J40: 1800 价格平移 | K40: 1800 甲类 | L40: 1800 | M40: 1530 | N40: 1300 | O40: 甲类 | P40: 先天性动静脉瘘栓塞术
A41: 31 | C41: 动静脉畸形/动静脉瘘介入栓塞费（复杂） | D41: 通过经皮穿刺（经导管）将栓塞材料或药物送入复杂情况下的畸形动静脉/动静脉瘘，栓塞病变。 | E41: 所定价格涵盖手术计划、术区准备、定位、消毒、穿刺、置管、栓塞、撤除、闭合血管通路、加压止血、包扎、处理用物，必要时造影确认治疗效果等步骤所需的人力资源和基本物质资源消耗。不含血管造影检查费用。 | H41: 次 | I41: 本项目所称的“复杂”指：瘤样扩张直径≥5cm，瘤体涉及肌肉、神经干等重要器官，病变累积范围≥15cm*15cm。 | J41: 2400 3医2护1技4小时 | K41: 2400 甲类 | L41: 2400 | M41: 2040 | N41: 1734 | O41: 甲类
A42: 32 | C42: 淋巴管置管治疗费（介入） | D42: 通过经皮穿刺置管，对淋巴管进行治疗。 | E42: 所定价格涵盖手术计划、术区准备、定位、消毒、穿刺、置管、撤除、闭合血管通路、加压止血、包扎、处理用物，必要时注药或取血等步骤所需的人力资源和基本物质资源消耗。不含淋巴管造影费用。 | H42: 次 | J42: 2200 参照且难度高于“血管置管治疗费（介入）” | K42: 2200 甲类 | L42: 2200 | M42: 1870 | N42: 1589 | O42: 甲类
A43: 33 | C43: 淋巴栓塞费（介入） | D43: 通过经皮穿刺将栓塞材料送入淋巴管破损处，栓塞淋巴病变。 | E43: 所定价格涵盖手术计划、术区准备、定位、消毒、穿刺、置管、注入造影剂、撤除、闭合血管通路、加压止血、包扎、处理用物等步骤所需的人力资源和基本物质资源消耗。不含淋巴管造影费用。 | H43: 次 | J43: 2400 比“淋巴管置管治疗费（介入）”多一步操作，且难度高于“淋巴管置管治疗费（介入）” | K43: 2400 甲类 | L43: 2400 | M43: 2040 | N43: 1734 | O43: 甲类
A44: 34 | C44: 血管腔内封堵费（介入） | D44: 通过经皮穿刺将封堵器送入血管内，封堵病变。 | E44: 所定价格涵盖手术计划、术区准备、定位、消毒、穿刺、置管、封堵、撤除、闭合血管通路、加压止血、包扎、处理用物，必要时造影确认治疗效果等步骤所需的人力资源和基本物质资源消耗。不含血管造影检查费用。 | H44: 血管 | J44: 1800 3医3护3小时 | K44: 1800 甲类 | L44: 1800 | M44: 1530 | N44: 1300 | O44: 甲类
A45: 35 | C45: 血管保护装置置入费（介入） | D45: 通过经皮穿刺放置血管保护装置。 | E45: 所定价格涵盖手术计划、术区准备、定位、消毒、穿刺、置管、置入、撤除、闭合血管通路、加压止血、包扎、处理用物，必要时造影确认治疗效果等步骤所需的人力资源和基本物质资源消耗。不含血管造影检查费用。 | H45: 血管 | J45: 1800 考虑操作难度及时间 | K45: 1800 乙类 | L45: 1800 | M45: 1530 | N45: 1300 | O45: 乙类 | P45: 经皮穿刺上腔静脉滤器置入术 经皮穿刺下腔静脉滤器置入术
A46: 36 | C46: 血管保护装置取出费（介入） | D46: 通过经皮穿刺取出血管保护装置。 | E46: 所定价格涵盖手术计划、术区准备、定位、消毒、穿刺、置管、取出、撤除、闭合血管通路、加压止血、包扎、处理用物，必要时造影确认治疗效果等步骤所需的人力资源和基本物质资源消耗。不含血管造影检查费用。 | H46: 血管 | I46: 同台手术中，同一血管不得同时收取“血管保护装置置入费（介入）”和“血管保护装置取出费（介入）”。 | J46: 2000 难度高于置入术，操作时间长 | K46: 2000 乙类 | L46: 2000 | M46: 1700 | N46: 1445 | O46: 乙类 | P46: 经皮穿刺下腔静脉滤器取出术 经皮穿刺上腔静脉滤器取出术 转流管取出术
A47: 37 | C47: 血管异物取出费（介入） | D47: 通过经皮穿刺取出血管内异物。 | E47: 所定价格涵盖手术计划、术区准备、定位、消毒、穿刺、置管、异物取出、撤除、闭合血管通路、加压止血、包扎、处理用物，必要时造影确认治疗效果等步骤所需的人力资源和基本物质资源消耗。不含血管造影检查费用。 | H47: 血管 | J47: 2300 加权平均（2350） | K47: 2300 甲类 | L47: 2300 | M47: 1955 | N47: 1661 | O47: 甲类 | P47: 经皮穿刺上腔静脉内血管异物取出术 经皮穿刺无名静脉内血管异物取出术 经皮穿刺锁骨下静脉内血管异物取出术 经皮穿刺腋静脉内血管异物取出术 经皮穿刺下腔静脉内血管异物取出术 经皮穿刺髂静脉内血管异物取出术 经皮穿刺股总静脉内血管异物取出术 经皮穿刺肺动脉内异物取出术 经皮穿刺动脉内异物取出术
A48: 38 | C48: 心内异物取出费（介入） | D48: 通过介入的方式，取出心内异物。 | E48: 所定价格涵盖手术计划、术区准备、定位、消毒、穿刺、置管、异物取出、撤除、闭合血管通路、加压止血、包扎、处理用物等步骤所需的人力资源和基本物质资源消耗。 | H48: 次 | J48: 2300 参考“血管异物取出费” | K48: 2300 甲类 | L48: 2300 | M48: 1955 | N48: 1661 | O48: 甲类
A49: 39 | C49: 血管消融治疗费（介入） | D49: 通过介入的方式消融血管病灶。 | E49: 所定价格涵盖手术计划、术区准备、消毒铺巾、建立通路、穿刺、采用不同的消融能量或介质进行消融、撤除、闭合血管通路、加压止血、包扎、处理用物，必要时造影确认治疗效果等步骤所需的人力资源和基本物质资源消耗。不含血管造影检查费用。 | H49: 血管 | I49: 1.消融能量或介质包括但不限于化学、射频、冷冻、脉冲、微波、激光等方式。 2.同一血管不与腔内减容费同时收费。 | J49: 2000 参考“消融治疗费” | K49: 2000 甲类 | L49: 2000 | M49: 1700 | N49: 1445 | O49: 甲类 | P49: 经皮穿刺上肢动脉内超声消融术 经皮穿刺下肢动脉内超声消融术 经皮穿刺上腔静脉血栓超声消融术 经皮穿刺无名静脉血栓超声消融术 经皮穿刺锁骨下静脉血栓超声消融术 经皮穿刺下腔静脉血栓超声消融术 经皮穿刺髂静脉血栓超声消融术 经皮穿刺下肢静脉血栓超声消融术 经皮穿刺股总静脉血栓超声消融术 经皮穿刺上肢静脉血栓超声消融术 经皮穿刺腋静脉血栓超声消融术
A50: 40 | C50: 慢性闭塞血管逆向再通费（介入） | D50: 通过经皮穿刺疏通血管闭塞端近端及远端。 | E50: 所定价格涵盖手术计划、术区准备、消毒穿刺、置管、连通、撤除、闭合血管通路、加压止血、包扎、处理用物，必要时造影确认治疗效果等步骤所需的人力资源和基本物质资源消耗。不含血管造影检查费用。 | H50: 血管 | J50: 2600 参考且难度高于“肢体动脉腔内减容费”价格 | K50: 2600 甲类 | L50: 2600 | M50: 2210 | N50: 1878 | O50: 甲类
A51: 41 | C51: 静脉分流费（介入） | D51: 通过经皮穿刺建立静脉与静脉之间的通道。 | E51: 所定价格涵盖手术计划、术区准备、定位、消毒、穿刺、置管、建立通道、撤除、闭合血管通路、加压止血、包扎、处理用物，必要时造影确认治疗效果等步骤所需的人力资源和基本物质资源消耗。不含血管造影检查费用。 | H51: 血管 | J51: 2700 高频平移 | K51: 2700 甲类 | L51: 2700 | M51: 2295 | N51: 1950 | O51: 甲类 | P51: 经颈内静脉穿刺肝内门腔静脉分流术(TIPS) 冠状静脉下腔静脉分流术 门静脉奇静脉断流术 门体静脉断流术 门静脉肺分流术 门静脉腔静脉H型架桥分流术 脾肾静脉分流术
A52: 42 | C52: 动静脉转流费（介入） | D52: 通过经皮穿刺建立动脉与静脉之间的通道。 | E52: 所定价格涵盖手术计划、术区准备、定位、消毒、穿刺、置管、建立通道、撤除、闭合血管通路、加压止血、包扎、处理用物，必要时造影确认治疗效果等步骤所需的人力资源和基本物质资源消耗。不含血管造影检查费用。 | H52: 血管 | J52: 2600 参考“肢体静脉球囊扩张费” | K52: 2600 甲类 | L52: 2600 | M52: 2210 | N52: 1878 | O52: 甲类 | P52: 经皮穿刺血液透析静脉回路球囊扩张+支架置入术 经皮穿刺血液透析通路血栓碎栓术 经皮血液透析通路溶栓术 经皮血液透析静脉回路球囊成形术
A53: 43 | C53: 下肢静脉闭合费（介入） | D53: 通过经皮穿刺的方式闭合下肢静脉。 | E53: 所定价格涵盖手术计划、术区准备、定位、消毒、穿刺、各种方式闭合静脉、超声确认治疗效果、撤除、闭合血管通路、加压止血、包扎、处理用物，必要时造影确认治疗效果等步骤所需的人力资源和基本物质资源消耗。不含血管造影检查费用。 | F53: 01大隐静脉闭合费（介入）30% 11小隐静脉闭合费（介入）30% | H53: 单肢 | I53: 本项目所称的各种方式包括但不限于激光、射频、旋磨、超声、微波、蒸汽、机械和/或化学方式。 | J53: 1600 价格平移“大隐静脉腔内射频闭合术” | K53: 1600 甲类 | L53: 1600 | M53: 1360 | N53: 1156 | O53: 甲类 | P53: 小隐静脉腔内射频闭合术 大隐静脉激光治疗 大隐静脉射频消融治疗 大隐静脉腔内射频闭合术 大隐静脉腔内激光闭合术 下肢浅静脉静脉团透光旋切术 小隐静脉腔内激光闭合术
C54: 下肢静脉闭合费（介入）-大隐静脉闭合费（介入）（加收） | H54: 单肢 | L54: 480 | M54: 408 | N54: 346.8 | O54: 甲类
C55: 下肢静脉闭合费（介入）-小隐静脉闭合费（介入）（加收） | H55: 单肢 | L55: 480 | M55: 408 | N55: 346.8 | O55: 甲类
A56: 44 | C56: 外周血管腔内影像学检查费 | D56: 在外周血管造影基础上进行腔内影像学检查。 | E56: 所定价格涵盖连接设备、观察血管内影像情况、撤除设备等步骤所需的人力资源和基本物质资源消耗。不含外周血管造影费用。 | H56: 次 | I56: 本项目所称的“外周血管腔内影像学检查费”指：外周血管内超声检查、外周血管光学相干断层成像。 | J56: 2100 参考“冠状动脉腔内影像学检查费” | K56: 2100 丙类 | L56: 2100 | M56: =L56*0.85 -> 1785 | N56: 1517 | O56: 丙类
A57: 45 | C57: 外周血管血流储备功能检查费 | D57: 在外周血管造影基础上进行血流储备功能检查。 | E57: 所定价格涵盖连接设备、测量外周血管血流储备功能、撤除设备等步骤所需的人力资源和基本物质资源消耗。不含外周血管造影费用。 | G57: 01脑血管血流储备功能检查费 | H57: 次 | I57: 本项目所称的“外周血管血流储备功能检查费”指：外周血管造影检查中通过压力导丝、传感器、造影图像等方式获取的血流储备功能情况。 | J57: 1000 参照“冠状动脉血流储备功能检查费” | K57: 1000 丙类 | L57: 1000 | M57: 850 | N57: 722 | O57: 丙类
C58: 外周血管血流储备功能检查费-脑血管血流储备功能检查费（扩展） | H58: 次 | L58: 1000 | M58: 850 | N58: 722 | O58: 丙类
A59: 46 | C59: 血管探查费（开胸/开腹） | D59: 通过开胸/开腹手术探查血管。 | E59: 所定价格涵盖手术计划、术区准备、消毒、开胸/腹、探查、缝合、止血、包扎、处理用物等步骤所需的人力资源和基本物质资源消耗。 | H59: 次 | I59: 不与血管其他相关手术同时收费。 | J59: 1500 参考“胸腔探查费” | K59: 1500 甲类 | L59: 1500 | M59: 1275 | N59: 1083 | O59: 甲类 | P59: 移植肾探查术 开胸心脏探查术 颈动脉探查术
A60: 47 | C60: 血管探查费（非开胸/开腹） | D60: 通过非开胸/开腹手术切开探查血管。 | E60: 所定价格涵盖手术计划、术区准备、消毒、切开血管、探查、缝合、止血、包扎、处理用物等步骤所需的人力资源和基本物质资源消耗。 | H60: 次 | I60: 不与血管其他相关手术同时收费。 | J60: 800 价格平移 | K60: 800 甲类 | L60: 800 | M60: 680 | N60: 578 | O60: 甲类 | P60: 上肢血管探查术 腋动脉探查术 下肢胫动脉探查术 下肢股腘动脉探查术
A61: 48 | C61: 主动脉瘤切除重建费（常规） | D61: 通过手术切除主动脉瘤并进行功能重建。 | E61: 所定价格涵盖手术计划、术区准备、消毒、切开、分离、切除、重建、缝合、止血、包扎、处理用物等步骤所需的人力资源和基本物质资源消耗。 | H61: 次 | J61: 4800 5医3护6小时 | K61: 4300 5医3护6小时且参考内蒙 甲类 | L61: 4300 | M61: 3655 | N61: 3106 | O61: 甲类 | P61: 腹主动脉瘤切除人工血管置换术 经腹膜外径路腹主动脉瘤人工血管置换术 腹主动脉瘤切除腹主动脉-双侧股动脉人工血管置换术(Y型人工血管) 腹主动脉瘤-髂动脉瘤切除腹主动脉-双股动脉人工血管移植术 腹主动脉瘤切除腹主动脉-双髂动脉人工血管置换术(Y型人工血管) 腹主动脉瘤-髂动脉瘤切除腹主动脉-双髂动脉人工血管移植术 腹主动脉瘤-髂动脉瘤切除腹主动脉-单侧髂股动脉人工血管移植术 腹主动脉动脉瘤旷置术 腹主动脉瘤髂动脉瘤旷置术 腹主动脉瘤成形术 腹主动脉瘤髂动脉瘤成形术
A62: 49 | C62: 主动脉瘤切除重建费（复杂） | D62: 通过手术切除复杂情况下的主动脉瘤并进行功能重建。 | E62: 所定价格涵盖手术计划、术区准备、消毒、切开、分离、切除、重建、缝合、止血、包扎、处理用物等步骤所需的人力资源和基本物质资源消耗。 | F62: 01破裂主动脉瘤30% | H62: 次 | I62: 本项目所称的“复杂”指：累及头臂干动脉、内脏动脉、感染及假性动脉瘤。 | J62: 6400 5医3护8小时 | K62: 5900 5医3护8小时且参考内蒙 甲类 | L62: 5900 | M62: 5015 | N62: 4262 | O62: 甲类 | P62: 部分胸降主动脉夹层动脉瘤人工血管替换术 肾上腹主动脉瘤人工血管置换术 腹主动脉假性动脉瘤切除腹主动脉人工血管置换术 腹主动脉瘤切除腹主动脉-单侧髂单侧股动脉人工血管置换术(Y型人工血管) 破裂腹主动脉瘤切除腹主动脉-单侧髂股动脉人工血管置换术 腹主动脉假性动脉瘤切除腹主动脉-单侧髂单侧股动脉人工血管置换术 腹主动脉假性动脉瘤切除腹主动脉-股动脉人工血管置换术 髂动脉假性动脉瘤切除腹主动脉-股动脉人工血管置换术 腹主动脉假性动脉瘤切除腹主动脉-髂动脉人工血管置换术 髂动脉假性动脉瘤切除腹主动脉-髂动脉人工血管置换术 腹腔镜下腹主动脉闭塞行腹主-双股(髂)动脉人工血管旁路移植术 腹主动脉假性动脉瘤成形术 腹主动脉瘤Y型移植物腔内隔绝术 经腹杂交技术肾周或肾上腹主动脉瘤腔内隔绝术(逆行旁路技术) 经腹杂交技术肾周及肾上腹主动脉瘤腔内隔绝术(顺行旁路技术) 假性腹主动脉瘤Y型移植物腔内隔绝术 腹主动脉瘤腔内隔绝术+髂总动脉缩窄术 肾周腹主动脉瘤人工血管置换术 破裂髂动脉瘤切除腹主动脉-双髂动脉人工血管置换术 破裂髂动脉瘤切除腹主动脉-双股动脉人工血管置换术 破裂髂动脉瘤切除腹主动脉-单侧髂股动脉人工血管置换术 胸腹主动脉瘤切除+内脏血管重建术 复杂腹主动脉瘤切除腹主动脉人工血管移植术 复杂腹主动脉瘤切除腹主动脉-股动脉人工血管移植术 复杂腹主动脉瘤切除腹主动脉-髂动脉人工血管移植术 破裂腹主动脉瘤切除腹主动脉-双股动脉人工血管置换术 破裂腹主动脉瘤切除腹主动脉-双髂动脉人工血管置换术 复杂腹主动脉瘤切除腹主动脉-单侧髂单侧股动脉人工血管移植术 腹腔镜下腹主动脉瘤切除+腹主-双股(髂)动脉人工血管旁路移植术
C63: 主动脉瘤切除重建费（复杂）-破裂主动脉瘤（加收） | H63: 次 | L63: 1770 | M63: 1504.5 | N63: 1278.6 | O63: 甲类
A64: 50 | C64: 颈动脉（体）瘤切除重建费（常规） | D64: 通过手术切除颈动脉（体）瘤并进行功能重建。 | E64: 所定价格涵盖手术计划、术区准备、消毒、切开、分离、切除、重建、缝合、止血、包扎、处理用物等步骤所需的人力资源和基本物质资源消耗。 | H64: 次 | J64: 3000 4医1护1技4小时 高原相关疾病（高发），手术难度高、风险大。 | K64: 3000 甲类 | L64: 3000 | M64: =L64*0.85 -> 2550 | N64: 2167 | O64: 甲类 | P64: 颈动脉体瘤切除术 颈外动脉瘤切除术
A65: 51 | C65: 颈动脉（体）瘤切除重建费（复杂） | D65: 通过手术切除复杂情况下的颈动脉（体）瘤并进行功能重建。 | E65: 所定价格涵盖手术计划、术区准备、消毒、切开、分离、切除、重建、缝合、止血、包扎、处理用物等步骤所需的人力资源和基本物质资源消耗。 | F65: 01破裂颈动脉（体）瘤30% | H65: 次 | I65: 本项目所称的“复杂”指：累及分支开口部位颈动脉瘤、二型三型颈动脉体瘤、感染及假性动脉瘤。 | J65: 3500 高原相关疾病（高发），手术难度高、风险大。与“颈动脉（体）瘤切除重建费（常规）”成比价关系 | K65: 3500 甲类 | L65: 3500 | M65: 2975 | N65: 2528 | O65: 甲类 | P65: 颈动脉体瘤切除动脉结扎术 颈动脉瘤切除血管移植术 颈动脉体瘤切除转流术 颈动脉瘤切除吻合术 颈动脉体瘤切除血管修补术 巨大颈动脉体瘤切除+淋巴结清扫+血管重建术 颈动脉瘤切除血管重建术 颈动脉假性动脉瘤切除术 颈动脉体瘤切除颈动脉结扎术
C66: 颈动脉（体）瘤切除重建费（复杂）-破裂颈动脉（体）瘤 | H66: 次 | L66: 1050 | M66: 892.5 | N66: 758.4 | O66: 甲类
A67: 52 | C67: 动脉瘤切除重建费（常规） | D67: 通过手术切除动脉瘤并进行功能重建。 | E67: 所定价格涵盖手术计划、术区准备、消毒、切开、分离、切除、重建、缝合、止血、包扎、处理用物等步骤所需的人力资源和基本物质资源消耗。 | H67: 次 | I67: 本项目所称的“动脉瘤”不含主动脉瘤和颈动脉（体）瘤。 | J67: 2100 4医3护3小时 | K67: 2100 甲类 | L67: 2100 | M67: 1785 | N67: 1517 | O67: 甲类 | P67: 胃左动脉瘤切除术 胃左动脉瘤切除+胃左动脉自体大隐静脉旁路术 胃左动脉瘤切除+胃左动脉人工血管旁路术
A68: 53 | C68: 动脉瘤切除重建费（复杂） | D68: 通过手术切除复杂情况下的动脉瘤并进行功能重建。 | E68: 所定价格涵盖手术计划、术区准备、消毒、切开、分离、切除、重建、缝合、止血、包扎、处理用物等步骤所需的人力资源和基本物质资源消耗。 | F68: 01破裂动脉瘤30% | H68: 次 | I68: 1.本项目所称的“动脉瘤”不含主动脉瘤和颈动脉（体）瘤。 2.本项目所称的“复杂”指：累及分支开口部位动脉瘤、感染及假性动脉瘤。 | J68: 3300 加权平均（3250） | K68: 3300 甲类 | L68: 3300 | M68: 2805 | N68: 2384 | O68: 甲类 | P68: 腹腔干动脉瘤切除术 腹腔干动脉瘤切除+腹腔干重建术 腹腔干动脉瘤切除+腹腔干人工血管间置重建术 腹腔干动脉瘤切除+腹腔干自体大隐静脉间置重建术 脾动脉瘤切除+脾动脉自体大隐静脉间置重建术 脾动脉瘤切除+脾切除术 脾动脉瘤切除+脾动脉重建术 脾动脉瘤切除+脾动脉人工血管间置重建术 肝总动脉瘤切除+肝总动脉人工血管旁路术 胃左动脉瘤切除+胃左动脉重建术 胃左动脉瘤切除+胃左动脉人工血管间置重建术 胃左动脉瘤切除+胃左动脉自体大隐静脉间置重建术 肝总动脉瘤切除+肝总动脉重建术 肝总动脉瘤切除+肝总动脉人工血管间置重建术 肝固有动脉瘤切除+肝固有动脉重建术 肝总动脉瘤切除+肝总动脉自体大隐静脉间置重建术 肝固有动脉瘤切除+肝固有动脉人工血管间置重建术 肠系膜上动脉瘤切除+肠系膜上动脉重建术 肠系膜上动脉瘤切除+肠系膜上动脉人工血管间置重建术 肠系膜上动脉瘤切除+肠系膜上动脉自体大隐静脉间置重建术 肠系膜下动脉瘤切除+肠系膜下动脉重建术 肠系膜下动脉瘤切除+肠系膜下动脉人工血管间置重建术 肠系膜下动脉瘤切除+肠系膜下动脉自体大隐静脉间置重建术 肾动脉瘤切除+肾动脉重建术 肾动脉瘤切除+肾切除术
C69: 动脉瘤切除重建费（复杂）-破裂动脉瘤（加收） | H69: 次 | L69: 990 | M69: 841.5 | N69: 715.2 | O69: 甲类
A70: 54 | C70: 动脉瘤栓塞费 | D70: 通过手术栓塞动脉瘤。 | E70: 所定价格涵盖手术计划、术区准备、消毒、切开、分离、置入栓塞材料、缝合、止血、包扎、处理用物等步骤所需的人力资源和基本物质资源消耗。 | H70: 次 | J70: 1600 加权平均(1548) | K70: 1600 甲类 | L70: 1600 | M70: =L70*0.85 -> 1360 | N70: 1156 | O70: 甲类 | P70: 肝动脉栓塞术 经腹腔镜肝动脉栓塞术 脾动脉瘤栓塞术
A71: 55 | C71: 大动脉切除重建费 | D71: 通过手术切除大动脉并进行功能重建。 | E71: 所定价格涵盖手术计划、术区准备、消毒、切开、分离、切除、重建、缝合、止血、包扎、处理用物等步骤所需的人力资源和基本物质资源消耗。 | H71: 次 | I71: 本项目中的“次”指：两根及以下血管，多于两根血管可按加收。本手术仅指全程主动脉切除重建。 | J71: 32000 难度高于肝移植（30000元） 技术难度100，8医6护2体外循环师16小时 | K71: 32000 甲类 | L71: 32000 | M71: 27200 | N71: 23120 | O71: 甲类 | P71: 全程主动脉人工血管置换术
A72: 56 | C72: 头臂动脉切除重建费 | D72: 通过手术切除头臂动脉并进行功能重建。 | E72: 所定价格涵盖手术计划、术区准备、消毒、切开、分离、切除、重建、缝合、止血、包扎、处理用物等步骤所需的人力资源和基本物质资源消耗。 | H72: 次 | I72: 本项目中的“次”指：两根及以下血管，多于两根血管可按30%加收。 | J72: 2100 高价平移 | K72: 2100 甲类 | L72: 2100 | M72: 1785 | N72: 1517 | O72: 甲类 | P72: 锁骨下动脉瘤切除术 无名动脉瘤切除术
A73: 57 | C73: 肢体动脉切除重建费 | D73: 通过手术切除肢体动脉并进行功能重建。 | E73: 所定价格涵盖手术计划、术区准备、消毒、切开、分离、切除、重建、缝合、止血、包扎、处理用物等步骤所需的人力资源和基本物质资源消耗。 | H73: 次 | I73: 本项目中的“次”指：两根及以下血管，多于两根血管可按30%加收。 | J73: 2100 参考“动脉瘤切除重建费（常规）” | K73: 2100 甲类 | L73: 2100 | M73: 1785 | N73: 1517 | O73: 甲类 | P73: 腘窝陷迫综合征腘动脉切除重建术
A74: 58 | C74: 内脏动脉切除重建费 | D74: 通过手术切除内脏动脉并进行功能重建。 | E74: 所定价格涵盖手术计划、术区准备、消毒、切开、分离、切除、重建、缝合、止血、包扎、处理用物等步骤所需的人力资源和基本物质资源消耗。 | H74: 次 | I74: 本项目中的“次”指：两根及以下血管，多于两根血管可按30%加收。 | J74: 2600 价格平移 | K74: 2600 甲类 | L74: 2600 | M74: 2210 | N74: 1878 | O74: 甲类 | P74: 肾血管重建术 腹腔干动脉瘤切除+腹腔干人工血管旁路术 腹腔动脉瘤切除+腹腔干自体大隐静脉旁路术 腹主动脉-肠系膜上动脉人工血管旁路术
A75: 59 | C75: 大动脉成形费 | D75: 通过手术对大动脉进行成形。 | E75: 所定价格涵盖手术计划、术区准备、消毒、切开、分离、切除、缝合成形、止血、包扎、处理用物，必要时补片修补等步骤所需的人力资源和基本物质资源消耗。 | H75: 次 | I75: 本项目中的“次”指：两根及以下血管，多于两根血管可按30%加收。 | J75: 4700 高价平移 | K75: 4300 参考“主动脉瘤切除重建” 甲类 | L75: 4300 | M75: 3655 | N75: 3106 | O75: 甲类 | P75: 升主动脉成形术 单侧髂动脉闭塞主-髂动脉人工血管旁路术 双侧髂动脉闭塞主-髂动脉人工血管旁路术(Y型人工血管) 髂股动脉闭塞腹主动脉-股动脉人工血管旁路术 髂动脉瘤切除人工血管置换术 部分胸降主动脉切除术 N1区主动脉夹层瘤颈成形加腔内隔绝术 经腹杂交技术胸腹主动脉瘤腔内隔绝术(逆行旁路技术) 经胸腹联合杂交技术胸腹主动脉瘤腔内隔绝术(顺行旁路技术)
A76: 60 | C76: 头臂动脉成形费 | D76: 通过手术对头臂动脉进行成形。 | E76: 所定价格涵盖手术计划、术区准备、消毒、切开、分离、切除、缝合成形、止血、包扎、处理用物，必要时补片修补等步骤所需的人力资源和基本物质资源消耗。 | H76: 次 | I76: 本项目中的“次”指：两根及以下血管，多于两根血管可按30%加收。 | J76: 3000 高频平移 | K76: 3000 甲类 | L76: 3000 | M76: 2550 | N76: 2167 | O76: 甲类 | P76: 锁骨下动脉修复术 颈动脉重建术
A77: 61 | C77: 肢体动脉成形费 | D77: 通过手术对肢体动脉进行成形。 | E77: 所定价格涵盖手术计划、术区准备、消毒、切开、分离、切除、缝合成形、止血、包扎、处理用物，必要时补片修补等步骤所需的人力资源和基本物质资源消耗。 | H77: 次 | I77: 本项目中的“次”指：两根及以下血管，多于两根血管可按30%加收。 | J77: 1400 参考“肢体血管吻合费”（700）*两根血管 | K77: 1600 参考“肢体血管吻合费”（700）*两根血管且与同部位成比价关系 甲类 | L77: 1600 | M77: 1360 | N77: 1156 | O77: 甲类
A78: 62 | C78: 内脏动脉成形费 | D78: 通过手术对内脏动脉进行成形。 | E78: 所定价格涵盖手术计划、术区准备、消毒、切开、分离、切除、缝合成形、止血、包扎、处理用物，必要时补片修补等步骤所需的人力资源和基本物质资源消耗。 | H78: 次 | I78: 本项目中的“次”指：两根及以下血管，多于两根血管可按30%加收。 | J78: 2000 高频平移 | K78: 2300 甲类 | L78: 2300 | M78: 1955 | N78: 1661 | O78: 甲类 | P78: 肠系膜上动脉成形术 肝总动脉瘤切除+肝总动脉结扎术 肝总动脉瘤切除+肝总动脉自体大隐静脉间置重建术 肝固有动脉瘤切除+肝固有动脉结扎术 肝固有动脉瘤旷置+肝固有动脉自体大隐静脉旁路术 胃十二指肠动脉动脉瘤切除术 脾动脉瘤旷置+脾动脉人工血管旁路术 脾动脉瘤切除+脾动脉人工血管旁路术 胰十二指肠动脉动脉瘤切除术 肠系膜上动脉瘤切除术 肠系膜上动脉瘤旷置+肠系膜上动脉人工血管旁路术 肠系膜上动脉瘤切除+肠系膜上动脉人工血管旁路术 肠系膜上动脉瘤旷置+肠系膜上动脉自体大隐静脉旁路术 肠系膜上动脉瘤切除+肠系膜上动脉自体大隐静脉旁路术 肠系膜上动脉人工血管旁路术 肠系膜上动脉自体大隐静脉旁路术 肠系膜下动脉瘤旷置+肠系膜下动脉人工血管旁路术 肠系膜下动脉瘤切除+肠系膜下动脉人工血管旁路术 肠系膜下动脉瘤旷置+肠系膜下动脉自体大隐静脉旁路术 肾动脉人工血管旁路术 肾动脉自体大隐静脉旁路术 肾动脉瘤旷置+肾动脉人工血管旁路术 肾动脉瘤切除+肾动脉人工血管旁路术 肾动脉瘤旷置+肾动脉自体大隐静脉旁路术 肾动脉瘤切除+肾动脉自体大隐静脉旁路术 肾动脉瘤切除自体肾移植术 生殖动脉瘤切除术 肠系膜下动脉瘤切除+肠系膜下动脉自体大隐静脉旁路术 肠系膜下动脉瘤切除术 肠系膜下动脉人工血管旁路术 肠系膜下动脉自体大隐静脉旁路术 肝固有动脉瘤切除+肝固有动脉自体大隐静脉旁路术 肝固有动脉瘤旷置+肝固有动脉人工血管旁路术 肝固有动脉瘤切除+肝固有动脉人工血管旁路术 肝总动脉瘤旷置+肝总动脉自体大隐静脉旁路术 肝总动脉瘤切除+肝总动脉自体大隐静脉旁路术 肝总动脉瘤旷置+肝总动脉人工血管旁路术
A79: 63 | C79: 大静脉成形费 | D79: 通过手术对大静脉进行成形。 | E79: 所定价格涵盖手术计划、术区准备、消毒、切开、分离、切除、缝合成形、止血、包扎、处理用物，必要时补片修补等步骤所需的人力资源和基本物质资源消耗。 | H79: 次 | I79: 本项目中的“次”指：两根及以下血管，多于两根血管可按比例30%加收。 | J79: 4200 参考大动脉成形费4700 静脉壁薄，不好缝合 4医2护7小时 | K79: 4200 参考大动脉成形费4300 甲类 | L79: 4200 | M79: 3570 | N79: 3034 | O79: 甲类 | P79: 下腔静脉重建术 上腔静脉综合征直行人工血管转流术 门腔静脉侧侧吻合术 门腔静脉端侧吻合术 显微镜下胸导管甲状腺中静脉吻合术 显微镜下胸导管颈横静脉静脉吻合术 显微胸导管椎静脉吻合术
A80: 64 | C80: 头臂静脉成形费 | D80: 通过手术对头臂静脉进行成形。 | E80: 所定价格涵盖手术计划、术区准备、消毒、切开、分离、切除、缝合成形、止血、包扎、处理用物，必要时补片修补等步骤所需的人力资源和基本物质资源消耗。 | H80: 次 | I80: 本项目中的“次”指：两根及以下血管，多于两根血管可按比例30%加收。 | J80: 1800 4医2护3小时 | K80: 1800 甲类 | L80: 1800 | M80: 1530 | N80: 1300 | O80: 甲类 | P80: 颈内扩张静脉切除成形术
A81: 65 | C81: 肢体静脉成形费 | D81: 通过手术对肢体静脉进行成形。 | E81: 所定价格涵盖手术计划、术区准备、消毒、切开、分离、切除、缝合成形、止血、包扎、处理用物，必要时补片修补等步骤所需的人力资源和基本物质资源消耗。 | H81: 次 | I81: 本项目中的“次”指：两根及以下血管，多于两根血管可按比例30%加收。 | J81: 1600 与上项形成比价关系 4医2护3小时 | K81: 1400 参考“肢体动脉成形费” 甲类 | L81: 1400 | M81: 1190 | N81: 1011 | O81: 甲类 | P81: 下肢浅组静脉动脉化重建术 股静脉/腘静脉带瓣膜段植换术 四肢深静脉瘤切除术
A82: 66 | C82: 内脏静脉成形费 | D82: 通过手术对内脏静脉进行成形。 | E82: 所定价格涵盖手术计划、术区准备、消毒、切开、分离、切除、缝合成形、止血、包扎、处理用物，必要时补片修补等步骤所需的人力资源和基本物质资源消耗。 | H82: 次 | I82: 本项目中的“次”指：两根及以下血管，多于两根血管可按比例30%加收。 | J82: 2300加权平均 | K82: 2000 参考“内脏动脉成形费” 甲类 | L82: 2000 | M82: 1700 | N82: 1445 | O82: 甲类 | P82: 肠系膜上静脉重建术 肠系膜下静脉重建术 脾静脉腔静脉吻合术 脾静脉重建术 肾静脉重建术 生殖静脉重建术 肠系膜上静脉下腔静脉端侧吻合术(Marion手术) 肠系膜上静脉下腔静脉侧侧吻合术 远端脾静脉肾静脉吻合术(Warren手术) 内脏静脉瘤切除术
A83: 67 | C83: 大动脉破裂修补费 | D83: 通过手术修补破裂的大动脉。 | E83: 所定价格涵盖手术计划、术区准备、消毒、切开、分离、修补、缝合、止血、包扎、处理用物等步骤所需的人力资源和基本物质资源消耗。 | H83: 次 | I83: 本项目中的“次”指：两根及以下血管，多于两根血管可按比例30%加收。 | J83: 4000 5医3护6小时 参考主动脉瘤切除重建费（常规）难度较此项低 | K83: 4000 甲类 | L83: 4000 | M83: 3400 | N83: 2890 | O83: 甲类 | P83: 胸腹主动脉损伤修复术 腹主动脉下腔静脉修复术 胸主动脉损伤修复术 腹主动脉损伤修复术 腹主/髂动脉损伤修复术 髂动脉瘤成形术 髂动脉假性动脉瘤成形术 肋间动脉重建术 骨盆骨折髂内动脉结扎术
A84: 68 | C84: 头臂动脉破裂修补费 | D84: 通过手术修补破裂的头臂动脉。 | E84: 所定价格涵盖手术计划、术区准备、消毒、切开、分离、修补、缝合、止血、包扎、处理用物等步骤所需的人力资源和基本物质资源消耗。 | H84: 次 | I84: 本项目中的“次”指：两根及以下血管，多于两根血管可按比例30%加收。 | J84: 3800 参考大动脉破裂修补术4000 | K84: 3800 甲类 | L84: 3800 | M84: 3230 | N84: 2745 | O84: 甲类 | P84: 颈动脉迂曲矫正术
A85: 69 | C85: 肢体动脉破裂修补费 | D85: 通过手术修补破裂的肢体动脉。 | E85: 所定价格涵盖手术计划、术区准备、消毒、切开、分离、修补、缝合、止血、包扎、处理用物等步骤所需的人力资源和基本物质资源消耗。 | H85: 次 | I85: 本项目中的“次”指：两根及以下血管，多于两根血管可按30%加收。 | J85: 2200 加权平均(2191) | K85: 2200 甲类 | L85: 2200 | M85: 1870 | N85: 1589 | O85: 甲类 | P85: 肱动脉修复术 烧伤破裂血管修补缝合术 烧伤破裂血管移植术 前臂动脉修复术 腋动脉修复术 小腿动脉修复术 股动脉修复术 腘动脉修复术
A86: 70 | C86: 内脏动脉破裂修补费 | D86: 通过手术修补破裂的内脏动脉。 | E86: 所定价格涵盖手术计划、术区准备、消毒、切开、分离、修补、缝合、止血、包扎、处理用物等步骤所需的人力资源和基本物质资源消耗。 | H86: 次 | I86: 本项目中的“次”指：两根及以下血管，多于两根血管可按30%加收。 | J86: 2700 加权平均 （2700） | K86: 2700 甲类 | L86: 27000 | M86: 22950 | N86: 19507 | O86: 甲类 | P86: 髂动脉假性动脉瘤旷置术 髂动脉瘤旷置术 肝动脉结扎术 经腹腔镜肝动脉结扎术 腹腔干动脉综合征中弓韧带松解术 肝总动脉瘤旷置+肝总动脉结扎术 肝固有动脉瘤旷置+肝固有动脉结扎术 肠系膜上动脉瘤旷置术 肠系膜下动脉瘤旷置术 肠系膜下动脉重建术
A87: 71 | C87: 大静脉破裂修补费 | D87: 通过手术修补破裂的大静脉。 | E87: 所定价格涵盖手术计划、术区准备、消毒、切开、分离、修补、缝合、止血、包扎、处理用物等步骤所需的人力资源和基本物质资源消耗。 | H87: 次 | I87: 本项目中的“次”指：两根及以下血管，多于两根血管可按30%加收。 | J87: 2850 加权平均2850 | K87: 2850 甲类 | L87: 2850 | M87: 2422.5 | N87: 2059 | O87: 甲类 | P87: 腔静脉损伤修复术 下腔静脉血管平滑肌肉瘤切除人工血管重建术 肠系膜下静脉结扎术 髂静脉血管平滑肌肉瘤切除术 髂静脉血管平滑肌肉瘤切除人工血管重建术 下腔静脉血管平滑肌肉瘤切除术
A88: 72 | C88: 头臂静脉破裂修补费 | D88: 通过手术修补破裂的头臂静脉。 | E88: 所定价格涵盖手术计划、术区准备、消毒、切开、分离、修补、缝合、止血、包扎、处理用物等步骤所需的人力资源和基本物质资源消耗。 | H88: 次 | I88: 本项目中的“次”指：两根及以下血管，多于两根血管可按30%加收。 | J88: 2200 价格平移 | K88: 2200 甲类 | L88: 2200 | M88: 1870 | N88: 1589 | O88: 甲类 | P88: 锁骨下静脉修复术
A89: 73 | C89: 肢体静脉破裂修补费 | D89: 通过手术修补破裂的肢体静脉。 | E89: 所定价格涵盖手术计划、术区准备、消毒、切开、分离、修补、缝合、止血、包扎、处理用物等步骤所需的人力资源和基本物质资源消耗。 | H89: 次 | I89: 本项目中的“次”指：两根及以下血管，多于两根血管可按30%加收。 | J89: 1800 加权平均1805 | K89: 1800 甲类 | L89: 1800 | M89: 1530 | N89: 1300 | O89: 甲类 | P89: 肱静脉修复术 前臂静脉修复术 腋静脉修复术 股静脉修复术 腘静脉修复术
A90: 74 | C90: 内脏静脉破裂修补费 | D90: 通过手术修补破裂的内脏静脉。 | E90: 所定价格涵盖手术计划、术区准备、消毒、切开、分离、修补、缝合、止血、包扎、处理用物等步骤所需的人力资源和基本物质资源消耗。 | H90: 次 | I90: 本项目中的“次”指：两根及以下血管，多于两根血管可按比例加收。 | J90: 2000 参考比价关系，难度介于“头臂静脉破裂修补费”与“肢体静脉破裂修补费”之间 | K90: 2000 甲类 | L90: 2000 | M90: 1700 | N90: 1445 | O90: 甲类 | P90: 髂静脉修复术 生殖静脉结扎术
A91: 75 | C91: 非浅表血管瘤切除费（常规） | D91: 通过手术切除非浅表血管瘤。 | E91: 所定价格涵盖手术计划、术区准备、消毒、切开、分离、切除、重建、缝合、止血、包扎、处理用物等步骤所需的人力资源和基本物质资源消耗。 | H91: 次 | I91: 浅表血管瘤按体被系统“血管瘤去除费”收取。 | J91: 800 价格平移 | K91: 800 甲类 | L91: 800 | M91: 680 | N91: 578 | O91: 甲类 | P91: 血管球瘤切除术
A92: 76 | C92: 非浅表血管瘤切除费（复杂） | D92: 通过手术切除复杂情况下的非浅表血管瘤。 | E92: 所定价格涵盖手术计划、术区准备、消毒、切开、分离、切除、重建、缝合、止血、包扎、处理用物等步骤所需的人力资源和基本物质资源消耗。 | H92: 次 | I92: 1.浅表血管瘤按体被系统“血管瘤去除费”收取。 2.本项目所称的“复杂”指：瘤体最大径≥5cm，瘤体累及肌肉、神经干的情况。 | J92: 1800 4医2护3小时 | K92: 1800 甲类 | L92: 1800 | M92: 1530 | N92: 1300 | O92: 甲类
A93: 77 | C93: 下腔静脉/肝静脉阻塞分流费 | D93: 通过分流方式治疗下腔静脉/肝静脉阻塞。 | E93: 所定价格涵盖手术计划、术区准备、消毒、切开、分流、重建、缝合、止血、包扎、处理用物等步骤所需的人力资源和基本物质资源消耗。 | H93: 次 | J93: 2900 加权平均 | K93: 2900 甲类 | L93: 2900 | M93: 2465 | N93: 2095 | O93: 甲类 | P93: 布加综合征肠-颈人工血管转流术 布加综合征肠-房人工血管转流术 布加综合征腔-肠-房人工血管转流术 布加综合征腔-房人工血管转流术 锁骨下静脉-下腔静脉人工血管转流术
A94: 78 | C94: 下腔静脉/肝静脉阻塞病变切除费 | D94: 通过切除方式治疗下腔静脉/肝静脉阻塞。 | E94: 所定价格涵盖手术计划、术区准备、消毒、切开、切除、重建、缝合、止血、包扎、处理用物等步骤所需的人力资源和基本物质资源消耗。 | H94: 次 | J94: 2900 加权平均2875 | K94: 2900 甲类 | L94: 2900 | M94: 2465 | N94: 2095 | O94: 甲类 | P94: 布加综合征根治术 布加综合征肝静脉流出道成形术 布加综合征膈膜切除术 布加综合征经右房破膜术 布加综合征经股静脉右房联合破膜+球囊成形术 布加综合征经股静脉右房联合破膜+支架成形术 上腔静脉取栓＋补片成形术 下腔静脉取栓＋补片成形术
A95: 79 | C95: 静脉切开支架置入费 | D95: 通过手术切开静脉置入支架。 | E95: 所定价格涵盖手术计划、术区准备、消毒、切开、分离、切除、重建、缝合、止血、包扎、处理用物等步骤所需的人力资源和基本物质资源消耗。 | H95: 次 | J95: 3000 参考“肢体静脉支架置入费（介入）” | K95: 3000 甲类 | L95: 3000 | M95: 2550 | N95: 2167 | O95: 甲类
A96: 80 | C96: 动脉旁路移植费（常规） | D96: 通过手术建立动脉与动脉之间的通道。 | E96: 所定价格涵盖手术计划、术区准备、消毒、切开、分离、吻合重建、缝合、止血、包扎、处理用物等步骤所需的人力资源和基本物质资源消耗。 | H96: 次 | J96: 2500 与“动脉旁路移植费（复杂）”成比价关系 | K96: 2500 甲类 | L96: 2500 | M96: 2125 | N96: 1806 | O96: 甲类 | P96: 股静脉-大隐静脉原位转流术 股静脉-腋静脉自体大隐静脉转流术
A97: 81 | C97: 动脉旁路移植费（复杂） | D97: 通过手术建立复杂情况下的动脉与动脉之间的通道。 | E97: 所定价格涵盖手术计划、术区准备、消毒、切开、分离、吻合重建、缝合、止血、包扎、处理用物等步骤所需的人力资源和基本物质资源消耗。 | H97: 次 | I97: 本项目所称的“复杂”指：两根及以上旁路移植，主动脉旁路移植,膝下三分支动脉旁路移植,自体血管旁路移植。 | J97: 2800 加权平均2818 | K97: 2800 甲类 | L97: 2800 | M97: 2380 | N97: 2023 | O97: 甲类 | P97: 股-腓动脉血管旁路术 颈总动脉-锁骨下动脉旁路移植术 颈总动脉-腋动脉旁路移植术 右颈总动脉-左颈总动脉旁路术 左锁骨下动脉-左颈内动脉旁路术 椎动脉-锁骨下动脉旁路术 椎动脉-颈总动脉端侧吻合术 股-胫前/后动脉血管旁路术 腘-胫前/后动脉血管旁路术 腘动脉-胫前动脉自体大隐静脉原位移植术 腘动脉-胫后动脉自体大隐静脉原位移植术 腘动脉-腓动脉自体大隐静脉原位移植术 腋动脉-腋动脉旁路移植术 股股动脉耻骨上自体大隐静脉旁路术 股-股动脉耻骨上人工血管旁路术 同侧股-股动脉人工血管旁路术 股动脉-腓动脉自体大隐静脉原位移植术 股-膝上腘动脉血管旁路术 股-膝上腘动脉自体大隐静脉原位移植术 股-膝下腘动脉自体大隐静脉原位移植术 股-胫前/后动脉自体大隐静脉原位移植术 股-膝下腘动脉血管旁路术 腘-腓动脉血管旁路术 升主动脉－腹主动脉旁路术 升主动脉-颈内(总)动脉旁路术 升主动脉-颈内动脉及锁骨下动脉旁路术 升主动脉双锁骨下动脉Y型人工血管旁路术 升主动脉-双腋动脉Y型人工血管-单侧颈动脉自体血管旁路术 升主动脉-双腋动脉Y型人工血管旁路术 升主动脉－胸主动脉旁路移植术 髂股动脉闭塞髂动脉-股动脉人工血管旁路术 腋-双股动脉人工血管旁路术 腋-单股动脉人工血管旁路术
A98: 82 | C98: 静脉旁路移植费 | D98: 通过手术建立静脉与静脉之间的通道。 | E98: 所定价格涵盖手术计划、术区准备、消毒、切开、分离、吻合重建、缝合、止血、包扎、处理用物等步骤所需的人力资源和基本物质资源消耗。 | H98: 次 | J98: 2300 加权平均 | K98: 2300 甲类 | L98: 2300 | M98: 1955 | N98: 1661 | O98: 甲类 | P98: 上腔静脉综合征Y型人工血管转流术 上腔静脉-股静脉人工血管转流术 上腔静脉-髂静脉人工血管转流术 双髂静脉-下腔静脉人工血管转流术 肠系膜上静脉下腔静脉H型分流术 股-股静脉耻骨上血管转流术 股-股静脉自体大隐静脉耻骨上转流术 腹水静脉转流术 股静脉-下腔静脉人工血管转流术 双股静脉-下腔静脉人工血管转流术 腋-股静脉自体大隐静脉转流术 股静脉-腋静脉人工血管转流术 上腔静脉-下腔静脉人工血管转流术 无名静脉-股静脉人工血管转流术 无名静脉-髂静脉人工血管转流术 无名静脉-下腔静脉人工血管转流术 颈内静脉-股静脉人工血管转流术 颈内静脉-髂静脉人工血管转流术 颈内静脉-下腔静脉人工血管转流术 锁骨下静脉-股静脉人工血管转流术 腋-股静脉人工血管转流术 锁骨下静脉-髂静脉人工血管转流术 脾肾静脉转流术 髂静脉-下腔静脉人工血管转流术
A99: 83 | C99: 血管阻断费 | D99: 通过手术永久或临时闭合血管。 | E99: 所定价格涵盖手术计划、术区准备、消毒、切开、分离、切除、缝合、止血、包扎、处理用物等步骤所需的人力资源和基本物质资源消耗。 | H99: 次 | J99: 400 2医2护1小时 | K99: 400 甲类 | L99: 400 | M99: 340 | N99: 289 | O99: 甲类
A100: 84 | C100: 曲张静脉缝扎费 | D100: 通过手术对曲张的静脉进行缝扎。 | E100: 所定价格涵盖手术计划、术区准备、消毒、切开、分离、缝扎、缝合、止血、包扎、处理用物等步骤所需的人力资源和基本物质资源消耗。 | H100: 次 | J100: 2100 加权平均2066 | K100: 2100 甲类 | L100: 2100 | M100: 1785 | N100: 1517 | O100: 甲类 | P100: 经胸食管下端曲张静脉缝扎术 胃底曲张静脉缝扎术(Boerema手术) 经腹腔镜胃底曲张静脉缝扎术
A101: 85 | C101: 主动脉消化道瘘修复费 | D101: 通过手术修复主动脉消化道瘘。 | E101: 所定价格涵盖手术计划、术区准备、消毒、切开、分离、修复、缝合、止血、包扎、处理用物等步骤所需的人力资源和基本物质资源消耗。 | H101: 次 | J101: 2500 价格平移 | K101: 2500 甲类 | L101: 2500 | M101: 2125 | N101: 1806 | O101: 甲类 | P101: 腹主动脉消化道瘘修复术 髂动脉消化道瘘修复术
A102: 86 | C102: 动脉膀胱瘘修复费 | D102: 通过手术修复动脉膀胱瘘。 | E102: 所定价格涵盖手术计划、术区准备、消毒、切开、分离、修复、缝合、止血、包扎、处理用物等步骤所需的人力资源和基本物质资源消耗。 | H102: 次 | J102: 2500 价格平移 | K102: 2500 甲类 | L102: 2500 | M102: 2125 | N102: 1806 | O102: 甲类 | P102: 腹主动脉膀胱瘘修复术 髂动脉膀胱瘘修复术
A103: 87 | C103: 静脉瓣修复费 | D103: 通过手术修复静脉瓣。 | E103: 所定价格涵盖手术计划、术区准备、消毒、切开、分离、修复、缝合、止血、包扎、处理用物等步骤所需的人力资源和基本物质资源消耗。 | H103: 次 | J103: 1300 高频平移 | K103: 1300 甲类 | L103: 1300 | M103: 1105 | N103: 939 | O103: 甲类 | P103: 经血管镜股静脉瓣修复术 股静脉瓣膜切开修补术 经血管镜腘静脉瓣修复术 腘静脉瓣膜切开修补术 股静脉带戒术 腘静脉带戒术
A104: 88 | C104: 血管切开取异物费 | D104: 通过手术切开血管，取出异物。 | E104: 所定价格涵盖手术计划、术区准备、消毒、切开、游离、阻断、取出异物、缝合止血、包扎、处理用物等步骤所需的人力资源和基本物质资源消耗。 | H104: 次 | J104: 2500 参考且难度高于“血管异物取出费（介入）”、“心内异物取出费（介入）” | K104: 2500 甲类 | L104: 2500 | M104: 2125 | N104: 1806 | O104: 甲类
A105: 89 | C105: 动脉切开取栓费 | D105: 通过手术切开动脉，取出血栓。 | E105: 所定价格涵盖手术计划、术区准备、消毒、切开、游离、阻断、取出血栓、缝合止血、包扎、处理用物等步骤所需的人力资源和基本物质资源消耗。 | H105: 次 | J105: 2400 加权平均 | K105: 2400 甲类 | L105: 2400 | M105: 2040 | N105: 1734 | O105: 甲类 | P105: 肠系膜上动脉取栓术 肺动脉切开取栓术 肾动脉切开取栓术 人工血管切开取栓术 腹主动脉髂动脉内血栓切除术
A106: 90 | C106: 静脉切开取栓费 | D106: 通过手术切开静脉，取出血栓。 | E106: 所定价格涵盖手术计划、术区准备、消毒、切开、游离、阻断、取出血栓、缝合止血、包扎、处理用物等步骤所需的人力资源和基本物质资源消耗。 | H106: 次 | J106: 1500 加权平均1495 | K106: 1500 甲类 | L106: 1500 | M106: 1275 | N106: 1083 | O106: 甲类 | P106: 肢体静脉切开取栓术 下腔静脉切开取栓术 门静脉切开取栓术
A107: 91 | C107: 动脉栓塞费 | D107: 通过手术置入栓塞材料栓塞动脉。 | E107: 所定价格涵盖手术计划、术区准备、消毒、切开、插管、栓塞、缝合、止血、包扎、处理用物等步骤所需的人力资源和基本物质资源消耗。 | H107: 次 | J107: 2100 价格平移 | K107: 2100 甲类 | L107: 2100 | M107: 1785 | N107: 1517 | O107: 甲类 | P107: 经皮穿刺肝总动脉瘤栓塞术
A108: 92 | C108: 静脉栓塞费 | D108: 通过手术置入栓塞材料栓塞静脉。 | E108: 所定价格涵盖手术计划、术区准备、消毒、切开、插管、栓塞、缝合、止血、包扎、处理用物等步骤所需的人力资源和基本物质资源消耗。 | H108: 次 | J108: 1800 加权平均1792 | K108: 1800 甲类 | L108: 1800 | M108: 1530 | N108: 1300 | O108: 甲类 | P108: 门静脉栓塞术 经皮肝穿刺胃底静脉曲张栓塞术 经颈内静脉穿刺肝胃底静脉曲张栓塞术
A109: 93 | C109: 肢体动脉内膜剥脱费 | D109: 通过手术剥脱病变的肢体动脉内膜。 | E109: 所定价格涵盖手术计划、术区准备、消毒、切开、剥脱、缝合、止血、包扎、处理用物等步骤所需的人力资源和基本物质资源消耗。 | H109: 次 | J109: 2100 价格平移 | K109: 2100 甲类 | L109: 2100 | M109: 1785 | N109: 1517 | O109: 甲类 | P109: 股动脉内膜剥脱术
A110: 94 | C110: 大动脉内膜剥脱费 | D110: 通过手术剥脱病变的大动脉内膜。 | E110: 所定价格涵盖手术计划、术区准备、消毒、切开、剥脱、缝合、止血、包扎、处理用物等步骤所需的人力资源和基本物质资源消耗。 | H110: 次 | J110: 3500 参考且难度低于“大动脉破裂修补费”（4000） | K110: 3500 甲类 | L110: 3500 | M110: 2975 | N110: 2528 | O110: 甲类 | P110: 腹主动脉内膜剥脱术 肺动脉内膜剥脱术
A111: 95 | C111: 内脏动脉内膜剥脱费 | D111: 通过手术剥脱病变的内脏动脉内膜。 | E111: 所定价格涵盖手术计划、术区准备、消毒、切开、剥脱、缝合、止血、包扎、处理用物等步骤所需的人力资源和基本物质资源消耗。 | H111: 次 | J111: 3500 参考“大动脉内膜剥脱费”且难度一致 | K111: 3500 甲类 | L111: 3500 | M111: 2975 | N111: 2528 | O111: 甲类 | P111: 肾动脉内膜剥脱术 髂动脉内膜剥脱术
A112: 96 | C112: 弓上动脉内膜剥脱费 | D112: 通过手术剥脱病变的弓上动脉内膜。 | E112: 所定价格涵盖手术计划、术区准备、消毒、切开、剥脱、缝合、止血、包扎、处理用物等步骤所需的人力资源和基本物质资源消耗。 | H112: 次 | I112: 行颈动脉内膜剥脱的，按神经系统立项指南“颈动脉内/外膜剥脱费”收取。 | J112: 6400 5医3护8小时 | K112: 6400 甲类 | L112: 6400 | M112: 5440 | N112: 4624 | O112: 甲类
A113: 97 | C113: 动脉（瘤）缩缝费 | D113: 通过手术缝合缩窄动脉（瘤）。 | E113: 所定价格涵盖手术计划、术区准备、消毒、切开、缝合、止血、包扎、处理用物等步骤所需的人力资源和基本物质资源消耗。 | H113: 次 | J113: 2500 价格平移 | K113: 2500 甲类 | L113: 2500 | M113: 2125 | N113: 1806 | O113: 甲类 | P113: 颈动脉瘤缩缝术
A114: 98 | C114: 静脉（瘤）缩缝费 | D114: 通过手术缝合缩窄静脉（瘤）。 | E114: 所定价格涵盖手术计划、术区准备、消毒、切开、缝合、止血、包扎、处理用物等步骤所需的人力资源和基本物质资源消耗。 | H114: 次 | J114: 2200 参考“动脉（瘤）缩缝费”且成比价关系 | K114: 2200 甲类 | L114: 2200 | M114: 1870 | N114: 1589 | O114: 甲类
A115: 99 | C115: 动静脉转流费 | D115: 通过手术吻合动脉和静脉，改变血液循环路径。 | E115: 所定价格涵盖手术计划、术区准备、消毒、切开、吻合、缝合、止血、包扎、处理用物等步骤所需的人力资源和基本物质资源消耗。 | H115: 次 | J115: 1400 高频平移 | K115: 1400 甲类 | L115: 1400 | M115: 1190 | N115: 1011 | O115: 甲类 | P115: 下肢深组静脉动脉化重建术 临时性动静脉瘘成形术 自体动静脉内瘘成形术 人工动静脉内瘘血管转流术 人工动静脉瘘切除重造术
A116: 100 | C116: 动静脉瘘切除费 | D116: 通过手术切除自身或人工血管的动静脉瘘。 | E116: 所定价格涵盖手术计划、术区准备、消毒、切开、切除、缝合、止血、包扎、处理用物等步骤所需的人力资源和基本物质资源消耗。 | H116: 次 | J116: 1500 加权平均1446 | K116: 1500 甲类 | L116: 1500 | M116: 1275 | N116: 1083 | O116: 甲类 | P116: 人工动静脉瘘切除重造术 先天性动静脉瘘切除术 前臂动脉创伤性动静脉瘘修补术 临时动静脉瘘二期结扎术 颈动脉创伤性动静脉瘘修补术 锁骨下动脉创伤性动静脉瘘修补术 经皮穿刺髂动脉创伤性动静脉瘘修补术 髂动脉创伤性动静脉瘘修补术 肱动脉创伤性动静脉瘘修补术 腋动脉创伤性动静脉瘘修补术 小腿动脉创伤性动静脉瘘修补术 股动脉创伤性动静脉瘘修补术 腘动脉创伤性动静脉瘘修补术
A117: 101 | C117: 主动脉腔静脉瘘修复费 | D117: 通过手术修复主动脉腔静脉之间的异常通道。 | E117: 所定价格涵盖手术计划、术区准备、消毒、切开、修复、缝合、止血、包扎、处理用物等步骤所需的人力资源和基本物质资源消耗。 | H117: 次 | J117: 2500 高价平移 | K117: 2500 甲类 | L117: 2500 | M117: 2125 | N117: 1806 | O117: 甲类 | P117: 胸主动脉上腔静脉瘘修复术 胸主动脉创伤性动静脉瘘修补术 腹主动脉创伤性动静脉瘘修补术
A118: 102 | C118: 静脉结扎剥脱费 | D118: 通过手术结扎剥脱静脉。 | E118: 所定价格涵盖手术计划、术区准备、消毒、切开、结扎、剥脱、缝合、止血、包扎、处理用物等步骤所需的人力资源和基本物质资源消耗。 | H118: 次 | J118: 3000 高频平移 | K118: 3000 甲类 | L118: 3000 | M118: 2550 | N118: 2167 | O118: 甲类 | P118: 大隐静脉高位结扎＋剥脱术 腔镜下下肢静脉交通支结扎术 上肢浅静脉曲张剥脱术 下肢曲张浅静脉团局部切除术 小隐静脉高位结扎＋剥脱术
A119: 103 | C119: 自体血管取材费 | D119: 通过手术切取自体血管并进行制备，供后续使用。 | E119: 所定价格涵盖手术计划、术区准备、消毒、切开、切取、制备、缝合、止血、包扎、处理用物等步骤所需的人力资源和基本物质资源消耗。 | H119: 次 | J119: 650 高频平移 | K119: 650 甲类 | L119: 3000 | M119: 2550 | N119: 2167 | O119: 甲类 | P119: 大隐静脉取材术 头静脉取材术 桡动脉取材术
A120: 104 | C120: 大网膜游离移植费 | D120: 通过手术切取自体大网膜，移植到身体的其他部位。 | E120: 所定价格涵盖手术计划、术区准备、消毒、切开、切取、移植、缝合、止血、包扎、处理用物等步骤所需的人力资源和基本物质资源消耗。 | H120: 次 | J120: 1000 价格平移 | K120: 1000 甲类 | L120: 1000 | M120: 850 | N120: 722 | O120: 甲类 | P120: 大网膜游离移植术
A121: 105 | C121: 静脉肌襻成形费 | D121: 通过手术构建肌襻模拟静脉瓣膜。 | E121: 所定价格涵盖手术计划、术区准备、消毒、切开、游离腘静脉、游离肌襻、包绕静脉、缝合、止血、包扎、处理用物等步骤所需的人力资源和基本物质资源消耗。 | H121: 次 | J121: 1350 价格平移 | K121: 1350 甲类 | L121: 1350 | M121: 1147.5 | N121: 975 | O121: 甲类 | P121: 腘静脉肌襻成形术
A122: 106 | C122: 血管松解费 | D122: 通过手术松解血管。 | E122: 所定价格涵盖手术计划、术区准备、消毒、切开、松解、缝合、止血、包扎、处理用物等步骤所需的人力资源和基本物质资源消耗。 | H122: 次 | I122: 不与同血管其他相关手术同时收费。 | J122: 1800 4医2护3小时 | K122: 1800 甲类 | L122: 1800 | M122: 1530 | N122: 1300 | O122: 甲类 | P122: 腘窝陷迫综合征腘动脉松解术
A123: 107 | C123: 血管保护装置置入费 | D123: 通过手术置入各类血管保护装置。 | E123: 所定价格涵盖手术计划、术区准备、定位、消毒、切开、置入、缝合、包扎、处理用物等步骤所需的人力资源和基本物质资源消耗。 | H123: 次 | J123: 2000 参考“血管保护装置置入费（介入）”且成比价关系 | K123: 2000 甲类 | L123: 2000 | M123: 1700 | N123: 1445 | O123: 甲类
A124: 108 | C124: 血管保护装置取出费 | D124: 通过手术切开取出各类血管保护装置。 | E124: 所定价格涵盖手术计划、术区准备、定位、消毒、切开、取出、缝合、包扎、处理用物等步骤所需的人力资源和基本物质资源消耗。 | H124: 次 | J124: 2200 参考“血管保护装置取出费（介入）”且成比价关系 | K124: 2200 甲类 | L124: 2200 | M124: 1870 | N124: 1589 | O124: 甲类 | P124: 上腔静脉切开滤器取出术 下腔静脉切开滤器取出术
A125: 109 | C125: 肢体血管药物封闭费 | D125: 通过穿刺将药物注入曲张血管进行治疗。 | E125: 所定价格涵盖准备、消毒、穿刺、注入药物、处理用物等步骤所需的人力资源和基本物质资源消耗。 | H125: 单肢 | J125: 300 过会价格 | K125: 300 乙类 | L125: 300 | M125: 255 | N125: 216 | O125: 乙类 | P125: 大隐静脉硬化剂注射治疗 下肢曲张浅静脉硬化剂治疗 股动脉假性动脉瘤凝血酶注入封闭术
A126: 110 | C126: 淋巴管瘤切除费（常规） | D126: 通过手术切除淋巴管瘤。 | E126: 所定价格涵盖手术计划、术区准备、消毒、切开、分离、切除、吻合、处理用物等步骤所需的人力资源和基本物质资源消耗。 | H126: 次 | J126: 1800 4医2护3小时 | K126: 1800 甲类 | L126: 1800 | M126: 1530 | N126: 1300 | O126: 甲类 | P126: 腹膜后淋巴管瘤切除术(小)
A127: 111 | C127: 淋巴管瘤切除费（复杂） | D127: 通过手术切除复杂淋巴管瘤。 | E127: 所定价格涵盖手术计划、术区准备、消毒、切开、分离、切除、吻合、处理用物等步骤所需的人力资源和基本物质资源消耗。 | H127: 次 | I127: 本项目所称的“复杂”指：直径≥5厘米，瘤体包绕腹主动脉、下腔静脉、颈部腋窝血管神经束。 | J127: 3000 4医2护5小时 | K127: 3000 甲类 | L127: 3000 | M127: 2550 | N127: 2167 | O127: 甲类 | P127: 腹膜后淋巴管瘤切除术(中) 腹膜后淋巴管瘤切除术(大)
A128: 112 | C128: 周围淋巴管移植费 | D128: 通过手术移植周围淋巴管。 | E128: 所定价格涵盖手术计划、术区准备、消毒、切开、分离、移植、处理用物等步骤所需的人力资源和基本物质资源消耗。 | H128: 次 | J128: 1800 4医2护3小时 | K128: 1800 甲类 | L128: 1800 | M128: 1530 | N128: 1300 | O128: 甲类
A129: 113 | C129: 胸导管结扎费 | D129: 通过手术结扎胸导管。 | E129: 所定价格涵盖手术计划、术区准备、消毒、切开、分离、结扎、处理用物等步骤所需的人力资源和基本物质资源消耗。 | H129: 次 | J129: 1800 加权平均 | K129: 1800 甲类 | L129: 1800 | M129: 1530 | N129: 1300 | O129: 甲类 | P129: 胸导管结扎术 经胸腔镜胸导管结扎术
A130: 114 | C130: 胸导管狭窄成形费 | D130: 通过手术对狭窄胸导管进行修复。 | E130: 所定价格涵盖手术计划、术区准备、消毒、切开、分离、修复成形、处理用物等步骤所需的人力资源和基本物质资源消耗。 | H130: 次 | J130: 2000 3医2护4小时 | K130: 2000 甲类 | L130: 2000 | M130: 1700 | N130: 1445 | O130: 甲类
A131: 115 | C131: 淋巴管静脉吻合费（常规） | D131: 通过手术将淋巴管与静脉进行吻合，以构建淋巴-静脉侧支循环。 | E131: 所定价格涵盖手术计划、术区准备、消毒、分离、切开、吻合、处理用物等步骤所需的人力资源和基本物质资源消耗。 | H131: 血管 | J131: 1200 高频平移 | K131: 1200 甲类 | L131: 1200 | M131: 1020 | N131: 867 | O131: 甲类 | P131: 显微镜下会阴浅淋巴管静脉分支吻合术 显微镜下前臂浅淋巴管静脉吻合术 显微镜下前臂内侧浅淋巴管静脉吻合术 显微镜下尺动脉旁深淋巴管静脉吻合术 显微镜下头静脉伴行淋巴管静脉吻合术 显微镜下桡动脉旁深淋巴管静脉吻合术 显微镜下手背浅淋巴管静脉吻合术 显微镜下内踝深淋巴管-胫后静脉分支吻合术 显微镜下大腿中部浅淋巴管大隐静脉分支吻合术 显微镜下小腿浅淋巴管静脉吻合术 显微镜下足背浅淋巴管静脉吻合术 显微镜下精索淋巴管静脉吻合术
A132: 116 | C132: 淋巴管静脉吻合费（复杂） | D132: 通过手术将复杂部位的淋巴管与静脉进行吻合，以构建淋巴-静脉侧支循环。 | E132: 所定价格涵盖手术计划、术区准备、消毒、分离、切开、吻合、处理用物等步骤所需的人力资源和基本物质资源消耗。 | H132: 血管 | I132: 本项目所称的“复杂”指：吻合部位位于颈部/腋窝/肱动静脉周围/纵隔/腹膜后/腹股沟区。 | J132: 1900 高频平移 | K132: 1900 甲类 | L132: 1900 | M132: 1615 | N132: 1372 | O132: 甲类 | P132: 显微镜下胸导管颈内静脉端端吻合术 显微镜下胸导管颈外静脉吻合术 显微镜下腹腔淋巴管静脉吻合术 显微镜下腹膜后淋巴管静脉吻合术 显微镜下腹股沟浅淋巴管静脉吻合术 显微镜下腹股沟下淋巴结输入淋巴管大隐静脉分支吻合术 显微镜下髂外深淋巴管静脉吻合术 显微镜下股深淋巴管静脉吻合术 淋巴结大隐静脉吻合术 显微镜下上臂深淋巴管静脉吻合术

Sheet 辅助操作
A2: 手术和治疗辅助操作类医疗服务价格项目立项指南
A3: 使用说明： 1.手术和治疗辅助操作类医疗服务价格项目立项指南以辅助操作为重点，按照辅助操作相关医疗服务产出设立价格项目。 2.手术和治疗辅助操作类医疗服务价格项目立项指南所称“价格构成”，指项目价格应涵盖的各类资源消耗，用于确定计价单元的边界，不应作为临床技术标准理解，不是实际操作方式、路径、步骤、程序的强制性要求，价格构成中包含但临床实践中非必要、未发生的，无需强制要求公立医疗机构减计费用。所列“设备运转成本”包括但不限于操作设备、器具及固定资产投入。 3.手术和治疗辅助操作类医疗服务价格项目立项指南所称“加收项”，指同一项目以不同方式提供或在不同场景应用时，确有必要制定差异化收费标准而细分的一类子项，包括在原项目价格基础上增加或减少收费的情况，具体的加/减收标准（加/减收率或加/减收金额）由具体的价格项目设置；实际应用中，同时涉及多个加收项的，以项目单价为基础计算相应的加/减收水平后，据实收费。 4.手术和治疗辅助操作类医疗服务价格项目立项指南所称“扩展项”，指同一项目下以不同方式提供或在不同场景应用时，只扩展价格项目适用范围、不额外加价的一类子项，子项的价格按主项目执行。 5.手术和治疗辅助操作类医疗服务价格项目立项指南所称“基本物质资源消耗”，指原则上限于不应或不必要与医疗服务项目分割的易耗品，包括但不限于各类消杀灭菌用品、储存用品、清洁用品、个人防护用品、标签、垃圾处理用品、润滑剂、治疗巾（单）、棉球、棉签、纱布（垫）、普通绷带、固定带、治疗护理盘（包）、普通注射器、护（尿）垫、中单、冲洗工具、备皮工具、耦合剂、无菌罩、软件（版权、开发、购买）成本等。基本物质资源消耗成本计入项目价格，不另行收费。 6.手术和治疗辅助操作类医疗服务价格项目立项指南价格构成中所称“穿刺”为主项操作涉及的必要穿刺技术，价格构成中的穿刺操作不可收取相关费用；独立穿刺项目可按相应治疗价格项目收取。 7.手术和治疗辅助操作类医疗服务价格项目立项指南中涉及“包括……”“……等”的，属于开放型表述，所指对象不仅局限于表述中列明的事项，也包括未列明的同类事项。 8.手术和治疗辅助操作类医疗服务价格项目立项指南所设立价格项目为通用项目，已在其他类别立项指南特定学科中单独设立价格项目的，优先执行特定学科的价格项目。 9.医疗机构开展相关“医学3D重建辅助操作”“手术路径导航辅助操作”“手术机械臂辅助操作”“远程手术辅助操作”的，需保存并上传符合要求的医疗数据和设备运行记录，未提供上传数据和存储服务的，执行减收政策。 10.临床实践中，手术和治疗的操作多需辅助操作技术伴随进行，“医疗服务价格项目立项指南”中，对于应用辅助操作技术的手术或治疗合并设置了专门项目的，医疗机构照其立项收费，不得重复收取辅助操作费。例如，“心脏直视消融费”的价格构成已包含射频消融，不得重复收取“射频辅助操作费”;对于应用辅助操作技术的手术或治疗未合并设置专门项目的，按本指南确定各类辅助操作费价格水平，医疗机构按照“手术/治疗价格”+“辅助操作费”的方式收费，无需另行申报新增医疗服务价格项目。 11.首次引导不足半小时/十分钟的，按半小时/十分钟收费。 13.手术和治疗辅助操作类医疗服务价格项目立项指南可收费医用耗材：颅内镜头、一次性内镜切割缝合器、一次性内镜钛夹、止血材料、切口保护器、生物胶、皮肤缝合器、特殊缝线、切割吻合器、血管闭合器、一次性内镜抓钳、胸腔镜穿刺套管、大血管闭合系统、一次性吻合器、切割缝合器、钉仓、血管夹、皮肤钉合器、防粘连材料、打孔器(trocar)、钛夹、活检针、塑料夹(Hem-o-lok)、腹腔镜手助套装、内镜用取物管袋、膨宫管、膨宫介质、电切环、滚球、激光刀头、特殊激光刀头、激光探头、激光光纤、激光脉冲、微波探头、微波手术钳、微波消融针、射频针、射频刀头、射频毁损电极、射频探头、射频脉冲、射频纤维、射频消融导管、超声刀头、等离子刀头、无菌颅骨钻头、铣刀、无菌磨钻头、无菌骨锯片、无菌钻针、无菌眼耳鼻喉刨刀头、无菌耳鼻喉钻头、眼科用钻头、无菌铣刀、无菌关节刨刀、无菌关节钻头、无菌微创脊柱变向磨钻头、无菌微创脊柱磨钻头、无菌微创脊柱钻头、无菌微创脊柱刨刀、无菌柳锯片、变向磨钻头、脊柱直钻头、摆动锯、矢状锯、切割钻头、镍钛根管挫、研磨钻头、去除根(或管)充填物的材料。
A5: 序号 | B5: 项目编码 | C5: 项目名称 | D5: 服务产出 | E5: 价格构成 | F5: 加收项 | G5: 扩展项 | H5: 计价单位 | I5: 计价说明 | J5: 指导价格 | M5: 医保支付类别 | N5: 映射项目名称
J6: 三级 | K6: 二级 | L6: 一级
A7: 1 | C7: 医学3D重建辅助操作费 | D7: 通过数字技术、人工智能技术等将患者影像检查结果构建虚拟3D模型，满足术前规划、导板设计、手术预演、可植入假体制作等需要。 | E7: 所定价格涵盖计算软件或人工智能建模、协助医生提前预演手术操作并研判手术效果、数据处理与上传存储（含数字方式）等步骤所需的人力资源、设备运转成本与基本物质资源消耗。 | H7: 次 | I7: 1.医疗机构未上传医疗数据和设备运行记录的，应执行减收政策，减收标准不低于100元。 2.口腔种植类的按“医学3D建模（口腔）”收费。 3.颌面外科按本项目收费。 | J7: 260 | K7: 221 | L7: 187 | M7: 丙类
A8: 2 | C8: 医学3D模型打印辅助操作费 | D8: 通过增材制造技术将虚拟3D模型制备成仅具有病情诊断、手术规划功能的实体模型。 | E8: 所定价格涵盖模型接收、材料准备、3D打印、实时监控、取出、去除支撑、固化、表面处理等步骤所需的人力资源、设备运转成本、物料消耗与基本物质资源消耗。 | H8: 件 | I8: 口腔种植类的按“医学3D模型打印（口腔）”收费不得同时收取手术规划辅助器具、导板、导航材料等相关耗材。 | J8: 446 | K8: 379 | L8: 322 | M8: 丙类 | N8: 医学3D模型打印（口腔）
A9: 3 | C9: 医学3D导板打印辅助操作费 | D9: 通过增材制造技术将虚拟3D模型制备成作用于手术部位、确保手术器械或植（介）入物精准到达预定位置的实物模板。 | E9: 所定价格涵盖模型接收、材料准备、3D打印、实时监控、取出、去除支撑、固化、表面处理等步骤所需的人力资源、设备运转成本、物料消耗与基本物质资源消耗。 | H9: 件 | I9: 口腔种植类的按“医学3D导板打印（口腔）“收费不得同时收取手术规划辅助器具、导板、导航材料等相关耗材。 | J9: 1380 | K9: 1173 | L9: 997 | M9: 丙类 | N9: 医学3D导板打印（口腔）
A10: 4 | C10: 生物3D打印（组织）辅助操作费 | D10: 通过生物打印技术将3D模型制作成用于治疗或辅助治疗的仿生生物组织。 | E10: 所定价格涵盖模型接收、材料准备、3D打印、实时监控、取出等步骤所需的人力资源、设备运转成本、物料消耗与基本物质资源消耗。 | H10: 件 | J10: 市场调节价 | K10: 市场调节价 | L10: 市场调节价 | M10: 丙类
A11: 5 | C11: 生物3D打印（血管）辅助操作费 | D11: 通过生物打印技术将3D模型制作成用于治疗或辅助治疗的仿生生物血管。 | E11: 所定价格涵盖模型接收、材料准备、3D打印、实时监控、取出等步骤所需的人力资源、设备运转成本、物料消耗与基本物质资源消耗。 | H11: 件 | J11: 市场调节价 | K11: 市场调节价 | L11: 市场调节价 | M11: 丙类
A12: 6 | C12: 生物3D打印（器官）辅助操作费 | D12: 通过生物打印技术将3D模型制作成用于治疗或辅助治疗的仿生生物器官。 | E12: 所定价格涵盖模型接收、材料准备、3D打印、实时监控、取出等步骤所需的人力资源、设备运转成本、物料消耗与基本物质资源消耗。 | H12: 件 | J12: 市场调节价 | K12: 市场调节价 | L12: 市场调节价 | M12: 丙类
A13: 7 | C13: 示踪辅助操作费（阴性显示） | D13: 通过各种方式引入示踪品，降低目标区域的信号强度，确定病变位置和范围。 | E13: 所定价格涵盖消毒、引入示踪品、识别目标区域、处理用物等步骤所需的人力资源、设备运转成本与基本物质资源消耗。 | H13: 次 | J13: 300 | K13: 255 | L13: 216 | M13: 丙类
A14: 8 | C14: 示踪辅助操作费（阳性显示） | D14: 通过各种方式引入示踪品，增强目标区域的信号强度，确定病变位置和范围。 | E14: 所定价格涵盖消毒、引入示踪品、识别目标区域、处理用物等步骤所需的人力资源、设备运转成本与基本物质资源消耗。 | H14: 次 | J14: 300 | K14: 255 | L14: 216 | M14: 丙类
A15: 9 | C15: 术中显微成像辅助操作费 | D15: 通过光学和成像等系统，术中放大细微结构或病灶组织，辅助完成手术。 | E15: 所定价格涵盖设备准备、辅助显示、撤除、处理用物等步骤所需的人力资源、设备运转成本与基本物质资源消耗。 | F15: 01术中扫频光学相干断层扫描成像辅助操30% | H15: 次 | I15: 仅提供照明、直接放大成像功能的通用型显微设备，纳入眼科等相关医疗服务价格项目价格构成，不再收取“术中显微成像辅助操作费”。 | J15: 230 | K15: 195 | L15: 166 | M15: 丙类 | N15: 手术显微镜辅助操作
C16: 术中显微成像辅助操作费-术中扫频光学相干断层扫描成像辅助操（加收） | H16: 次 | J16: =J15*0.3 -> 69 | K16: 58.5 | L16: 49.8 | M16: 丙类
A17: 10 | C17: 术中立体成像辅助操作费 | D17: 通过立体成像功能，以虚拟现实、混合现实等各类方式还原视野的立体纵深感，术中为手术提供可视化、沉浸式的立体光影像支持，辅助完成手术。 | E17: 所定价格涵盖设备准备、连接、设备调试、辅助显示、撤除、处理用物等步骤所需的人力资源、设备运转成本与基本物质资源消耗。 | H17: 次 | J17: 650 | K17: 552 | L17: 469 | M17: 丙类
A18: 11 | C18: 手术路径导航辅助操作费 | D18: 通过融合医学影像、计算机定位追踪及实时反馈等技术，术中实时显示手术路径、靶点，并提供必要的操作指导。 | E18: 所定价格涵盖设备准备、图像采集、传输、调节、定位、实时成像、引导、处理用物、数据处理与上传存储（含数字方式）等步骤所需的人力资源、设备运转成本与基本物质资源消耗。 | H18: 次 | I18: 1.本项目所称的“显示手术路径、靶点”，其显示方式包括虚拟现实、混合现实等各类立体成像。 2.医疗机构未上传医疗数据和设备运行记录的，减收100元。 3.不得同时收取引导费用。 | J18: 1000 | K18: 850 | L18: 722 | M18: 丙类 | N18: 神经外科手术导航引导 三维医学影像诊疗及手术规划 骨科手术导航引导
A21: 12 | C21: 超声切割刀辅助操作费 | D21: 利用超声产生穿透或振动效应，实现切割组织、凝闭血管等操作，辅助完成手术或治疗。 | E21: 所定价格涵盖设备准备、参数调试、切割、撤除、处理用物等步骤所需的人力资源、可复用刀具、设备运转成本与基本物质资源消耗。 | H21: 次 | I21: 1.医疗机构使用一次性刀具的，按零差率销售，不得收取“超声切割刀辅助操作费” 2.同一复用刀具有多种辅助操作功能的，医疗机构实际收费时，按收费标准最高的医疗服务价格项目计费，不叠加计费。 | J21: 500 | K21: 425 | L21: 361 | M21: 丙类 | N21: 超声刀辅助操作
A22: 13 | C22: 超声吸引刀辅助操作费 | D22: 通过超声产生空化作用，实现粉碎、吸出组织等操作，辅助完成手术或治疗。 | E22: 所定价格涵盖设备准备、参数调试、粉碎吸引、撤除、处理用物等步骤所需的人力资源、可复用刀具、设备运转成本与基本物质资源消耗。 | H22: 次 | I22: 1.医疗机构使用一次性刀具的，按零差率销售，不得收取“超声吸引刀辅助操作费”。 2.同一复用刀具有多种辅助操作功能的，医疗机构实际收费时，按收费标准最高的医疗服务价格项目计费，不叠加计费。 | J22: 1000 | K22: 850 | L22: 722 | M22: 丙类 | N22: 超声刀辅助操作
A23: 14 | C23: 电刀辅助操作费 | D23: 通过电流产生热效应，实现切割、凝血等操作，辅助完成手术或治疗。 | E23: 所定价格涵盖设备准备、参数调试、切割、凝血、撤除、处理用物等步骤所需的人力资源、可复用刀具、设备运转成本与基本物质资源消耗。 | H23: 次 | I23: 同一复用刀具有多种辅助操作功能的，医疗机构实际收费时，按收费标准最高的医疗服务价格项目计费，不叠加计费。 | J23: 100 | K23: 85 | L23: 72 | M23: 丙类
A24: 15 | C24: 等离子刀辅助操作费 | D24: 通过电场激发产生等离子体，实现切割、凝固组织等操作，辅助完成手术或治疗。 | E24: 所定价格涵盖设备准备、参数调试、切割、凝固、撤除、处理用物等步骤所需的人力资源、可复用刀具、设备运转成本与基本物质资源消耗。 | G24: 01氩等离子刀 | H24: 次 | I24: 1.医疗机构使用一次性刀具的，按零差率销售，不得收取“等离子刀辅助操作费”。 2.同一复用刀具有多种辅助操作功能的，医疗机构实际收费时，按收费标准最高的医疗服务价格项目计费，不叠加计费。 | J24: 200 | K24: 170 | L24: 144 | M24: 丙类 | N24: 等离子刀辅助操作
C25: 等离子刀辅助操作费-氩等离子刀（扩展） | H25: 次 | J25: 200 | K25: 170 | L25: 144 | M25: 丙类
A26: 16 | C26: 电磁刀辅助操作费 | D26: 通过电磁场产生涡流与热效应等，实现切割、烧灼或气化组织等操作，辅助完成手术或治疗。 | E26: 所定价格涵盖设备准备、参数调试、切割、烧灼、撤除、处理用物等步骤所需的人力资源、可复用刀具、设备运转成本与基本物质资源消耗。 | H26: 次 | I26: 1.医疗机构使用一次性电磁刀（刀具）的，按零差率销售，不得收取“电磁刀辅助操作费”。 2.同一复用刀具有多种辅助操作功能的，医疗机构实际收费时，按收费标准最高的医疗服务价格项目计费，不叠加计费。 | J26: 600 | K26: 510 | L26: 433 | M26: 丙类
A27: 17 | C27: 激光辅助操作费 | D27: 通过激光实现切割、凝固或气化组织等操作，辅助完成手术或治疗。 | E27: 所定价格涵盖设备准备、参数调节、激光操作、撤除、处理用物等步骤所需的人力资源、可复用光纤、设备运转成本与基本物质资源消耗。 | H27: 次 | I27: 1.医疗机构使用一次性光纤/激光刀，按零差率销售，不得收取“激光辅助操作费”。 2.口腔激光照射治疗按物理治疗“激光治疗费（浅表照射）”收费。 | J27: 300 | K27: 255 | L27: 216 | M27: 丙类 | N27: 激光辅助操作
A28: 18 | C28: 飞秒激光辅助操作费 | D28: 通过飞秒激光实现切割、凝固或气化组织等操作，辅助完成手术或治疗。 | E28: 所定价格涵盖设备准备、参数调节、激光操作、撤除、处理用物等步骤所需的人力资源，以及配套耗材、设备运转成本与基本物质资源消耗。 | H28: 次 | I28: 眼科按单侧计费 | J28: 市场调节价 | K28: 市场调节价 | L28: 市场调节价 | M28: 丙类
A29: 19 | C29: 准分子激光辅助操作费 | D29: 通过准分子激光实现切割、凝固或气化组织等操作，辅助完成手术或治疗。 | E29: 所定价格涵盖设备准备、参数调节、激光操作、撤除、处理用物等步骤所需的人力资源，以及配套耗材、设备运转成本与基本物质资源消耗。 | H29: 次 | I29: 眼科按单侧计费 | J29: 市场调节价 | K29: 市场调节价 | L29: 市场调节价 | M29: 丙类
A30: 20 | C30: 射频辅助操作费 | D30: 通过高频交流电产生热效应，实现组织坏死或气化等操作，辅助完成手术或治疗。 | E30: 所定价格涵盖设备准备、参数调节、射频操作、处理用物等步骤所需的人力资源、可复用刀具、设备运转成本与基本物质资源消耗。 | H30: 次 | I30: 1.医疗机构使用一次性射频刀具的，按零差率销售，不得收取“射频辅助操作费”。 2.同一复用刀具有多种辅助操作功能的，医疗机构实际收费时，按收费标准最高的医疗服务价格项目计费，不叠加计费。 | J30: 100 | K30: 85 | L30: 72 | M30: 丙类 | N30: 射频辅助操作
A31: 21 | C31: 微波辅助操作费 | D31: 通过高频电磁波产生热效应，实现组织坏死或气化等操作，辅助完成手术或治疗。 | E31: 所定价格涵盖设备准备、参数调节、微波操作、处理用物等步骤所需的人力资源、可复用刀具、设备运转成本与基本物质资源消耗。 | H31: 次 | I31: 1.医疗机构使用一次性刀具的，按零差率销售，不得收取“微波辅助操作费”。 2.同一复用刀具有多种辅助操作功能的，医疗机构实际收费时，按收费标准最高的医疗服务价格项目计费，不叠加计费。 | J31: 100 | K31: 85 | L31: 72 | M31: 丙类 | N31: 微波辅助操作
A32: 22 | C32: 冷冻辅助操作费 | D32: 通过冷冻介质，迅速冷却组织，使组织坏死或气化，辅助完成手术或治疗。 | E32: 所定价格涵盖设备准备、参数调节、冷冻操作、处理用物等步骤所需的人力资源、可复用刀具、设备运转成本与基本物质资源消耗。 | H32: 次 | I32: 1.医疗机构使用一次性刀具的，按零差率销售，不得收取“冷冻辅助操作费”。 2.同一复用刀具有多种辅助操作功能的，医疗机构实际收费时，按收费标准最高的医疗服务价格项目计费，不叠加计费。 | J32: 100 | K32: 85 | L32: 72 | M32: 丙类
A33: 23 | C33: 微动力辅助操作费 | D33: 通过微动力设备，实现组织切削、打磨等操作，辅助完成手术或治疗。 | E33: 所定价格涵盖设备准备、参数调节、切割吸引、撤除、处理用物等步骤所需的人力资源、可复用刀具、设备运转成本与基本物质资源消耗。 | H33: 次 | I33: 1.医疗机构使用一次性刨刀/磨头/铣刀/钻头/锯片/骨刀等（刀具）的，按零差率销售，不得收取“微动力辅助操作费”。 2.同一复用刀具有多种辅助操作功能的，医疗机构实际收费时，按收费标准最高的医疗服务价格项目计费，不叠加计费。 | J33: 1000 | K33: 850 | L33: 722 | M33: 丙类 | N33: 颅微动力系统 眼耳鼻喉微动力系统 骨微动力系统
A36: 24 | C36: 微动力辅助操作费（口腔） | D36: 通过口腔微动力设备，实现组织切削、打磨等操作，辅助完成口腔手术或治疗。 | E36: 所定价格涵盖设备准备、参数调节、切割打磨、撤除、处理用物等步骤所需的人力资源、可复用刀具、设备运转成本与基本物质资源消耗。 | H36: 次 | I36: 1.医疗机构使用一次性刀具的，按零差率销售，不得收取“微动力辅助操作费（口腔）”。 2.同一复用刀具有多种辅助操作功能的，医疗机构实际收费时，按收费标准最高的医疗服务价格项目计费，不叠加计费。 | J36: 170 | K36: 144 | L36: 122 | M36: 丙类 | N36: 颌面微动力系统 齿科微动力系统
A38: 25 | C38: 水动力辅助操作费 | D38: 通过高压液流，实现切割、清创等操作，辅助完成手术或治疗。 | E38: 所定价格涵盖设备准备、参数调节、切割吸引、撤除、处理用物等步骤所需的人力资源、可复用刀具、设备运转成本与基本物质资源消耗。 | H38: 次 | I38: 1.医疗机构使用一次性刀具的，按零差率销售，不得收取“水动力辅助操作费”。 2.同一复用刀具有多种辅助操作功能的，医疗机构实际收费时，按收费标准最高的医疗服务价格项目计费，不叠加计费。 | J38: 100 | K38: 85 | L38: 72 | M38: 丙类
A39: 26 | C39: X线透视引导辅助操作费（平扫） | D39: 通过普通X线透视为手术或治疗操作提供可视化条件。 | E39: 所定价格涵盖设备准备、透视、引导、撤除、处理用物等步骤所需的人力资源、设备运转成本与基本物质资源消耗。 | H39: 半小时 | I39: 1.时间以引导实际使用时间为准。 2.单次引导以半小时为基础计价，超出部分每增加半小时按100%叠加计价，超过1.5小时按1.5小时收费 | J39: 20 | K39: 17 | L39: 14 | M39: 乙类 | N39: 临床操作X线透视引导
A40: 27 | C40: X线透视引导辅助操作费（机械臂-二维成像） | D40: 通过各种类型机械臂扫描形成二维图像，为手术或治疗操作提供可视化条件。 | E40: 所定价格涵盖设备准备、透视、引导、撤除、处理用物，及必要时进行三维重建等步骤所需的人力资源、设备运转成本与基本物质资源消耗。 | H40: 半小时 | I40: 1.计价时间以引导实际使用时间为准。 2.单次引导以半小时为基础计价，超出部分每增加半小时按一定比例100%叠加计价，超过1.5小时按1.5小时收费 | J40: 80 | K40: 68 | L40: 57 | M40: 乙类 | N40: 临床操作C/U/G形臂引导 术中透视
A42: 28 | C42: X线透视引导辅助操作费（机械臂-三维成像） | D42: 通过各种类型机械臂扫描直接形成三维图像，为手术或治疗操作提供可视化条件。 | E42: 所定价格涵盖设备准备、透视、引导、撤除、处理用物等步骤所需的人力资源、设备运转成本与基本物质资源消耗。 | H42: 半小时 | I42: 1.计价时间以引导实际使用时间为准。 2.单次引导以半小时为基础计价，超出部分每增加半小时按一定比例100%叠加计价，超过1.5小时按1.5小时收费 | J42: 150 | K42: 127 | L42: 108 | M42: 乙类 | N42: 临床操作C/U/G形臂引导 术中透视
A44: 29 | C44: X线透视引导辅助操作费（数字减影） | D44: 通过数字减影透视技术，为手术或治疗操作提供可视化条件。 | E44: 所定价格涵盖设备准备、引导、撤除、处理用物等步骤所需的人力资源、设备运转成本与基本物质资源消耗。 | H44: 半小时 | I44: 1.计价时间以引导实际使用时间为准。 2.单次引导以半小时为基础计价，超出部分每增加半小时按50%叠加计价，超过1.5小时按1.5小时收费。 | J44: 200 | K44: 170 | L44: 144 | M44: 乙类 | N44: 临床操作数字减影(DSA)引导
A45: 30 | C45: 计算机体层扫描引导辅助操作费 | D45: 通过计算机体层扫描或透视成像，为手术或治疗操作提供可视化条件。 | E45: 所定价格涵盖设备准备、扫描、引导、撤除、处理用物等步骤所需的人力资源、设备运转成本与基本物质资源消耗。 | H45: 半小时 | I45: 1.操作过程中不与相应部位计算机体层扫描（CT）检查同时收取。 2.计价时间以引导实际使用时间为准。 3.单次引导以半小时为基础计价，超出部分每增加半小时按50%叠加计价，超过1小时按1小时收费。 | J45: 210 | K45: 178 | L45: 151 | M45: 乙类 | N45: 临床操作CT引导
A46: 31 | C46: 磁共振引导辅助操作费 | D46: 通过磁共振引导，为手术或治疗操作提供可视化条件。 | E46: 所定价格涵盖设备准备、扫描、引导、撤除、处理用物等步骤所需的人力资源、设备运转成本与基本物质资源消耗。 | H46: 半小时 | I46: 1.操作过程中不与相应部位磁共振（MR）检查同时收取。 2.计价时间以引导实际使用时间为准。 3.单次引导以半小时为基础计价，超出部分每增加半小时按50%叠加计价，超过1.5小时按1.5小时收费。 | J46: 400 | K46: 340 | L46: 289 | M46: 乙类 | N46: 磁共振三维导航定位 磁共振增强三维导航定位 临床操作磁共振引导
A49: 32 | C49: 超声引导辅助操作费（治疗） | D49: 通过超声技术，为治疗提供可视化条件。 | E49: 所定价格涵盖设备准备、超声引导、撤除、处理用物等步骤所需的人力资源、设备运转成本与基本物质资源消耗。 | F49: 01彩色多普勒超声加收100% 11便携式超声引导减收30% | H49: 10分钟 | I49: 1.计价时间以引导实际使用时间为准。 2.单次引导以10分钟为基础计价，超出时间每增加10分钟按100%叠加计价，超过半小时按半小时收费。 | J49: 45 | K49: 38 | L49: 32 | M49: 乙类 | N49: 临床操作B超引导 临床操作彩色多普勒超声引导
C51: 超声引导辅助操作费（治疗）-彩色多普勒超声（加收） | H51: 10分钟 | J51: 45 | K51: 38 | L51: 32 | M51: 乙类
C52: 超声引导辅助操作费（治疗）-便携式超声引导 | H52: 10分钟 | J52: =J49*0.7 -> 31.5 | K52: 26.6 | L52: 22.4 | M52: 乙类
A53: 33 | C53: 超声引导辅助操作费（手术） | D53: 通过超声技术，为手术提供可视化条件。 | E53: 所定价格涵盖设备准备、超声引导、撤除、处理用物等步骤所需的人力资源、设备运转成本与基本物质资源消耗。 | F53: 01彩色多普勒超声加收100% 11便携式超声引导减收30% | H53: 半小时 | I53: 1.计价时间以引导实际使用时间为准。 2.单次引导以半小时为基础计价，超出部分每增加半小时按100%叠加计价，超过1.5小时按1.5小时收费 | J53: 90 | K53: 76 | L53: 65 | M53: 乙类 | N53: 临床操作B超引导 临床操作彩色多普勒超声引导
C55: 超声引导辅助操作费（手术）-彩色多普勒超声（加收） | H55: 半小时 | J55: 90 | K55: 76 | L55: 65 | M55: 乙类
C56: 超声引导辅助操作费（手术）-便携式超声引导 | H56: 半小时 | J56: =J53*0.7 -> 63 | K56: 53.2 | L56: 45.5 | M56: 乙类
A57: 34 | C57: 手术机械臂辅助操作费（导航） | D57: 通过手术机械臂平台，操控手术器械，参与导航、定位等引导操作。 | E57: 所定价格涵盖设备准备、体位摆放、制定计划、导航、定位、撤除、处理用物、数据处理与上传存储（含数字方式）等步骤所需的人力资源、以及配套使用的器械耗材、设备运转成本与基本物质资源消耗。 | H57: 次 | I57: 1.不与“手术路径导航辅助操作费”同时收取。 2.单台设备同时具备导航、部分执行、精准执行中的两项或三项功能的，医疗机构实际收费时，按收费标准最高的医疗服务价格项目计费，不叠加计费。 3.医疗机构未上传医疗数据和设备运行记录的，减收200元。 | J57: 市场调节价 | K57: 市场调节价 | L57: 市场调节价 | M57: 丙类 | N57: 人工智能辅助治疗技术
A58: 35 | C58: 手术机械臂辅助操作费（参与执行） | D58: 通过手术机械臂平台，以映射控制的方式，辅助医务人员操控手术器械，参与完成构建通道、打孔或切割中的一个或若干个手术步骤。 | E58: 所定价格涵盖设备准备、体位摆放、制定计划、导航、定位、探查、调节、控制机械臂完成部分手术操作、撤除、处理用物、数据处理与上传存储（含数字方式）等步骤所需的人力资源、以及配套使用的器械耗材、设备运转成本与基本物质资源消耗。 | H58: 次 | I58: 1.不与“手术路径导航辅助操作费”同时收取。 2.单台设备同时具备导航、部分执行、精准执行中的两项或三项功能的，医疗机构实际收费时，按收费标准最高的医疗服务价格项目计费，不叠加计费。 3.医疗机构未上传医疗数据和设备运行记录的，减收200元。 | J58: 市场调节价 | K58: 市场调节价 | L58: 市场调节价 | M58: 丙类 | N58: 人工智能辅助治疗技术
A59: 36 | C59: 手术机械臂辅助操作费（精准执行） | D59: 通过手术机械臂平台，以映射控制的方式，辅助医务人员操控手术器械精准完成手术的全部步骤，或精准完成手术中器官、组织的切除、重建、修复等全部关键步骤。 | E59: 所定价格涵盖设备准备、体位摆放、制定计划、导航、定位、探查、调节、控制机械臂完成手术操作、撤除、处理用物、数据处理与上传存储（含数字方式）等步骤所需的人力资源、以及配套使用的器械耗材、设备运转成本与基本物质资源消耗。 | H59: 次 | I59: 1.不与“手术路径导航辅助操作费”同时收取。 2.单台设备同时具备导航、部分执行、精准执行中的两项或三项功能的，医疗机构实际收费时，按收费标准最高的医疗服务价格项目计费，不叠加计费。 3.医疗机构未上传医疗数据和设备运行记录的，减收200元。 | J59: 市场调节价 | K59: 市场调节价 | L59: 市场调节价 | M59: 丙类 | N59: 人工智能辅助治疗技术
A60: 37 | C60: 远程手术辅助操作费 | D60: 通过计算机平台远程操控手术器械，精准完成手术的全部步骤，或精准完成手术中器官、组织的切除、重建、修复等全部关键步骤。 | E60: 所定价格涵盖设备准备、体位摆放、制定计划、导航、定位、探查、调节、控制机械臂完成手术操作、撤除、处理用物、数据处理与上传存储（含数字方式）等步骤所需的人力资源、以及配套使用的器械耗材、设备运转成本与基本物质资源消耗。 | H60: 次 | I60: 1.不与“手术导航辅助操作费”“手术机械臂辅助操作费”同时收取。 2.本项目收费标准与主手术对应价格项目挂钩，以患者接受手术的地区价格为基数，按一定系数进行加收。 3.医疗机构未上传医疗数据和设备运行记录的，减收100元。 | J60: 市场调节价 | K60: 市场调节价 | L60: 市场调节价 | M60: 丙类

Sheet 口腔
A1: 附件？
A2: 口腔类医疗服务价格项目立项指南
A3: 使用说明： 1.口腔类医疗服务价格项目立项指南，以口腔治疗为重点，按照口腔治疗方式设立价格项目。 2.口腔类医疗服务价格项目立项指南所称的“价格构成”，指项目价格应涵盖的各类资源消耗，用于确定计价单元的边界，不应作为临床技术标准理解，不是实际操作方式、路径、步骤、程序的强制性要求，价格构成中包含但临床实践中非必要、未发生的，无需强制要求公立医疗机构减计费用。所列“设备投入”包括但不限于操作设备、器具及固定资产投入。 3.口腔类医疗服务价格项目立项指南所称“加收项”，指同一项目以不同方式提供或在不同场景应用时，确有必要制定差异化收费标准而细分的一类子项，包括在原项目价格基础上增加或减少收费的情况，具体的加/减收标准（加/减收率或加/减收金额）由具体的价格项目设置；实际应用中，同时涉及多个加收项的，以项目单价为基础计算相应的加/减收水平后，据实收费。 4.口腔类医疗服务价格项目立项指南所称“扩展项”，指同一项目下以不同方式提供或在不同场景应用时，只扩展价格项目适用范围、不额外加价的一类子项，子项的价格按主项目执行。 5.口腔类医疗服务价格项目立项指南所称"基本物质资源消耗"，指原则上限于不应或不必要与医疗服务项目分割的易耗品，属于医疗服务价格项目应当使用的、市场价格和使用数量相对稳定的医用耗材，包括但不限于各类消杀用品、储存用品、清洁用品、个人防护用品、垃圾处理用品、冲洗液、润滑剂、灌洗液、棉球（卷）、棉签、纱布（垫）、绷带、护垫、衬垫、手术巾（单）、治疗巾（单）、治疗护理盘(包）、注射器、压舌板、滑石粉、防渗漏垫、标签、操作器具、车针、冲洗工具、备皮工具、镍钛锉、口腔盒、印模材、咬合纸、引流条、修复体粘接剂、窝沟封闭剂、耗材粘接剂、充填材料、根管封闭剂、盖髓材料、一次性口杯、一次性吸唾管、氟化物、银锶制剂、酚制剂等。基本物耗成本计入项目价格，不另行收费。除基本物耗以外的其他耗材，按照实际采购价格零差率销售。 6.口腔类医疗服务价格项目立项指南中涉及“包括……”“…… 等”的，属于开放型表述，所指对象不仅局限于表述中列明的事项，也包括未列明的同类事项。 7.医疗机构自行制作设计的包括但不限于如矫治器、保持器、运动护齿等个性化产品，采取“产品化”的价格形成机制，由医疗机构以物料成本、加工服务等为基础，按照适当的成本回收率自主确定价格并销售，不再按制作步骤拆分设立医疗服务价格项目。 8.口腔种植类立项指南中“口腔内植骨费”项目，扩大其服务产出适用范围，不仅局限种植牙所用，口腔学科中“牙槽骨增量手术费”和“牙周植骨费”可按照此项目执行计费。 9.涉及“复杂”等内涵未尽的表述，除立项指南中已明确的情形外，医院实践中按照“复杂”情形计费的，应以卫生行政主管部门最新版卫生技术规范、临床指南或专家共识中的明确定性为前提。满足复杂情况中的任意一种即算复杂，不同复杂情况不累计叠加收费。 10.在本医疗机构开展错合矫治治疗时，方案设计属诊查治疗应尽事项，不得同时收取设计费。 11.口腔类医疗服务价格项目立项指南中手术类项目服务对象为儿童时，统一落实儿童加收政策（以下简称“儿童加收”），手术类项目的具体范围以《全国医疗服务项目技术规范》的分类为准，对于立项指南同时映射技术规范中的手术类项目和治疗类项目的主项目，按手术类落实儿童加收政策；其他非手术类项目实行儿童加收范围，以立项指南加收项为准。本指南所称的“儿童”，指6周岁及以下，周岁的计算方法以法律的相关规定为准。 12.口腔类医疗服务价格项目立项指南可收费医用耗材：矫治器、下颌前移器、特殊缝线、止血材料、唇弓、功能丝、扩弓器、托槽、合导板、附着体、保持器、膜片、腭护板、种植支抗钉、拔髓针、修复材料、充填材料(仅限活髓保存治疗费、根尖屏障手术费、牙拔除费、阻生牙拔除费、预防性拔牙窝组织封闭费、牙移植费、口腔良性肿物切除费、颌骨病变刮切费（口内）、颌骨病变刮切费（颌面部）、牙槽突骨折复位固定费、下牙槽神经探查解剖费、口腔上颌窦瘘修补费、口内游离软组织移植费、牙周翻瓣费、引导性牙周组织再生费、皮质骨切开费项目下可单独收费)、牙周塞治剂、漂白剂、预成冠、补片、屏障膜、内固定材料、人工骨、基托、成品牙、贴面材料、表面材料、义齿支架、桩钉、衬垫材料、印模帽、替代体、种植基台、固位体、赝复体、义眼、人工胶原瓣、人工皮，特殊缝线、止血材料。
A4: 序号 | B4: 项目编码 | C4: 项目名称 | D4: 服务产出 | E4: 价格构成 | F4: 计价单位 | G4: 计价说明 | H4: 指导价格 | K4: 医保支付类别 | L4: 映射项目名称
H5: 三级 | I5: 二级 | J5: 一级
A6: 1 | C6: 乳牙期错合矫治费(常规) | D6: 通过矫治器安装调整进行乳牙错合畸形的早期矫治。 | E6: 所定价格涵盖准备、方案设计、矫治器安装、调整评估、加力、拆除、处理用物等步骤所需的人力资源和基本物质资源消耗。 | F6: 疗程 | G6: 本项目所称“疗程”指：从错合矫治治疗开始到结束。 | H6: 3000 | I6: 2550 | J6: 2167 | K6: 丙类 | L6: 咬合创伤的正畸治疗 复杂咬合创伤的正畸治疗 乳牙期安氏Ⅰ类错合正畸治疗 乳牙期安氏Ⅱ类错合正畸治疗 乳牙期安氏Ⅲ类错合正畸治疗 无托槽隐形矫治器复诊处置 功能矫治器复诊处置 活动矫治器复诊处置 固定矫治器复诊处置 舌侧固定矫治器复诊处置 牵张器加力调整 拆除口内牙齿固定装置 口腔黏膜激光治疗 唇弓制备 邻面去釉 复杂唇弓器制备 带环制备
A7: 2 | C7: 乳牙期错合矫治费(复杂) | D7: 通过矫治器安装调整进行疑难复杂情况的乳牙错合畸形的早期矫治。 | E7: 所定价格涵盖准备、方案设计、矫治器安装、调整评估、加力、拆除、处理用物等步骤所需的人力资源和基本物质资源消耗。 | F7: 疗程 | G7: 1.本项目所称“复杂”指：骨性Ⅲ类、上颌或上牙弓狭窄、伴颅颌面先天畸形、后牙反合或锁合的情况。 2.本项目所称“疗程”指：从错合矫治治疗开始到结束。 | H7: 4300 | I7: 3655 | J7: 3106 | K7: 丙类 | L7: 正颌外科手术前后的正畸治疗 复杂唇腭裂序列正畸治疗 乳牙期复杂安氏Ⅰ类错合正畸治疗 乳牙期复杂安氏Ⅱ类错合正畸治疗 乳牙期复杂安氏Ⅲ类错合正畸治疗 乳牙期颜面不对称畸形正畸治疗
A8: 3 | C8: 替牙期Ⅰ类错合矫治费(常规) | D8: 通过矫治器安装调整进行替牙期Ⅰ类错合畸形的早期矫治。 | E8: 所定价格涵盖准备、方案设计、矫治器安装、调整评估、加力、拆除、处理用物等步骤所需的人力资源和基本物质资源消耗。 | F8: 疗程 | G8: 本项目所称“疗程”指：从错合矫治治疗开始到结束。 | H8: 7000 | I8: 5950 | J8: 5057 | K8: 丙类 | L8: 牙周病伴错合畸形活动矫治器正畸治疗 牙周病伴错合畸形正畸治疗 替牙期安氏Ⅰ类错合固定矫治器正畸治疗
A9: 4 | C9: 替牙期Ⅰ类错合矫治费(复杂) | D9: 通过矫治器安装调整进行疑难复杂情况的替牙期Ⅰ类错合畸形的早期矫治。 | E9: 所定价格涵盖准备、方案设计、矫治器安装、调整评估、加力、拆除、处理用物等步骤所需的人力资源和基本物质资源消耗。 | F9: 疗程 | G9: 1.本项目所称“复杂”指：开合、后牙反合、III度深覆合、后牙锁合、上颌前突（ANB≥7度）或下颌前突（ANB≤0度）、伴颅颌面畸形、伴颞下颌关节病、阻生牙的情况。 2.本项目所称“疗程”指：从错合矫治治疗开始到结束。 | H9: 9000 | I9: 7650 | J9: 6502 | K9: 丙类 | L9: 复杂颞下颌关节病的正畸辅助治疗 替牙期复杂安氏Ⅰ类错合固定矫治器正畸治疗 替牙期安氏Ⅰ类错合活动矫治器正畸治疗
A10: 5 | C10: 替牙期Ⅱ类错合矫治费(常规) | D10: 通过矫治器安装调整进行替牙期Ⅱ类错合畸形的早期矫治。 | E10: 所定价格涵盖准备、方案设计、矫治器安装、调整评估、加力、拆除、处理用物等步骤所需的人力资源和基本物质资源消耗。 | F10: 疗程 | G10: 本项目所称“疗程”指：从错合矫治治疗开始到结束。 | H10: 8000 | I10: 6800 | J10: 5780 | K10: 丙类 | L10: 替牙期安氏Ⅱ类错合活动矫治器正畸治疗 替牙期安氏Ⅱ类错合固定矫治器正畸治疗 替牙期骨性Ⅱ类错合正畸治疗
A11: 6 | C11: 替牙期Ⅱ类错合矫治费(复杂) | D11: 通过矫治器安装调整进行疑难复杂情况的替牙期Ⅱ类错合畸形的早期矫治。 | E11: 所定价格涵盖准备、方案设计、矫治器安装、调整评估、加力、拆除、处理用物等步骤所需的人力资源和基本物质资源消耗。 | F11: 疗程 | G11: 1.本项目所称“复杂”指：开合、后牙反合、III度深覆合、后牙锁合、严重上颌前突（ANB≥7度）、伴颅颌面畸形、伴颞下颌关节病、阻生牙的情况。 2.本项目所称“疗程”指：从错合矫治治疗开始到结束。 | H11: 10000 | I11: 8500 | J11: 7225 | K11: 丙类 | L11: 替牙期复杂安氏Ⅱ类错合活动矫治器正畸治疗 替牙期复杂安氏Ⅱ类错合固定矫治器正畸治疗 替牙期复杂骨性Ⅱ类错合正畸治疗
A12: 7 | C12: 替牙期Ⅲ类错合矫治费(常规) | D12: 通过矫治器安装调整进行替牙期Ⅲ类错合畸形的早期矫治。 | E12: 所定价格涵盖准备、方案设计、矫治器安装、调整评估、加力、拆除、处理用物等步骤所需的人力资源和基本物质资源消耗。 | F12: 疗程 | G12: 本项目所称“疗程”指：从错合矫治治疗开始到结束。 | H12: 9000 | I12: 7650 | J12: 6502 | K12: 丙类 | L12: 替牙期安氏Ⅲ类错合活动矫治器正畸治疗 替牙期安氏Ⅲ类错合固定矫治器正畸治疗 替牙期安氏Ⅲ类错合功能矫治器正畸治疗
A13: 8 | C13: 替牙期Ⅲ类错合矫治费(复杂) | D13: 通过矫治器安装调整进行疑难复杂情况的替牙期Ⅲ类错合畸形的早期矫治。 | E13: 所定价格涵盖准备、方案设计、矫治器安装、调整评估、加力、拆除、处理用物等步骤所需的人力资源和基本物质资源消耗。 | F13: 疗程 | G13: 1.本项目所称“复杂”指：开合、III度深覆合、后牙反合、后牙锁合、下颌前突（ANB≤0度）、伴颅颌面畸形、伴颞下颌关节病、阻生牙的情况。 2.本项目所称“疗程”指：从错合矫治治疗开始到结束。 | H13: 11000 | I13: 9350 | J13: 7947 | K13: 丙类 | L13: 替牙期颜面不对称畸形的正畸治疗 替牙期复杂安氏Ⅲ类错合活动矫治器正畸治疗 替牙期复杂安氏Ⅲ类错合固定矫治器正畸治疗 替牙期复杂安氏Ⅲ类错合功能矫治器正畸治疗
A14: 9 | C14: 恒牙期Ⅰ类错合矫治费(常规) | D14: 通过矫治器安装调整进行恒牙期Ⅰ类错合畸形的矫治。 | E14: 所定价格涵盖准备、方案设计、矫治器安装、调整评估、加力、拆除、处理用物等步骤所需的人力资源和基本物质资源消耗。 | F14: 疗程 | G14: 1.在同一家医疗机构正畸治疗结束，复发病例再次矫治，每例按疗程费用的50%计价收费。 2.本项目所称“疗程”指：从错合矫治治疗开始到结束。 | H14: 16000 | I14: 13600 | J14: 11560 | K14: 丙类 | L14: 恒牙期安氏Ⅰ类错合固定矫治器正畸治疗 成人安氏Ⅰ类错合固定矫治器正畸治疗
A15: 10 | C15: 恒牙期Ⅱ类错合矫治费(常规) | D15: 通过矫治器安装调整进行恒牙期Ⅱ类错合畸形的矫治。 | E15: 所定价格涵盖准备、方案设计、矫治器安装、调整评估、加力、拆除、处理用物等步骤所需的人力资源和基本物质资源消耗。 | F15: 疗程 | G15: 1.在同一家医疗机构正畸治疗结束，复发病例再次矫治，每例按疗程费用的50%计价收费。 2.本项目所称“疗程”指：从错合矫治治疗开始到结束。 | H15: 18000 | I15: 15300 | J15: 13005 | K15: 丙类 | L15: 恒牙期安氏Ⅱ类错合功能矫治器正畸治疗 恒牙期安氏Ⅱ类错合固定矫治器正畸治疗 成人安氏Ⅱ类错合固定矫治器正畸治疗 恒牙期骨性Ⅱ类错合固定矫治器正畸治疗
A16: 11 | C16: 恒牙期Ⅱ类错合矫治费(复杂) | D16: 通过矫治器安装调整进行疑难复杂情况的恒牙期Ⅱ类错合畸形的矫治。 | E16: 所定价格涵盖准备、方案设计、矫治器安装、调整评估、加力、拆除、处理用物等步骤所需的人力资源和基本物质资源消耗。 | F16: 疗程 | G16: 1.本项目所称“复杂”指：18岁以上（不含18岁）、开合、III度深覆合、拔磨牙后关闭间隙、阻生牙、上颌前突（ANB≥5度）的拔牙正畸治疗、磨牙或牙弓远中移动、伴颅颌面畸形、伴颞下颌关节病、正畸-正颌手术联合治疗、舌侧矫治的情况。 2.在同一家医疗机构正畸治疗结束，复发病例再次矫治，每例按疗程费用的50%计价收费。 3.本项目所称“疗程”指：从错合矫治治疗开始到结束。 | H16: 22000 | I16: 18700 | J16: 15895 | K16: 丙类 | L16: 恒牙期复杂安氏Ⅱ类错合固定矫治器正畸治疗 成人复杂安氏Ⅱ类错合固定矫治器正畸治疗 恒牙期复杂骨性Ⅱ类错合固定矫治器正畸治疗
A17: 12 | C17: 恒牙期Ⅲ类错合矫治费(常规) | D17: 通过矫治器安装调整进行恒牙期Ⅲ类错合畸形的矫治。 | E17: 所定价格涵盖准备、方案设计、矫治器安装、调整评估、加力、拆除、处理用物等步骤所需的人力资源和基本物质资源消耗。 | F17: 疗程 | G17: 1.在同一家医疗机构正畸治疗结束，复发病例再次矫治，每例按疗程费用的50%计价收费。 2.本项目所称“疗程”指：从错合矫治治疗开始到结束。 | H17: 19000 | I17: 16150 | J17: 13727 | K17: 丙类 | L17: 唇腭裂序列正畸治疗 颞下颌关节病的正畸辅助治疗 恒牙期安氏Ⅲ类错合固定矫治器正畸治疗 成人安氏Ⅲ类错合固定矫治器正畸治疗 恒牙期骨性Ⅲ类错合固定矫治器正畸治疗
A18: 13 | C18: 恒牙期Ⅲ类错合矫治费(复杂) | D18: 通过矫治器安装调整进行疑难复杂情况的恒牙期Ⅲ类错合畸形的矫治。 | E18: 所定价格涵盖准备、方案设计、矫治器安装、调整评估、加力、拆除、处理用物等步骤所需的人力资源和基本物质资源消耗。 | F18: 疗程 | G18: 1.本项目所称“复杂”指：18岁以上（不含18岁）、开合、III度深覆合、3颗以上后牙反合、拔磨牙后关闭间隙、阻生牙、下颌前突（ANB≤0度）的拔牙正畸治疗、磨牙或牙弓远中移动、伴颅颌面畸形、伴颞下颌关节病、正畸-正颌手术联合治疗、舌侧矫治的情况。 2.在同一家医疗机构正畸治疗结束，复发病例再次矫治，每例按疗程费用的50%计价收费。 3.本项目所称“疗程”指：从错合矫治治疗开始到结束。 | H18: 23000 | I18: 19550 | J18: 16617 | K18: 丙类 | L18: 恒牙期复杂安氏Ⅲ类错合固定矫治器正畸治疗 成人复杂安氏Ⅲ类错合固定矫治器正畸治疗 恒牙期复杂骨性Ⅲ类错合固定矫治器正畸治疗
A19: 14 | C19: 恒牙期I类错合矫形功能治疗费 | D19: 通过针对性矫治器的安装进行恒牙期I类错合畸形的矫形和功能治疗。 | E19: 所定价格涵盖准备、方案设计、矫治器安装、调整评估、加力、拆除、处理用物等步骤所需的人力资源和基本物质资源消耗。 | F19: 疗程 | G19: 本项目所称“疗程”指：从错合矫形治疗开始到结束。 | H19: 7000 | I19: 5950 | J19: 5057 | K19: 丙类 | L19: 恒牙期复杂安氏Ⅰ类错合固定矫治器正畸治疗 成人复杂安氏Ⅰ类错合固定矫治器正畸治疗
A20: 15 | C20: 恒牙期Ⅱ类错合矫形功能治疗费 | D20: 通过针对性矫治器的安装进行恒牙期Ⅱ类错合畸形的矫形和功能治疗。 | E20: 所定价格涵盖准备、方案设计、矫治器安装、调整评估、加力、拆除、处理用物等步骤所需的人力资源和基本物质资源消耗。 | F20: 疗程 | G20: 本项目所称“疗程”指：从错合矫形治疗开始到结束。 | H20: 8000 | I20: 6800 | J20: 5780 | K20: 丙类 | L20: 恒牙期颜面不对称畸形的正畸治疗 恒牙期复杂安氏Ⅱ类错合功能矫治器正畸治疗
A21: 16 | C21: 恒牙期Ⅲ类错合矫形功能治疗费 | D21: 通过针对性矫治器的安装进行恒牙期III类错合畸形的矫形和功能治疗。 | E21: 所定价格涵盖准备、方案设计、矫治器安装、调整评估、加力、拆除、处理用物等步骤所需的人力资源和基本物质资源消耗。 | F21: 疗程 | G21: 本项目所称“疗程”指：从错合矫形治疗开始到结束。 | H21: 9000 | I21: 7650 | J21: 6502 | K21: 丙类 | L21: 复杂颅颌面畸形的辅助正畸治疗 重度牙周病伴错合畸形正畸治疗
A22: 17 | C22: 新生儿唇腭裂术前治疗费 | D22: 针对婴儿期唇腭裂唇裂术前，通过矫治器安装调整，实现鼻齿槽塑形。 | E22: 所定价格涵盖准备、方案设计、矫治器安装、调整、拆除、处理用物等步骤所需的人力资源和基本物质资源消耗。 | F22: 疗程 | H22: 2100 | I22: 1785 | J22: 1517 | K22: 丙类 | L22: 新生儿唇腭裂术前修复矫治器制备 口腔功能模型制备 腭裂腭护板制作 面部模型制备
A23: 18 | C23: 睡眠呼吸暂停综合征口腔正畸辅助治疗费 | D23: 通过口腔阻鼾器安装调整或扩弓活动矫治，减轻阻塞性睡眠呼吸暂停的症状。 | E23: 所定价格涵盖准备、方案设计、矫治器安装、调整评估、处理用物等步骤所需的人力资源和基本物质资源消耗。 | F23: 疗程 | H23: 1800 | I23: 1530 | J23: 1300 | K23: 乙类 | L23: 睡眠呼吸暂停综合征的正畸辅助治疗
A24: 19 | C24: 局部正畸矫治费 | D24: 使用局部矫治器矫治一个象限内的牙齿伸长、倾斜、间隙关闭或开展、微小牙齿移动等矫治。 | E24: 所定价格涵盖准备、方案设计、矫治器安装、调整评估、加力、拆除、处理用物等步骤所需的人力资源和基本物质资源消耗。 | F24: 象限•疗程 | G24: 1.全口共4个象限。2.累计价收费超过全口价格，按照全口价格计价收费。 | H24: 4500 | I24: 3825 | J24: 3251 | K24: 丙类 | L24: 局部矫治器正畸治疗
A25: 20 | C25: 口腔固定保持器安装费 | D25: 为需要正畸治疗后进行固定保持的患者安装固定保持器。 | E25: 所定价格涵盖准备、安装、调试、处理用物等步骤所需的人力资源和基本物质资源消耗。 | F25: 单颌 | H25: 400 | I25: 340 | J25: 289 | K25: 丙类 | L25: 活动正畸保持器治疗(制戴活动矫正器) 制戴固定式缺隙保持器 制戴活动式缺隙保持器 压膜式正畸保持器治疗 固定式正畸保持器治疗
A26: 21 | C26: 口腔固定保持器拆除费 | D26: 为需要拆除固定保持器的患者去除固定保持器。 | E26: 所定价格涵盖准备、拆除、处理用物等步骤所需的人力资源和基本物质资源消耗。 | F26: 单颌 | H26: 280 | I26: 238 | J26: 202 | K26: 丙类
A27: 22 | C27: 错合畸形治疗设计费 | D27: 通过各项检查完成错合畸形的诊断与矫治方案设计。 | E27: 所定价格涵盖准备、模型制取和灌注、模型测量、面颌像拍照、头影测量分析、制定治疗计划和方案、处理用物等步骤所需的人力资源和基本物质资源消耗。 | F27: 次 | G27: 1.完成1个疗程计价收费1次；在本医疗机构中开展的矫治不得同时收取设计价收费。2.不含放射检查费用。 | H27: 800 | I27: 680 | J27: 578 | K27: 丙类 | L27: 诊断性排牙试验 错合畸形诊断设计 错合畸形二维诊断设计 错合畸形三维诊断设计 常规面部与口内照相 口腔常规模型制备 正畸记存模型制备
A28: 23 | C28: 正畸支抗钉植入费 | D28: 通过将正畸支抗钉植入颌骨协助完成正畸治疗。 | E28: 所定价格涵盖手术计划、术区准备、消毒、植入、处理用物等步骤所需的人力资源和基本物质资源消耗。 | F28: 每钉 | H28: 300 | I28: 255 | J28: 216 | K28: 丙类
A29: 24 | C29: 牙根牵引费 | D29: 通过牵引方法将冠根折或根折的外伤牙齿牵引至龈上。 | E29: 所定价格涵盖准备、切开、粘接或制戴、牵引、加力、调整、处理用物等步骤所需的人力资源和基本物质资源消耗。 | F29: 牙 | H29: 285 | I29: 242 | J29: 205 | K29: 乙类 | L29: 前牙根折根牵引术
A30: 25 | C30: 牙髓活力测验费 | D30: 通过设备检查评估牙髓活力状态。 | E30: 所定价格涵盖准备、隔离、测验、评估、处理用物等步骤所需的人力资源和基本物质资源消耗。 | F30: 牙 | H30: 5 | I30: 4 | J30: 3 | K30: 甲类 | L30: 牙髓电活力检查
A31: 26 | C31: 橡皮障隔离费 | D31: 通过专用的橡皮障套装隔开接受治疗的牙齿与口腔。 | E31: 所定价格涵盖准备、隔离、处理用物等步骤所需的人力资源和基本物质资源消耗。 | F31: 次 | H31: 35 | I31: 29 | J31: 25 | K31: 丙类 | L31: 橡皮障隔湿治疗
A32: 27 | C32: 牙体开髓引流费 | D32: 对于牙髓急症患者仅行开髓引流、牙髓摘除以缓解急性疼痛。 | E32: 所定价格涵盖准备、开髓、拔髓、处理用物等步骤所需的人力资源和基本物质资源消耗。 | F32: 牙 | G32: 仅限于牙髓急症患者应急处置时收费，在其他牙髓治疗中作为相关项目的价格构成，不单独收费。 | H32: 90 | I32: 76 | J32: 65 | K32: 甲类 | L32: 开髓引流术 牙髓摘除术
C33: 牙体开髓引流费-儿童(加收) | F33: 牙 | H33: 76.5 | I33: 22.8 | J33: 19.5 | K33: 甲类
A34: 28 | C34: 牙髓失活费 | D34: 通过失活剂去除牙髓的活性。 | E34: 所定价格涵盖准备、开髓、放置失活剂、处理用物等步骤所需的人力资源和基本物质资源消耗。 | F34: 牙 | H34: 35 | I34: 29 | J34: 25 | K34: 甲类 | L34: 牙髓失活术
C35: 牙髓失活费-儿童（加收） | F35: 牙 | H35: 10.5 | I35: 8.7 | J35: 7.5 | K35: 甲类
A36: 29 | C36: 干髓治疗费 | D36: 通过干髓剂使牙髓保持干尸化。 | E36: 所定价格涵盖准备、开髓、去除冠髓、放置干髓剂、处理用物等步骤所需的人力资源和基本物质资源消耗。 | F36: 牙 | H36: 20 | I36: 17 | J36: 14 | K36: 甲类 | L36: 干髓术
A37: 30 | C37: 根管预备费 | D37: 通过清理扩大根管，清除感染坏死牙髓组织，对根管内部进行清理成形。 | E37: 所定价格涵盖准备、开髓、拔髓、疏通、测量、预备、处理用物等步骤所需的人力资源和基本物质资源消耗。 | F37: 根管 | G37: 本项目所称“根管异常”指：中重度弯曲根管、C型根管、根管间交通枝等特殊根管。 | H37: 120 | I37: 102 | J37: 86 | K37: 乙类 | L37: 简单根管预备 根管长度测量 复杂根管预备 激光根管预备 钙化桥打通术
C38: 根管预备费-儿童（加收） | F38: 根管 | H38: 36 | I38: 30.6 | J38: 25.8 | K38: 乙类
C39: 根管预备费-根管异常（加收） | F39: 根管 | H39: 60 | I39: 51 | J39: 43 | K39: 乙类
A40: 31 | C40: 根管冲洗费 | D40: 对根管进行冲洗消毒及感染控制。 | E40: 所定价格涵盖准备、冲洗、处理用物等步骤所需的人力资源和基本物质资源消耗。 | F40: 根管 | H40: 30 | I40: 25 | J40: 21 | K40: 甲类 | L40: 超声根管预备
C41: 根管冲洗费-根管封药费（扩展） | F41: 根管 | H41: 30 | I41: 25 | J41: 21 | K41: 甲类
A42: 32 | C42: 根管充填费 | D42: 通过向根管内充填，封闭根管系统。 | E42: 所定价格涵盖准备、充填、处理用物，必要时加压充填等步骤所需的人力资源和基本物质资源消耗。 | F42: 根管 | G42: 本项目所称“根管异常”指：中重度弯曲根管、C型根管、根管间交通枝等特殊根管。 | H42: 50 | I42: 42 | J42: 36 | K42: 甲类 | L42: 根管冷牙胶侧压充填术 根管热塑牙胶垂直加压充填术 根管常温牙胶注射式加压充填术
C43: 根管充填费-儿童（加收） | F43: 根管 | H43: 15 | I43: 12.6 | J43: 10.8 | K43: 甲类
C44: 根管充填费-根管异常（加收） | F44: 根管 | H44: 25 | I44: 21 | J44: 18 | K44: 甲类
C45: 根管充填费-乳牙根管充填费（扩展） | F45: 根管 | H45: 50 | I45: 42 | J45: 36 | K45: 甲类
A46: 33 | C46: 根管再治疗费 | D46: 针对牙髓治疗后出现的问题进行的治疗。 | E46: 所定价格涵盖准备、取出、建立通道、处理用物等步骤所需的人力资源和基本物质资源消耗。 | F46: 根管 | H46: 120 | I46: 102 | J46: 86 | K46: 乙类 | L46: 根管再治疗 显微根管治疗
A47: 34 | C47: 根管内异物取出费 | D47: 取出存留在根管内的异物。 | E47: 所定价格涵盖准备、确定位置、取出、处理用物等步骤所需的人力资源和基本物质资源消耗。 | F47: 根管 | H47: 340 | I47: 289 | J47: 245 | K47: 乙类 | L47: 根管内分离器械取出术
C48: 根管内异物取出费-根尖段异物取出（加收） | F48: 根管 | H48: 170 | I48: 144.5 | J48: 122.5 | K48: 乙类
A49: 35 | C49: 根尖诱导成形费 | D49: 诱导牙根继续发育或根尖封闭。 | E49: 所定价格涵盖手术计划、术区准备、消毒、开髓、去除、干燥、诱导、处理用物等步骤所需的人力资源和基本物质资源消耗。 | F49: 根管 | H49: 85 | I49: 72 | J49: 61 | K49: 乙类 | L49: 根尖诱导成形术
A50: 36 | C50: 根尖屏障手术费 | D50: 针对根尖孔未闭合或较宽大的情况，封闭根尖段建立屏障。 | E50: 所定价格涵盖手术计划、术区准备、清洁、填充、处理用物等步骤所需的人力资源和基本物质资源消耗。 | F50: 根管 | G50: 盖髓材料(MTA、BP、三氧化物聚合体)可单独收费 | H50: 230 | I50: 195 | J50: 166 | K50: 甲类 | L50: 髓腔穿孔充填修补术
C51: 根尖屏障手术费-髓腔穿孔修补费（扩展） | F51: 根管 | H51: 230 | I51: 195 | J51: 166 | K51: 甲类
A52: 37 | C52: 根尖手术费 | D52: 通过手术对根尖进行治疗。 | E52: 所定价格涵盖手术计划、术区准备、消毒、切开、翻瓣、切除、倒预备、倒充填、复位缝合、处理用物等步骤所需的人力资源和基本物质资源消耗。 | F52: 根管 | G52: 本项目所称“复杂根尖手术”指：根尖周病损累及邻近重要组织结构（上颌窦、颏孔、下颌神经管、切牙孔）、骨壁完整根尖定位困难的情况。 | H52: 455 | I52: 386 | J52: 328 | K52: 乙类 | L52: 显微镜下根管外科手术 根管壁穿孔修补术 超声根尖倒充填术 根尖倒充填术 根尖搔刮术 根尖切除术
C53: 根尖手术费-复杂根尖手术（加收） | F53: 根管 | H53: 136.5 | I53: 115.8 | J53: 98.4 | K53: 乙类
A54: 38 | C54: 活髓保存治疗费 | D54: 通过处理暴露牙髓清除感染，保存正常牙髓。 | E54: 所定价格涵盖准备、去除、冲洗、盖髓、处理用物等步骤所需的人力资源和基本物质资源消耗。 | F54: 牙 | G54: 盖髓材料(MTA、BP、三氧化物聚合体)可单独收费 | H54: 60 | I54: 51 | J54: 43 | K54: 甲类 | L54: 直接盖髓术 活髓切断术 间接盖髓术
C55: 活髓保存治疗费-间接盖髓 | F55: 牙 | H55: 50 | I55: 42 | J55: 36 | K55: 甲类
A56: 39 | C56: 牙髓再生治疗费 | D56: 清除根管内感染，借助多种方式促进根管内牙髓样组织再生及牙根生长。 | E56: 所定价格涵盖准备、根管内引血、封闭、处理用物等步骤所需的人力资源和基本物质资源消耗。 | F56: 牙 | H56: 800 | I56: 680 | J56: 578 | K56: 丙类
C57: 牙髓再生治疗费-自体血支架制备（加收） | F57: 牙 | H57: 480 | I57: 408 | J57: 346.8 | K57: 丙类
A58: 40 | C58: 牙体缺损直接粘接修复费 | D58: 通过使用填充材料修复牙体缺损。 | E58: 所定价格涵盖准备、去龋、窝洞制备、充填、粘接固化、塑形、调合、磨光、抛光、处理用物等步骤所需的人力资源和基本物质资源消耗。 | F58: 牙 | G58: 本项目所称“牙体大面积缺损”指：累及2个及以上牙面的情况。 | H58: 150 | I58: 127 | J58: 108 | K58: 乙类 | L58: 牙体缺损直接粘接修复术 牙体缺损充填术 非金属类充填体抛光术 纸蜡咬合图像分析检查 金属类充填体抛光术 辅助性调合治疗
C59: 牙体缺损直接粘接修复费 -儿童（加收） | F59: 牙 | H59: 45 | I59: 38.1 | J59: 32.4 | K59: 乙类
C60: 牙体缺损直接粘接修复费 -牙体大面积缺损（加收） | F60: 牙 | H60: 150 | I60: 127 | J60: 108 | K60: 乙类
C61: 牙体缺损直接粘接修复费 -暂封 | F61: 牙 | H61: 105 | I61: 89 | J61: 75 | K61: 乙类
C62: 牙体缺损直接粘接修复费 -银汞合金充填 | F62: 牙 | H62: 105 | I62: 89 | J62: 75 | K62: 乙类
A63: 41 | C63: 前牙形态修复费 | D63: 对牙齿美观区域进行形态、颜色、功能的修复。 | E63: 所定价格涵盖准备、美学设计、比色、窝洞制备、分层堆塑恢复牙齿颜色外形、调𬌗、磨光、抛光、处理用物等步骤所需的人力资源和基本物质资源消耗。 | F63: 牙 | H63: 市场调节价 | I63: 市场调节价 | J63: 市场调节价 | K63: 丙类 | L63: 微创修复术 光固化树脂贴面修复术
C64: 前牙形态修复费-舌腭面形态辅助修复（加收） | F64: 牙 | H64: 市场调节价 | I64: 市场调节价 | J64: 市场调节价 | K64: 丙类
A65: 42 | C65: 窝沟封闭费 | D65: 封闭牙齿窝沟。 | E65: 所定价格涵盖准备、清洁、冲洗、酸蚀、干燥、封闭窝沟、光照固化、调合、抛光、处理用物等步骤所需的人力资源和基本物质资源消耗。 | F65: 牙 | H65: 40 | I65: 34 | J65: 28 | K65: 丙类 | L65: 窝沟封闭术
A66: 43 | C66: 氟防龋治疗费 | D66: 通过涂布氟化物预防龋齿。 | E66: 所定价格涵盖准备、清洁、涂布、处理用物等步骤所需的人力资源和基本物质资源消耗。 | F66: 牙 | H66: 5 | I66: 4 | J66: 3 | K66: 丙类 | L66: 氟防龋治疗
A67: 44 | C67: 牙脱敏治疗费 | D67: 通过各种方式处理牙面降低牙敏感症状。 | E67: 所定价格涵盖准备、清洁、脱敏、处理用物等步骤所需的人力资源和基本物质资源消耗。 | F67: 牙 | H67: 12 | I67: 10 | J67: 8 | K67: 甲类 | L67: 药物脱敏治疗 牙列套脱敏治疗 激光脱敏治疗
A68: 45 | C68: 牙齿内漂白费 | D68: 通过在牙齿内部使用药物去除牙齿中的有机着色物而使牙着色变浅。 | E68: 所定价格涵盖准备、清洁、比色、漂白脱色、处理用物等步骤所需的人力资源和基本物质资源消耗。 | F68: 牙 | G68: 1.美容整形常用项目。2.单次漂白费用不能超过“全口牙齿漂白费”费用。 | H68: 市场调节价 | I68: 市场调节价 | J68: 市场调节价 | K68: 丙类 | L68: 牙齿内漂白术 测色仪测色 牙齿脱色术
C69: 牙齿内漂白费-牙脱色费（扩展） | F69: 牙 | H69: 市场调节价 | I69: 市场调节价 | J69: 市场调节价 | K69: 丙类
A70: 46 | C70: 全口牙齿漂白费 | D70: 通过专用漂白设备及漂白药物对全口牙齿表面进行漂白治疗，使牙齿颜色变浅。 | E70: 所定价格涵盖准备、牙龈保护、涂布、光照、保护处理、处理用物等步骤所需的人力资源和基本物质资源消耗。 | F70: 次 | G70: 美容整形常用项目。 | H70: 市场调节价 | I70: 市场调节价 | J70: 市场调节价 | K70: 丙类 | L70: 牙齿冷光漂白术 牙列套漂白术
C71: 全口牙齿漂白费-牙列套漂白费（扩展） | F71: 次 | H71: 市场调节价 | I71: 市场调节价 | J71: 市场调节价 | K71: 丙类
A72: 47 | C72: 预成冠修复费 | D72: 针对大面积牙体缺损进行预成冠修复。 | E72: 所定价格涵盖准备、预备、预成冠调改、粘结、调合、处理用物等步骤所需的人力资源和基本物质资源消耗。 | F72: 牙 | H72: 200 | I72: 170 | J72: 144 | K72: 丙类 | L72: 乳磨牙金属预成冠修复
A73: 48 | C73: 牙拔除费 | D73: 通过手术拔除牙齿。 | E73: 所定价格涵盖手术计划、术区准备、消毒、分离龈、拔除、取出根、冲洗、清理、止血、处理用物等步骤所需的人力资源和基本物质资源消耗。 | F73: 牙 | G73: 1、本项目所称“复杂牙拔除”指：正常位牙齿因解剖变异、死髓或牙体治疗后其脆性增加、局部慢性炎症刺激使牙槽骨发生致密性改变、牙骨间骨性结合的情况。 2、乳牙减收50%。 | H73: 50 | I73: 42 | J73: 36 | K73: 甲类 | L73: 乳牙拔除术 恒前牙拔除术 恒前磨牙拔除术 恒磨牙拔除术 微创复杂牙拔除术 骨融合牙拔除术 半牙拔除术 弓外牙拔除术
C74: 牙拔除费-复杂牙拔除（加收） | F74: 牙 | H74: 50 | I74: 42 | J74: 36 | K74: 甲类
C75: 牙拔除费-乳牙 | F75: 牙 | H75: 25 | I75: 21 | J75: 18 | K75: 甲类
A76: 49 | C76: 阻生牙拔除费 | D76: 通过手术拔除各类萌出智齿或高位阻生牙齿。 | E76: 所定价格涵盖手术计划、术区准备、消毒、翻瓣、分离、分牙、挺松、增隙、拔除、冲洗、清理、缝合、止血、处理用物等步骤所需的人力资源和基本物质资源消耗。 | F76: 牙 | G76: 本项目所称“复杂阻生牙拔除”指：被牙龈覆盖的各类阻生牙、完全埋藏颌骨内的各类阻生牙及多生牙的情况。 | H76: 200 | I76: 170 | J76: 144 | K76: 甲类 | L76: 萌出阻生牙拔除术 未完全萌出阻生牙拔除术 骨性埋藏阻生牙拔除术
C77: 阻生牙拔除费-复杂阻生牙拔除（加收） | F77: 牙 | H77: 200 | I77: 170 | J77: 144 | K77: 甲类
C78: 阻生牙拔除费-多生牙拔除费（扩展） | F78: 牙 | H78: 200 | I78: 170 | J78: 144 | K78: 甲类
A79: 50 | C79: 阻生牙开窗助萌费 | D79: 通过手术去除阻生牙萌出阻力。 | E79: 所定价格涵盖手术计划、术区准备、消毒、切开、显露牙、冲洗、缝合、止血、处理用物等步骤所需的人力资源和基本物质资源消耗。 | F79: 牙 | H79: 80 | I79: 68 | J79: 57 | K79: 甲类 | L79: 软组织内阻生恒牙开窗助萌术 骨阻生恒牙开窗助萌术
C80: 阻生牙开窗助萌费-骨阻生开窗助萌（加收） | F80: 牙 | H80: 80 | I80: 68 | J80: 57 | K80: 甲类
A81: 51 | C81: 阻生牙牙冠切除费 | D81: 通过手术切除阻生牙牙冠。 | E81: 所定价格涵盖手术计划、术区准备、消毒、切开、分离、去骨、截冠、修整、冲洗、缝合、止血、处理用物等步骤所需的人力资源和基本物质资源消耗。 | F81: 牙 | H81: 500 | I81: 425 | J81: 361 | K81: 丙类
A82: 52 | C82: 拔牙创搔刮费 | D82: 通过手术对拔牙创愈合不良的创面进行搔刮、清创处理。 | E82: 所定价格涵盖手术计划、术区准备、消毒、切开翻瓣、分离、刮除、冲洗、填塞、缝合、处理用物等步骤所需的人力资源和基本物质资源消耗。 | F82: 牙 | G82: 仅限于拔牙创愈合不良情况时收费，其他情况不单独收费。 | H82: 30 | I82: 25 | J82: 21 | K82: 甲类 | L82: 拔牙创面搔刮术 牙槽骨烧伤清创术
A83: 53 | C83: 阻生牙龈瓣修整费 | D83: 用于保留、开窗助萌阻生牙修整龈瓣形态，预防感染、创口愈合、维持牙龈形态。 | E83: 所定价格涵盖手术计划、术区准备、消毒、修整、成形、缝合、处理用物等步骤所需的人力资源和基本物质资源消耗。 | F83: 牙 | H83: 110 | I83: 93 | J83: 79 | K83: 乙类 | L83: 阻生智齿龈瓣修整术
A84: 54 | C84: 预防性拔牙窝组织封闭费 | D84: 拔牙后即刻封闭拔牙窝。 | E84: 所定价格涵盖手术计划、术区准备、消毒、修整、打磨、重建血运、修整、减张、封闭、缝合、止血、处理用物等步骤所需的人力资源和基本物质资源消耗。 | F84: 牙 | G84: 该项目指针对使用抗骨吸收药物、抗血管生成药物、放疗后、骨结构不良、硬化性骨髓炎等牙槽窝愈合不良高危患者，以及拔牙后牙槽嵴保存。 骨粉、骨膜、钛膜、胶原质可单独收费 | H84: 300 | I84: 255 | J84: 216 | K84: 丙类
A85: 55 | C85: 牙移植费 | D85: 通过手术将自体牙植入牙槽窝。 | E85: 所定价格涵盖手术计划、术区准备、消毒、修整、预备、植入、固定、调合、冲洗、缝合、止血、处理用物等步骤所需的人力资源和基本物质资源消耗。不包括供体牙拔除及其他治疗费用。 | F85: 牙 | H85: 340 | I85: 289 | J85: 245 | K85: 丙类 | L85: 牙移植术 牙再植术
C86: 牙移植费-牙再植费（扩展） | F86: 牙 | H86: 340 | I86: 289 | J86: 245 | K86: 丙类
A87: 56 | C87: 口腔良性肿物切除费 | D87: 通过手术切除口腔内的良性肿物。 | E87: 所定价格涵盖手术计划、术区准备、消毒、切开、解剖、分离、探查切除、冲洗、止血、缝合、处理用物等步骤所需的人力资源和基本物质资源消耗。 | F87: 病灶 | H87: 350 | I87: 297 | J87: 252 | K87: 甲类 | L87: 口腔黏膜小肿物切除术 龈瘤切除术 口内黏膜下粘液囊肿切除术
C88: 口腔良性肿物切除费-软组织缺损修复（加收） | F88: 病灶 | H88: 350 | I88: 297 | J88: 252 | K88: 甲类
A89: 57 | C89: 口腔系带修整费 | D89: 通过手术调整口腔系带。 | E89: 所定价格涵盖手术计划、术区准备、消毒、切开、修整、缝合、处理用物等步骤所需的人力资源和基本物质资源消耗。 | F89: 次 | H89: 200 | I89: 170 | J89: 144 | K89: 丙类 | L89: 前庭沟加深术 唇颊沟加深术 唇系带成形术 颊系带成形术 舌系带成形术
A90: 58 | C90: 颌骨病变刮切费（口内） | D90: 口内入路治疗颌骨内的良性病变。 | E90: 所定价格涵盖手术计划、术区准备、消毒、切开、翻瓣、去骨、切除或刮切、化学烧灼、止血、冲洗、骨修整、缝合等操作所需的人力资源和基本物质资源消耗。 | F90: 次 | H90: 900 | I90: 765 | J90: 650 | K90: 甲类 | L90: 口内入路下颌骨囊肿摘除术 根尖囊肿摘除术
A91: 59 | C91: 颌骨病变刮切费（颌面部） | D91: 口外入路治疗颌骨内的良性病变。 | E91: 所定价格涵盖手术计划、术区准备、消毒、切开、翻瓣、去骨、切除或刮切、化学烧灼、止血、冲洗、骨修整、缝合等操作所需的人力资源和基本物质资源消耗。 | F91: 次 | H91: 500 | I91: 425 | J91: 361 | K91: 甲类 | L91: 颌骨牙源性病灶刮治术 颌骨骨髓炎病灶刮治术 口外入路下颌骨囊肿摘除术 下颌骨边缘性骨髓炎刮治术 截根术
A92: 60 | C92: 颌骨囊肿减压费 | D92: 通过手术开窗对颌骨囊肿减压。 | E92: 所定价格涵盖手术计划、术区准备、消毒、切开、翻瓣、去骨壁、冲洗、缝合、处理用物等步骤所需的人力资源和基本物质资源消耗。不包含拔牙费用。 | F92: 病灶 | H92: 500 | I92: 425 | J92: 361 | K92: 丙类
A93: 61 | C93: 口腔牵引钉植入费 | D93: 将牵引钉植入颌骨。 | E93: 所定价格涵盖手术计划、术区准备、消毒、植入、处理用物等步骤所需的人力资源和基本物质资源消耗。 | F93: 次 | G93: 本项目所称“次”：以3枚牵引钉为基础收费，每增加1枚加收35元，以10枚牵引钉费用封顶。 | H93: 340 | I93: 289 | J93: 245 | K93: 甲类 | L93: 颌骨骨折颌间牵引钉颌间固定术
A94: 62 | C94: 口腔牵引钉取出费 | D94: 将植入的牵引钉取出。 | E94: 所定价格涵盖手术计划、术区准备、消毒、拆除、缝合、处理用物等步骤所需的人力资源和基本物质资源消耗。 | F94: 次 | G94: 本项目所称“次”：以3枚牵引钉为基础收费，每增加1枚加收10元，以10枚牵引钉费用封顶。 | H94: 15 | I94: 12 | J94: 10 | K94: 甲类 | L94: 颌间牵引钉拆除术
A95: 63 | C95: 口腔骨突修整费 | D95: 修整骨尖、骨嵴或骨隆突。 | E95: 所定价格涵盖手术计划、术区准备、消毒、切开、去骨、打磨、冲洗、缝合、处理用物等步骤所需的人力资源和基本物质资源消耗。 | F95: 牙 | G95: 本项目所称“复杂骨突”指：一侧上颌结节、下颌舌侧隆突修整、腭部隆突的情况。 | H95: 150 | I95: 127 | J95: 108 | K95: 丙类 | L95: 颌骨隆突切除术 牙周骨成形术 牙槽骨修整术
C96: 口腔骨突修整费-复杂骨突（加收） | F96: 牙 | H96: 150 | I96: 127 | J96: 108 | K96: 丙类
A97: 64 | C97: 颌间结扎费 | D97: 通过各种方式将上下颌骨间结扎。 | E97: 所定价格涵盖准备、手法复位、固定、结扎、处理用物等步骤所需的人力资源和基本物质资源消耗。不包含牵引钉植入、安装固定装置等。 | F97: 单颌 | H97: 340 | I97: 289 | J97: 245 | K97: 甲类 | L97: 后牙纵折固定术 牙外伤结扎固定术 颌骨骨折牙间钢丝结扎固定术 颌骨骨折颌间结扎固定术 颌骨骨折单颌牙弓夹板结扎固定术
C98: 颌间结扎费-儿童（加收） | F98: 单颌 | H98: 102 | I98: 86.7 | J98: 73.5 | K98: 甲类
A99: 65 | C99: 颌间结扎拆除费 | D99: 拆除颌间结扎装置。 | E99: 所定价格涵盖准备、拆除、处理用物等步骤所需的人力资源和基本物质资源消耗。 | F99: 单颌 | H99: 65 | I99: 55 | J99: 46 | K99: 甲类 | L99: 颌间固定物拆除术
C100: 颌间结扎拆除费-儿童（加收） | F100: 单颌 | H100: 19.5 | I100: 16.5 | J100: 13.8 | K100: 甲类
A101: 66 | C101: 牙槽突骨折复位固定费 | D101: 通过手术对上下颌牙槽突骨折进行复位固定。 | E101: 所定价格涵盖手术计划、术区准备、消毒、经口内入路清创、复位、固定、冲洗、缝合、处理用物等步骤所需的人力资源和基本物质资源消耗。 | F101: 牙 | H101: 200 | I101: 170 | J101: 144 | K101: 甲类 | L101: 牙槽突骨折结扎固定术 引导骨再生术
A102: 67 | C102: 脓肿切开引流费（口内） | D102: 切开口内浅表脓肿引流。 | E102: 所定价格涵盖手术计划、术区准备、消毒、切开、引流、冲洗、处理用物等步骤所需的人力资源和基本物质资源消耗。 | F102: 次 | H102: 30 | I102: 25 | J102: 21 | K102: 甲类 | L102: 口内脓肿切开引流术
A103: 68 | C103: 脓肿切开引流费（颌面部） | D103: 切开颌面部浅表脓肿引流。 | E103: 所定价格涵盖手术计划、术区准备、消毒、切开、引流、冲洗、处理用物等步骤所需的人力资源和基本物质资源消耗。不包含口腔颌面颈部间隙感染。 | F103: 次 | H103: 200 | I103: 170 | J103: 144 | K103: 甲类 | L103: 颌面部脓肿切开引流术 口底颌下脓肿切开引流术 颌面部多间隙脓肿切开引流术
A104: 69 | C104: 口腔无回吸辅助治疗费 | D104: 通过无回吸设备及技术配合牙齿治疗或口腔外科手术。 | E104: 所定价格涵盖设备准备、配合磨削、切割、牙体预备或窝洞制备等步骤所需的人力资源和基本物质资源消耗。 | F104: 次 | H104: 市场调节价 | I104: 市场调节价 | J104: 市场调节价 | K104: 丙类
A105: 70 | C105: 下牙槽神经探查解剖费 | D105: 通过手术探查解剖下颌管内的下牙槽神经血管束，或利于种植手术。 | E105: 所定价格涵盖手术计划、术区准备、消毒、切开、翻瓣、截骨、探查或牵出、复位、覆盖生物膜、缝合、处理用物等步骤所需的人力资源和基本物质资源消耗。不含种植体植入。 | F105: 次 | G105: 不与同部位其他手术同时收取。 骨粉、骨膜、钛膜、胶原质可单独收费 | H105: 500 | I105: 425 | J105: 361 | K105: 乙类 | L105: 下牙槽神经解剖移位术
C106: 下牙槽神经探查解剖费-下牙槽神经移位（加收） | F106: 次 | H106: 500 | I106: 425 | J106: 361 | K106: 乙类
A107: 71 | C107: 口腔上颌窦瘘修补费 | D107: 通过手术修补口腔上颌窦交通或口腔上颌窦瘘。 | E107: 所定价格涵盖手术计划、术区准备、消毒、切开、切除、清创搔刮、分离、去骨、减张、修整、冲洗、止血、填塞、缝合、处理用物等步骤所需的人力资源和基本物质资源消耗。 | F107: 单侧 | H107: 800 | I107: 680 | J107: 578 | K107: 甲类 | L107: 口腔上颌窦瘘黏骨膜瓣转移修补术
A108: 72 | C108: 口内游离软组织移植费 | D108: 通过手术移植局部游离软组织。 | E108: 所定价格涵盖手术计划、术区准备、消毒、切开、翻瓣、制备、固定、缝合及处置、处理用物等步骤所需的人力资源和基本物质资源消耗。 | F108: 牙位 | G108: 不与“牙龈成形费”同时收取 | H108: 300 | I108: 255 | J108: 216 | K108: 丙类
A109: 73 | C109: 临时固定修复费 | D109: 在口内制作临时修复体。 | E109: 所定价格涵盖准备、预备、制作、试戴、咬合检查、调整、抛光、清洁消毒、粘接、处理用物等步骤所需的人力资源和基本物质资源消耗。 | F109: 牙位 | H109: 120 | I109: 102 | J109: 86 | K109: 丙类 | L109: 暂时塑料冠桥修复术 粘结术
A110: 74 | C110: 修复体固定修复费 | D110: 通过固定修复体完成牙体缺损或牙列缺损修复。 | E110: 所定价格涵盖准备、预备、取印模和模型制备、取咬合关系、比色、试戴、调改、粘固、处理用物等步骤所需的人力资源和基本物质资源消耗。 | F110: 牙位 | G110: 本项目所称“复杂修复体固定修复”指：II度及以上深覆牙合、中重度异色牙、固定修复牙位4颗及以上、牙槽骨重度吸收（大于根长1/3）、伴颞下颌关节病、冠短（至少一面低于5mm）的情况。 | H110: 市场调节价 | I110: 市场调节价 | J110: 市场调节价 | K110: 丙类 | L110: 贵金属铸造加工工艺 烤瓷冠桥嵌体修复术 金属冠桥嵌体修复术 瓷贴面修复术 树脂冠桥嵌体贴面间接制作修复术 镀金加工工艺 金沉积加工工艺 调改义齿 激光焊接 铸瓷加工工艺 计算机辅助固定修复体设计 高强度复合陶瓷加工工艺
C111: 修复体固定修复费-即刻修复（加收） | F111: 牙位 | H111: 市场调节价 | I111: 市场调节价 | J111: 市场调节价 | K111: 丙类
C112: 修复体固定修复费-复杂修复体固定修复（加收） | F112: 牙位 | H112: 市场调节价 | I112: 市场调节价 | J112: 市场调节价 | K112: 丙类
A113: 75 | C113: 桩核修复费 | D113: 通过桩核修复牙体缺损。 | E113: 所定价格涵盖准备、预备、清理、预备、试戴、消毒、塑核或粘固、桩核修整、处理用物等步骤所需的人力资源和基本物质资源消耗。 | F113: 根管 | H113: 300 | I113: 255 | J113: 216 | K113: 丙类 | L113: 金属桩核修复术 纤维桩核修复术
C114: 桩核修复费-一体化纤维桩核（加收） | F114: 根管 | H114: 30 | I114: 25.5 | J114: 21.6 | K114: 丙类
A115: 76 | C115: 附着体修复费 | D115: 通过附着体完成固定活动联合修复中的固定修复部分。 | E115: 所定价格涵盖准备、预备、清理、预备、消毒、取印模、模型制备、比色、试戴、调改、粘固、处理用物等步骤所需的人力资源和基本物质资源消耗。 | F115: 牙位 | H115: 1500 | I115: 1275 | J115: 1083 | K115: 丙类 | L115: 附着体设计与安装 义齿增加铸造部件 义齿组织面重衬
C116: 附着体修复费-套筒冠修复费（扩展） | F116: 牙位 | H116: 1500 | I116: 1275 | J116: 1083 | K116: 丙类
A117: 77 | C117: 全口义齿修复费 | D117: 通过全口义齿修复牙列缺失。 | E117: 所定价格涵盖准备、取印模、制备、确定颌位关系、试排牙蜡型、试戴、调改、处理用物等步骤所需的人力资源和基本物质资源消耗。 | F117: 单颌 | G117: 本项目所称“复杂全口义齿修复”指：牙槽骨重度吸收（II-IV级）、伴颞下颌关节病、覆盖义齿的情况。 | H117: 3000 | I117: 2550 | J117: 2167 | K117: 丙类 | L117: 塑料基托全口义齿 铸造基托全口义齿 咬合重建设计 塑料加高咬合面
C118: 全口义齿修复费-复杂全口义齿修复（加收） | F118: 单颌 | H118: 1500 | I118: 1275 | J118: 1083.5 | K118: 丙类
A119: 78 | C119: 胶连可摘局部义齿修复费 | D119: 通过胶连可摘局部义齿修复牙列缺损。 | E119: 所定价格涵盖准备、预备、取印模、制备、确定颌位关系、试戴、调改、处理用物等步骤所需的人力资源和基本物质资源消耗。 | F119: 牙位 | G119: 附加牙合垫按牙位计价收费。 | H119: 200 | I119: 170 | J119: 144 | K119: 丙类 | L119: 弹性假牙龈安装 塑料可摘局部义齿修复术 义齿增加弯制部件 计算机辅助可摘义齿设计
A120: 79 | C120: 铸造支架可摘局部义齿修复费 | D120: 通过铸造支架可摘局部义齿修复牙列缺损。 | E120: 所定价格涵盖准备、预备、取印模、制备、试戴、确定颌位关系、试排牙蜡型、调改、处理用物等步骤所需的人力资源和基本物质资源消耗。 | F120: 牙位 | G120: 1.本项目所称“复杂铸造支架可摘局部义齿修复”指：单颌缺失牙10颗及以上、牙槽骨重度吸收（II-IV级）、II度及以上深覆合、余留牙存在中重度牙周病（牙槽骨吸收大于1/3的牙齿数目占一半以上）、关节盘移位或骨关节病、牙周夹板的情况。 2.附加牙合垫或牙周夹板按牙位计价收费。 | H120: 170 | I120: 144 | J120: 122 | K120: 丙类 | L120: 铸造可摘局部义齿修复术
C121: 铸造支架可摘局部义齿修复费-复杂铸造支架可摘局部义齿修复（加收） | F121: 牙位 | H121: 34 | I121: 28.8 | J121: 24.4 | K121: 丙类 | L121: 铸造可摘局部义齿修复术
A122: 80 | C122: 颌骨/腭部缺损赝复体修复费（常规） | D122: 通过赝复体修复颌骨/软腭缺损。 | E122: 所定价格涵盖准备、预备、取印模、制备、试戴、取颌位记录、调改、处理用物等步骤所需的人力资源和基本物质资源消耗。 | F122: 每件 | H122: 4000 | I122: 3400 | J122: 2890 | K122: 丙类 | L122: 上颌骨缺损阻塞器修复 下颌骨带翼导板修复
A123: 81 | C123: 颌骨/腭部缺损赝复体修复费（复杂） | D123: 通过赝复体修复复杂情况的颌骨/软腭缺损。 | E123: 所定价格涵盖准备、预备、取印模、制备、试戴、取颌位记录、试戴、调改、处理用物等步骤所需的人力资源和基本物质资源消耗。 | F123: 每件 | G123: 本项目所称“复杂”指：口鼻腔穿通、下颌骨连续性丧失、单颌缺失10颗牙及以上、伴软腭缺损、伴面部缺损、下颌带翼导板、腭护板加辅助放疗装置、全上颌缺失修复的情况。 | H123: 5000 | I123: 4250 | J123: 3612 | K123: 丙类 | L123: 软腭缺损阻塞器修复 软腭抬高器治疗 腭裂术后鼻音计反馈治疗 腭裂常规语音治疗
A124: 82 | C124: 面部缺损赝复体修复费 | D124: 通过赝复体修复面部缺损。 | E124: 所定价格涵盖准备、印模、制备、个性化比色、试戴、个性化上色、调改、处理用物等步骤所需的人力资源和基本物质资源消耗。 | F124: 每件 | G124: 如面部缺损涉及多个器官，如眼、耳、鼻缺损， 每增加1个器官，按件叠加计价收费。 | H124: 8000 | I124: 6800 | J124: 5780 | K124: 丙类 | L124: 义眼眶治疗 颅颌面赝复种植固位 义眼安装 义眼台打孔+义眼安装术 义眼治疗
A125: 83 | C125: 咬合板治疗费 | D125: 通过戴入咬合板调整咬合关系。 | E125: 所定价格涵盖准备、取印模、制备、试戴、调改、处理用物等步骤所需的人力资源和基本物质资源消耗。 | F125: 每件 | H125: 2000 | I125: 1700 | J125: 1445 | K125: 丙类 | L125: 正颌外科咬合导板制备 咬合记录 合板治疗 合导板制备
C126: 咬合板治疗费-减材/增材咬合板（加收） | F126: 每件 | H126: 1000 | I126: 850 | J126: 722.5 | K126: 丙类
C127: 咬合板治疗费-弹性咬合板 | F127: 每件 | H127: 600 | I127: 510 | J127: 433.5 | K127: 丙类
A128: 84 | C128: 修复体拆除费 | D128: 对固定在口内的修复体进行拆除。 | E128: 所定价格涵盖准备、修复体拆除、处理用物等步骤所需的人力资源和基本物质资源消耗。 | F128: 修复体 | H128: 100 | I128: 85 | J128: 72 | K128: 丙类 | L128: 拆桩 非铸造修复体拆除术 拆冠桥
A129: 85 | C129: 修复体维护费 | D129: 对修复体进行调改、修补、再粘接等维护。 | E129: 所定价格涵盖准备、取印模、模型制备、修补、试戴、调改、再粘接、处理用物等步骤所需的人力资源和基本物质资源消耗。 | F129: 牙位 | G129: 1.修理卡环和基托按涉及牙位计价收费。2.此项适用于非保修保质期内的修复体维护。 | H129: 100 | I129: 85 | J129: 72 | K129: 丙类 | L129: 加人造牙 义齿基托修理 烤瓷冠桥崩瓷修理 修复体个性调色
A130: 86 | C130: 全口牙周系统检查费 | D130: 通过设备对牙周进行系统检查，并完成系统表记录。 | E130: 所定价格涵盖准备、牙周风险评估、记录、处理用物等步骤所需的人力资源和基本物质资源消耗。 | F130: 次 | H130: 72 | I130: 61 | J130: 52 | K130: 甲类 | L130: 全口牙病系统检查与治疗设计 菌斑微生物检测
A131: 87 | C131: 牙周探诊费 | D131: 通过牙周专用刻度探针进行牙周袋深度的测量和判定并记录。 | E131: 所定价格涵盖准备、牙周探诊、测量、记录、处理用物等步骤所需的人力资源和基本物质资源消耗。 | F131: 次 | G131: 不与“全口牙周系统检查费”同时收取。 | H131: 40 | I131: 34 | J131: 28 | K131: 甲类 | L131: 牙周探诊 牙周电子探针检查
A132: 88 | C132: 牙周指数检查费 | D132: 检查并记录菌斑指数、出血指数、松动度、根分叉病变。 | E132: 所定价格涵盖准备、检查、判读、记录、处理用物等步骤所需的人力资源和基本物质资源消耗。 | F132: 项 | G132: 不与“全口牙周系统检查费”同时收取。 | H132: 20 | I132: 17 | J132: 14 | K132: 甲类 | L132: 牙周指数检查
A133: 89 | C133: 牙周冲洗上药费 | D133: 对牙周袋或智齿盲袋内部进行冲洗、置入药物。 | E133: 所定价格涵盖准备、冲洗、清除、上药、处理用物等步骤所需的人力资源和基本物质资源消耗。 | F133: 牙 | H133: 8 | I133: 6 | J133: 5 | K133: 甲类 | L133: 冠周局部治疗 牙周局部冲洗上药
A134: 90 | C134: 牙周塞治费 | D134: 通过塞治剂覆盖创面或辅助龈瓣贴合于骨面、牙面。 | E134: 所定价格涵盖准备、调配、放置、修整、处理用物等步骤所需的人力资源和基本物质资源消耗。 | F134: 牙 | H134: 15 | I134: 12 | J134: 10 | K134: 甲类 | L134: 牙龈保护剂塞治 口腔局部止血 口腔局部缝合止血
C135: 牙周塞治费-口腔局部止血费（扩展） | F135: 牙 | H135: 15 | I135: 12 | J135: 10 | K135: 甲类
A136: 91 | C136: 龈上洁治费 | D136: 通过各种方式清除牙龈缘以上的菌斑、牙石及其他沉积物。 | E136: 所定价格涵盖准备、洁治、处理用物，必要时上药等步骤所需的人力资源和基本物质资源消耗。 | F136: 牙 | G136: 同一治疗部位不与“牙周冲洗上药费”同时收取。 | H136: 6 | I136: 5 | J136: 4 | K136: 丙类 | L136: 龈上洁治 种植体周围洁治术
C137: 龈上洁治费-种植牙洁治（加收） | F137: 牙 | H137: 6 | I137: 5 | J137: 4 | K137: 丙类
A138: 92 | C138: 牙面抛光费 | D138: 对牙面进行抛光。 | E138: 所定价格涵盖准备、抛光、处理用物等步骤所需的人力资源和基本物质资源消耗。 | F138: 牙 | H138: 4 | I138: 3 | J138: 2 | K138: 丙类 | L138: 牙面光洁术
A139: 93 | C139: 牙面喷砂费 | D139: 通过喷砂去除位于龈上或龈下的菌斑、色素、牙石。 | E139: 所定价格涵盖准备、对牙面/根面喷砂、处理用物等步骤所需的人力资源和基本物质资源消耗。 | F139: 牙 | H139: 4 | I139: 3 | J139: 2 | K139: 丙类
A140: 94 | C140: 龈下刮治费 | D140: 通过各种方式去除龈下牙石、菌斑。 | E140: 所定价格涵盖准备、探查、刮治、处理用物等步骤所需的人力资源和基本物质资源消耗。 | F140: 牙 | H140: 10 | I140: 8 | J140: 7 | K140: 丙类 | L140: 龈下刮治
C141: 龈下刮治费-种植体龈下刮治（加收） | F141: 牙 | H141: 3 | I141: 2.4 | J141: 2.1 | K141: 丙类
A142: 95 | C142: 根面平整费 | D142: 通过各种方式去除根面感染病变的牙骨质。 | E142: 所定价格涵盖手术计划、术区准备、消毒、根面平整，必要时通过设备微创实施、处理用物等步骤所需的人力资源和基本物质资源消耗。 | F142: 牙 | H142: 35 | I142: 29 | J142: 25 | K142: 乙类 | L142: 根面平整术 牙周激光治疗
A143: 96 | C143: 松牙固定费 | D143: 通过各种方式对松动牙齿进行固定。 | E143: 所定价格涵盖准备、检查、固定、咬合检查、调整、处理用物等步骤所需的人力资源和基本物质资源消耗。 | F143: 牙 | H143: 100 | I143: 85 | J143: 72 | K143: 乙类 | L143: 恒牙外伤固定术 牙周夹板固定
C144: 松牙固定费-外伤牙固定费（扩展） | F144: 牙 | H144: 100 | I144: 85 | J144: 72 | K144: 乙类
A145: 97 | C145: 松牙固定拆除费 | D145: 拆除松牙固定装置。 | E145: 所定价格涵盖准备、检查、拆除、清理、调整、处理用物等步骤所需的人力资源和基本物质资源消耗。 | F145: 牙 | H145: 10 | I145: 8 | J145: 7 | K145: 乙类 | L145: 牙弓夹板拆除术
A146: 98 | C146: 牙周翻瓣费 | D146: 通过手术翻开牙龈瓣，进行清创。 | E146: 所定价格涵盖制定手术计划、术区准备、消毒、切开、翻瓣、清创、骨修整、复位、缝合、处理用物等步骤所需的人力资源和基本物质资源消耗。 | F146: 牙 | G146: 本项目所称“复杂牙周翻瓣”指：根向或冠向复位切口、远中楔形切除、根分叉病变的情况。 | H146: 150 | I146: 127 | J146: 108 | K146: 乙类 | L146: 牙周翻瓣术 种植体周围翻瓣刮治术
C147: 牙周翻瓣费-复杂牙周翻瓣（加收） | F147: 牙 | H147: 90 | I147: 76.2 | J147: 64.8 | K147: 乙类
A148: 99 | C148: 牙龈成形费 | D148: 通过手术切除部分牙龈组织，恢复牙龈生理外形。 | E148: 所定价格涵盖手术计划、术区准备、消毒、修整、冲洗、止血、塞治、处理用物等步骤所需的人力资源和基本物质资源消耗。 | F148: 牙 | H148: 380 | I148: 323 | J148: 274 | K148: 乙类 | L148: 牙龈切除术 种植体周软组织移植费 牙龈成形术 修复前软组织成形术
C149: 牙龈成形费-龈瘤切除费（扩展） | F149: 牙 | H149: 380 | I149: 323 | J149: 274 | K149: 乙类
A150: 100 | C150: 游离龈移植费 | D150: 将自体组织或人工材料异位植入到角化龈不足的牙槽嵴。 | E150: 所定价格涵盖手术计划、术区准备、消毒、切开、翻瓣、清创、冲洗、修整、取材、植入、固定、缝合、处理用物等步骤所需的人力资源和基本物质资源消耗。 | F150: 牙 | G150: 不与“牙龈成形费”同时收取 | H150: 850 | I150: 722 | J150: 614 | K150: 乙类 | L150: 游离龈组织移植术 急性坏死性龈炎局部清创 牙周组织瓣转移术
C151: 游离龈移植费-上皮下结缔组织移植费（扩展） | F151: 牙 | H151: 850 | I151: 722 | J151: 614 | K151: 乙类
A152: 101 | C152: 引导性牙周组织再生费 | D152: 通过手术促进牙周组织再生。 | E152: 所定价格涵盖手术计划、术区准备、消毒、放置屏障膜并固定、复位、缝合、塞治、处理用物等步骤所需的人力资源和基本物质资源消耗。 | F152: 牙 | H152: 350 | I152: 297 | J152: 252 | K152: 丙类 | L152: 引导性牙周组织再生术
A153: 102 | C153: 牙周纤维环状切断费 | D153: 通过手术切断牙周纤维。 | E153: 所定价格涵盖手术计划、术区准备、消毒、切断、止血、塞治、处理用物等步骤所需的人力资源和基本物质资源消耗。 | F153: 牙 | H153: 90 | I153: 76 | J153: 65 | K153: 丙类 | L153: 牙周纤维环状切断术
A154: 103 | C154: 皮质骨切开费 | D154: 通过手术切开牙槽骨唇侧皮质骨板。 | E154: 所定价格涵盖手术计划、术区准备、消毒、切开、复位、止血、缝合、处理用物等步骤所需的人力资源和基本物质资源消耗。 | F154: 牙 | H154: 400 | I154: 340 | J154: 289 | K154: 丙类
C155: 皮质骨切开费-舌侧（加收） | F155: 牙 | H155: 400 | I155: 340 | J155: 289 | K155: 丙类
A156: 104 | C156: 调𬌗治疗费 | D156: 通过调整牙齿、修复体接触点或咬合面，改善咬合问题。 | E156: 所定价格涵盖准备、咬合纸检查、咬合印迹分析、咬合形态调整、处理用物等步骤所需的人力资源和基本物质资源消耗。 | F156: 次 | G156: 在牙体缺损充填或修复治疗中进行的调𬌗已经含入价格构成，不单独收取。 | H156: 35 | I156: 29 | J156: 25 | K156: 丙类 | L156: 专科调合治疗
A157: 105 | C157: 咬合力检测费 | D157: 通过各种方式对上下牙齿咀嚼产生的力量进行检测和评价。 | E157: 所定价格涵盖准备、检查、分析、评价、处理用物等步骤所需的人力资源和基本物质资源消耗。 | F157: 牙 | H157: 5 | I157: 4 | J157: 3 | K157: 乙类 | L157: 咬合力测量检查 T-咬合测定分析系统检查 光合仪检查
A158: 106 | C158: 下颌运动功能检查费 | D158: 通过各种方式对下颌运动进行检查和评价。 | E158: 所定价格涵盖准备、检查、分析、评价、处理用物等步骤所需的人力资源和基本物质资源消耗。 | F158: 次 | H158: 20 | I158: 17 | J158: 14 | K158: 甲类 | L158: 下颌运动检查 下颌运动计算机辅助检查
A159: 107 | C159: 咀嚼效率检查费 | D159: 通过各种方式对咀嚼效率进行检查和评价。 | E159: 所定价格涵盖准备、材料准备、残渣收集、处理、分析、评价、处理用物等步骤所需的人力资源和基本物质资源消耗。 | F159: 次 | H159: 15 | I159: 12 | J159: 10 | K159: 乙类 | L159: 咀嚼效率检查-食物过筛法
A160: 108 | C160: 唾液腺功能测定费 | D160: 评估唾液腺分泌能力和功能状态。 | E160: 所定价格涵盖准备、测定静态和刺激性全唾液流量、出具结果、处理用物等步骤所需的人力资源和基本物质资源消耗。 | F160: 次 | H160: 15 | I160: 12 | J160: 10 | K160: 甲类 | L160: 唾液流量测定
A161: 109 | C161: 唾液腺药物灌注费 | D161: 向唾液腺导管内灌注药物。 | E161: 所定价格涵盖准备、扩张、注射药物、处理用物等步骤所需的人力资源和基本物质资源消耗。 | F161: 腺体•单侧 | G161: 1.唾液腺的非药物性灌注，按此项目收费。2.本项目所称“腺体•单侧”指：口腔内每侧每腺体。单侧多个腺体或双侧单个腺体可叠加收费。 | H161: 30 | I161: 25 | J161: 21 | K161: 甲类 | L161: 腮腺导管内药物灌注治疗
A162: 110 | C162: 唾液腺导管取石费 | D162: 通过各种方式将唾液腺导管结石取出。 | E162: 所定价格涵盖手术计划、术区准备、消毒、探查、切开、取出、处理用物等步骤所需的人力资源和基本物质资源消耗。 | F162: 腺体•单侧 | G162: 本项目所称“腺体•单侧”指：口腔内每侧每腺体。单侧多个腺体或双侧单个腺体可叠加收费。 | H162: 650 | I162: 552 | J162: 469 | K162: 甲类 | L162: 颌下腺导管探查取石术 腮腺导管结石取出术
A163: 111 | C163: 唾液腺导管治疗费 | D163: 对唾液腺导管进行治疗。 | E163: 所定价格涵盖手术计划、术区准备、消毒、冲洗、松解、扩张、处理用物等步骤所需的人力资源和基本物质资源消耗。 | F163: 腺体•单侧 | G163: 本项目所称“腺体•单侧”指：口腔内每侧每腺体。单侧多个腺体或双侧单个腺体可叠加收费。 | H163: 600 | I163: 510 | J163: 433 | K163: 乙类 | L163: 涎腺瘘切除导管结扎术 涎腺导管扩大术 腮腺导管断裂吻合术 腮腺导管缺损静脉移植修复术 涎腺瘘切除导管重建术
A164: 112 | C164: 口腔黏膜病局部药物治疗费 | D164: 通过各种方式对口腔黏膜局部病损进行治疗。 | E164: 所定价格涵盖准备、注射/雾化/湿敷/局部封闭/穴位注射、处理用物等步骤所需的人力资源和基本物质资源消耗。 | F164: 病灶 | H164: 20 | I164: 17 | J164: 14 | K164: 甲类 | L164: 口腔黏膜病局部注射药物治疗 口腔黏膜病局部上药 黏膜病离子导入治疗 口腔黏膜雾化治疗

Sheet 一般治疗操作
A1: 使用说明： 1. 本立项指南以一般治疗为重点，按照一般治疗方式的服务产出设立价格项目。 2.根据《深化医疗服务价格改革试点方案》（医保发〔2021〕41号）关于“厘清价格项目与临床诊疗技术规范、医疗机构成本要素、不同应用场景和收费标准等的政策边界。分类整合现行价格项目，实现价格项目与操作步骤、诊疗部位等技术细节脱钩，增强现行价格项目对医疗技术和医疗活动改良创新的兼容性”的要求，服务产出相同的一类项目在操作层面存在差异，但在价格项目和定价水平层面具备合并同类项的条件，立项指南中按照一般治疗的服务产出设立价格项目，着重体现技术劳务价值。地方医疗保障部门制定一般治疗类医疗服务项目价格时，要体现技术劳务价值，使收费水平覆盖绝大部分的差异化操作；各地医疗保障部门所定价格属于政府指导价为最高限价，下浮不限。医疗机构申报技术改良进步价格项目的，可采取“现有项目兼容”方式处理，经向本地区医疗保障部门报告后可按照对应的项目执行。 3. 本立项指南所称的“价格构成”，指项目价格应涵盖的各类资源消耗，用于确定计价单元的边界，是各级医疗保障部门制定调整项目价格考虑的测算因子，不应作为临床技术标准理解，不是实际操作方式、路径、步骤、程序的强制性要求，价格构成中包含，但个别临床实践中非必要、未发生的，无需强制要求公立医疗机构减计费用。所列“设备投入”包括但不限于操作设备、器具及固定资产投入。 4. 本立项指南所称“加收项”，指同一项目以不同方式提供或在不同场景应用时，确有必要制定差异化收费标准而细分的一类子项，包括在原项目价格基础上增加或减少收费的情况，具体的加/减收标准（加/减收率或加/减收金额）由各地依权限制定；实际应用中，同时涉及多个加收项的，以项目单价为基础计算各项加/减收水平后，求和得出加/减收金额。 5. 本立项指南所称“扩展项”，指同一项目下以不同方式提供或在不同场景应用时，只扩展价格项目适用范围、不额外加价的一类子项，子项的价格按主项目执行。 6. 本立项指南所称“基本物质资源消耗”，指原则上限于不应或不必要与医疗服务项目分割的易耗品，包括但不限于各类消毒用品、储存用品、清洁用品、个人防护用品、标签、垃圾处理用品、腕带、润滑剂、压舌板、滑石粉、一般物理检查器具、治疗巾（单）、棉球、棉签、纱布（垫）、固定带、治疗护理盘(包）、护（尿）垫、中单、冲洗工具、备皮工具、牙垫、一次性冰袋、新生儿洗浴用品、绷带、注射器、灌注器、输液贴、导尿管、输液管路、敷料、呼吸面罩、生理盐水等常规冲洗液体、包裹单（袋）、软件的版权、开发、购买等。基本物质资源消耗成本计入项目价格，不另行收费。临床必需且经患者知情同意后，选用特殊功能的医用耗材并单独付费的，对应的医疗服务价格项目应同步执行减收政策，减收标准参照本地区常规使用普通耗材的采购均价合理确定。 7. 本立项指南所称“采血费”，指患者不能自行完成的有创采血操作。属于有创操作，但作为治疗或手术副产物的操作以及患者自行操作的采血项目不再另行立项。 8. 本立项指南中涉及的分泌物采集及浅表标本取样（如痰、二便、鼻咽拭子、精液等）不单独收费。 9. 本立项指南中涉及的置管、穿刺等操作，均不含影像学引导等各类引导费用。 10.本立项指南所称的“儿童”，指6周岁及以下。周岁的计算方法以法律的相关规定为准。 11. 本立项指南中涉及“包括……”“……等”的，属于开放型表述，所指对象不仅局限于表述中列明的事项，也包括未列明的同类事项。 12.本立项指南所称“重要器官及功能部位”指：指眼、耳、口、鼻、会阴、生殖器。 13、经皮穿刺颈内静脉置管术、经皮穿刺锁骨下静脉置管术、经皮穿刺股静脉置管术、静脉切开置管术、有创血压监测动脉置管术、外周动脉穿刺置管术、动脉置管拔除术、超声引导下植入式静脉输液港植入术、气管切开术可以与手术操作同时收费。 14.一般治疗操作除外耗材：采血管、动脉采血器、留置针、三通、精密输液器、避光注射器、避光输液器、无针密闭输液接头、预充式导管冲洗器、肝素帽、营养袋、特殊缝线、护创材料、功能性敷料、导丝、扩张管、心包引流管、导管、防粘连材料、三腔两囊管/四腔两囊管、中心静脉导管、中线静脉导管、扩张器、传感器、血管鞘组、脐静脉导管、专用引流管、化疗泵、血管夹、止血材料、吸氧装置、管路、异型气管导管、气管切开套管、压力传感器、营养泵管、专用导尿管、负压护创材料、探头、三腔胃管,鼻饲管、植入式输液港型中心静脉导管及套件，耐高压输液港型中心静脉导管及套件、一次性使用胰岛素泵注射组件（储药器）、负压引流管路、输液泵管、鼻肠喂养管、引流管（专指青海省医疗机构可收费医用耗材及医保支付类别目录中所列明引流管）、穿刺针
A3: 一般治疗类医疗服务价格项目立项指南 （试行）
A4: 序号 | B4: 项目编码 | C4: 项目名称 | D4: 服务产出 | E4: 价格构成 | F4: 加收项 | G4: 扩展项 | H4: 计价单位 | I4: 计价说明 | J4: 指导价格 | M4: 医保支付类别 | N4: 映射项目名称
J5: 三级 | K5: 二级 | L5: 一级
A6: 1 | C6: 采血费（末梢） | D6: 通过末梢采集血液。 | E6: 所定价格涵盖核对信息、评估、定位、消毒、穿刺、采血、拔针、按压、血样保存、送检、处理用物等步骤所需的人力资源和基本物质资源消耗。 | H6: 次 | I6: 1.本项目所称的“次”指：一次完整成功的采血过程。 2.本项目所称的“末梢”指：指尖、耳尖、足跟等。 | J6: 2 | K6: 2 | L6: 2 | M6: 乙类 | N6: 静脉采血
A7: 2 | C7: 采血费（静脉） | D7: 通过静脉采集血液。 | E7: 所定价格涵盖核对信息、评估、定位、消毒、穿刺、采血、拔针、按压、血样保存、送检、处理用物等步骤所需的人力资源和基本物质资源消耗。 | F7: 01儿童加收30% | H7: 次 | I7: 本项目所称的“次”指：一次完整成功的采血过程。 | J7: 6 | K7: 6 | L7: 6 | M7: 乙类 | N7: 静脉采血
C8: 采血费（静脉）-儿童（加收） | H8: 次 | J8: 1.8 | K8: 1.8 | L8: 1.8
A9: 3 | C9: 采血费（动脉） | D9: 通过动脉采集血液。 | E9: 所定价格涵盖核对信息、评估、定位、消毒、穿刺、采血、拔针、按压、血样保存、送检、处理用物等步骤所需的人力资源和基本物质资源消耗。 | F9: 01儿童加收30% | H9: 次 | I9: 本项目所称的“次”指：一次完整成功的采血过程。 | J9: 13 | K9: 13 | L9: 13 | M9: 乙类 | N9: 动脉采血
C10: 采血费（动脉）-儿童（加收） | H10: 次 | J10: 3.9 | K10: 3.9 | L10: 3.9
A11: 4 | C11: 注射费（普通注射） | D11: 通过肌肉、皮内、皮下注射方式，完成液体注入。 | E11: 所定价格涵盖核对信息、评估、配制、定位、消毒、注射、拔针、按压、观察用药反应、记录、处理用物等步骤所需的人力资源和基本物质资源消耗。 | F11: 01儿童加收30% | H11: 次 | I11: 每完成一次完整成功的注射操作，可计费一次。 | J11: 3.5 | K11: 3.5 | L11: 3.5 | M11: 乙类 | N11: 皮内注射 皮下注射 肌肉注射
C12: 注射费（普通注射）-儿童（加收） | H12: 次 | J12: 1 | K12: 1 | L12: 1
A13: 5 | C13: 注射费（静脉推注） | D13: 通过静脉通路完成液体推注。 | E13: 所定价格涵盖核对信息、评估、配制、定位、消毒、穿刺或连接已有管路/给药装置、推注、拔针、按压或冲管/封管、观察用药反应、记录、处理用物以及必要时加注药液等步骤所需的人力资源和基本物质资源消耗。 | F13: 01儿童加收30% 11精准定量输注加收2元 | H13: 次 | I13: 1.每完成一次完整成功的注射操作，可计费一次。经多次穿刺构建不同通路的，可累计计费。 2.本项目所称的“精准定量输注”指：通过输液泵等装置将药液精确定量控制注入患者体内。 3.已在外周静脉、深静脉、中心静脉、药物输注装置等建立输液通路的，再次进行注射的，可直接按此收费。 4、精准定量输注中“次”指泵.每小时 | J13: 6 | K13: 6 | L13: 6 | M13: 乙类 | N13: 静脉注射 输液泵辅助静脉输液
C14: 注射费（静脉推注）-儿童（加收） | H14: 次 | J14: 1.8 | K14: 1.8 | L14: 1.8
C15: 注射费（静脉推注）-精准定量输注（加收） | H15: 次 | J15: 2 | K15: 2 | L15: 2
A16: 6 | C16: 注射费（动脉推注） | D16: 通过动脉通路完成液体推注。 | E16: 所定价格涵盖核对信息、评估、配制、定位、消毒、穿刺或连接已有管路/给药装置、推注、拔针、按压或冲管/封管、观察用药反应、记录、处理用物以及必要时加注药液等步骤所需的人力资源和基本物质资源消耗。 | F16: 01儿童加收30% | H16: 次 | I16: 每完成一次完整成功的注射操作，可计费一次。经多次穿刺构建不同通路的，可累计计费。 | J16: 15 | K16: 15 | L16: 15 | M16: 乙类
C17: 注射费（动脉推注）儿童（加收） | H17: 次 | J17: 4.5 | K17: 4.5 | L17: 4.5
A18: 7 | C18: 注射费（静脉输液） | D18: 通过静脉通路完成液体输注。 | E18: 所定价格涵盖核对信息、评估、配制、连接输液器、定位、消毒、排气、穿刺、固定、滴注、拔针、按压或冲管/封管、观察用药反应、记录、处理用物，以及必要时加温、加压输注或加注药液等步骤所需的人力资源和基本物质资源消耗。 | F18: 01儿童加收30% 11精准定量输注加收2元 | H18: 次 | I18: 1.如在静脉输液过程中，通过在管路或者容器中注药，不得另外收取各类“注射费”。 2.每完成一次完整的注射操作，可计费一次。经多次穿刺构建不同通路的，可累计计费。 3.已在外周静脉、深静脉、中心静脉、药物输注装置等建立输液通路的，再次进行注射的，可直接按此收费。 4.本项目所称的“精准定量输注”指：通过输液泵等装置将药液精确定量控制注入患者体内。 5、精准定量输注中次指泵.每小时。 6、超过三次按三次收费，多静脉通路情况不受此限制 7、 | J18: 15 | K18: 15 | L18: 15 | M18: 乙类 | N18: 静脉输液 输血输液加温治疗 输液泵辅助静脉输液 外周静脉营养输注 输液泵辅助全胃肠外营养深静脉输注 全胃肠外营养深静脉输注
C19: 注射费（静脉输液）儿童（加收） | H19: =H18 -> 次 | J19: 4.5 | K19: 4.5 | L19: 4.5
C20: 注射费（静脉输液）精准定量输注（加收） | H20: 次 | J20: 2 | K20: 2 | L20: 2
C21: 注射费（静脉输液）一次性避光输液器、一次性精密输液器除外如使用，操作费（减收） | H21: 次 | J21: 14 | K21: 14 | L21: 14
A22: 8 | C22: 注射费（静脉输血） | D22: 通过静脉通路完成各类血制品输注。 | E22: 所定价格涵盖核对信息、评估、连接输血器、定位、消毒、排气、穿刺、固定、输注、拔针、按压或冲管/封管、观察输血反应、记录、处理用物，以及必要时加温、加压输注或加注血制品等步骤所需的人力资源和基本物质资源消耗。 | F22: 01儿童加收30% | H22: 次 | I22: 1.每完成一次完整的注射操作，可计费一次。经多次穿刺构建不同通路的，可累计计费。 2.已在外周静脉、深静脉、中心静脉、药物输注装置等建立输血通路的，再次进行输血的，可直接按此收费。 3、以1袋血液为基价,每增加1袋加收不超过40% | J22: 15 | K22: 15 | L22: 15 | M22: 乙类 | N22: 静脉输血 输血输液加温治疗 加压快速输血
C23: 注射费（静脉输血）-儿童（加收） | H23: =H22 -> 次 | J23: 4.5 | K23: 4.5 | L23: 4.5
C24: 注射费（静脉输血）-以1袋血液为基价,每增加1袋（加收） | H24: 次 | J24: 6 | K24: 6 | L24: 6
A25: 9 | C25: 注射费（心内注射） | D25: 通过经皮穿刺向心脏内注射药物。 | E25: 所定价格涵盖核对信息、评估、配制、定位、消毒、穿刺、注射、拔针、按压或冲管/封管、观察用药反应、记录、处理用物等步骤所需的人力资源和基本物质资源消耗。 | F25: 01儿童加收30% | H25: 次 | I25: 每完成一次完整成功的注射操作，可计费一次。 | J25: 20 | K25: 17 | L25: 14 | M25: 乙类 | N25: 心内注射
C26: 注射费（心内注射）-儿童（加收） | H26: 次 | J26: 6 | K26: 5.1 | L26: 4.2
A27: 10 | C27: 注射费（局部封闭） | D27: 通过在病灶周围多次注射，消除炎症、解除疼痛、软化瘢痕、改善功能或预防感染。 | E27: 所定价格涵盖核对信息、评估、配制、定位、消毒、反复穿刺、注射、拔针、按压、观察用药反应、处理用物等步骤所需的人力资源和基本物质资源消耗。 | F27: 01儿童加收30% | G27: 01局部浸润注射 | H27: 次 | I27: 本项目所称的“次”指：完成单个部位完整的局部封闭治疗。 | J27: 25 | K27: 21 | L27: 18 | M27: 乙类
C28: 注射费（局部封闭）-儿童（加收） | H28: =H27 -> 次 | J28: 7.5 | K28: 6.3 | L28: 5.4
C29: 注射费（局部封闭）-局部浸润注射（拓展） | H29: 次 | J29: 25 | K29: 21 | L29: 18
A30: 11 | C30: 清创缝合费（小） | D30: 清理小伤口创面，必要时进行缝合，促进创面修复。 | E30: 所定价格涵盖检查伤口、清除组织血肿、冲洗、消毒、包扎固定，必要时缝合、引流等步骤所需的人力资源和基本物质资源消耗。 | F30: 01儿童加收30% 11累及重要器官及功能部位加收30% | H30: 次 | I30: 本项目所称的“清创缝合费（小）”指符合下列任一情况者：表浅切伤，裂伤，刺伤，伤口长度1-5厘米(含5厘米)，或急慢性创面直径或长度1-2厘米(含2厘米)等。 | J30: 50 | K30: 42 | L30: 36 | M30: 甲类 | N30: 清创(缝合)术(小)
C31: 清创缝合费（小）-儿童（加收） | H31: 次 | J31: 15 | K31: 12.6 | L31: 10.8
C32: 清创缝合费（小）-累及重要器官及功能部位（加收） | H32: 次 | J32: 15 | K32: 12.6 | L32: 10.8
A33: 12 | C33: 清创缝合费（中） | D33: 清理中等伤口创面，必要时进行缝合，促进创面修复。 | E33: 所定价格涵盖检查伤口、清除组织血肿、冲洗、消毒、包扎固定，必要时缝合、引流等步骤所需的人力资源和基本物质资源消耗。 | F33: 01儿童加收30% 11累及重要器官及功能部位加收30% 21肠瘘伤口清创加收30% | H33: 次 | I33: 本项目所称的“清创缝合费（中）”指符合下列任一情况者：轻微污染伤口，软组织轻度损伤，皮肤轻度损伤或缺损，异物存在，伤口长度5-10厘米、急慢性创面直径或长度2厘米-5厘米(含5厘米)等。 | J33: 90 | K33: 76 | L33: 65 | M33: 甲类 | N33: 清创(缝合)术(中)
C34: 清创缝合费（中）-儿童（加收） | H34: =H33 -> 次 | J34: 27 | K34: 22.8 | L34: 19.5
C35: 清创缝合费（中）-累及重要器官及功能部位（加收） | H35: 次 | J35: 27 | K35: 22.8 | L35: 19.5
C36: 清创缝合费（中）-肠瘘伤口清创（加收） | H36: 次 | J36: 27 | K36: 22.8 | L36: 19.5
A37: 13 | C37: 清创缝合费（大） | D37: 清理大伤口创面，必要时进行缝合，促进创面修复。 | E37: 所定价格涵盖检查伤口、清除组织血肿、冲洗、消毒、包扎固定，必要时缝合、引流等步骤所需的人力资源和基本物质资源消耗。 | F37: 01儿童加收30% 11累及重要器官及功能部位加收30% 21肠瘘伤口清创加收30% | H37: 次 | I37: 本项目所称的“清创缝合费（大）”指伤口长度大于10厘米并符合下列任一情况者：严重污染伤口，软组织严重损伤，皮肤严重损伤或缺损，特殊感染伤口，二期清创，多发异物伤口，血管、神经、肌肉、骨骼、关节严重损伤伤口，化学武器创口等。 | J37: 160 | K37: 136 | L37: 115.6 | M37: 甲类 | N37: 清创(缝合)术(大)
C38: 清创缝合费（大）-儿童（加收） | H38: =H37 -> 次 | J38: 48 | K38: 408 | L38: 346.8
C39: 清创缝合费（大）-累及重要器官及功能部位（加收） | H39: 次 | J39: 48 | K39: 40.8 | L39: 34.68
C40: 清创缝合费（大）-肠瘘伤口清创（加收） | H40: 次 | J40: 48 | K40: 40.8 | L40: 34.68
A41: 14 | C41: 清创缝合费（特大） | D41: 清理特大伤口创面，必要时进行缝合，促进创面修复。 | E41: 所定价格涵盖检查伤口、清除组织血肿、冲洗、消毒、包扎固定，必要时缝合、引流等步骤所需的人力资源和基本物质资源消耗。 | F41: 01儿童加收30% 11累及重要器官及功能部位加收30% | H41: 次 | I41: 本项目所称的“清创缝合费（特大）”指伤口面积大于100平方厘米或伤口长度大于20厘米或涉及腹壁深层感染和腹腔脏器损伤，并符合以下任一情况者：严重污染伤口、软组织严重损伤、皮肤严重损伤或缺损、特殊感染伤口、感染性窦道、二期或多期清创、多发异物伤口、血管、神经、肌肉、骨骼、关节严重损伤伤口，化学武器创口。 | J41: 200 | K41: 170 | L41: 144 | M41: 甲类 | N41: 清创(缝合)术(特大)
C42: 清创缝合费（特大）-儿童（加收） | H42: =H41 -> 次 | J42: 60 | K42: 51 | L42: 43.2
C43: 清创缝合费（特大）-累及重要器官及功能部位（加收） | H43: 次 | J43: 60 | K43: 51 | L43: 43.2
A44: 15 | C44: 换药费（小） | D44: 通过对小创面进行换药，预防控制感染、促进创面修复。 | E44: 所定价格涵盖检查创面、清洁、消毒、更换敷料、包扎固定，必要时拆线以及更换引流物等步骤所需的人力资源和基本物质资源消耗。 | F44: 01儿童加收30% | H44: 次 | I44: 本项目所称的“换药费（小）”指符合下列任一情况者：清洁伤口、缝合3针以内伤口拆线（包括皮内连续缝合拆线）等。 | J44: 17 | K44: 14 | L44: 12 | M44: 乙类 | N44: 换药(小)
C45: 换药费（小）-儿童（加收） | H45: 次 | J45: 5.1 | K45: 4.2 | L45: 3.6
A46: 16 | C46: 换药费（中） | D46: 通过对中创面进行换药，预防控制感染、促进创面修复。 | E46: 所定价格涵盖检查创面、清洁、消毒、更换敷料、包扎固定，必要时拆线以及更换引流物等步骤所需的人力资源和基本物质资源消耗。 | F46: 01儿童加收30% | H46: 次 | I46: 本项目所称的“换药费（中）”指符合下列任一情况者：污染伤口、缝合3-10针或慢性创面直径或长度2厘米-5厘米(含5厘米)伤口拆线、单个压疮、深静脉置管伤口、有引流管的伤口等。 | J46: 30 | K46: 25 | L46: 21 | M46: 乙类 | N46: 换药(中)
C47: 换药费（中）-儿童（加收） | H47: =H46 -> 次 | J47: 9 | K47: 7.5 | L47: 6.3
A48: 17 | C48: 换药费（大） | D48: 通过对大创面进行换药，预防控制感染、促进创面修复。 | E48: 所定价格涵盖检查创面、清洁、消毒、更换敷料、包扎固定，必要时拆线以及更换引流物等步骤所需的人力资源和基本物质资源消耗。 | F48: 01儿童加收30% | H48: 次 | I48: 本项目所称的“换药费（大）”指符合下列任一情况者：感染伤口、缝合11-30针或慢性创面直径或长度大于5厘米伤口拆线、多个压疮、皮瓣移植物伤口、大棉垫1-2块、渗出50-100毫升伤口等。 | J48: 50 | K48: 42 | L48: 36 | M48: 乙类 | N48: 换药(大)
C49: 换药费（大）-儿童（加收） | H49: 次 | J49: 15 | K49: 12.6 | L49: 10.8
A50: 18 | C50: 换药费（特大） | D50: 通过对特大创面进行换药，预防控制感染、促进创面修复。 | E50: 所定价格涵盖检查创面、清洁、消毒、更换敷料、包扎固定，必要时拆线以及更换引流物等步骤所需的人力资源和基本物质资源消耗。 | F50: 01儿童加收30% | H50: 次 | I50: 本项目所称的“换药费（特大）”指符合下列任一情况者：特殊感染伤口，缝合30针以上或慢性创面直径或长度大于10厘米伤口拆线，多个压疮感染，体表大于10%的皮瓣移植物及化学武器伤口，特殊部位伤口(会阴、切口裂开、内脏、软组织及皮下)，纱布需50块以上者，大棉垫3块以上，渗出大于100毫升伤口等。 | J50: 80 | K50: 68 | L50: 57 | M50: 乙类 | N50: 换药(特大)
C51: 换药费（特大）-儿童（加收） | H51: 次 | J51: 24 | K51: 20.4 | L51: 17.1
A52: 19 | C52: 换药费（烧/烫伤） | D52: 通过对烧/烫伤创面进行换药，预防控制感染、促进创面修复。 | E52: 所定价格涵盖检查创面、清洁、消毒、更换敷料、包扎固定，必要时拆线以及更换引流物等步骤所需的人力资源和基本物质资源消耗。 | F52: 01儿童加收30% | H52: 1%体表面积 | J52: 42 | K52: 35 | L52: 30 | M52: 乙类 | N52: 烧伤换药 烧伤特殊部位换药
C53: 换药费（烧/烫伤）-儿童（加收） | H53: =H52 -> 1%体表面积 | J53: 12.6 | K53: 10.5 | L53: 9
A54: 20 | C54: 穿刺费（胸腔） | D54: 穿刺胸腔，并根据需要进行注药、冲洗、采集标本或抽吸气体、液体等操作。 | E54: 所定价格涵盖核对信息、摆位、定位、消毒、穿刺、抽吸、注药或冲洗、留取标本、拔除、固定止血、处理用物、记录，必要时连接引流装置等步骤所需的人力资源和基本物质资源消耗。 | F54: 01儿童加收30% 11心包穿刺加收350元 21胸腔闭式引流加收340 | H54: 次 | I54: 1、穿刺过程中同步留取样本按本项目收费，不与“活检取材费”同时收费。 2.本项目所称的“次”指：一次完整成功的穿刺过程。 | J54: 150 | K54: 127 | L54: 108 | M54: 甲类 | N54: 胸腔穿刺术 经皮气胸穿刺引流术 经肋间胸腔闭式引流术 经肋床胸腔闭式引流术 人工气胸术 心包穿刺置管引流术 胸腔穿刺置管引流术 经皮胸腔引流管调管术 心包穿刺术
C55: 穿刺费（胸腔）-儿童（加收） | H55: 次 | J55: 45 | K55: 38.1 | L55: 32.4
C56: 穿刺费（胸腔）-心包穿刺（加收） | H56: 次 | J56: 350 | K56: 297 | L56: 252
C57: 穿刺费（胸腔）-胸腔闭式引流（加收） | H57: 次 | J57: 340 | K57: 289 | L57: 245
A58: 21 | C58: 穿刺费（腹腔） | D58: 穿刺腹腔，并根据需要进行注药、冲洗、采集标本或抽吸气体、液体等操作。 | E58: 所定价格涵盖核对信息、摆位、定位、消毒、穿刺、抽吸、注药或冲洗、留取标本、拔除、固定止血、处理用物、记录，必要时连接引流装置等步骤所需的人力资源和基本物质资源消耗。 | F58: 01儿童加收30% | H58: 次 | I58: 穿刺过程中同步留取样本按本项目收费，不与“活检取材费”同时收费。 2.本项目所称的“次”指：一次完整成功的穿刺过程。 | J58: 150 | K58: 127 | L58: 108 | M58: 甲类 | N58: 腹腔穿刺术 经皮腹腔脓肿穿刺引流术 经腹腔穿刺插管注液 人工气腹术 经皮腹腔穿刺注药术 经皮腹腔引流管调管术 经皮盆腔引流管调管术 经皮腹腔积液穿刺引流术
C59: 穿刺费（腹腔）-儿童（加收） | H59: =H58 -> 次 | J59: 45 | K59: 38.1 | L59: 32.4
A60: 22 | C60: 穿刺费（骨髓） | D60: 穿刺骨髓，并根据需要进行注药、输液、冲洗、采集标本或抽吸气体、液体等操作。 | E60: 所定价格涵盖核对信息、摆位、定位、消毒、穿刺、抽吸、注药或冲洗、留取标本、拔除、固定止血、处理用物、记录，必要时连接引流装置等步骤所需的人力资源和基本物质资源消耗。 | F60: 01儿童加收30% | H60: 次 | I60: 穿刺过程中同步留取样本按本项目收费，不与“活检取材费”同时收费。 2.本项目所称的“次”指：一次完整成功的穿刺过程。 | J60: 134 | K60: 113 | L60: 96 | M60: 甲类 | N60: 骨髓穿刺术
C61: 穿刺费（骨髓）-儿童（加收） | H61: 次 | J61: 40.2 | K61: 33.9 | L61: 28.8
A62: 23 | C62: 穿刺费（腰椎） | D62: 穿刺腰椎，并根据需要进行注药、冲洗、采集标本或抽吸气体、液体等操作。 | E62: 所定价格涵盖核对信息、摆位、定位、消毒、穿刺、抽吸、注药或冲洗、留取标本、测压、拔除、固定止血、处理用物、记录，必要时连接引流装置等步骤所需的人力资源和基本物质资源消耗。 | F62: 01儿童加收30% | H62: 次 | I62: 穿刺过程中同步留取样本按本项目收费，不与“活检取材费”同时收费。 2.本项目所称的“次”指：一次完整成功的穿刺过程。 | J62: 134 | K62: 113 | L62: 96 | M62: 甲类 | N62: 腰椎穿刺术
C63: 穿刺费（腰椎）-儿童（加收） | H63: 次 | J63: 40.2 | K63: 33.9 | L63: 28.8
A64: 24 | C64: 穿刺费（关节） | D64: 穿刺关节，并根据需要进行注药、冲洗、采集标本或抽吸气体、液体等操作。 | E64: 所定价格涵盖核对信息、摆位、定位、消毒、穿刺、抽吸、注药或冲洗、留取标本、拔除、固定止血、处理用物、记录，必要时连接引流装置等步骤所需的人力资源和基本物质资源消耗。 | F64: 01儿童加收30% | H64: 关节 | I64: 穿刺过程中同步留取样本按本项目收费，不与“活检取材费”同时收费。 2.本项目所称的“次”指：一次完整成功的穿刺过程。 | J64: 60 | K64: 51 | L64: 43 | M64: 甲类 | N64: 膝关节穿刺术 关节腔穿刺术
C65: 穿刺费（关节）-儿童（加收） | H65: =H64 -> 关节 | J65: 18 | K65: 15.3 | L65: 12.9
A66: 25 | C66: 置管费（胃管） | D66: 通过人体自然腔道或瘘口，将胃管置入胃内。 | E66: 所定价格涵盖核对信息、评估、清洁腔道、测量、润滑、置管、定位、固定、记录、拔管、必要时行注气压迫、处理用物等步骤所需的人力资源和基本物质资源消耗。 | F66: 01儿童加收30% 11食道/胃底静脉曲张置管加收260元 | H66: 次 | J66: 25 | K66: 21 | L66: 18 | M66: 乙类 | N66: 胃管置管术 三腔两囊管安置术
C67: 置管费（胃管）-儿童（加收） | H67: 次 | J67: 7.5 | K67: 6.3 | L67: 5.4
C68: 置管费（胃管）-食道/胃底静脉曲张置管（加收） | H68: 次 | J68: 260 | K68: 208 | L68: 176
A69: 26 | C69: 置管费（肠管） | D69: 通过人体自然腔道或瘘口，将肠管置入插至小肠(十二指肠或空肠)。 | E69: 所定价格涵盖核对信息、评估、清洁腔道、测量、润滑、置管、定位、固定、记录、拔管、处理用物等步骤所需的人力资源和基本物质资源消耗。 | F69: 01儿童加收30% | H69: 次 | J69: 350 | K69: 297 | L69: 252 | M69: 乙类 | N69: 经鼻空肠营养管置管术 经鼻空肠营养管调管术 经鼻空肠营养管置换术
C70: 置管费（肠管）-儿童（加收） | H70: =H69 -> 次 | J70: 105 | K70: 89.1 | L70: 75.6
A71: 27 | C71: 置管费（中心静脉/深静脉） | D71: 将各类管路置入中心静脉/深静脉部位，建立通道。 | E71: 所定价格涵盖核对信息、评估、定位、消毒、穿刺、置管、固定、记录、处理用物等步骤所需的人力资源和基本物质资源消耗。 | F71: 01儿童加收30% | H71: 次 | I71: 每完成一次完整成功的置管操作，可计费一次。 | J71: 220 | K71: 187 | L71: 158 | M71: 乙类 | N71: 血液净化用中心静脉临时导管置管术 血液净化用中心静脉长期管置管术 经皮穿刺颈内静脉置管术 经皮穿刺锁骨下静脉置管术 经外周静脉置入中心静脉导管术 经皮穿刺股静脉置管术 经烧伤创面静脉穿刺术 静脉切开置管术
C72: 置管费（中心静脉/深静脉）-儿童（加收） | H72: =H71 -> 次 | J72: 66 | K72: 56.1 | L72: 47.4
A73: 28 | C73: 置管费（动脉） | D73: 将管路置入动脉部位，建立通道。 | E73: 所定价格涵盖核对信息、评估、定位、消毒、穿刺、置管、固定、记录、处理用物等步骤所需的人力资源和基本物质资源消耗。 | F73: 01儿童加收30% | H73: 次 | J73: 130 | K73: 110 | L73: 93 | M73: 乙类 | N73: 有创血压监测动脉置管术 外周动脉穿刺置管术
C74: 置管费（动脉-）儿童加收 | H74: 次 | J74: =J73*0.3 -> 39 | K74: 33 | L74: 27.9
A75: 29 | C75: 置管费（脐血管） | D75: 将管路置入脐血管，建立通道。 | E75: 所定价格涵盖核对信息、评估、测量、消毒、切断残端、穿刺、置管、固定、连接输液器、记录、处理用物等步骤所需的人力资源和基本物质资源消耗。 | H75: 次 | J75: 300 | K75: 255 | L75: 216 | M75: 乙类 | N75: 新生儿脐血管置管术
A76: 30 | C76: 拔管费 | D76: 通过各种方式拔除置入体内的管路。 | E76: 所定价格涵盖核对信息、评估、消毒、拔管、必要时包扎、缝合、固定等步骤所需的人力资源和基本物质资源消耗。 | F76: 01儿童加收30% | H76: 次 | I76: 1、本项目适用于中心静脉/深静脉、动脉、脐血管置管相关项目。 2、“次”指“每管”。 | J76: 85 | K76: 72 | L76: 61 | M76: 丙类 | N76: 动脉置管拔除术 经外周静脉置入中心静脉导管术 静脉导管拔除术 经皮穿刺颈内静脉置管术 经皮穿刺颈静脉透析管拔除术 经皮穿刺股静脉置管术 血液净化用中心静脉临时管拔除术
C77: 拔管费-儿童（加收） | H77: =H76 -> 次 | J77: 72.25 | K77: 61.2 | L77: 51.85
A78: 31 | C78: 药物输注装置置入费 | D78: 将植入式药物输注装置管路置入皮下，建立给药通道。 | E78: 所定价格涵盖核对信息、定位、消毒、切开、置入、固定、缝合、记录、处理用物等步骤所需的人力资源和基本物质资源消耗。 | F78: 01儿童加收30% | H78: 次 | J78: 700 | K78: 595 | L78: 505 | M78: 甲类 | N78: 肝动脉化疗泵置入术 超声引导下植入式静脉输液港植入术
C79: 药物输注装置置入费-儿童（加收） | H79: 次 | J79: 210 | K79: 178.5 | L79: 151.5
A80: 32 | C80: 药物输注装置取出费 | D80: 取出置入皮下的植入式药物输注装置。 | E80: 所定价格涵盖核对信息、定位、消毒、切开、取出、缝合、记录、处理用物等步骤所需的人力资源和基本物质资源消耗。 | F80: 01儿童加收30% | H80: 次 | J80: 100 | K80: 85 | L80: 72 | M80: 甲类 | N80: 动脉化疗泵取出术 超声引导下植入式静脉输液港植入术
C81: 药物输注装置取出费-儿童（加收） | H81: 次 | J81: 30 | K81: 25.5 | L81: 21.6
A82: 33 | C82: 药物输注泵安装费 | D82: 体表安装胰岛素泵等药物输注泵，输入激素等药物。 | E82: 所定价格涵盖胰岛素泵等输注泵的体表贴敷安装、设定、调节、输注、管路维护、更换储药器等相关耗材、拆除、记录、处理用物等步骤所需的人力资源与基本资源消耗。 | H82: 次 | J82: 200 | K82: 170 | L82: 144 | M82: 甲类 | N82: 胰岛素泵安装术 胰岛素泵持续皮下注射胰岛素
A83: 34 | C83: 氧气吸入费 | D83: 通过吸入氧气，达到改善组织缺氧的目的。 | E83: 所定价格涵盖核对信息、评估、连接、调节、供氧、固定、观察、记录、处理用物等步骤所需的人力资源和基本物质资源消耗（含氧气）。 | F83: 01高流量吸氧加收3元 | H83: 小时 | I83: 1.不与“呼吸机辅助呼吸费（无创）”和“呼吸机辅助呼吸费（有创）”同时收费。 2.本项目所称的“高流量吸氧”指：吸氧流量≥5L/min。 | J83: 3.8 | K83: 3.8 | L83: 3.8 | M83: 乙类 | N83: 氧气吸入 密闭式氧气吸入 加温加湿高流 量氧气治疗
C84: 氧气吸入费-高流量吸氧（加收） | H84: =H83 -> 小时 | J84: 3 | K84: 3 | L84: 3
A85: 35 | C85: 呼吸机辅助呼吸费（无创） | D85: 通过无创方式连接呼吸机，辅助患者进行机械通气治疗。 | E85: 所定价格涵盖核对信息、评估、连接、设定及调节、辅助通气、氧气吸入、观察、记录、处理用物等步骤所需的人力资源和基本物质资源消耗（含氧气）。 | F85: 01儿童加收30% 11高流量吸氧加收3元 | H85: 小时 | I85: 1.不与“氧气吸入费”同时收费。 2.本项目所称的“高流量吸氧”指：吸氧流量≥5L/min。 | J85: 11 | K85: 9 | L85: 7 | M85: 乙类 | N85: 无创呼吸机辅助通气
C86: 呼吸机辅助呼吸费（无创）-儿童（加收） | H86: 小时 | J86: 3.3 | K86: 2.7 | L86: 2.1
C87: 呼吸机辅助呼吸费（无创）-高流量吸氧（加收） | H87: 小时 | J87: 3 | K87: 3 | L87: 3
A88: 36 | C88: 呼吸机辅助呼吸费（有创） | D88: 指呼吸机连接人工气道，辅助危重症患者进行正压机械通气治疗。 | E88: 所定价格涵盖核对信息、评估、连接、检测、气道湿化、设定及调节、辅助通气、氧气吸入、观察、记录、处理用物等步骤所需的人力资源和基本物质资源消耗（含氧气）。 | F88: 01儿童加收30% 11高流量吸氧加收3元 | H88: 小时 | I88: 1.不与“氧气吸入费”同时收费。 2.本项目所称的“高流量吸氧”指：吸氧流量≥5L/min。 | J88: 13 | K88: 11 | L88: 9 | M88: 乙类 | N88: 有创呼吸机辅助通气
C89: 呼吸机辅助呼吸费（有创）-儿童（加收） | H89: =H88 -> 小时 | J89: =J88*0.3 -> 3.9 | K89: 3.3 | L89: 2.7
C90: 呼吸机辅助呼吸费（有创）-高流量吸氧（加收） | H90: 小时 | J90: 3 | K90: 3 | L90: 3
A91: 37 | C91: 吸/排痰费（人工） | D91: 通过人工方式，吸出分泌物或异物，或促进分泌物液化脱落，保持呼吸道通畅，包括必要时建立咽部通气道。 | E91: 所定价格涵盖核对信息、评估、叩背、排痰、吸出、清洗、观察、记录、处理用物等步骤所需的人力资源和基本物质资源消耗。 | F91: 01儿童加收30% | H91: 次 | I91: 1、各地应按日确定费用封顶线。 2、超过24次按24次收费。 3、可以与分级护理同时收取。 | J91: 15 | K91: 12 | L91: 10 | M91: 乙类 | N91: 吸痰护理
C92: 吸/排痰费（人工）-儿童（加收） | H92: 次 | J92: =J91*0.3 -> 4.5 | K92: 3.6 | L92: 3
A93: 38 | C93: 吸痰费（机器） | D93: 通过吸痰设备等辅助方式，吸出呼吸道代谢物。 | E93: 所定价格涵盖核对信息、评估、连接呼吸机、负压吸出、处理用物等步骤所需的人力资源和基本物质资源消耗。 | H93: 日 | J93: 90 | K93: 76 | L93: 65 | M93: 乙类
A94: 39 | C94: 排痰费（机器） | D94: 通过排痰机等辅助方式，协助无力自主排痰患者排出呼吸道代谢物。 | E94: 所定价格涵盖核对信息、评估、叩背、排痰、吸出、清洗、观察、记录、处理用物等步骤所需的人力资源和基本物质资源消耗。 | H94: 日 | I94: 1、可以与分级护理同时收取。 | J94: 36 | K94: 30 | L94: 26 | M94: 乙类 | N94: 机械辅助排痰
A95: 40 | C95: 高压氧舱治疗费 | D95: 通过在高压环境中吸氧，提升血氧浓度，改善缺氧、促进修复、抑制炎症和感染。 | E95: 所定价格涵盖核对信息、加压准备、稳压吸氧、减压、观察、以及必要时监护等步骤所需的人力资源和基本物质资源消耗。 | F95: 01单人高压氧舱治疗加收60% | H95: 次 | J95: 150 | K95: 127 | L95: 108 | M95: 乙类 | N95: 超高压力高压氧治疗 单人舱治疗 急救单独开舱治疗 舱内直排吸氧 婴儿氧舱治疗 医护陪舱治疗 舱内婴儿车治疗 高压氧舱内常规治疗
C96: 高压氧舱治疗费-单人高压氧舱治疗（加收） | H96: =H95 -> 次 | J96: =J95*0.6 -> 90 | K96: 76.2 | L96: 64.8
A97: 41 | C97: 气管插管费（自然腔道） | D97: 将导管插入患者气管，维持患者呼吸。 | E97: 所定价格涵盖核对信息、体位摆放、置入、插管、定位、连接、固定、观察、记录、拔管、处理用物等步骤所需的人力资源和基本物质资源消耗。 | F97: 01儿童加收30% 11特殊方法气管插管加收80元 | H97: 次 | I97: 本项目所称的“特殊方法气管插管”指：经纤维喉镜或气管镜置管、经口盲探或逆行法气管插管。 | J97: 120 | K97: 102 | L97: 86 | M97: 乙类 | N97: 经口气管插管术 经鼻明视气管插管术 困难气道盲探气管插管术 硬纤维喉镜引导下气管插管术 新生儿气管插管术 环甲膜穿刺逆行气管插管术
C98: 气管插管费（自然腔道）-儿童（加收） | H98: 次 | J98: =J97*0.3 -> 36 | K98: 30.6 | L98: 25.8
C99: 气管插管费（自然腔道）-特殊方法气管插管（加收） | H99: 次 | J99: 80 | K99: =J99*0.85 -> 68 | L99: =K99*0.85 -> 57.8
A100: 42 | C100: 气管插管费（有创） | D100: 通过切开或穿刺方式将导管插入患者气管，维持患者呼吸。 | E100: 所定价格涵盖核对信息、体位摆放、切开、置入、插管、定位、连接、固定、观察、记录、拔管、缝合、包扎、处理用物等步骤所需的人力资源和基本物质资源消耗。 | F100: 01儿童加收30% | H100: 次 | J100: 500 | K100: 425 | L100: 361 | M100: 甲类 | N100: 气管切开术
C101: 气管插管费（有创）-儿童（加收） | H101: =H100 -> 次 | J101: =J100*0.3 -> 150 | K101: 127.5 | L101: 108.3
A102: 43 | C102: 静脉测压费（人工） | D102: 通过人工方式测量中心或周围静脉压，判断患者血容量及心功能状态。 | E102: 所定价格涵盖核对信息、评估、体位摆放、连接、固定、校零、测量、记录、冲管、处理用物等步骤所需的人力资源和基本物质资源消耗。 | F102: 01儿童加收30% | H102: 次 | J102: 20 | K102: 17 | L102: 14 | M102: 乙类 | N102: 人工中心静脉压测定 周围静脉压测定
C103: 静脉测压费（人工）-儿童（加收） | H103: 次 | J103: =J102*0.3 -> 6 | K103: 5.1 | L103: 4.2
A104: 44 | C104: 静脉测压费（机器） | D104: 通过机器方式连续测量中心或周围静脉压，监测判断患者血容量及心功能状态。 | E104: 所定价格涵盖核对信息、评估、体位摆放、连接、固定、校零、测量、记录、冲管、处理用物等步骤所需的人力资源和基本物质资源消耗。 | F104: 01儿童加收30% | H104: 小时 | I104: 1、各地应按日确定费用封顶线。 2、每日超过20小时按20小时收费。 | J104: 20 | K104: 17 | L104: 14 | M104: 乙类 | N104: 检测仪中心静脉压测定
C105: 静脉测压费（机器）-儿童（加收） | H105: 小时 | J105: =20*0.3 -> 6 | K105: 6 | L105: 6
A106: 45 | C106: 动脉测压费 | D106: 通过连接测压套件，实时监测血压变化。 | E106: 所定价格涵盖核对信息、评估、体位摆放、连接、固定、校零、测量、记录、冲管、处理用物等步骤所需的人力资源和基本物质资源消耗。 | F106: 01儿童加收30% | H106: 小时 | I106: 1、各地应按日确定费用封顶线。 2、每日超过20小时按20小时收费。 | J106: 20 | K106: 17 | L106: 14 | M106: 乙类 | N106: 动脉内压力监测 有创连续动脉血压监测
C107: 动脉测压费-儿童（加收） | H107: =H106 -> 小时 | J107: =J106*0.3 -> 6 | K107: 5.1 | L107: 4.2
A108: 46 | C108: 胃肠减压费 | D108: 通过各种方式引流胃肠内容物，实现胃肠减压。 | E108: 所定价格涵盖核对信息、连接、调节、观察、记量、处理用物等步骤所需的人力资源和基本物质资源消耗。 | F108: 01儿童加收30% | H108: 日 | I108: 1、不得与“引流管护理”同时收取 | J108: 15 | K108: 12 | L108: 10 | M108: 乙类 | N108: 胃肠减压
C109: 胃肠减压费-儿童（加收） | H109: 日 | J109: =J108*0.3 -> 4.5 | K109: 3.6 | L109: 3
A110: 47 | C110: 洗胃费 | D110: 通过各种方式，将液体灌入胃腔后吸出。 | E110: 所定价格涵盖核对信息、评估、清洁腔道、测量、润滑、置管、定位、固定、标记、抽出胃内容物（含留取标本）、反复冲洗、拔管、处理用物等步骤所需的人力资源和基本物质资源消耗。 | F110: 01儿童加收30% | H110: 次 | I110: 不与“置管费（胃管）”“胃肠灌注费”同时收费。 | J110: 130 | K110: 110 | L110: 93 | M110: 乙类 | N110: 人工洗胃 电动洗胃 漏斗胃管洗胃 负压吸引器洗胃 新生儿洗胃
C111: 洗胃费-儿童（加收） | H111: 次 | J111: =J110*0.3 -> 39 | K111: 33 | L111: 27.9
A112: 48 | C112: 胃肠灌注费 | D112: 通过各种方式，将药物或饮食灌注进入胃肠。 | E112: 所定价格涵盖核对信息、评估、连接、灌注、冲管、固定、处理用物等步骤所需的人力资源和基本物质资源消耗。 | F112: 01儿童加收30% 11精准定量灌注加收13/日 | H112: 次 | I112: 1.本项目所称的“精准定量输注”指：通过营养泵等装置将药物或饮食精确定量控制注入患者体内。 2.不与“洗胃费”同时收费。 3、精准定量灌注按日收费。 | J112: 22 | K112: 18 | L112: 15 | M112: 乙类 | N112: 肠内营养灌注 经口全消化道清洁洗肠
C113: 胃肠灌注费-儿童（加收） | H113: =H112 -> 次 | J113: =J112*0.3 -> 6.6 | K113: 5.4 | L113: 4.5
C114: 胃肠灌注费-精准定量灌注（加收） | H114: 日 | J114: 13 | K114: 11 | L114: 9
A115: 49 | C115: 一般物理降温费 | D115: 通过擦拭、外敷等方式调节人体体温。 | E115: 所定价格涵盖核对信息、评估、擦拭或外敷、观察、记录、处理用物等步骤所需的人力资源和基本物质资源消耗。 | G115: 01一般物理升温费 | H115: 次 | I115: 各地应按日确定费用封顶线。超过6次按6次收费。 | J115: 7 | K115: 7 | L115: 7 | M115: 乙类 | N115: 擦浴降温 贴敷降温 冰帽降温 冷湿敷法 热湿敷法 冰毯降温
C116: 一般物理降温费-一般物理升温费（拓展） | H116: =H115 -> 次 | J116: 7 | K116: 7 | L116: 7
A117: 50 | C117: 新生儿治疗浴费 | D117: 通过沐浴治疗，促进新生儿血液循环、改善皮肤状态、提高免疫功能。 | E117: 所定价格涵盖沐浴环境调节、浴液配置、检查皮肤状态、擦浴、更换衣物、处理用物等步骤所需的人力资源和基本物质资源消耗。 | H117: 次 | J117: 25 | K117: 21 | L117: 18 | M117: 丙类 | N117: 新生儿治疗浴
A118: 51 | C118: 导尿费 | D118: 通过各种方式引流尿液。 | E118: 所定价格涵盖核对信息、评估、体位摆放、消毒、润滑、导尿管插入、固定、引流（含留取标本）、拔除、观察、记录、处理用物等步骤所需的人力资源和基本物质资源消耗。 | F118: 01儿童加收30% | H118: 次 | I118: 留置导尿按“引流管护理”项目收费。 | J118: 35 | K118: 29 | L118: 25 | M118: 乙类 | N118: 导尿 导引法导尿术
C119: 导尿费-儿童（加收） | H119: 次 | J119: =J118*0.3 -> 10.5 | K119: 8.7 | L119: 7.5
C120: 导尿费-专用导尿管除外，如使用该耗材（减收） | H120: 次 | J120: 30 | K120: 24 | L120: 20
A121: 52 | C121: 膀胱冲洗费 | D121: 将冲洗液灌入膀胱，清除异物、通畅尿道、预防感染。 | E121: 所定价格涵盖核对信息、评估、消毒、注入、冲洗、夹闭尿管、连接引流装置、观察、计量、处理用物等步骤所需的人力资源和基本物质资源消耗。 | F121: 01儿童加收30% | H121: 次 | J121: 20 | K121: 17 | L121: 14 | M121: 乙类 | N121: 膀胱冲洗
C122: 膀胱冲洗费-儿童（加收） | H122: =H121 -> 次 | J122: =J121*0.3 -> 6 | K122: 5.1 | L122: 4.2
A123: 53 | C123: 持续膀胱冲洗费 | D123: 将冲洗液持续灌入膀胱，清除异物、通畅尿道、预防感染。 | E123: 所定价格涵盖核对信息、评估、消毒、注入、持续冲洗、夹闭尿管、连接引流装置、观察、计量、处理用物等步骤所需的人力资源和基本物质资源消耗。 | F123: 01儿童加收30% | H123: 日 | J123: 55 | K123: 46 | L123: 39 | M123: 乙类 | N123: 持续膀胱冲洗
C124: 持续膀胱冲洗费-儿童（加收） | H124: 日 | J124: =J123*0.3 -> 16.5 | K124: 13.8 | L124: 11.7
A125: 54 | C125: 灌肠费 | D125: 将灌肠液或药物等灌入肛门（造瘘口），加速排便、清洁肠道、药物治疗。 | E125: 所定价格涵盖核对信息、评估、配制灌肠液或药物、体位摆放、润滑、插入、注入、拔出、观察、记录、处理用物等步骤所需的人力资源和基本物质资源消耗。 | F125: 01儿童加收30% 11清洁灌肠加收35元 | H125: 次 | J125: 25 | K125: 21 | L125: 18 | M125: 乙类 | N125: 一般灌肠 保留灌肠治疗 三通氧气灌肠治疗 先天性巨结肠回流洗肠治疗 先天性巨结肠术前清洁洗肠治疗 结肠水疗 清洁灌肠
C126: 灌肠费-儿童（加收） | H126: 次 | J126: =J125*0.3 -> 7.5 | K126: 6.3 | L126: 5.4
C127: 灌肠费-清洁灌肠加 | H127: 次 | J127: 35 | K127: 29 | L127: 24
A128: 55 | C128: 肛管排气费 | D128: 将肛管插入肛门至适宜深度，排出积气、减轻腹胀。 | E128: 所定价格涵盖核对信息、体位摆放、润滑、插入、固定、观察、记录、拔除、处理用物等步骤所需的人力资源和基本物质资源消耗。 | F128: 01儿童加收30% | H128: 次 | J128: 15 | K128: 12 | L128: 10 | M128: 乙类 | N128: 肛管排气
C129: 肛管排气费-儿童（加收） | H129: =H128 -> 次 | J129: =J128*0.3 -> 4.5 | K129: 3.6 | L129: 3
A130: 56 | C130: 人工辅助通便费 | D130: 通过人工方式协助患者排便。 | E130: 所定价格涵盖核对信息、评估、体位摆放、润滑、手工协助排便、观察、记录、处理用物等步骤所需的人力资源和基本物质资源消耗。 | F130: 01儿童加收30% | H130: 次 | J130: 30 | K130: 25 | L130: 21 | M130: 乙类 | N130: 人工辅助通便
C131: 人工辅助通便费-儿童（加收） | H131: 次 | J131: =J130*0.3 -> 9 | K131: 7.5 | L131: 6.3
A132: 57 | C132: 储液装置抽液费 | D132: 通过各种方式抽出颅内储液装置等装置内的液体。 | E132: 所定价格涵盖消毒、穿刺、抽液以及必要时缝合等步骤所需的人力资源和基本物质资源消耗。 | F132: 01儿童加收30% | H132: 次 | I132: 1、通过储液装置穿刺向颅内注射药物按此收费 | J132: 126 | K132: 107 | L132: 91 | M132: 乙类
C133: 储液装置抽液费-儿童（加收） | H133: 次 | J133: =J132*0.3 -> 37.8 | K133: 32.1 | L133: 27.3
A134: 58 | C134: 创面负压引流费 | D134: 通过负压吸引方式，引出创面分泌物。 | E134: 所定价格涵盖创面清洗、敷料覆盖、置入引流物、封闭创面、连接吸引装置等步骤所需的人力资源和基本物质资源消耗。 | F134: 01儿童加收30% | H134: 每创面·每小时 | I134: 1、各地应按每创面·日确定费用封顶线。 2、每日最高不超过24小时 | J134: 4 | K134: 3 | L134: 2 | M134: 乙类 | N134: 创面密封负压引流术
C135: 创面负压引流费-儿童（加收） | H135: =H134 -> 每创面·每小时 | J135: =J134*0.3 -> 1.2 | K135: 0.9 | L135: 0.6
A136: 59 | C136: 内分泌功能试验分析费（药物性干预） | D136: 通过药物干预，观察检验检查结果变化，判断内分泌功能状态。 | E136: 所定价格涵盖制定试验方案、给药、分析、判断、指导临床诊治所需的人力资源和基本物质资源消耗，不含检验项目，不含采血费。 | F136: 01葡萄糖钳夹试验加收700 | H136: 每种试验 | J136: 30 | K136: 25 | L136: 21 | M136: 乙类 | N136: 胰岛素钳夹试验 静脉推注葡萄糖胰岛素释放实验 静脉推注葡萄糖胰岛素释放试验-延长法 静脉推注葡萄糖C肽释放实验 静脉推注葡萄糖C肽释放实验-延长法 胰高糖素C肽刺激试验 静脉推注葡萄糖耐量试验(IVGTT) 静脉推注葡萄糖耐量试验(IVGTT)-延长法 促肾上腺皮质激素(ACTH)兴奋试验-快速法 冲洗液输注试验 酚妥拉明试验 可乐宁试验 胰高糖素儿茶酚胺激发试验 酪胺激发试验 地塞米松抑制试验 过夜地塞米松抑制试验 地塞米松抑制试验-5日法 口服地塞米松醛固酮抑制试验 皮质醇节律加过夜地塞米松抑制试验 氟氢可的松抑制试验 水利尿试验 皮质素水试验 醛固酮肾素测定卧立位试验 醛固酮肾素比值测定试验 口服钠负荷试验 低钠试验 高钠试验 赛庚啶试验 安体舒通试验 氨苯蝶啶试验 卡托普利试验 促肾上腺皮质激素(ACTH)兴奋试验-传统法 双侧肾上腺静脉采血比较肾上腺激素水平 生长激素释放激素(GRH)兴奋试验 促甲状腺激素释放激素(TRH)兴奋试验 促肾上腺皮质激素释放激素(CRF)兴奋试验 促性腺激素释放激素(GnRH)兴奋试验 胰岛素低血糖兴奋试验 精氨酸兴奋试验 人绒毛膜促性腺激素(HCG)兴奋试验 甲氧氯普胺兴奋催乳素(PRL)动态试验 药物兴奋催乳素(PRL)动态试验 高渗冲洗液试验-静脉法 高渗冲洗液试验-口服法 左旋多巴抑制催乳素(PRL)试验 溴隐停抑制催乳素(PRL)试验 葡萄糖抑制生长激素(GH)试验 禁水加压素试验 去氨加压素(DDAVP)治疗试验 醋酸去氨加压素试验 五肽胃泌素激发试验 三碘甲状腺原氨酸(T3)抑制试验 甲状腺素(T4)抑制试验 快速钙滴注抑制试验 中性磷负荷试验 钙耐量试验 低钙试验 低磷试验 磷廓清试验-2小时法 昼夜皮质醇节律测定 磷廓清试验-3日法
C137: 内分泌功能试验分析费（药物性干预）-葡萄糖钳夹试验（加收） | H137: =H136 -> 每种试验 | J137: 700 | K137: 595 | L137: 505
A138: 60 | C138: 内分泌功能试验分析费（非药物性干预） | D138: 通过饮食、体位干预等非药物性干预方式，观察检验检查结果变化，判断内分泌功能状态。 | E138: 所定价格涵盖试验方案制定、分析、判断、指导临床诊治所需的人力资源和基本物质资源消耗，不含检验项目，不含采血费。 | H138: 每种试验 | J138: 25 | K138: 21 | L138: 18 | M138: 乙类 | N138: 馒头餐C肽释放试验 24小时尿比重渗透压试验 禁水试验 冷加压试验 水负荷试验 馒头餐糖耐量试验 口服葡萄糖耐量试验(OGTT)-3小时法 饥饿试验 口服葡萄糖耐量试验(OGTT)-5小时法 3小时口服葡萄糖C肽释放试验 5小时口服葡萄糖C肽释放试验 口服葡萄糖胰岛素释放试验-3小时法 口服葡萄糖胰岛素释放试验-5小时法 口服葡萄糖胰岛功能相关激素释放试验 馒头餐胰岛功能相关激素释放试验
A139: 61 | C139: 连续动态血糖监测费 | D139: 通过连续血糖监测形成动态血糖图谱，掌握患者血糖水平，指导临床治疗。 | E139: 所定价格涵盖设备安装、设定、血糖监测、调节、实时上传、撤除等步骤所需的人力资源和基本物质资源消耗。 | H139: 次 | I139: 本项目所称的“次”指完成72小时及以上连续性动态血糖监测。 | J139: 550 | K139: 467 | L139: 397 | M139: 乙类 | N139: 连续动态血糖监测安装术 电脑连续血糖动态监测
A140: 62 | C140: 死亡诊断和遗体料理费 | D140: 进行死亡诊断，提供遗体清洁消毒、腔道填塞等常规处理操作，并上传存储亡故患者身份、死亡原因、死亡时间等信息。 | E140: 所定价格涵盖死亡诊断、拔除管道、清洁消毒、整理仪容、腔道填塞，以及上传患者死亡信息等步骤所需的人力资源和基本物质资源消耗。 | F140: 01特殊传染病遗体料理加收30元 | H140: 次 | I140: 1.医疗机构上门提供死亡诊断和遗体料理服务的，按“上门服务费+死亡诊断和遗体料理费”的方式收费；上门仅提供死亡诊断服务的，减半收取本项费用。 2.医疗机构未上传存储患者死亡信息证明提供相关服务的，不得收取本项费用。 3.不得同时收取各项拔管费。 4.本项目所称的“特殊传染病”指：甲类以及采取甲类传染病预防、控制措施的乙类传染病。 5.本项目不涉及殡仪服务基础项目。 | J140: 70 | K140: 59 | L140: 50 | M140: 丙类 | N140: 一般尸体料理 特殊传染病尸体料理
C141: 死亡诊断和遗体料理费-特殊传染病遗体料理（加收） | H141: =H140 -> 次 | J141: 30 | K141: 25 | L141: 21
A142: 63 | C142: 离体残肢/死婴/死胎处理费 | D142: 对离体残肢/死婴/死胎进行合理处置。 | E142: 所定价格涵盖收集、消毒、标注、处置、记录等步骤所需的人力资源和基本物质资源消耗。 | H142: 次 | I142: 按照《医疗废物分类目录（2021年版）》规定：“患者截肢的肢体以及引产的死亡胎儿，纳入殡葬管理。16周胎龄以下或重量不足500克的胚胎组织、手术及其他医学服务过程中产生的废弃的人体组织、器官属于病理性废物，不纳入医疗服务收费。 | J142: 40 | K142: 34 | L142: 28 | M142: 丙类 | N142: 离体残肢处理 死婴料理

Sheet 耗材修订支付类别
A2: 青海省公立医疗机构医用耗材目录
A3: 序号 | B3: 耗材编码 | C3: 分类编码 | D3: 一级分类 | E3: 二级分类 | F3: 三级分类 | G3: 四级分类 | H3: 备注 | I3: 拟调整医保支付类别
A4: 1 | C4: AA | D4: 一、医用工具类
A5: 2 | C5: AAA | E5: 注射穿刺类
A6: 3 | C6: AABC | F6: 探头
A7: 4 | B7: C0107070001000590000 | C7: AABC04 | G7: 射频探头 | I7: 乙类
A8: 5 | C8: AB | D8: 二、置入类材料
A9: 6 | C9: ABZ | E9: 其他
A10: 7 | B10: C0206460691004700000 | C10: ABZX03 | G10: 栓子保护装置 | I10: 乙类
A11: 8 | C11: AC | D11: 三、植入材料类
A12: 9 | C12: ACA | E12: 人工材料
A13: 10 | C13: ACAA | F13: 人工器官
A14: 11 | B14: C0602021331004960000 | C14: ACAA22 | G14: 人工韧带 | I14: 乙类
A15: 12 | C15: ACAC | F15: 假体
A16: 13 | B16: C0601021331005460000 | C16: ACAC02 | G16: 听小骨假体 | I16: 乙类
A17: 14 | B17: C0601021331005470000 | C17: ACAC03 | G17: 电子耳蜗 | I17: 乙类
A18: 15 | C18: AF | D18: 六、管套容器过滤材料
A19: 16 | C19: AFA | E19: 通气管路类
A20: 17 | C20: AFBD | F20: 体外循环材料
A21: 18 | C21: AFBD17 | G21: 心肌保护停跳液 | I21: 乙类
A22: 19 | C22: AZ | D22: 九、其他
A23: 20 | C23: AZA | E23: 腔镜材料
A24: 21 | C24: AZAC | F24: 辅助操作材料
A25: 22 | B25: C0105060211008780000 | C25: AZAC30 | G25: 射频针 | I25: 乙类
A26: 23 | C26: AZAZ | F26: 其他
A27: 24 | B27: C0502041281009110000 | C27: AZAZ24 | G27: 打孔器 | I27: 乙类

Sheet 修订
A1: 序号 | B1: 项目代码 | C1: 项目名称 | D1: 项目内涵 | E1: 内涵一次性卫生耗材 | F1: 除外内容 | G1: 计价单位 | H1: 计价说明 | I1: 指导价格（元） | L1: 医保支付类别
I2: 三级 | J2: 二级 | K2: 一级
A3: 1 | B3: QHXZ0298 | C3: 分娩镇痛 | D3: 采用麻醉镇痛，以起到减轻产妇分娩过程疼痛，提高分娩质量及舒适度，保证孕产安全的作用。所定价格涵盖评估、建立通路、摆放体位、穿刺、置管、剂量验证、观察、注药、氧饱和度监测、装置连接、参数设定、评分、记录、分析病情，必要时调整剂量、撤除装置等所需的人力资源和基本物质资源消耗。 | G3: 小时 | H3: 以2小时为基价，超过2小时每增加1小时加收130元 | I3: 650 | J3: 553 | K3: 470 | L3: 丙类 乙类

Sheet 停用
A1: 序号 | B1: 项目代码 | C1: 项目名称 | D1: 项目内涵 | E1: 内涵一次性卫生耗材 | F1: 除外内容 | G1: 计价单位 | H1: 计价说明 | I1: 指导价格（元） | L1: 医保支付类别 | M1: 停用项目所属立项指南 | N1: 备注 | O1: 已停用指南
I2: 三级 | J2: 二级 | K2: 一级
A3: 1 | B3: FPB05402 | C3: 24小时胃食管pH值监测 | D3: 体外标定pH电极(玻璃电极或单晶锑电极),空腹,将pH值监测导管经鼻置于经测压确定的位点,24小时连续监测pH值变化,分析检测数据。图文报告。 | G3: 次 | I3: 400 | J3: 320 | K3: 280 | L3: 乙类 | M3: 消化 | N3: 停用
A4: 2 | B4: FPC05402 | C4: 小儿24小时食管pH及运动连续监测 | D4: 插探头进入胃部测定胃内基础值,连续拖拽测定食管下括约肌长度及静息压,患儿进行干咽或湿咽,测定食管收缩,蠕动传导,食管下括约肌松弛,将pH探头放置于食管下括约肌上2-5厘米处,连续观测24小时pH并分析结果。 | G4: 次 | I4: 240 | J4: 190 | K4: 170 | L4: 乙类 | M4: 消化 | N4: 停用
A5: 3 | B5: FPV02401 | C5: 肛门直肠测压 | D5: 镇静,固定患者体位,安抚,维持呼吸道通畅,灌肠导泻,清洁肠道,经肛门插入测压导管(3个以上位点),测量肛门括约肌长度､压力,检测直肠肛门抑制反射､直肠顺应性､气囊扩张感觉阈值。人工分析。图文报告。 | E5: 测压管 | G5: 次 | I5: 430 | J5: 345 | K5: 300 | L5: 乙类 | M5: 消化 | N5: 停用
A6: 4 | B6: FPC02401 | C6: 食管测压 | D6: 麻醉,润滑鼻腔,经鼻食管内插管,通过低顺应性液态灌注系统､放大和记录装置,至少4通道多位点测压。检测上､下食管括约肌压力､长度及松弛功能,食管体部蠕动功能。计算机辅助人工分析数据,出具报告。不含X线检查。 | E6: 测压管 | G6: 次 | I6: 600 | J6: 510 | K6: 434 | L6: 乙类 | M6: 消化 | N6: 停用
A7: 5 | B7: FPB02402 | C7: 胃-幽门-十二指肠压力测定 | D7: 空腹,将测压导管(至少3个位点)经鼻插至十二指肠,确认到达正确位置,记录餐前(至少30分钟)､进标准餐后(2-3小时)胃窦—幽门—十二指肠压力,分析检测数据。图文报告。 | E7: 测压管,标准试餐 | G7: 次 | I7: 350 | J7: 280 | K7: 245 | L7: 乙类 | M7: 消化 | N7: 停用
A8: 6 | B8: FPB02401 | C8: 24小时食管胃肠压力测定 | D8: 镇静,安抚,维持呼吸道通畅,将测压固态导管(至少3个位点)置入待测位点,确认到达正确位置后,记录肠管压力,在检查过程中进食标准试餐,分析检测数据。必要时胃镜下辅助插管。 | E8: 测压管 | G8: 次 | I8: 320 | J8: 260 | K8: 220 | L8: 乙类 | M8: 消化 | N8: 停用
A9: 7 | B9: FPK02601 | C9: 经电子内镜奥迪括约肌压力测定 | D9: 麻醉下,润滑,消泡,电子十二指肠镜经口插至十二指肠乳头部位,将测压导管经活检通道置入胆总管,确认导管位置,检测胆总管内压､奥迪括约肌高压带基础压､相性收缩压。图文报告。不含监护､十二指肠乳头括约肌切开术､X线检查。 | E9: 测压管,润滑剂 | F9: 造影导管,导丝,血管夹 | G9: 次 | I9: 400 | J9: 320 | K9: 280 | L9: 乙类 | M9: 消化 | N9: 停用
A10: 8 | B10: FPD01701 | C10: 胃电图检查(EGG) | D10: 电极放置部位的皮肤准备,沿胃窦轴线方向放置检测电极,于检测餐前30分钟,进标准餐后60-90分钟,检测胃电。图文报告。 | E10: 电极,标准试餐 | G10: 次 | H10: 肠电图按此收费 | I10: 80 | J10: 65 | K10: 55 | L10: 乙类 | M10: 消化 | N10: 停用
A11: 9 | B11: FJE02407 | C11: 呼出气一氧化氮测定 | D11: 患者首先深呼气,然后口含一次性细菌过滤器及一氧化氮过滤器,在呼出气一氧化氮测定仪上深吸气后,以一定呼气流速匀速呼气持续10秒钟,人工报告。 | E11: 口器,细菌过滤器 | G11: 次 | I11: 200 | J11: 160 | K11: 140 | L11: 乙类 | M11: 消化 | N11: 停用
A12: 10 | B12: QHXZ0186 | C12: 红细胞生存时间测定 | D12: 样本类型：肺泡气。样本采集，上样，测定，审核结果，录入实验室信息系统或人工登记，发送报告；按规定处理废弃物；接受临床相关咨询。 | E12: 试剂，质控品，一次性使用采气用具 | G12: 次 | I12: 280 | J12: 220 | K12: 190 | L12: 丙类 | M12: 消化 | N12: 停用
A13: 11 | B13: CGQE9000 | C13: 碳13尿素呼气试验 | D13: 样本类型:呼吸气体。样本采集(服用13C尿素前后呼气样本)､签收､处理,检测,质控,审核结果,录入实验室信息系统或人工登记,发送报告;按规定处理废弃物;接受临床相关咨询。 | E13: 试剂,质控 | G13: 次 | I13: 60 | J13: 48 | K13: 42 | L13: 乙类 | M13: 消化 | N13: 停用
A14: 12 | B14: EEGJZ001 | C14: 碳[14C]呼气试验 | D14: 口服放射性药品,测定收集瓶本底,采集呼出气体样本,测定二氧化碳[14CO2]放射性计数,试验报告｡含分析试剂药盒｡ | G14: 次 | I14: 100 | J14: 80 | K14: 70 | L14: 乙类 | M14: 消化 | N14: 停用
A15: 13 | B15: CGQF9000 | C15: 碳14尿素呼气试验 | D15: 样本类型:呼吸气体。样本采集(服用14C尿素前后呼气样本)､签收､处理,检测,质控,审核结果,录入实验室信息系统或人工登记,发送报告;按规定处理废弃物;接受临床相关咨询。 | E15: 试剂,质控 | G15: 次 | I15: 100 | J15: 80 | K15: 70 | L15: 乙类 | M15: 消化 | N15: 停用
A16: 14 | B16: QHXZ0042 | C16: 甲烷-氢呼气诊断 | D16: 通过检测呼出气中甲烷、氢气和二氧化碳浓度随时间的变化关系，可以特异和灵敏地提供大量胃肠道和胰腺，以及肝脏功能的重要信息，主要包括胃肠运动速度（口盲时间）、小肠有无细菌以及细菌所在的部位、肠粘膜屏障的通透性、胃酸分泌量、消化不良、食物过敏和糖类不耐受、某些腹泻和便秘的原因、肝胆胰和肿瘤病人的胃肠功能、术后胃肠功能恢复、慢性胰腺炎、糖尿病和慢性胰腺炎关系、结肠癌高危人群的早期发现等。 | E16: 集气袋 ，试验底物 | G16: 次 | I16: 260 | J16: 210 | K16: 180 | L16: 丙类 | M16: 消化 | N16: 停用
A17: 15 | B17: QHXZ0076 | C17: 肝脏储备功能测定 | D17: 采用色素稀释法测定人体外周血中注射的吲哚菁绿浓度，检测ICG滞留率，反映了肝脏代谢储备功能。电脑输入血红蛋白测定值等相关信息，鼻探头检测，静脉注射吲哚菁绿，检测ICG滞留率，上传数据，报告打印。 | E17: 注射器，留置针 | G17: 次 | I17: 165 | J17: 135 | K17: 115 | L17: 丙类 | M17: 消化 | N17: 停用
A18: 16 | B18: HQT48101 | C18: 腹水直接回输治疗 | D18: 腹腔穿刺术,放腹水,经腹水回输装置静脉回输。不含常规化验检查､细菌学检查､病理学检查。 | E18: 穿刺针 | G18: 次 | I18: 400 | J18: 320 | K18: 280 | L18: 乙类 | M18: 消化 | N18: 停用
A19: 17 | B19: HQT48102 | C19: 腹水超滤间接回输治疗 | D19: 腹腔穿刺术,放腹水,腹水超滤,经腹水回输装置静脉回输。不含常规化验检查､细菌学检查､病理学检查。 | E19: 穿刺针,超滤器 | F19: 透析器，一次性体外循环配套血管路 | G19: 次 | I19: 500 | J19: 400 | K19: 350 | L19: 乙类 | M19: 消化 | N19: 停用
A20: 18 | B20: KPH70701 | C20: 肠套叠手法复位 | D20: 腹部检查,明确肠套叠部位,反复变换体位,手法推拿复位,检验效果。 | G20: 次 | I20: 60 | J20: 48 | K20: 42 | L20: 甲类 | M20: 消化 | N20: 停用
A21: 19 | B21: KPH70702 | C21: 嵌顿疝手法复位 | D21: 疝检查,内外环检查,注射局麻药物,复位后评估效果。 | E21: 注射器 | G21: 次 | I21: 150 | J21: 120 | K21: 105 | L21: 甲类 | M21: 消化 | N21: 停用
A22: 20 | B22: FPA01604 | C22: 胶囊内镜检查 | D22: 清洁肠道,将接收装置固定于腹部,于空腹状态下吞入胶囊内镜,确认胶囊顺利通过幽门后,连续记录,检查结束后电脑程序分析。图文报告。不含活检。 | F22: 胶囊 | G22: 次 | I22: 800 | J22: 640 | K22: 560 | L22: 丙类 | M22: 消化 | N22: 停用
A23: 21 | B23: FPC01601 | C23: 硬式食管镜检查 | D23: 镇静及麻醉下,插入硬性(式)食管镜,观察食管黏膜。人工报告。不含监护､活检。 | G23: 次 | I23: 60 | J23: 48 | K23: 42 | L23: 甲类 | M23: 消化 | N23: 停用
A24: 22 | B24: FPC09601 | C24: 硬质食管镜食管探查术 | D24: 全麻或口咽､下咽表面麻醉,根据患者的年龄､异物的种类选择合适型号的硬质食道镜,固定患者头部,表麻时还固定幼儿患者的身体,经口腔径路､下咽､梨状窝进入食道,确定异物位置､大小与周围气管壁是否有关系､食道是否有狭窄､食道黏膜是否存在可疑病变,可应用食管内窥镜进一步详细检查,可取部分可疑组织送病理学检查。可下鼻饲管。不含病理学检查。 | E24: 胃管 | G24: 次 | I24: 60 | J24: 48 | K24: 42 | L24: 甲类 | M24: 消化 | N24: 停用
A25: 23 | B25: FPC01602 | C25: 纤维食管镜检查 | D25: 麻醉下,润滑,消泡,经口插入纤维食管镜,观察食管黏膜。人工报告。不含监护､活检。 | E25: 润滑剂 | G25: 次 | I25: 50 | J25: 40 | K25: 35 | L25: 乙类 | M25: 消化 | N25: 停用
A26: 24 | B26: FPC01603 | C26: 电子食管镜检查 | D26: 麻醉下,润滑,消泡,经口插入电子食管镜,观察食管黏膜。图文报告。不含监护､活检。 | E26: 润滑剂 | G26: 次 | I26: 150 | J26: 120 | K26: 105 | L26: 乙类 | M26: 消化 | N26: 停用
A27: 25 | B27: FPB01601 | C27: 纤维胃镜检查 | D27: 麻醉下,润滑,消泡,插入纤维胃镜,观察食管､胃､十二指肠球部及降部黏膜。人工报告。不含监护､实验室检验､活检。 | E27: 0 | F27: 润滑剂 | G27: 次 | H27: 六岁及以下儿童加收不超过30% | I27: 60 | J27: 48 | K27: 42 | L27: 乙类 | M27: 消化 | N27: 停用
A28: 26 | B28: FPB01602 | C28: 电子胃镜检查 | D28: 镇静,固定患者体位,安抚,维持呼吸道通畅,麻醉下,润滑,消泡,插入电子胃镜,观察食管､胃､十二指肠球部及降部黏膜。图文报告。不含监护､实验室检验､活检。 | E28: 0 | F28: 润滑剂 | G28: 次 | H28: 六岁及以下儿童加收不超过30% | I28: 240 | J28: 190 | K28: 170 | L28: 乙类 | M28: 消化 | N28: 停用
A29: 27 | B29: FPB01603 | C29: 经鼻电子胃镜检查 | D29: 麻醉下,润滑,消泡,经鼻插入鼻胃镜,观察食管､胃､十二指肠球部及降部黏膜。图文报告。不含监护､活检。 | E29: 0 | F29: 润滑剂 | G29: 次 | H29: 六岁及以下儿童加收不超过30% | I29: 240 | J29: 190 | K29: 170 | L29: 乙类 | M29: 消化 | N29: 停用
A30: 28 | B30: FPD02601 | C30: 经内镜胃黏膜血流量测定 | D30: 麻醉下,润滑,消泡,插入电子胃镜,经内镜活检通道插入多普勒激光血流检测仪､血流检测探头,检测黏膜血流量。人工报告。不含监护。 | E30: 润滑剂 | G30: 次 | I30: 400 | J30: 320 | K30: 280 | L30: 乙类 | M30: 消化 | N30: 停用
A31: 29 | B31: FQE01603 | C31: 经口电子胆管镜检查 | D31: 麻醉下,镇静,润滑,消泡,电子十二指肠镜经口插至十二指肠乳头部位,胰胆管造影,将胆管镜自母镜活检通道插入,经乳头开口沿导管插入胆管内,通过胆管镜进行检查。图文报告。不含监护､X线检查､活检､病理学检查。 | F31: 造影导管,导丝,血管夹,括约肌切开刀,活检钳 | G31: 次 | I31: 1600 | J31: 1360 | K31: 1156 | L31: 乙类 | M31: 消化 | N31: 停用
A32: 30 | B32: FQP01601 | C32: 经口电子胰管镜检查 | D32: 麻醉下,镇静,润滑,消泡,电子十二指肠镜经口插至十二指肠乳头部位,胰胆管造影,将胰管镜自母镜活检通道插入,经乳头开口沿导管插至胰管内,通过胰管镜进行检查。图文报告。不含监护､X线检查､活检､病理学检查。 | F32: 造影导管,导丝,血管夹,括约肌切开刀,活检钳 | G32: 次 | I32: 1600 | J32: 1360 | K32: 1156 | L32: 乙类 | M32: 消化 | N32: 停用
A33: 31 | B33: FQE01101 | C33: 经皮经肝胆道镜检查 | D33: 消毒铺巾,局麻,穿刺,扩张,插入胆道镜观察胆道树内病变,置管引出固定。图文报告。不含超声引导､CT引导。 | E33: 引流装置,穿刺针,注射器,冲洗液 | F33: 导丝 | G33: 次 | I33: 200 | J33: 160 | K33: 140 | L33: 乙类 | M33: 消化 | N33: 停用
A34: 32 | B34: FPU01601 | C34: 直肠镜检查 | D34: 肛门指诊,插入直肠镜,观察肛管､直肠内有无病变及异常,取粪便标本和直肠下段黏膜擦拭､消毒。不含活检。 | E34: 直肠镜 | G34: 次 | I34: 40 | J34: 32 | K34: 28 | L34: 甲类 | M34: 消化 | N34: 停用
A35: 33 | B35: FPS01601 | C35: 电子结肠镜检查 | D35: 麻醉下，清洁肠道,镇静,润滑肠道,将电子结肠镜自肛门插入,循腔至回盲部,观察全结肠黏膜。图文报告。不含监护､活检､病理学检查。 | E35: 润滑剂 | G35: 次 | I35: 350 | J35: 280 | K35: 245 | L35: 乙类 | M35: 消化 | N35: 停用
A36: 34 | B36: FPS01603 | C36: 纤维结肠镜检查 | D36: 麻醉下，清洁肠道,镇静,润滑肠道,将纤维结肠镜自肛门插入,循腔至回盲部,观察全结肠黏膜。人工报告。不含监护､活检､病理学检查。 | E36: 润滑剂 | G36: 次 | I36: 140 | J36: 110 | K36: 100 | L36: 乙类 | M36: 消化 | N36: 停用
A37: 35 | B37: FPJ01601 | C37: 纤维小肠镜检查 | D37: 清洁肠道,麻醉下,润滑,经口插入纤维小肠镜,观察十二指肠球部及降部､空肠黏膜。人工报告。不含监护､活检､病理学检查。 | E37: 润滑剂 | G37: 次 | I37: 200 | J37: 160 | K37: 140 | L37: 乙类 | M37: 消化 | N37: 停用
A38: 36 | B38: FPT01601 | C38: 纤维乙状结肠镜检查 | D38: 麻醉下，清洁肠道,镇静,润滑肠道,将纤维乙状结肠镜自肛门插入,循腔至降结肠,观察乙状结肠及直肠黏膜。人工报告。不含活检。 | E38: 润滑剂 | G38: 次 | I38: 60 | J38: 48 | K38: 42 | L38: 乙类 | M38: 消化 | N38: 停用
A39: 37 | B39: FPA01501 | C39: 经手术切口纤维内镜检查 | D39: 通过外科手术切口,进行纤维结肠镜检查。人工报告。不含监护､活检。 | G39: 次 | I39: 150 | J39: 120 | K39: 105 | L39: 乙类 | M39: 消化 | N39: 停用
A40: 38 | B40: FPT01602 | C40: 电子乙状结肠镜检查 | D40: 麻醉下，清洁肠道,镇静,润滑肠道,将电子乙状结肠镜自肛门插入,循腔至降结肠,观察乙状结肠及直肠黏膜。图文报告。不含活检。 | E40: 润滑剂 | G40: 次 | I40: 120 | J40: 95 | K40: 85 | L40: 乙类 | M40: 消化 | N40: 停用
A41: 39 | B41: FPA01603 | C41: 内镜色素检查 | D41: 内镜下于病变部位喷洒染色药物或电子染色,以暴露病变部位黏膜及边界。图文报告。不含监护。 | E41: 喷洒管,染色剂 | G41: 次 | I41: 600 | J41: 480 | K41: 420 | L41: 乙类 | M41: 消化 | N41: 停用
A42: 40 | B42: FQE01602 | C42: 经瘘管胆道镜检查 | D42: 经腹壁胆道造瘘口插入胆道镜,观察肝内胆道树和肝外胆管及十二指肠乳头开口有无病变。不含活检。 | E42: 引流装置,冲洗液 | G42: 次 | I42: 400 | J42: 320 | K42: 280 | L42: 乙类 | M42: 消化 | N42: 停用
A43: 41 | B43: FPA01602 | C43: 经瘘口电子内镜检查 | D43: 麻醉下，清洁肠道,镇静,润滑肠道,通过皮肤瘘口,进行电子结肠镜检查。图文报告。不含监护､病理学检查､活检。 | G43: 次 | I43: 250 | J43: 200 | K43: 175 | L43: 乙类 | M43: 消化 | N43: 停用
A44: 42 | B44: FPA01502 | C44: 经手术切口电子内镜检查 | D44: 通过外科手术切口,进行电子结肠镜检查。图文报告。不含监护､活检､病理学检查。 | G44: 次 | I44: 250 | J44: 200 | K44: 175 | L44: 乙类 | M44: 消化 | N44: 停用
A45: 43 | B45: FPA01601 | C45: 经瘘口纤维内镜检查 | D45: 麻醉下，清洁肠道,镇静,润滑肠道,通过皮肤瘘口,进行纤维结肠镜检查。人工报告。不含监护､病理学检查､活检。 | G45: 次 | I45: 250 | J45: 200 | K45: 175 | L45: 乙类 | M45: 消化 | N45: 停用
A46: 44 | B46: FPJ01602 | C46: 推进式小肠镜检查 | D46: 清洁肠道,麻醉下,润滑,消泡,经口插入电子小肠镜,观察十二指肠球部及降部､空肠黏膜。图文报告。不含监护､活检､病理学检查。 | E46: 润滑剂 | G46: 次 | I46: 400 | J46: 320 | K46: 280 | L46: 乙类 | M46: 消化 | N46: 停用
A47: 45 | B47: FPJ01603 | C47: 双气囊小肠镜检查 | D47: 清洁肠道,镇静,麻醉下,经口或肛门插入双气囊小肠镜,采用充气-放气及牵拉的方法,逐渐将小肠镜插入,达到需检查部位,观察小肠黏膜。图文报告。不含监护､活检､病理学检查。 | G47: 次 | I47: 4000 | J47: 3200 | K47: 2800 | L47: 乙类 | M47: 消化 | N47: 停用
A48: 46 | B48: FQP01602 | C48: 经内镜胰管腔内超声检查 | D48: 麻醉下,镇静,电子十二指肠镜到达乳头部位,胰胆管造影,置入导丝,将微型超声探头沿导丝经活检通道插入胰管至病变部位,超声检查。图文报告。不含监护､X线检查。 | F48: 造影导管,导丝,血管夹 | G48: 次 | I48: 240 | J48: 190 | K48: 170 | L48: 乙类 | M48: 消化 | N48: 停用
A49: 47 | B49: FQE01604 | C49: 经内镜胆管腔内超声检查 | D49: 麻醉下,镇静,电子十二指肠镜经口插至十二指肠乳头部位,胆管造影,置入导丝,将微型超声探头经活检通道沿导丝插入胆管至病变部位,超声检查。图文报告。不含监护､X线检查。 | F49: 造影导管,导丝,血管夹 | G49: 次 | I49: 1000 | J49: 800 | K49: 700 | L49: 乙类 | M49: 消化 | N49: 停用
A50: 48 | B50: FPB01604 | C50: 超声胃镜检查 | D50: 带有超声探头的胃镜检查。麻醉下,润滑,消泡,经口插入电子胃镜,采用超声探头检测食管､胃､十二指肠黏膜肠壁､十二指肠乳头､胰头､下段胆管､纵隔淋巴结､胆囊､上消化道肿瘤TN分期部位病变。图文报告。不含监护､活检。 | E50: 0 | F50: 水囊 | G50: 次 | I50: 610 | J50: 490 | K50: 430 | L50: 乙类 | M50: 消化 | N50: 停用
A51: 49 | B51: FPS01602 | C51: 超声结肠镜检查 | D51: 麻醉下，清洁肠道,镇静,润滑肠道,将电子结肠镜自肛门插入,结肠镜检查,于病变部位采用超声内镜探头检测。图文报告。不含监护。 | E51: 润滑剂 | F51: 水囊 | G51: 次 | I51: 650 | J51: 520 | K51: 450 | L51: 乙类 | M51: 消化 | N51: 停用
A52: 50 | B52: FPB01605 | C52: 经电子胃镜超声微探头检查 | D52: 麻醉下,润滑,消泡,经口插入电子胃镜,经活检钳通道插入超声微探头,观察食管､胃､十二指肠黏膜肠壁､十二指肠乳头､胰头､下段胆管,于病变部位进行超声检查。图文报告。不含活检､监护。 | E52: 0 | G52: 次 | I52: 610 | J52: 490 | K52: 430 | L52: 乙类 | M52: 消化 | N52: 停用
A53: 51 | B53: EACQP001 | C53: 经纤维内镜逆行胰胆管造影术(ERCP) | D53: 麻醉下,镇静,润滑,消泡,纤维十二指肠镜经口插至十二指肠乳头部位,经活检通道插入装有导丝的造影导管进入十二指肠乳头,退出导丝,注入对比剂,分别对胆管､胰管进行造影检查｡人工报告｡不含监护､X线检查｡ | E53: 胶片 | F53: 造影导管,导丝,血管夹括约肌切开刀 | G53: 次 | I53: 450 | J53: 380 | K53: 340 | L53: 乙类 | M53: 消化 | N53: 停用
A54: 52 | B54: EACQP002 | C54: 经电子内镜逆行胰胆管造影术(ERCP) | D54: 麻醉下,镇静,润滑,消泡,电子十二指肠镜经口插至十二指肠乳头部位,经活检通道插入装有导丝的造影导管进入十二指肠乳头,退出导丝,注入对比剂,分别对胆管､胰管进行造影检查｡图文报告｡不含监护､X线检查｡ | E54: 胶片 | F54: 造影导管,导丝,血管夹括约肌切开刀 | G54: 次 | I54: 450 | J54: 380 | K54: 340 | L54: 乙类 | M54: 消化 | N54: 停用
A55: 53 | B55: HQE63101 | C55: 经皮经肝胆道引流管调管术 | D55: 局部消毒铺巾,沿原引流管经导丝导引,调整引流管位置或置换引流管。不含监护､影像学引导。 | E55: 穿刺针,引流装置 | F55: 导丝,导管,特殊缝线 | G55: 次 | I55: 500 | J55: 400 | K55: 350 | L55: 甲类 | M55: 消化 | N55: 停用
A56: 54 | B56: HQE45101 | C56: 经皮肝穿胆道引流术(PTCD) | D56: 定位,消毒铺巾,局麻,穿刺,置管引出固定。图文报告。 | E56: 引流装置,注射器 | F56: 扩张管,导丝,胆管引流管 | G56: 次 | I56: 500 | J56: 400 | K56: 350 | L56: 甲类 | M56: 消化 | N56: 停用
A57: 55 | B57: HQK50101 | C57: 经皮胆囊穿刺造瘘术 | D57: 局部消毒铺巾,以穿刺针穿刺胆囊后,沿此通路经导丝置换引流管。不含监护､影像学引导。 | E57: 穿刺针,引流装置 | F57: 导丝,导管,特殊缝线 | G57: 次 | I57: 500 | J57: 400 | K57: 350 | L57: 甲类 | M57: 消化 | N57: 停用
A58: 56 | B58: HQC45101 | C58: 经皮经肝肝门部肿物支架管外引流术 | D58: 定位,消毒铺巾,局麻,B超引导下穿刺,导丝引导,支架置入肿管,留置外引流固定,缝合切口。 | E58: 引流装置,注射器 | F58: 支架,特殊缝线,止血材料 | G58: 次 | I58: 2100 | J58: 1680 | K58: 1470 | L58: 乙类 | M58: 消化 | N58: 停用
A59: 57 | B59: HQE45601 | C59: 经电子内镜鼻-胆管引流术(ENBD) | D59: 麻醉下,镇静,润滑,消泡,电子十二指肠镜经口插至十二指肠乳头部位,经活检通道将导丝插入胆管狭窄部位,撤出内镜后将导丝自鼻腔引出,将引流管沿导丝置入胆管,确认位置无误,固定引流管。图文报告。不含监护､十二指肠乳头括约肌切开术､X线检查。 | E59: 引流装置 | F59: 造影导管,导丝,胆管引流管,血管夹 | G59: 次 | I59: 1000 | J59: 800 | K59: 700 | L59: 乙类 | M59: 消化 | N59: 停用
A60: 58 | B60: HQP45602 | C60: 经电子内镜鼻-胰管引流术 | D60: 麻醉下,镇静,润滑,消泡,电子十二指肠镜经口插至十二指肠乳头部位,经活检通道将导丝插入胰管狭窄部位,撤出内镜,将导丝从鼻腔引出,鼻-胰引流管沿导丝插入胰管,确认位置无误,固定鼻-胰引流管,引流。图文报告。不含监护､十二指肠乳头括约肌切开术､胰管括约肌切开术､X线检查。 | E60: 引流装置 | F60: 造影导管,导丝,血管夹 | G60: 次 | I60: 1500 | J60: 1200 | K60: 1050 | L60: 乙类 | M60: 消化 | N60: 停用
A61: 59 | B61: HQE45602 | C61: 经内镜胆管内引流术 | D61: 麻醉下,镇静,润滑,消泡,电子十二指肠镜经口插至十二指肠乳头部位,胆管造影,经乏特氏壶腹插入导丝,通过胆管狭窄部位,确认位置后沿导丝置入胆管引流管。图文报告。不含胆管造影。 | E61: 引流装置 | F61: 胆管引流管,造影导管,导丝,血管夹 | G61: 次 | I61: 1000 | J61: 800 | K61: 700 | L61: 乙类 | M61: 消化 | N61: 停用
A62: 60 | B62: HQN45302 | C62: 胰腺假性囊肿内引流术 | D62: 逐层进腹,胰腺探查,空肠囊肿吻合､胃囊肿吻合,囊壁切取活检,止血,经腹壁另戳孔置管引出固定,清点器具､纱布无误,冲洗腹腔,逐层关腹。不含囊内容物检查。 | E62: 引流装置,冲洗液 | F62: 吻合器,血管夹,特殊缝线,止血材料 | G62: 次 | I62: 1800 | J62: 1440 | K62: 1260 | L62: 甲类 | M62: 消化 | N62: 停用
A63: 61 | B63: HQN45601 | C63: 经超声内镜引导下胰腺囊肿内引流术 | D63: 麻醉下,镇静,经超声胃镜确认假性囊肿的位置及大小,在超声引导下将穿刺针刺入囊肿内,放入导丝,沿导丝置入引流管。图文报告。不含监护､十二指肠乳头括约肌切开术､X线检查。 | E63: 穿刺针,引流装置 | F63: 造影导管,导丝,血管夹 | G63: 次 | I63: 1500 | J63: 1200 | K63: 1050 | L63: 乙类 | M63: 消化 | N63: 停用
A64: 62 | B64: HQP45601 | C64: 经电子内镜胰管内引流术 | D64: 麻醉下,镇静,润滑,消泡,电子十二指肠镜经口插至十二指肠乳头部位,胰胆管造影,使用胰管括约肌切开刀胰管括约肌切开,沿导丝置入胰管引流管,引流。图文报告。不含监护､十二指肠乳头括约肌切开术､胰管括约肌切开术､X线检查。 | E64: 引流装置 | F64: 造影导管,导丝,血管夹 | G64: 次 | I64: 1500 | J64: 1200 | K64: 1050 | L64: 乙类 | M64: 消化 | N64: 停用
A65: 63 | B65: HQA48101 | C65: 经皮肝囊肿穿刺药物注射治疗 | D65: 定位,消毒铺巾,局麻,穿刺引流及注射药物。不含影像学引导。 | E65: 穿刺针,引流装置,注射器 | G65: 次 | I65: 200 | J65: 160 | K65: 140 | L65: 甲类 | M65: 消化 | N65: 停用
A66: 64 | B66: HNB45101 | C66: 经皮脾囊肿穿刺引流术 | D66: 局部消毒铺巾,影像定位,以穿刺针穿刺脾囊肿后,沿此通路经导丝置换引流管。不含监护､影像学引导。 | E66: 穿刺针,引流装置 | F66: 导丝,导管 | G66: 次 | I66: 320 | J66: 260 | K66: 220 | L66: 甲类 | M66: 消化 | N66: 停用
A67: 65 | B67: HNB45102 | C67: 经皮脾脓肿穿刺引流术 | D67: 局部消毒铺巾,以穿刺针穿刺脾脓肿后,沿此通路经导丝置换引流管。不含监护､影像学引导。 | E67: 穿刺针,引流装置 | F67: 导丝,导管 | G67: 次 | I67: 370 | J67: 300 | K67: 260 | L67: 甲类 | M67: 消化 | N67: 停用
A68: 66 | B68: HQA45101 | C68: 经皮肝囊肿穿刺引流术 | D68: 定位,消毒铺巾,局麻,经皮穿刺入肝囊肿腔内,抽液,注射药物,置管引出固定。 | E68: 穿刺针,引流装置,注射器 | F68: 扩张管,导丝 | G68: 次 | I68: 800 | J68: 640 | K68: 560 | L68: 甲类 | M68: 消化 | N68: 停用
A69: 67 | B69: HQA45102 | C69: 经皮肝脓肿穿刺引流术 | D69: 定位,消毒铺巾,局麻,穿刺,脓肿引流,置管引出固定。不含影像学引导。 | E69: 穿刺针,引流装置,注射器 | F69: 导丝 | G69: 次 | I69: 800 | J69: 640 | K69: 560 | L69: 甲类 | M69: 消化 | N69: 停用
A70: 68 | B70: HQD59101 | C70: 经皮肝血管瘤硬化剂注射栓塞术 | D70: 定位,消毒铺巾,局麻,B超引导下瘤内注射栓塞剂,肝创面止血,包扎伤口。 | E70: 引流装置,注射器 | F70: 血管夹,栓塞材料,特殊缝线,止血材料 | G70: 次 | I70: 1400 | J70: 1120 | K70: 980 | L70: 甲类 | M70: 消化 | N70: 停用
A71: 69 | B71: HQD59301 | C71: 肝血管瘤硬化剂注射栓塞术 | D71: 逐层进腹,探查,活检,游离肝脏,阻断肝门,瘤内注射栓塞剂,肝创面止血,清点器具､纱布无误,冲洗腹腔,逐层关腹。 | E71: 引流装置,冲洗液 | F71: 血管夹,栓塞材料,特殊缝线,止血材料 | G71: 次 | I71: 1500 | J71: 1200 | K71: 1050 | L71: 甲类 | M71: 消化 | N71: 停用
A72: 70 | B72: HQN45101 | C72: 经皮胰腺穿刺引流术 | D72: 用灰阶超声仪对胰腺进行术前观察,消毒,铺巾,局麻,在B超监视下将穿刺针或穿刺枪经皮刺入胰腺,取活检､置管引流或注药。图文报告。不含超声引导。 | E72: 穿刺针,引流装置 | F72: 胰管引流管 | G72: 次 | I72: 900 | J72: 720 | K72: 630 | L72: 甲类 | M72: 消化 | N72: 停用
A73: 71 | B73: HQN45102 | C73: 经皮胰腺囊肿穿刺引流术 | D73: 局部消毒铺巾,影像定位,以穿刺针穿刺胰腺囊肿后,沿此通路经导丝置换引流管。不含监护､影像学引导。 | E73: 穿刺针,引流装置 | F73: 导丝,导管,特殊缝线 | G73: 次 | I73: 1000 | J73: 800 | K73: 700 | L73: 甲类 | M73: 消化 | N73: 停用
A74: 72 | B74: HQN45103 | C74: 经皮胰腺脓肿穿刺引流术 | D74: 局部消毒铺巾,影像定位,以穿刺针穿刺胰腺脓肿后,沿此通路经导丝置换引流管。不含监护､影像学引导。 | E74: 穿刺针,引流装置 | F74: 导丝,导管,特殊缝线 | G74: 次 | I74: 1000 | J74: 800 | K74: 700 | L74: 甲类 | M74: 消化 | N74: 停用
A75: 73 | B75: HNB46101 | C75: 超声造影引导经皮脾脏创伤出血栓塞术 | D75: 术前准备,超声造影引导下确定脾创伤灶及活动性出血部位,局部皮肤消毒铺巾,麻醉,PTC穿刺针(20G×200毫米),进行穿刺,创伤灶注射止血剂,活动性出血部位注射医用吻合胶。图文报告。不含超声引导､实验室检查。 | E75: 穿刺针,注射器 | F75: 导管,导丝,血管鞘组,栓塞材料,止血材料 | G75: 次 | H75: 以1处病灶为基价,每增加1处加收不超过30% | I75: 800 | J75: 640 | K75: 560 | L75: 乙类 | M75: 消化 | N75: 停用
A76: 74 | B76: HQU45101 | C76: 经腹壁盆腔穿刺引流术 | D76: 用灰阶超声仪对盆腔进行术前观察,消毒铺巾,局麻,在B超监视下将穿刺针经皮刺入盆腔,抽吸活检,置管引流或注药。不含超声引导。 | E76: 穿刺针,引流装置,注射器 | G76: 次 | I76: 200.00 | J76: 160.00 | K76: 140.00 | L76: 甲类 | M76: 消化 | N76: 停用
A77: 75 | B77: HQU45401 | C77: 经阴道盆腔液性包块穿刺引流术 | D77: 患者排空膀胱､肠道,取膀胱截石位,消毒外阴､阴道､宫颈,铺无菌巾,穹隆穿刺术,囊肿穿刺,吸出囊内液体,引流,再次消毒阴道。 | E77: 穿刺针,引流装置,阴道窥器 | G77: 次 | I77: 500 | J77: 400 | K77: 350 | L77: 甲类 | M77: 消化 | N77: 停用
A78: 76 | B78: HQU45103 | C78: 经皮盆腔脓肿穿刺引流术 | D78: 定位,消毒铺巾,局麻,穿刺,脓肿引流,置管引出固定。不含影像学引导。 | E78: 穿刺针,引流装置,注射器 | G78: 次 | I78: 400 | J78: 320 | K78: 280 | L78: 甲类 | M78: 消化 | N78: 停用
A79: 77 | B79: HQH59101 | C79: 经皮肝管栓塞术 | D79: 定位,消毒铺巾,局麻,B超引导监视下经皮经肝插管达肝管,注入栓塞剂,止血,置管引出固定,缝合切口。 | E79: 引流装置 | F79: 栓塞材料,特殊缝线,止血材料 | G79: 次 | I79: 900 | J79: 720 | K79: 630 | L79: 乙类 | M79: 消化 | N79: 停用
A80: 78 | B80: HPR45101 | C80: 经直肠阑尾脓肿穿刺引流术 | D80: 结石位B超定位后,经脉麻醉后,B超定位后。用16号套管针经直肠穿刺。尽量抽尽脓液。穿刺后加压压迫止血。含穿刺引流术。不含B超引导。 | E80: 穿刺针 | G80: 次 | I80: 500 | J80: 400 | K80: 350 | L80: 甲类 | M80: 消化 | N80: 停用
A81: 79 | B81: HQA62101 | C81: 经皮肿物放化疗粒子置入术 | D81: 在影像引导下，消毒铺巾，局麻，影像监视下肿物穿刺，置入放疗、化疗粒子，止血，置管引出固定，缝合切口。 | E81: 引流装置 | F81: 止血材料,特殊缝线 | G81: 次 | I81: 1200 | J81: 960 | K81: 840 | L81: 乙类 | M81: 消化 | N81: 停用
A82: 80 | B82: HQA62301 | C82: 肝脏肿物放化疗粒子置入术 | D82: 逐层进腹,探查,游离肝脏,肝肿物穿刺,置入放疗､化疗粒子,创面止血,经腹壁另戳孔置管引出固定,清点器具､纱布无误,冲洗腹腔,逐层关腹。 | E82: 引流装置,冲洗液 | F82: 血管夹,特殊缝线,止血材料 | G82: 次 | I82: 1200 | J82: 960 | K82: 840 | L82: 乙类 | M82: 消化 | N82: 停用
A83: 81 | B83: HQA62501 | C83: 经腹腔镜肝脏肿物放疗化疗粒子置入术 | D83: 腹壁多处戳孔,造气腹,插入观察镜,插入操作内镜,插入辅助器械,探查,游离肝脏,体外B超监视引导下肝肿物穿刺,置入放疗､化疗粒子,止血,置管引出固定,缝合切口。 | E83: 引流装置 | F83: 腔镜材料 | G83: 次 | L83: 乙类 | M83: 消化 | N83: 停用
A84: 82 | B84: HQN62301 | C84: 胰腺肿瘤放化疗粒子置入术 | D84: 逐层进腹､探查,肿瘤无法切除､胰腺穿刺活检,粒子多点穿刺置入瘤体内､创面止血､腹腔引流管经腹壁另戳孔引出固定,清点器具､纱布无误,冲洗腹腔,逐层关腹。 | E84: 穿刺针,引流装置,冲洗液 | F84: 血管夹,特殊缝线,止血材料 | G84: 次 | I84: 1800 | J84: 1440 | K84: 1260 | L84: 乙类 | M84: 消化 | N84: 停用
A85: 83 | B85: HPD45101 | C85: 超声胃镜引导下穿刺引流术 | D85: 麻醉下,润滑,消泡,经超声胃镜确认囊肿的位置及大小,在超声引导下将穿刺针刺入囊肿内,置入导丝,沿导丝置入引流管,引流。图文报告。不含监护､病理学检查。 | E85: 穿刺针,引流装置 | F85: 导丝 | G85: 次 | I85: 1000 | J85: 800 | K85: 700 | L85: 乙类 | M85: 消化 | N85: 停用
A86: 84 | B86: HPU46602 | C86: 经直肠镜直肠出血缝扎术 | D86: 麻醉下，肛门指诊,直肠镜检查,确定出血部位,缝扎止血。 | F86: 特殊缝线,止血材料 | G86: 次 | I86: 650 | J86: 520 | K86: 450 | L86: 乙类 | M86: 消化 | N86: 停用
A87: 85 | B87: HPU72601 | C87: 经肛门镜直肠肛门冷冻治疗 | D87: 清洁远段肠道,肛门镜插至病变部位,采用冷冻治疗仪,冷冻治疗。人工报告。不含病理学检查。 | E87: 肛门镜 | F87: 血管夹 | G87: 次 | I87: 90 | J87: 70 | K87: 60 | L87: 乙类 | M87: 消化 | N87: 停用
A88: 86 | B88: HPU46601 | C88: 经直肠镜直肠出血电凝术 | D88: 麻醉下，肛门指诊,直肠镜检查,确定出血部位,电凝止血。 | F88: 止血材料 | G88: 次 | I88: 600 | J88: 480 | K88: 420 | L88: 乙类 | M88: 消化 | N88: 停用
A89: 87 | B89: HPS46601 | C89: 经纤维内镜结肠黏膜出血治疗 | D89: 麻醉下，清洁肠道,镇静,润滑肠道,纤维结肠镜自肛门插入,结肠镜检查,找到出血部位,根据出血情况进行止血治疗。人工报告。不含监护。 | F89: 血管夹 | G89: 次 | I89: 600 | J89: 480 | K89: 420 | L89: 乙类 | M89: 消化 | N89: 停用
A90: 88 | B90: HPS46602 | C90: 经电子内镜结肠黏膜出血治疗 | D90: 麻醉下，清洁肠道,镇静,润滑肠道,电子结肠镜自肛门插入,结肠镜检查,找到出血部位,根据出血情况进行止血治疗。图文报告。不含监护。 | F90: 血管夹 | G90: 次 | I90: 800 | J90: 640 | K90: 560 | L90: 乙类 | M90: 消化 | N90: 停用
A91: 89 | B91: HPB46601 | C91: 经纤维内镜上消化道出血治疗 | D91: 指食管､胃､十二指肠出血治疗。麻醉下,润滑,消泡,经口插入纤维胃镜,胃镜检查,寻查出血部位,根据出血情况选择止血治疗方法。人工报告。不含监护。 | F91: 血管夹,止血材料 | G91: 次 | I91: 150 | J91: 120 | K91: 105 | L91: 乙类 | M91: 消化 | N91: 停用
A92: 90 | B92: HPU72602 | C92: 经肛门镜直肠肛门微波治疗 | D92: 清洁远段肠道,肛门镜插至病变部位,经肛门镜置入微波治疗探头,根据病变性质及大小选择治疗参数,微波治疗。人工报告。不含病理学检查。 | E92: 肛门镜 | F92: 血管夹 | G92: 次 | I92: 110 | J92: 88 | K92: 77 | L92: 乙类 | M92: 消化 | N92: 停用
A93: 91 | B93: HPB46602 | C93: 经电子内镜上消化道出血治疗 | D93: 指麻醉下,润滑,消泡,经口插入电子胃镜,胃镜检查,寻查出血部位,根据出血情况选择止血治疗方法。图文报告。不含监护。 | F93: 血管夹,止血材料 | G93: 次 | H93: 经电子内镜下消化道出血治疗按此收费 | I93: 600 | J93: 480 | K93: 420 | L93: 乙类 | M93: 消化 | N93: 停用
A94: 92 | B94: HMS48601 | C94: 经纤维内镜食管静脉曲张注射治疗 | D94: 麻醉下,润滑,消泡,碘过敏试验,经口插入纤维胃镜,胃镜检查,在胃镜直视下向曲张静脉内多位点注入硬化剂､黏合剂等栓塞制剂。人工报告。不含监护､X线检查。 | E94: 内镜注射针 | F94: 硬化剂,粘合剂 | G94: 次 | I94: 700 | J94: 560 | K94: 490 | L94: 乙类 | M94: 消化 | N94: 停用
A95: 93 | B95: HMS48602 | C95: 经电子内镜食管静脉曲张注射治疗 | D95: 麻醉下,润滑,消泡,碘过敏试验,经口插入电子胃镜,胃镜检查,在胃镜直视下向曲张静脉内多位点注入硬化剂､黏合剂等栓塞制剂。图文报告。不含监护､X线检查。 | E95: 碘化油 | F95: 硬化剂,粘合剂,内镜用注射针 | G95: 次 | I95: 1000 | J95: 800 | K95: 700 | L95: 乙类 | M95: 消化 | N95: 停用
A96: 94 | B96: HMS59601 | C96: 经纤维内镜食管静脉曲张套扎治疗 | D96: 麻醉下,润滑,消泡,经口插入纤维胃镜,胃镜检查,在胃镜直视下套扎曲张静脉。人工报告。不含监护。 | F96: 套扎器 | G96: 次 | I96: 1000 | J96: 800 | K96: 700 | L96: 乙类 | M96: 消化 | N96: 停用
A97: 95 | B97: HMS59602 | C97: 经电子内镜食管静脉曲张套扎治疗 | D97: 麻醉下,润滑,消泡,经口插入电子胃镜,胃镜检查,在胃镜直视下套扎曲张静脉。图文报告。不含监护。 | F97: 套扎器 | G97: 次 | I97: 1000 | J97: 800 | K97: 700 | L97: 乙类 | M97: 消化 | N97: 停用
A98: 96 | B98: HPB72601 | C98: 经纤维内镜食管胃十二指肠息肉氩离子凝固术 | D98: 麻醉下,润滑,消泡,经口插入纤维胃镜,胃镜检查寻查息肉,采用氩离子凝固治疗。人工报告。不含监护､病理学检查。 | F98: 血管夹,息肉勒除器 | G98: 次 | H98: 每增加1个息肉加收不超过20% | I98: 700 | J98: 560 | K98: 490 | L98: 乙类 | M98: 消化 | N98: 停用
A99: 97 | B99: HPB72602 | C99: 经电子内镜食管胃十二指肠息肉氩离子凝固术 | D99: 麻醉下,润滑,消泡,经口插入电子胃镜,胃镜检查,寻查息肉,采用氩离子凝固治疗。图文报告。不含监护､病理学检查。 | F99: 血管夹,止血材料,息肉勒除器 | G99: 次 | H99: 每增加1个息肉加收不超过20% | I99: 700 | J99: 560 | K99: 490 | L99: 乙类 | M99: 消化 | N99: 停用
A100: 98 | B100: HPB73601 | C100: 经纤维内镜食管胃十二指肠息肉高频电凝切除术 | D100: 麻醉下,润滑,消泡,经口插入纤维胃镜,胃镜检查,置入圈套器圈套息肉,采用高频电凝电切除息肉。人工报告。不含监护､病理学检查。 | F100: 血管夹,圈套器 | G100: 次 | H100: 每增加1个息肉加收不超过20% | I100: 1100 | J100: 880 | K100: 770 | L100: 乙类 | M100: 消化 | N100: 停用
A101: 99 | B101: HPB73602 | C101: 经电子内镜食管胃十二指肠息肉高频电凝切除术 | D101: 麻醉下,润滑,消泡,经口插入电子胃镜,胃镜检查,置入圈套器圈套息肉,采用高频电凝电切除息肉。图文报告。不含监护､病理学检查。 | E101: 内镜用注射针 | F101: 血管夹,圈套器,止血材料,息肉勒除器 | G101: 次 | H101: 每增加1个息肉加收不超过20% | I101: 1600 | J101: 1360 | K101: 1156 | L101: 乙类 | M101: 消化 | N101: 停用
A102: 100 | B102: HPB73603 | C102: 经纤维内镜食管胃十二指肠息肉微波切除术 | D102: 麻醉下,润滑,消泡,经口插入纤维胃镜,胃镜检查,寻查息肉,采用微波切除治疗。人工报告。不含监护､病理学检查。 | F102: 血管夹 | G102: 次 | H102: 每增加1个息肉加收不超过20% | I102: 700 | J102: 560 | K102: 490 | L102: 乙类 | M102: 消化 | N102: 停用
A103: 101 | B103: HPB73604 | C103: 经电子内镜食管胃十二指肠息肉微波切除术 | D103: 麻醉下,润滑,消泡,经口插入电子胃镜,胃镜检查,寻查息肉,采用微波切除治疗。图文报告。不含监护､病理学检查。 | F103: 血管夹 | G103: 次 | H103: 每增加1个息肉加收不超过20% | I103: 700 | J103: 560 | K103: 490 | L103: 乙类 | M103: 消化 | N103: 停用
A104: 102 | B104: HPB73605 | C104: 经纤维内镜食管胃十二指肠息肉激光切除术 | D104: 麻醉下,润滑,消泡,经口插入纤维胃镜,胃镜检查寻查息肉,采用激光治疗。人工报告。不含监护､病理学检查。 | F104: 血管夹 | G104: 次 | H104: 每增加1个息肉加收不超过20% | I104: 700 | J104: 560 | K104: 490 | L104: 乙类 | M104: 消化 | N104: 停用
A105: 103 | B105: HPB73606 | C105: 经电子内镜食管胃十二指肠息肉激光切除术 | D105: 麻醉下,润滑,消泡,经口插入电子胃镜,胃镜检查寻查息肉,采用激光治疗。图文报告。不含监护､病理学检查。 | F105: 血管夹 | G105: 次 | H105: 每增加1个息肉加收不超过20% | I105: 700 | J105: 560 | K105: 490 | L105: 乙类 | M105: 消化 | N105: 停用
A106: 104 | B106: HPS72601 | C106: 经纤维内镜结肠息肉微波切除术 | D106: 麻醉下，清洁肠道,镇静,润滑肠道,纤维结肠镜自肛门插入,结肠镜检查,寻查息肉,采用微波切除治疗。人工报告。不含监护､病理学检查。 | F106: 血管夹 | G106: 次 | H106: 每增加1个息肉加收不超过20% | I106: 600 | J106: 480 | K106: 420 | L106: 乙类 | M106: 消化 | N106: 停用
A107: 105 | B107: HPS72602 | C107: 经电子内镜结肠息肉微波切除术 | D107: 麻醉下，清洁肠道,镇静,润滑肠道,电子结肠镜自肛门插入,结肠镜检查,寻查息肉,采用微波切除治疗。图文报告。不含监护､病理学检查。 | F107: 血管夹 | G107: 次 | H107: 每增加1个息肉加收不超过20% | I107: 800 | J107: 640 | K107: 560 | L107: 乙类 | M107: 消化 | N107: 停用
A108: 106 | B108: HPS72603 | C108: 经纤维内镜结肠息肉激光切除术 | D108: 麻醉下，清洁肠道,镇静,润滑肠道,纤维结肠镜自肛门插入,结肠镜检查,寻查息肉,采用激光切除治疗。人工报告。不含监护､病理学检查。 | F108: 血管夹 | G108: 次 | H108: 每增加1个息肉加收不超过20% | I108: 600 | J108: 480 | K108: 420 | L108: 乙类 | M108: 消化 | N108: 停用
A109: 107 | B109: HPS72604 | C109: 经电子内镜结肠息肉激光切除术 | D109: 麻醉下，清洁肠道,镇静,润滑肠道,电子结肠镜自肛门插入,结肠镜检查,寻查息肉,采用激光切除治疗。图文报告。不含监护､病理学检查。 | F109: 血管夹 | G109: 次 | H109: 每增加1个息肉加收不超过20% | I109: 800 | J109: 640 | K109: 560 | L109: 乙类 | M109: 消化 | N109: 停用
A110: 108 | B110: HPS72605 | C110: 经纤维内镜结肠息肉氩离子凝固术 | D110: 麻醉下，清洁肠道,镇静,润滑肠道,纤维结肠镜自肛门插入,结肠镜检查,寻查息肉,采用氩离子凝固治疗。人工报告。不含监护､病理学检查。 | F110: 血管夹 | G110: 次 | H110: 每增加1个息肉加收不超过20% | I110: 600 | J110: 480 | K110: 420 | L110: 乙类 | M110: 消化 | N110: 停用
A111: 109 | B111: HPS72606 | C111: 经电子内镜结肠息肉氩离子凝固术 | D111: 麻醉下，清洁肠道,镇静,润滑肠道,电子结肠镜自肛门插入,结肠镜检查,寻查息肉,采用氩离子凝固治疗。图文报告。不含监护､病理学检查。 | F111: 血管夹 | G111: 次 | H111: 每增加1个息肉加收不超过20% | I111: 800 | J111: 640 | K111: 560 | L111: 乙类 | M111: 消化 | N111: 停用
A112: 110 | B112: HPS73602 | C112: 经纤维内镜结肠息肉高频电凝切除术 | D112: 麻醉下，清洁肠道,镇静,润滑肠道,纤维结肠镜自肛门插入,结肠镜检查,寻查息肉,圈套器圈套息肉,高频电凝电切除息肉。人工报告。不含监护､病理学检查。 | F112: 血管夹,圈套器 | G112: 次 | H112: 每增加1个息肉加收不超过20% | I112: 1000 | J112: 800 | K112: 700 | L112: 乙类 | M112: 消化 | N112: 停用
A113: 111 | B113: HPS73603 | C113: 经电子内镜结肠息肉高频电凝切除术 | D113: 麻醉下，清洁肠道,镇静,润滑肠道,电子结肠镜自肛门插入,结肠镜检查,寻查息肉,圈套器圈套息肉,高频电凝电切除息肉。图文报告。不含监护､病理学检查。 | E113: 内镜用注射针 | F113: 血管夹,圈套器,止血材料,息肉勒除器 | G113: 次 | H113: 每增加1个息肉加收不超过20% | I113: 1300 | J113: 1040 | K113: 910 | L113: 乙类 | M113: 消化 | N113: 停用
A114: 112 | B114: HPS73604 | C114: 经电子内镜结肠息肉吸引圈套切除术 | D114: 麻醉下，清洁肠道,镇静,润滑肠道,电子结肠镜前端加透明帽,自肛门插入,结肠镜检查,寻查息肉,将息肉吸入透明帽,采用圈套器进行高频电凝电切除治疗。图文报告。不含监护､病理学检查。 | E114: 透明帽 | F114: 血管夹,圈套器,止血材料,息肉勒除器 | G114: 次 | H114: 每增加1个息肉加收不超过20% | I114: 1600 | J114: 1360 | K114: 1156 | L114: 乙类 | M114: 消化 | N114: 停用
A115: 113 | B115: HPB65601 | C115: 经电子内镜食管胃十二指肠黏膜剥离术(ESD) | D115: 麻醉下,润滑,消泡,经口插入电子胃镜,胃镜检查,寻查肿物,于肿物基底部注射肾上腺素甘油果糖(或高渗冲洗液及美蓝或靛胭脂)以抬举病变黏膜部分,采用电刀等进行剥离,切除治疗。图文报告。不含监护､病理学检查。 | E115: 注射针 | F115: 血管夹,止血材料,息肉勒除器，一次性使用黏膜切开刀 | G115: 次 | I115: 2900 | J115: 2320 | K115: 2030 | L115: 乙类 | M115: 消化 | N115: 停用
A116: 114 | B116: HPS73601 | C116: 经电子内镜结肠黏膜剥离术(结肠ESD) | D116: 麻醉下，清洁肠道,镇静,润滑肠道,电子结肠镜自肛门插入,结肠镜检查,寻查肿物,于肿物基底部注射肾上腺素甘油果糖(或高渗冲洗液及美蓝或靛胭脂)以抬举肿物,采用IT刀等进行切除治疗。图文报告。不含监护､病理学检查。 | E116: 注射器 | F116: 血管夹,止血材料,息肉勒除器，一次性使用黏膜切开刀 | G116: 次 | I116: 2900 | J116: 2320 | K116: 2030 | L116: 乙类 | M116: 消化 | N116: 停用
A117: 115 | B117: HPB73607 | C117: 经电子内镜食管胃十二指肠黏膜切除术(EMR) | D117: 胃镜前端加透明帽,麻醉下,润滑,消泡,经口插入电子胃镜,胃镜检查,寻查息肉,将息肉吸入透明帽,采用圈套器进行高频电凝电切。图文报告。不含监护､病理学检查。 | F117: 血管夹,圈套器,止血材料,息肉勒除器 | G117: 次 | H117: 每增加1个息肉加收不超过20% | I117: 1700 | J117: 1360 | K117: 1190 | L117: 乙类 | M117: 消化 | N117: 停用
A118: 116 | B118: HPC73502 | C118: 经胸腔镜食管良性肿物切除术 | D118: 指胸腔镜下食管良性肿瘤､食管囊肿等的切除。经胸外侧径路,消毒铺巾,贴膜,单肺通气,建立气胸,胸腔镜探查胸腔,游离局部食管,切除或摘除肿物,用特殊标本袋取出,若食管黏膜破损,行黏膜修补术,用电刀或超声刀止血,放置胸腔闭式引流,关胸。不含病理学检查。 | E118: 引流装置 | F118: 腔镜材料 | G118: 次 | I118: 2200 | J118: 1760 | K118: 1540 | L118: 乙类 | M118: 消化 | N118: 停用
A119: 117 | B119: QHXZ0057 | C119: 经电子内镜胃肠道病变尼龙绳结扎术 | D119: 清洁胃肠道，镇静，润滑胃肠道，自口或肛门插入内镜，找到病变，采用尼龙绳结扎病变，使病变缺血坏死脱落，达到治疗目的。 | E119: 注射器，结扎环，粘膜下注射针 | F119: 0 | G119: 次 | H119: 每增加一个病变部位按20%收取 | I119: 1300 | J119: 1040 | K119: 910 | L119: 乙类 | M119: 消化 | N119: 停用
A120: 118 | B120: HPD65603 | C120: 经纤维内镜胃石碎石取石术 | D120: 麻醉下,润滑,消泡,经口插入纤维胃镜,寻查胃石,采用异物钳，活检钳，圈套器等器械将胃石破碎,取出胃石。人工报告。不含监护。 | E120: 异物钳 | F120: 圈套器 | G120: 次 | I120: 650 | J120: 520 | K120: 450 | L120: 乙类 | M120: 消化 | N120: 停用
A121: 119 | B121: HPD65604 | C121: 经电子内镜胃石碎石取石术 | D121: 麻醉下,润滑,消泡,经口插入电子胃镜,寻查胃石,采用活检钳，异物钳，圈套器等器械将胃石破碎,取出胃石。图文报告。不含监护。 | E121: 异物钳 | F121: 圈套器 | G121: 次 | I121: 800 | J121: 640 | K121: 560 | L121: 乙类 | M121: 消化 | N121: 停用
A122: 120 | B122: HPD65605 | C122: 经纤维内镜胃石激光碎石取石术 | D122: 麻醉下,润滑,消泡,经口插入纤维胃镜,寻查胃石,采用激光将胃石破碎,取出胃石。人工报告。不含监护。 | G122: 次 | I122: 420 | J122: 340 | K122: 290 | L122: 乙类 | M122: 消化 | N122: 停用
A123: 121 | B123: HPD65606 | C123: 经电子内镜胃石激光碎石取石术 | D123: 麻醉下,润滑,消泡,经口插入电子胃镜,寻查胃石,采用激光将胃石破碎,取出胃石。图文报告。不含监护。 | G123: 次 | I123: 500 | J123: 400 | K123: 350 | L123: 乙类 | M123: 消化 | N123: 停用
A124: 122 | B124: HPD65607 | C124: 经电子内镜胃石爆破碎石取石术 | D124: 麻醉下,润滑,消泡,经口插入电子胃镜,寻查胃石,应用爆破法将胃石破碎,取出胃石。图文报告。不含监护。 | G124: 次 | I124: 500 | J124: 400 | K124: 350 | L124: 乙类 | M124: 消化 | N124: 停用
A125: 123 | B125: HPC65601 | C125: 硬质食管镜下异物取出术 | D125: 全麻或口咽､下咽表面麻醉,根据患者的年龄､异物的种类选择合适型号的硬质食道镜,固定患者头部,表麻时固定患者的身体,经口腔径路､下咽､梨状窝进入食道,确定异物位置､大小､与周围气管壁的关系,可应用食管内窥镜进一步详细检查,选取合适的异物钳夹取异物,食道如有黏膜损伤,可下鼻饲管。 | E125: 胃管 | G125: 次 | I125: 250 | J125: 200 | K125: 175 | L125: 甲类 | M125: 消化 | N125: 停用
A126: 124 | B126: HPC65602 | C126: 经纤维食管镜食管异物取出术 | D126: 麻醉下,润滑,消泡,经口插入纤维食管镜观察食管黏膜,寻查异物,采用异物钳钳取异物。人工报告。不含监护。 | G126: 次 | I126: 220 | J126: 180 | K126: 160 | L126: 甲类 | M126: 消化 | N126: 停用
A127: 125 | B127: HPC65603 | C127: 经电子内镜食管异物取出术 | D127: 麻醉下,润滑,消泡,经口插入电子食管镜观察食管黏膜,寻查异物,采用异物钳钳取异物,取出异物。图文报告。不含监护。 | G127: 次 | I127: 400 | J127: 320 | K127: 280 | L127: 乙类 | M127: 消化 | N127: 停用
A128: 126 | B128: HPD65601 | C128: 经纤维内镜胃内异物取出术 | D128: 麻醉下,润滑,消泡,经口插入纤维胃镜,寻查异物,采用异物钳钳取异物。人工报告。不含监护。 | E128: 异物钳 | F128: 血管夹 | G128: 次 | I128: 1000 | J128: 800 | K128: 700 | L128: 乙类 | M128: 消化 | N128: 停用
A129: 127 | B129: HPD65602 | C129: 经电子内镜胃内异物取出术 | D129: 麻醉下,润滑,消泡,经口插入电子胃镜,寻查异物,采用异物钳钳取异物。图文报告。不含监护。 | E129: 异物钳 | F129: 血管夹 | G129: 次 | I129: 1400 | J129: 1120 | K129: 980 | L129: 乙类 | M129: 消化 | N129: 停用
A130: 128 | B130: HQE65601 | C130: 经瘘管胆道镜异物取出术 | D130: 经腹壁胆道造瘘口插入胆道镜,观察肝内胆道树和肝外胆管及十二指肠乳头开口,用取石钳寻找取出异物(结石､蛔虫､支架､引流管､血块等)。 | E130: 引流装置,冲洗液 | G130: 次 | I130: 1400 | J130: 1120 | K130: 980 | L130: 乙类 | M130: 消化 | N130: 停用
A131: 129 | B131: QHXZ0056 | C131: 经电子内镜肠内异物取出术 | D131: 清洁肠道，镇静，插入内镜，找到异物，采用内镜异物取出器械将异物取出肠道。含图文报告，不含监护。 | E131: 异物钳 | F131: 圈套器 | G131: 次 | H131: 每增加一个异物按20%收取 | I131: 1200 | J131: 960 | K131: 840 | L131: 乙类 | M131: 消化 | N131: 停用
A132: 130 | B132: HPK80601 | C132: 经十二指肠镜乳头狭窄扩张术 | D132: 麻醉下,镇静,润滑,消泡,电子十二指肠镜经口插至十二指肠乳头部位,经气囊､水囊,扩张探条等逐次插入乳头开口进行扩张,置入内引流管经鼻引出固定。 | E132: 引流装置,胃管 | F132: 造影导管,导丝,扩张材料 | G132: 次 | I132: 1200 | J132: 960 | K132: 840 | L132: 乙类 | M132: 消化 | N132: 停用
A133: 131 | B133: HPC80601 | C133: 经电子内镜食管狭窄扩张术 | D133: 麻醉下,润滑,消泡,经口插入电子胃镜,置入导引钢丝,引导置入扩张器材(扩张水囊､气囊､金属橄榄形扩张球､多聚乙烯扩张探条等),在胃镜直视下扩张狭窄部位。图文报告。不含监护､X线检查。 | F133: 导丝,扩张材料 | G133: 次 | I133: 580 | J133: 460 | K133: 400 | L133: 乙类 | M133: 消化 | N133: 停用
A134: 132 | B134: HPH80601 | C134: 经电子内镜肠道狭窄扩张术 | D134: 麻醉下，清洁肠道,镇静,润滑肠道,电子结肠镜自肛门插入,循腔镜到达结肠狭窄部位,置入导引钢丝,引导置入扩张球囊,在结肠镜直视下采用球囊扩张导管扩张狭窄部位。图文报告。不含监护､狭窄扩张术､X线检查。 | F134: 导丝,球囊扩张导管 | G134: 次 | I134: 840 | J134: 670 | K134: 590 | L134: 乙类 | M134: 消化 | N134: 停用
A135: 133 | B135: HPK80602 | C135: 经电子内镜十二指肠狭窄扩张术 | D135: 麻醉下,润滑,消泡,经口插入电子十二指肠镜,置入导引钢丝,引导置入扩张材料(气囊､水囊､探条等),在十二指肠镜直视下多次扩张狭窄部位。图文报告。不含X线检查。 | F135: 导丝,扩张材料 | G135: 次 | I135: 1200 | J135: 960 | K135: 840 | L135: 乙类 | M135: 消化 | N135: 停用
A136: 134 | B136: HQE80101 | C136: 经皮经肝胆道狭窄球囊扩张术 | D136: 局部消毒铺巾,以穿刺针穿刺肝内胆管后,沿此通路经导丝置换引流管及球囊导管,进行胆道狭窄扩张与引流。不含监护､影像学引导。 | E136: 穿刺针,引流装置 | F136: 导管,导丝,血管鞘组,球囊扩张导管,特殊缝线 | G136: 次 | I136: 1000 | J136: 800 | K136: 700 | L136: 乙类 | M136: 消化 | N136: 停用
A137: 135 | B137: QHXZ0025 | C137: 经口食管狭窄球囊扩张术 | D137: 麻醉下，经口插入导引导丝，送入造影导管，DSA造影证实后，沿导丝引导置入球囊，在DSA引导下扩张球囊，术后造影复查。不含监护。 | E137: 注射器，牙垫，压力泵 | F137: 导丝，导管，球囊，球囊扩张导管 | G137: 次 | I137: 1000 | J137: 800 | K137: 700 | L137: 乙类 | M137: 消化 | N137: 停用
A138: 136 | B138: HQP80601 | C138: 经电子内镜胰胆管狭窄扩张术 | D138: 麻醉下,镇静,润滑,消泡,电子十二指肠镜经口插至十二指肠乳头部位,胰胆管造影,胰胆管插管,经活检通道将导丝插入胰胆管狭窄部位,将扩张材料(气囊､探条等)或球囊扩张导管沿导丝插入胰胆管,进行扩张。图文报告。不含监护､十二指肠乳头括约肌切开术､胰管括约肌切开术､X线检查。 | F138: 造影导管,导丝,血管夹,扩张材料，球囊扩张导管 | G138: 次 | I138: 1300 | J138: 1040 | K138: 910 | L138: 乙类 | M138: 消化 | N138: 停用
A139: 137 | B139: HPD66601 | C139: 经电子内镜胃内支架置换术 | D139: 麻醉下,润滑,消泡,经口插入电子胃镜,暴露支架上缘杯口收缩线,应用支架回收器拉紧收缩线,使支架与胃黏膜分离,取出支架,在胃镜直视下放置新支架。图文报告。不含监护､X线检查。 | F139: 支架,导丝 | G139: 次 | I139: 650 | J139: 520 | K139: 450 | L139: 乙类 | M139: 消化 | N139: 停用
A140: 138 | B140: HPS66601 | C140: 经电子内镜结肠支架置换术 | D140: 麻醉下，清洁肠道,镇静,润滑肠道,电子结肠镜自肛门插入,循腔进镜插至支架部位,暴露杯口收缩线,应用支架回收器收紧收缩线,将支架与结肠黏膜分离,取出支架,在结肠镜直视下放置新支架。图文报告。不含监护､狭窄扩张术､X线检查。 | F140: 肠道支架,导丝 | G140: 次 | I140: 1000 | J140: 800 | K140: 700 | L140: 乙类 | M140: 消化 | N140: 停用
A141: 139 | B141: HPC62601 | C141: 经电子内镜食管支架置入术 | D141: 麻醉下，润滑,消泡,经口插入电子胃镜,置入导引钢丝,引导置入食管支架,在内镜直视下放置支架。图文报告。不含监护､X线检查。 | F141: 食管支架,导丝 | G141: 次 | I141: 1000 | J141: 800 | K141: 700 | L141: 乙类 | M141: 消化 | N141: 停用
A142: 140 | B142: HPC66601 | C142: 经电子内镜食管支架置换术 | D142: 麻醉下,润滑,消泡,经口插入电子胃镜,暴露支架上缘杯口收缩线,应用支架回收器拉紧收缩线,使支架与食管黏膜分离,取出支架,在内镜直视下置入新支架。图文报告。不含监护､食管扩张术､X线检查。 | F142: 食管支架,导丝 | G142: 次 | I142: 1000 | J142: 800 | K142: 700 | L142: 乙类 | M142: 消化 | N142: 停用
A143: 141 | B143: HPD62601 | C143: 经电子内镜胃内支架置入术 | D143: 麻醉下,润滑,消泡,经口插入电子胃镜,置入导引钢丝引导置入支架,在胃镜直视下于狭窄部位放置支架。X线透视确定位置。图文报告。不含监护､X线检查。 | F143: 支架,导丝 | G143: 次 | I143: 1500 | J143: 1200 | K143: 1050 | L143: 乙类 | M143: 消化 | N143: 停用
A144: 142 | B144: HPS62601 | C144: 经电子内镜结肠支架置入术 | D144: 麻醉下，清洁肠道,镇静,润滑肠道,电子结肠镜自肛门插入,循腔进镜到达狭窄部位,置入导引钢丝引导置入支架,在结肠镜直视下放置支架。X线透视确定位置。图文报告。不含监护､狭窄扩张术､X线检查。 | F144: 肠道支架,导丝 | G144: 次 | I144: 1000 | J144: 800 | K144: 700 | L144: 乙类 | M144: 消化 | N144: 停用
A145: 143 | B145: HQC45102 | C145: 经皮经肝肝门部肿物支架置入内引流术 | D145: 定位,消毒铺巾,局麻,B超引导下穿刺,导丝引导,支架管置入通过肿瘤狭窄部,缝合切口。 | E145: 引流装置,注射器 | F145: 支架,特殊缝线,止血材料 | G145: 次 | I145: 2100 | J145: 1680 | K145: 1470 | L145: 乙类 | M145: 消化 | N145: 停用
A146: 144 | B146: HQE62101 | C146: 经皮经肝胆道支架置入术 | D146: 局部消毒铺巾,以穿刺针穿刺肝内胆管后,沿此通路经导丝置换支架及引流管。不含监护､影像学引导。 | E146: 穿刺针,引流装置 | F146: 导管,导丝,球囊扩张导管,支架,特殊缝线 | G146: 次 | I146: 950 | J146: 760 | K146: 665 | L146: 乙类 | M146: 消化 | N146: 停用
A147: 145 | B147: HQE62601 | C147: 经内镜胆管内支架置入术 | D147: 麻醉下,镇静,润滑,消泡,电子十二指肠镜经口插至十二指肠乳头部位,胆管造影,经乏特氏壶腹插入导丝,通过胆管狭窄部位,确认位置后沿导丝置入胆管内支架。图文报告。 | E147: 引流装置 | F147: 胆道支架,造影导管,导丝,止血材料 | G147: 次 | I147: 950 | J147: 760 | K147: 665 | L147: 乙类 | M147: 消化 | N147: 停用
A148: 146 | B148: HQP62601 | C148: 经电子内镜胰管内支架置入术 | D148: 麻醉下,镇静,润滑,消泡,电子十二指肠镜经口插至十二指肠乳头部位,胰管造影,经活检通道插入导丝,通过胰管狭窄部位,确认位置后沿导丝置入胰管内支架。图文报告。不含监护､十二指肠乳头括约肌切开术､X线检查。 | F148: 造影导管,导丝,血管夹,支架 | G148: 次 | I148: 1000 | J148: 800 | K148: 700 | L148: 乙类 | M148: 消化 | N148: 停用
A149: 147 | B149: QHXZ0047 | C149: 消化道狭窄球囊扩张术+支架置入术 | D149: 影像监视定位食道、贲门、幽门、肠道等消化道部位，去除检查部位体表金属物品，摆位，造影摄片，球囊扩张，再行造影复查，摄片，支架置入，医生完成诊断报告。不含影像学引导。 | E149: 注射器 | F149: 导管，导丝，球囊扩张导管，支架 | G149: 次 | H149: 只行球囊扩张术的按50%收取 | I149: 1600 | J149: 1280 | K149: 1120 | L149: 乙类 | M149: 消化 | N149: 停用
A150: 148 | B150: HQP66601 | C150: 经电子内镜胰管支架置换术 | D150: 麻醉下,镇静,润滑,消泡,电子十二指肠镜经口插至十二指肠乳头部位,经活检通道插入导丝,应用支架回收器取出胰管支架,置入新的胰管支架。图文报告。不含监护､十二指肠乳头括约肌切开术､X线检查。 | F150: 造影导管,导丝,血管夹,支架 | G150: 次 | I150: 1500 | J150: 1200 | K150: 1050 | L150: 乙类 | M150: 消化 | N150: 停用
A151: 149 | B151: HPC64601 | C151: 经电子内镜食管支架取出术 | D151: 麻醉下,润滑,消泡,经口插入电子胃镜,暴露支架上缘杯口收缩线,应用支架回收器拉紧收缩线使支架与食管黏膜分离,取出支架。图文报告。不含监护､X线检查。 | G151: 次 | I151: 1000 | J151: 800 | K151: 700 | L151: 乙类 | M151: 消化 | N151: 停用
A152: 150 | B152: HPD64601 | C152: 经电子内镜胃内支架取出术 | D152: 麻醉下,润滑,消泡,经口插入电子胃镜,暴露支架上缘杯口收缩线,拉紧收缩线,使支架与胃黏膜分离,取出支架。图文报告。不含监护､X线检查。 | F152: 导丝 | G152: 次 | I152: 600 | J152: 480 | K152: 420 | L152: 乙类 | M152: 消化 | N152: 停用
A153: 151 | B153: HPS64601 | C153: 经电子内镜结肠支架取出术 | D153: 麻醉下，清洁肠道,镇静,润滑肠道,电子结肠镜自肛门插入,循腔进镜插至支架部位,暴露杯口收缩线,应用支架回收器收紧收缩线,将支架与结肠黏膜分离,取出支架。图文报告。不含监护､X线检查。 | G153: 次 | I153: 940 | J153: 750 | K153: 660 | L153: 乙类 | M153: 消化 | N153: 停用
A154: 152 | B154: HQP64601 | C154: 经电子内镜胰管支架取出术 | D154: 麻醉下,镇静,润滑,消泡,电子十二指肠镜经口插至十二指肠乳头部位,胰管造影,经活检通道插入导丝,应用支架回收器取出胰管支架。图文报告。不含监护､十二指肠乳头括约肌切开术､X线检查。 | F154: 造影导管,导丝,血管夹,息肉勒除器 | G154: 次 | I154: 800 | J154: 640 | K154: 560 | L154: 乙类 | M154: 消化 | N154: 停用
A155: 153 | B155: HQE65501 | C155: 经皮经肝胆道镜取石术 | D155: 消毒,铺巾,局麻,经肝穿刺,进入胆道,引入导丝扩张后插入胆道镜,分别取出结石,置管引出固定。不含影像学引导。 | E155: 引流装置,穿刺针,冲洗液,注射器 | F155: 扩张管,导丝 | G155: 次 | I155: 1600 | J155: 1280 | K155: 1120 | L155: 甲类 | M155: 消化 | N155: 停用
A156: 154 | B156: HQP65601 | C156: 经电子内镜胰胆管结石取石术 | D156: 麻醉下,镇静,润滑,消泡,电子十二指肠镜插至十二指肠乳头部位,胰胆管造影,将取石导管沿导丝插入胰胆管,反复取石。图文报告。不含监护､十二指肠乳头括约肌切开术､胰胆管括约肌切开术､X线检查。 | F156: 造影导管,导丝,血管夹,取石网篮,取石球囊 | G156: 次 | I156: 1300 | J156: 1040 | K156: 910 | L156: 乙类 | M156: 消化 | N156: 停用
A157: 155 | B157: HQE65603 | C157: 经电子内镜胆管结石激光碎石取石术 | D157: 麻醉下,镇静,润滑,消泡,电子十二指肠镜插至十二指肠乳头部位,胆管造影,激光碎石,取石导管沿导丝插入胆管,反复取石。图文报告。不含监护､十二指肠乳头括约肌切开术､X线检查。 | F157: 取石球囊导管,造影导管,导丝,血管夹,取石网篮，支架，专用引流管 | G157: 次 | I157: 2900 | J157: 2465 | K157: 2095 | L157: 乙类 | M157: 消化 | N157: 停用
A158: 156 | B158: HQE65602 | C158: 经电子内镜胆管机械碎石取石术 | D158: 麻醉下,镇静,润滑,消泡,电子十二指肠镜插经口至十二指肠乳头部位,胆管造影,机械碎石,取石导管沿导丝插入胆管,反复取石。图文报告。不含监护､十二指肠乳头括约肌切开术､X线检查。 | F158: 取石球囊导管,造影导管,导丝,血管夹,取石网篮，支架，专用引流管 | G158: 次 | I158: 2600 | J158: 2210 | K158: 1879 | L158: 乙类 | M158: 消化 | N158: 停用
A159: 157 | B159: HPK65601 | C159: 经电子十二指肠镜奥狄氏括约肌切开胰管取石术 | D159: 麻醉下,镇静,润滑,消泡,电子十二指肠镜经口插至十二指肠乳头部位,乳头开口进行扩张,插入十二指肠乳头肌切开刀,切开乳头胰管开口,取出结石及异物,止血,置管,经鼻引出固定。 | E159: 引流装置,胃管 | F159: 造影导管,导丝,括约肌切开刀,取石球囊,导管,取石网篮,扩张球囊,鼻胆引流管 | G159: 次 | I159: 1500 | J159: 1200 | K159: 1050 | L159: 乙类 | M159: 消化 | N159: 停用
A160: 158 | B160: HQK65101 | C160: 经皮经肝胆囊穿刺超声碎石取石术 | D160: 消毒铺巾,局麻,经肝穿刺,进入胆囊,引入导丝扩张后插入胆道镜,置入超声碎石装置,多次碎石并取出,置管引出固定。不含影像学引导。 | E160: 引流装置,穿刺针,冲洗液 | F160: 导丝,取石网篮,碎石器 | G160: 次 | I160: 1000 | J160: 800 | K160: 700 | L160: 乙类 | M160: 消化 | N160: 停用
A161: 159 | B161: HQK65102 | C161: 经皮经肝胆囊穿刺激光碎石取石术 | D161: 消毒铺巾,局麻,经肝穿刺,进入胆囊,引入导丝扩张后插入胆道镜,置入激光碎石装置,多次碎石并取出,置管引出固定。不含影像学引导。 | E161: 引流装置,穿刺针,生理冲洗液 | F161: 导丝,取石网篮,碎石器 | G161: 次 | I161: 1000 | J161: 800 | K161: 700 | L161: 乙类 | M161: 消化 | N161: 停用
A162: 160 | B162: HQK65801 | C162: 经皮经肝胆囊穿刺胆道镜胆囊结石取出术 | D162: 定位,消毒铺巾,局麻,经肝穿刺,进入胆囊,引入导丝扩张后插入胆道镜,分别取出结石,置管引出固定。图文报告。不含B超或CT定位。 | E162: 引流装置,穿刺针,冲洗液 | F162: 扩张管,导丝,取石网篮 | G162: 次 | I162: 1500 | J162: 1200 | K162: 1050 | L162: 乙类 | M162: 消化 | N162: 停用
A163: 161 | B163: HPK50602 | C163: 经电子内镜十二指肠乳头括约肌切开术(EST) | D163: 麻醉下,镇静,润滑,消泡,电子十二指肠镜经口插至十二指肠乳头部位,经活检通道插入十二指肠乳头肌切开刀至十二指肠乳头部位,采用高频电进行十二指肠乳头括约肌切开。图文报告。不含监护､十二指肠乳头括约肌切开术､X线检查。 | F163: 导丝,造影导管,血管夹,括约肌切开刀 | G163: 次 | I163: 1000 | J163: 800 | K163: 700 | L163: 乙类 | M163: 消化 | N163: 停用
A164: 162 | B164: HPK64601 | C164: 经内镜奥狄氏括约肌切开取石术(ECT) | D164: 麻醉下,镇静,润滑,消泡,电子十二指肠镜经口插至十二指肠乳头部位,乳头开口进行扩张,插入十二指肠乳头肌切开刀,切开乳头,取出结石及异物,止血,置管,经鼻引出固定。 | E164: 引流装置,胃管 | F164: 造影导管,导丝,取石网篮,扩张球囊,括约肌切开刀,鼻胆引流管 | G164: 次 | I164: 800 | J164: 640 | K164: 560 | L164: 乙类 | M164: 消化 | N164: 停用
A165: 163 | B165: HPK50601 | C165: 经纤维内镜十二指肠乳头括约肌切开术(EST) | D165: 麻醉下,镇静,润滑,消泡,纤维十二指肠镜经口插至十二指肠乳头部位,经活检通道插入十二指肠乳头肌切开刀至十二指肠乳头部位,采用高频电进行十二指肠乳头括约肌切开。人工报告。不含监护､十二指肠乳头括约肌切开术､X线检查。 | F165: 导丝,造影导管,血管夹,括约肌切开刀 | G165: 次 | I165: 900 | J165: 720 | K165: 630 | L165: 乙类 | M165: 消化 | N165: 停用
A166: 164 | B166: HPK83401 | C166: 经十二指肠奥狄氏括约肌切开成形术 | D166: 逐层进腹探查,显露并纵切胆总管探查,确定下端狭窄后游离十二指肠,纵行切开降部,找到奥狄氏括约肌开口,探条扩张,引入尿管,楔形切除部分狭窄段,缝合成形开口,奥狄氏括约肌狭窄段贯通切开,缝合关闭十二指肠,止血,T管､腹腔引流管分别经腹壁另戳孔引出固定,清点器具､纱布无误,冲洗腹腔,逐层关腹。 | E166: 引流装置,T形管,冲洗液 | F166: 吻合器,血管夹,特殊缝线,止血材料 | G166: 次 | I166: 1800 | J166: 1440 | K166: 1260 | L166: 甲类 | M166: 消化 | N166: 停用
A167: 165 | B167: HPK83601 | C167: 经电子十二指肠镜奥狄氏括约肌狭窄切开成形术 | D167: 麻醉下,镇静,润滑,消泡,电子十二指肠镜经口插至十二指肠乳头部位,扩张探条逐次插入乳头开口进行扩张,置入十二指肠乳头肌切开刀,奥狄氏括约肌狭窄段贯通切开,止血,置管,经鼻引出固定。 | E167: 引流装置,胃管 | F167: 特殊缝线,扩张球囊,括约肌切开刀,鼻胆引流管 | G167: 次 | I167: 2000 | J167: 1600 | K167: 1400 | L167: 乙类 | M167: 消化 | N167: 停用
A168: 166 | B168: QHXZ0024 | C168: 经电子内镜贲门环状肌切开术（POEM） | D168: 胃镜前端加透明帽，麻醉下，润滑，消泡，经口插入电子胃镜，胃镜检查，确定隧道切开部位，粘膜下注射肾上腺素甘油果糖(或高渗冲洗液及美蓝或靛胭脂)以抬举部分黏膜，粘膜切开，边用一次性热活检钳止血，建立粘膜下隧道，切断贲门环形肌，清理创面，钛夹夹闭粘膜隧道口。不含监护。 | E168: 注射针 | F168: 血管夹，止血材料，活检钳 | G168: 次 | I168: 2500 | J168: 2000 | K168: 1750 | L168: 乙类 | M168: 消化 | N168: 停用
A169: 167 | B169: HQP50601 | C169: 经电子内镜胰管括约肌切开术 | D169: 麻醉下,镇静,润滑,消泡,电子十二指肠镜经口插至十二指肠乳头部位,胰胆管造影,沿导丝胰管插管,经活检通道插入胰管括约肌切开刀,行胰管括约肌切开。图文报告。不含监护､十二指肠乳头括约肌切开术､X线检查。 | F169: 造影导管,导丝,血管夹,括约肌切开刀 | G169: 次 | I169: 800 | J169: 640 | K169: 560 | L169: 乙类 | M169: 消化 | N169: 停用
A170: 168 | B170: HPL50601 | C170: 经内镜空肠造瘘术 | D170: 麻醉下,润滑,消泡,经口插入内镜。造瘘管于空肠前壁经皮肤穿刺进入空肠,在内镜直视下将造瘘管固定于空肠与皮肤之间,将营养管置入小肠。图文报告。不含监护。 | E170: 造瘘管 | G170: 次 | I170: 2000 | J170: 1600 | K170: 1400 | L170: 乙类 | M170: 消化 | N170: 停用
A171: 169 | B171: HPL62601 | C171: 经纤维内镜空肠置管术 | D171: 麻醉下,润滑,经口插入纤维胃镜,在胃镜直视下,经活检钳或异物钳的帮助,将空肠营养管置入空肠。人工报告。不含X线检查､胃镜检查术。 | E171: 空肠营养管 | G171: 次 | I171: 400 | J171: 320 | K171: 280 | L171: 乙类 | M171: 消化 | N171: 停用
A172: 170 | B172: HPH62401 | C172: 经鼻肠梗阻导管置入术 | D172: 鼻腔､口咽麻醉,润滑,在影像设备导引下,经导丝导引置入肠梗阻导管。不含监护､影像学引导。 | F172: 导丝,导管,球囊扩张导管 | G172: 次 | I172: 700 | J172: 560 | K172: 490 | L172: 乙类 | M172: 消化 | N172: 停用
A173: 171 | B173: HPL62602 | C173: 经电子内镜空肠置管术 | D173: 麻醉下,润滑,经口插入电子胃镜,在胃镜直视下,经活检钳或异物钳的帮助,将空肠营养管置入空肠。人工报告。不含X线检查､胃镜检查术。 | E173: 空肠营养管 | G173: 次 | I173: 600 | J173: 480 | K173: 420 | L173: 乙类 | M173: 消化 | N173: 停用
A174: 172 | B174: HQK50501 | C174: 经腹腔镜胆囊造瘘术 | D174: 腹壁多处戳孔,造气腹,插入观察镜,插入操作内镜,插入辅助器械,探查,胆囊置管造瘘双荷包缝合,经腹壁引出固定,缝合切口。 | E174: 引流装置,造瘘管 | F174: 腔镜材料 | G174: 次 | I174: 1100 | J174: 880 | K174: 770 | L174: 乙类 | M174: 消化 | N174: 停用
A175: 173 | B175: HQE64601 | C175: 经内镜胆管内支架取出术 | D175: 麻醉下,镇静,润滑,消泡,电子十二指肠镜经口插至十二指肠乳头部位,胆管造影,经乏特氏壶腹插入导丝,应用支架回收器取出胆管内支架。图文报告。 | E175: 引流装置 | F175: 造影导管,导丝 | G175: 次 | I175: 500 | J175: 400 | K175: 350 | L175: 乙类 | M175: 消化 | N175: 停用
A176: 174 | B176: HPA66301 | C176: 消化道造瘘管置换术 | D176: 消毒铺巾,胃､胆道､空肠造瘘管拔出,并即刻经瘘管插入新引流管,留置,固定。 | E176: 引流装置,引流管,造瘘管 | G176: 次 | I176: 800 | J176: 640 | K176: 560 | L176: 乙类 | M176: 消化 | N176: 停用
A177: 175 | B177: HPC73303 | C177: 食管良性肿物切除术 | D177: 指食管良性肿瘤､食管囊肿等的切除。胸外侧切口,消毒铺巾,贴膜,电刀开胸探查,游离局部食管,切除或摘除肿物,如果食管黏膜破损,行黏膜修补术。电刀或超声刀止血,放置胸腔闭式引流管。逐层关胸。不含病理学检查。 | E177: 引流装置 | F177: 内固定材料,特殊缝线,止血材料 | G177: 次 | I177: 2000 | J177: 1600 | K177: 1400 | L177: 甲类 | M177: 消化 | N177: 停用
A178: 176 | B178: HPC73301 | C178: 食管憩室切除术 | D178: 颈部或胸外侧切口,消毒铺巾,贴膜,探查,游离局部食管,确认憩室位置,于憩室根部切除憩室,或内翻缝合憩室,放置胸腔闭式引流或颈部引流。不含病理学检查。 | E178: 引流装置 | F178: 内固定材料,特殊缝线,止血材料 | G178: 次 | I178: 2000 | J178: 1600 | K178: 1400 | L178: 甲类 | M178: 消化 | N178: 停用
A179: 177 | B179: HPC86307 | C179: 肠代食管术 | D179: 含结肠或小肠代食道。仰卧位,剑突下至脐下纵切口开腹,如幽门肥厚需行幽门成形术。测量颈部到胃的距离,游离升､横结肠,试验性夹闭结肠血管后,保留左侧结肠动脉,结扎结肠中动脉,小心保留血管弓并游离结肠备用。取颈部胸锁乳突肌切口,分离找到食管,切断后,远端结扎荷包包埋。将结肠经胸骨后隧道自颈部拖出,与食管近端行吻合,代食管之结肠远端与胃行吻合,剩余结肠部分行肠吻合。术中留置胃管､喂养管,颈部伤口留置橡皮片引流。不含幽门成形术。 | E179: 造瘘管,引流装置,胃管 | F179: 吻合器,特殊缝线,止血材料 | G179: 次 | I179: 3000 | J179: 2400 | K179: 2100 | L179: 甲类 | M179: 消化 | N179: 停用
A180: 178 | B180: HPC86308 | C180: 食管癌切除结肠代食管胸内吻合术 | D180: 经胸､腹径路,消毒铺巾,切除食管及肿瘤,游离结肠,将带血管弓的结肠上提至胸部,行食管-结肠,结肠-胃,结肠-结肠吻合术。清扫淋巴结。放置腹腔引流管及胸腔闭式引流管。逐层缝合胸,腹部切口。不含胸导管结扎术。 | E180: 引流装置 | F180: 吻合器,内固定材料,特殊缝线,止血材料 | G180: 次 | I180: 2900 | J180: 2320 | K180: 2030 | L180: 甲类 | M180: 消化 | N180: 停用
A181: 179 | B181: HPC86310 | C181: 食管癌切除胃代食管胸内吻合术 | D181: 左胸后外侧切口,消毒铺巾,贴膜,电刀进胸探查,游离食管及肿瘤,切开膈肌,充分游离胃,上提胃至胸腔,切除食管(含贲门)及肿瘤,作胃-食管主动脉弓下或弓上吻合术,清扫胸腔､纵隔及腹腔肿大淋巴结,缝合膈肌,电刀或超声刀止血,放置胸腔闭式引流管,关胸。不含胸导管结扎术､病理学检查。 | E181: 引流装置 | F181: 吻合器,内固定材料,特殊缝线,止血材料 | G181: 次 | I181: 2900 | J181: 2320 | K181: 2030 | L181: 甲类 | M181: 消化 | N181: 停用
A182: 180 | B182: HPC86311 | C182: 食管癌两切口切除胃代食管胸内吻合术 | D182: 右胸后外侧切口,消毒铺巾,贴膜,电刀进胸探查,游离食管及肿瘤。腹部切口,游离胃,上提胃至右胸腔,作胃-食管吻合,清扫胸腔､纵隔及腹腔肿大淋巴结,电刀或超声刀止血,放置胸腔闭式引流管。逐层关胸。不含胸导管结扎术､病理学检查。 | E182: 引流装置 | F182: 吻合器,内固定材料,特殊缝线,止血材料 | G182: 次 | I182: 3100 | J182: 2480 | K182: 2170 | L182: 甲类 | M182: 消化 | N182: 停用
A183: 181 | B183: HPC86312 | C183: 食管癌两切口切除胃代食管颈部吻合术 | D183: 消毒铺巾,贴膜。左胸后外侧切口,电刀进胸,游离胸段食管及肿瘤,切开膈肌,充分游离胃,再行左颈部切口,游离出颈段食管,切除胸段食管及肿瘤,上提胃至颈部,作胃-食管颈部吻合术,清扫胸腔及腹腔肿大淋巴结,缝合膈肌,放置颈部引流管及胸腔闭式引流管,电刀或超声刀止血,分别逐层缝合颈部､胸部切口。不含胸导管结扎术､病理学检查。 | E183: 引流装置 | F183: 吻合器,内固定材料,特殊缝线,止血材料 | G183: 次 | I183: 3100 | J183: 2480 | K183: 2170 | L183: 甲类 | M183: 消化 | N183: 停用
A184: 182 | B184: HPC86313 | C184: 食管癌三切口切除胃代食管颈部吻合术 | D184: 先置病人左侧卧位,消毒铺巾,经右胸后外侧切口进胸,游离胸段食管及肿瘤,清扫胸腔､纵隔肿大淋巴结,放置胸腔闭式引流管后关胸。置病人平卧位,作腹正中切口,充分游离胃,清扫腹腔肿大淋巴结。再行左颈部切口,游离出颈段食管,切除胸段食管及肿瘤,上提胃至颈部,作胃-食管颈部吻合术,放置颈部引流管及腹腔引流管,电刀或超声刀止血,分别逐层关腹､缝合颈部切口。不含胸导管结扎术､病理学检查。 | E184: 引流装置 | F184: 吻合器,内固定材料,特殊缝线,止血材料 | G184: 次 | I184: 3200 | J184: 2560 | K184: 2240 | L184: 甲类 | M184: 消化 | N184: 停用
A185: 183 | B185: HPC73503 | C185: 经胸腔镜食管癌切除术 | D185: 指无明显外侵食管癌的切除,食管-胃吻合手术。经胸外侧径路,消毒铺巾,贴膜,单肺通气,建立气胸,胸腔镜探查胸腔,游离食管,结扎切断食管供应血管,切除部分食管及肿瘤,用特殊标本袋取出标本。开腹游离胃,颈部切口,做食管-胃吻合术。清扫颈，胸，腹部淋巴结,用电刀或超声刀止血,置放胸腔闭式引流,关胸。不含病理学检查､胸导管结扎术。 | E185: 引流装置 | F185: 腔镜材料 | G185: 次 | I185: 2100 | J185: 1680 | K185: 1470 | L185: 乙类 | M185: 消化 | N185: 停用
A186: 184 | B186: HPC74301 | C186: 颈段食管癌切除颈部皮瓣食管重建术 | D186: 消毒铺巾,颈部切口,切除颈段食管及肿瘤,颈部皮瓣食管再造术,清扫颈部淋巴结,放置颈部引流管(条),逐层缝合颈部切口。不含喉及下咽切除术､气管切开术､胸导管结扎术､病理学检查。 | E186: 引流装置 | F186: 吻合器,特殊缝线,止血材料 | G186: 次 | I186: 2900 | J186: 2320 | K186: 2030 | L186: 乙类 | M186: 消化 | N186: 停用
A187: 185 | B187: HPC86306 | C187: 食管癌切除结肠代食管颈部吻合术 | D187: 经颈､胸､腹径路,消毒铺巾,切除食管及肿瘤,游离结肠,将带血管弓的结肠上提至颈部,行食管-结肠,结肠-胃,结肠-结肠吻合术。清扫纵隔淋巴结。电刀或超声刀止血。放置颈部,腹腔引流管及胸腔闭式引流管。逐层缝合胸,腹,颈部切口。不含喉及下咽切除术､气管切开术､胸导管结扎术､病理学检查。 | E187: 引流装置 | F187: 吻合器,内固定材料,特殊缝线,止血材料 | G187: 次 | I187: 4900 | J187: 3920 | K187: 3430 | L187: 甲类 | M187: 消化 | N187: 停用
A188: 186 | B188: HPE77301 | C188: 经胸贲门癌切除术 | D188: 消毒铺巾,贴膜,经左胸后外侧切口,电刀进胸,游离食管下段,切开膈肌,游离胃,切除食管下段,部分近端胃及肿瘤,上提余胃至胸腔,作胃-食管主动脉弓下吻合术,清扫胸腔,纵隔及腹腔肿大淋巴结,电刀或超声刀止血。缝合膈肌,放置胸腔闭式引流管。不含全胃切除术､病理学检查。 | E188: 引流装置 | F188: 吻合器,内固定材料,特殊缝线,止血材料 | G188: 次 | I188: 2300 | J188: 1840 | K188: 1610 | L188: 甲类 | M188: 消化 | N188: 停用
A189: 187 | B189: HPE77302 | C189: 胸腹联合切口贲门癌切除术 | D189: 消毒铺巾,贴膜,经左胸腹联合切口,电刀进胸,探查。游离食管下段,切开膈肌,游离胃,切除食管下段､部分近端胃及肿瘤,上提余胃至胸腔,作胃-食管主动脉弓下吻合,清扫胸腔､纵隔及腹腔肿大淋巴结,电刀或超声刀止血。缝合膈肌,放置胸腔闭式引流管,逐层关胸,关腹。不含脾､胰尾､部分肝叶､全胃切除术､病理学检查。 | E189: 引流装置 | F189: 吻合器,内固定材料,特殊缝线,止血材料 | G189: 次 | I189: 3100 | J189: 2480 | K189: 2170 | L189: 甲类 | M189: 消化 | N189: 停用
A190: 188 | B190: HPC83306 | C190: 经腹食管下端横断术 | D190: 指Hirashima手术。逐层进腹,探查,游离食管下段,结扎食管下段周围血管,缝扎胃底曲张静脉､横断食管后,行食管对端吻合,创面止血,留置腹腔闭式引流管另戳孔引出固定,清点器具､纱布无误,冲洗腹腔,逐层关腹。不含胃底曲张静脉缝扎术､幽门成形术。 | E190: 引流装置,冲洗液 | F190: 吻合器,血管夹,特殊缝线,止血材料 | G190: 次 | I190: 2100 | J190: 1680 | K190: 1470 | L190: 甲类 | M190: 消化 | N190: 停用
A191: 189 | B191: HPC83305 | C191: 经胸食管下端横断术 | D191: 指Walker手术。逐层开胸,切除肋骨,探查,游离食管下段,结扎食管下段周围血管,缝扎胃底曲张静脉,横断食管后,行食管对端吻合,创面止血,留置胸腔闭式引流管另戳孔引出固定,清点器具､纱布无误,逐层关胸。 | E191: 引流装置 | F191: 血管夹,特殊缝线,止血材料 | G191: 次 | I191: 2100 | J191: 1680 | K191: 1470 | L191: 甲类 | M191: 消化 | N191: 停用
A192: 190 | B192: HPC86304 | C192: 食管内翻拔脱切除胃代食管颈部吻合术 | D192: 经颈､腹径路,消毒铺巾,食管内翻拔脱,切除食管及肿瘤,游离胃,上提胃至颈部,行胃-食管颈部吻合术,清扫淋巴结,放置颈部,腹腔引流管。逐层缝合腹,颈部切口。不含胸导管结扎术､病理学检查。 | E192: 引流装置,引流管 | F192: 吻合器,特殊缝线,止血材料 | G192: 次 | I192: 3100 | J192: 2480 | K192: 2170 | L192: 甲类 | M192: 消化 | N192: 停用
A193: 191 | B193: HPC86309 | C193: 小儿胃代食管术 | D193: 右侧卧位,开胸,游离食管,去除病灶,处理食管裂孔,上提胃体,食管近端与胃行吻合,放置胸腔闭式引流管,关胸。 | E193: 引流装置,引流管 | F193: 特殊缝线,止血材料 | G193: 次 | I193: 3000 | J193: 2400 | K193: 2100 | L193: 甲类 | M193: 消化 | N193: 停用
A194: 192 | B194: HPC86302 | C194: 先天性食管闭锁经右胸端端吻合术 | D194: 指Ⅲ(A､B),IV型,V型食管闭锁经胸手术者。全麻插管,经右侧胸膜外入路,找到气管瘘,分离,切断,结扎瘘管,游离上､下段食管,端端吻合。 | E194: 引流装置 | F194: 特殊缝线,止血材料,吻合器 | G194: 次 | I194: 2400 | J194: 1920 | K194: 1680 | L194: 乙类 | M194: 消化 | N194: 停用
A195: 193 | B195: HPC86501 | C195: 经胸腔镜先天性食管闭锁经右胸端端吻合术 | D195: 适用于各型食管闭锁。全麻插管,右侧胸腔放置3-4个套管,找到气管瘘,分离,切断,结扎瘘管,胃管引导下找到上段食管盲端,游离上､下段食管,行食管端端吻合。 | E195: 引流装置,造瘘管 | F195: 腔镜材料 | G195: 次 | I195: 2600 | J195: 2080 | K195: 1820 | L195: 乙类 | M195: 消化 | N195: 停用
A196: 194 | B196: HPC74302 | C196: 下咽颈段食管狭窄切除食管重建术 | D196: 颈部切口,消毒铺巾,贴膜,电刀逐层切开探查,切开或切除狭窄段食管,用颈部皮瓣修补或重建再造食管,放置颈部引流。逐层缝合颈部切口。不含空肠､结肠､胃代食管术,病理学检查。 | E196: 引流装置 | F196: 特殊缝线,止血材料 | G196: 次 | I196: 2400 | J196: 1920 | K196: 1680 | L196: 乙类 | M196: 消化 | N196: 停用
A197: 195 | B197: HPC73302 | C197: 食管狭窄切除吻合术 | D197: 颈部或胸外侧切口,消毒铺巾,贴膜,电刀开胸探查,寻找狭窄处,将食管部分切除以及食管蹼切除,行胃-食管吻合,放置胸腔闭式引流管,关胸。 | E197: 引流装置 | F197: 吻合器,内固定材料,特殊缝线,止血材料 | G197: 次 | I197: 2300 | J197: 1840 | K197: 1610 | L197: 甲类 | M197: 消化 | N197: 停用
A198: 196 | B198: HPC83301 | C198: 经颈部先天性食管闭锁修补术 | D198: 适用于V型食管闭锁。全麻插管,颈部游离气管-食管瘘,切断,结扎,缝扎,修补食管。不含纤维支气管镜检查､食管镜检查。 | E198: 造瘘管,引流装置 | F198: 特殊缝线,止血材料 | G198: 次 | I198: 2500 | J198: 2000 | K198: 1750 | L198: 乙类 | M198: 消化 | N198: 停用
A199: 197 | B199: HPC50301 | C199: 先天性食管闭锁分期手术(I期) | D199: 适用于I型或Ⅲ-A型(两盲端距离大于3厘米者)。全麻插管,经右侧胸膜外入路,上段食管盲端造瘘或牵引,下段食管盲端牵引,胃造瘘,牵引1-4周后,再行Ⅱ期手术(即食管端端吻合术)。 | E199: 造瘘管,引流装置 | F199: 特殊缝线,止血材料 | G199: 次 | I199: 2400 | J199: 1920 | K199: 1680 | L199: 乙类 | M199: 消化 | N199: 停用
A200: 198 | B200: HPC86303 | C200: 先天性食管闭锁胃管替代吻合术 | D200: 指I型食管闭锁。全麻插管,经右侧胸膜外入路,找到并游离上端食管,经腹部部分胃切除,胃管成形,上提入胸腔与上段食管吻合。 | E200: 造瘘管,引流装置 | F200: 特殊缝线,止血材料,吻合器 | G200: 次 | I200: 2400 | J200: 1920 | K200: 1680 | L200: 乙类 | M200: 消化 | N200: 停用
... 1776 more rows

Sheet 补停用
A1: 项目代码 | B1: 项目名称 | C1: 项目内涵 | D1: 内涵一次性卫生耗材 | E1: 除外内容 | F1: 计价单位 | G1: 计价说明 | H1: 指导价格（元） | K1: 医保支付类别 | L1: 指南类别 | M1: 备注
H2: 三级 | I2: 二级 | J2: 一级
A3: HNG73301 | B3: 颈淋巴结清扫术 | C3: 颈部双叉切口,于颈阔肌浅面游离皮瓣,结扎切断颈外静脉,切断胸骨舌骨肌､胸骨甲状肌､胸锁乳突肌和颈内静脉,切开颈动脉鞘,由下向上清除淋巴结和脂肪组织,切断甲状腺中(上)静脉､面总静脉,保护喉上､喉返神经､舌下神经､膈神经,再由下颌舌骨肌浅面自上而下清除颏下区淋巴结和脂肪,最后清扫颌下区的淋巴结,保护面动脉､面神经､舌下神经,止血,置管引出固定,缝合切口。 | D3: 引流装置,冲洗液 | E3: 血管夹,特殊缝线,止血材料 | F3: 次 | G3: 其他未列部位淋巴结清扫术同此收费 | H3: 1300 | I3: 1040 | J3: 910 | K3: 甲类 | L3: 耳鼻喉立项指南中“淋巴结清扫费（颈部）”
A4: HHB89304 | B4: 口腔颌面部软组织缺损游离皮瓣移植修复术 | C4: 指舌､颊､腭､口底软组织缺损的修复。含受床准备,血管准备,血管化皮瓣的转移就位,皮瓣血管准备,吻合血管,缺损修复成形,洞穿缺损植皮。不含带血管游离皮瓣切取。 | D4: 引流装置 | E4: 止血材料,特殊缝线 | F4: 次 | H4: 2000 | I4: 1600 | J4: 1400 | K4: 甲类 | L4: 体被系统中“游离皮瓣移植费”
A5: HYA81301 | B5: 乳房缩小整形术 | C5: 可采用环乳晕切口、倒T形切口、垂直切口，保留乳晕的同时，切除部分乳腺脂肪组织及多余皮肤，将乳房重新塑形。不含单纯乳房上提固定术、吸脂乳房缩小术。 | D5: 引流装置 | E5: 皮肤扩张器，特殊缝线，止血材料 | F5: 单侧 | H5: 市场调节价 | I5: 市场调节价 | J5: 市场调节价 | K5: 丙类 | L5: 美容立项指南“巨乳缩小费”
A6: EACBH002 | B6: 经皮穿刺桡动脉插管全脑血管造影术 | C6: 消毒铺巾，局部麻醉，经桡动脉穿刺，置血管鞘，导管分别插入颈动脉或椎动脉，经导管注入对比剂，造影成功后分析诊断造影结果。压迫止血。不含三维影像。 | D6: 胶片，注射器，高压注射器，穿刺针，造影手术包 | E6: 造影导管，导丝，血管鞘组 | F6: 次 | H6: 2500 | I6: 2125 | J6: 1875 | K6: 乙类 | L6: 神经系统“脑血管造影费”
A7: EACBH001 | B7: 经皮穿刺插管脑血管造影术 | C7: 消毒铺巾，局部麻醉，经颈动脉穿刺，置血管鞘，导管插入颈动脉，经导管注入对比剂，造影成功后分析诊断造影结果。不含三维影像。 | D7: 胶片，注射器，高压注射器，穿刺针，造影手术包 | E7: 造影导管，导丝，血管鞘组 | F7: 次 | H7: 2100 | I7: 1785 | J7: 1575 | K7: 乙类 | L7: 神经系统“脑血管造影费”
